Workbook

Sheet AllModes
A1: Read instructions! | B1: Inches | C1: sea level, 70˚F | D1: Feet | E1: All Modes | R1: BANDWIDTH
A2: Length = | B2: 162 | C2: Lx = | D2: =+B2/12 -> 13.5 | E2: nx | F2: ny | G2: nz | H2: f | I2: Type | J2: Weight | K2: SPACING | L2: Δf | M2: Octave Band | N2: Δmax | O2: Δavg | P2: Δ² | Q2: 1/3 Octave Band | R2: low | S2: center | T2: hi | U2: # of modes | V2: Measureable?
A3: Width = | B3: 156 | C3: Ly = | D3: =+B3/12 -> 13 | E3: 1 | F3: 0 | G3: 0 | H3: =$D$5*SQRT((($E3/$D$2)^2)+(($F3/$D$3)^2)+(($G3/$D$4)^2)) -> 41.79481481 | I3: =+IF(+AND(E3=0,F3=0)+OR(+AND(E3=0,G3=0))+OR(+AND(F3=0,G3=0)),"Axial",(+IF(+OR(E3=0,F3=0,G3=0),"Tangential","Oblique"))) -> Axial | J3: =IF(I3="Axial",1,IF(I3="Tangential",0.5,IF(I3="Oblique",0.25,""))) -> 1 | L3: - | M3: =IF(H3<17.8,1,IF(H3<=22.4,2,IF(H3<=28.2,3,IF(H3<=35.5,4,IF(H3<=44.7,5,IF(H3<=56.2,6,IF(H3<=70.8,7,IF(H3<=89.1,8,IF(H3<=112,9,IF(H3<=141,10,IF(H3<=178,11,IF(H3<=224,12,IF(H3<=282,13,IF(H3<=355,14,IF(H3<=447,15,IF(H3<=562,16,IF(H3<=708,17,IF(H3<=891,18,IF(H3<=1122,19,IF(H3<=1413,20,IF(H3<=1778,21,IF(H3<=2239,22,IF(H3<=2818,23,IF(H3<=3548,24,IF(H3<=4467,25,IF(H3<=5623,26,IF(H3<=7079,27,IF(H3<=8913,28,IF(H3<=11220,29,IF(H3<=14130,30,IF(H3<=17780,31,IF(H3<=22390,32,)))))))))))))))))))))))))))))))) -> 5 | Q3: 1 | R3: 14.1 | S3: 16 | T3: 17.8 | U3: =COUNTIF($M$3:$M$1001,Q3) -> 0 | V3: =IF((U3)<5,"INACCURATE","CAN TEST") -> INACCURATE
A4: Height = | B4: 99 | C4: Lz = | D4: =+B4/12 -> 8.25 | E4: 0 | F4: 1 | G4: 0 | H4: 43.40230769 | I4: Axial | J4: =IF(I4="Axial",1,IF(I4="Tangential",0.5,IF(I4="Oblique",0.25,""))) -> 1 | K4: =IF((H4-H3)<1,"RED","OK") -> OK | L4: =H4-H3 -> 1.607492877 | M4: =IF(H4<17.8,1,IF(H4<=22.4,2,IF(H4<=28.2,3,IF(H4<=35.5,4,IF(H4<=44.7,5,IF(H4<=56.2,6,IF(H4<=70.8,7,IF(H4<=89.1,8,IF(H4<=112,9,IF(H4<=141,10,IF(H4<=178,11,IF(H4<=224,12,IF(H4<=282,13,IF(H4<=355,14,IF(H4<=447,15,IF(H4<=562,16,IF(H4<=708,17,IF(H4<=891,18,IF(H4<=1122,19,IF(H4<=1413,20,IF(H4<=1778,21,IF(H4<=2239,22,IF(H4<=2818,23,IF(H4<=3548,24,IF(H4<=4467,25,IF(H4<=5623,26,IF(H4<=7079,27,IF(H4<=8913,28,IF(H4<=11220,29,IF(H4<=14130,30,IF(H4<=17780,31,IF(H4<=22390,32,)))))))))))))))))))))))))))))))) -> 5 | Q4: =Q3+1 -> 2 | R4: 17.8 | S4: 20 | T4: 22.4 | U4: =COUNTIF($M$3:$M$1001,Q4) -> 0 | V4: =IF((U4)<5,"INACCURATE","CAN TEST") -> INACCURATE
A5: Calculate Inches here | C5: c/2 = | D5: =1128.46/2 -> 564.23 | E5: 1 | F5: 1 | G5: 0 | H5: 60.2541854 | I5: Tangential | J5: 0.5 | K5: =IF((H5-H4)<1,"RED","OK") -> OK | L5: =H5-H4 -> 16.85187771 | M5: 7 | P5: =O5*N5 -> 0 | Q5: 3 | R5: 22.4 | S5: 25 | T5: 28.2 | U5: 0 | V5: INACCURATE
A6: 13.5 | B6: =A6*12 -> 162 | C6: =IF(D7>1500,"PERFECT","TOO SMALL") -> TOO SMALL | D6: VOLUME | E6: 0 | F6: 0 | G6: 1 | H6: 68.39151515 | I6: Axial | J6: 1 | K6: OK | L6: 8.13732975 | M6: 7 | P6: 0 | Q6: 4 | R6: 28.2 | S6: 31.5 | T6: 35.5 | U6: 0 | V6: INACCURATE
A7: 13 | B7: =A7*12 -> 156 | C7: V = | D7: =+D2*D3*D4 -> 1447.875 | E7: 1 | F7: 0 | G7: 1 | H7: 80.15114404 | I7: Tangential | J7: 0.5 | K7: OK | L7: 11.75962888 | M7: 8 | P7: 0 | Q7: 5 | R7: 35.5 | S7: 40 | T7: 44.7 | U7: 2 | V7: INACCURATE
A8: 8.25 | B8: =A8*12 -> 99 | C8: V = | D8: =0.028316846592*D7 -> 40.99925426 | E8: 0 | F8: 1 | G8: 1 | H8: 81.00098554 | I8: Tangential | J8: 0.5 | K8: RED | L8: 0.8498415006 | M8: 8 | P8: 0 | Q8: 6 | R8: 44.7 | S8: 50 | T8: 56.2 | U8: 0 | V8: INACCURATE
A9: If you found this spreadsheet helpful, please send a donation via PayPal to https://www.paypal.me/JHBrandt/ | E9: 2 | F9: 0 | G9: 0 | H9: 83.58962963 | I9: Axial | J9: 1 | K9: OK | L9: 2.588644094 | M9: 8 | P9: 0 | Q9: 7 | R9: 56.2 | S9: 63 | T9: 70.8 | U9: 2 | V9: INACCURATE
E10: 0 | F10: 2 | G10: 0 | H10: 86.80461538 | I10: Axial | J10: 1 | K10: OK | L10: 3.214985755 | M10: 8 | P10: 0 | Q10: 8 | R10: 70.8 | S10: 80 | T10: 89.1 | U10: =COUNTIF($M$3:$M$1001,Q10) -> 4 | V10: INACCURATE
E11: 1 | F11: 1 | G11: 1 | H11: 91.14804553 | I11: Oblique | J11: 0.25 | K11: OK | L11: 4.343430141 | M11: 9 | P11: 0 | Q11: 9 | R11: 89.1 | S11: 100 | T11: 112 | U11: 5 | V11: CAN TEST
A12: Floor/ceiling area | B12: =(B2/12)*(B3/12) -> 175.5 | E12: 2 | F12: 1 | G12: 0 | H12: 94.18591452 | I12: Tangential | J12: 0.5 | K12: OK | L12: 3.037868998 | M12: 9 | P12: 0 | Q12: 10 | R12: 112 | S12: 125 | T12: 141 | U12: 9 | V12: CAN TEST
A13: Wall f & b area | B13: =(B3/12)*(B4/12) -> 107.25 | E13: 1 | F13: 2 | G13: 0 | H13: 96.34234685 | I13: Tangential | J13: 0.5 | K13: OK | L13: 2.156432331 | M13: 9 | P13: 0 | Q13: 11 | R13: 141 | S13: 160 | T13: 178 | U13: 18 | V13: CAN TEST
A14: Wall side area | B14: =(B2/12)*(B4/12) -> 111.375 | D14: Position % | E14: 2 | F14: 0 | G14: 1 | H14: 108.0028959 | I14: Tangential | J14: 0.5 | K14: OK | L14: 11.66054906 | M14: 9 | P14: 0 | Q14: 12 | R14: 178 | S14: 200 | T14: 224 | U14: 35 | V14: CAN TEST
A15: Ideal Mix position | B15: =B2*D15 -> 60.75 | C15: to front wall | D15: =3/8 -> 0.375 | E15: 0 | F15: 2 | G15: 1 | H15: 110.5099118 | I15: Tangential | J15: 0.5 | K15: OK | L15: 2.507015842 | M15: 9 | P15: 0 | Q15: 13 | R15: 224 | S15: 250 | T15: 282 | U15: 63 | V15: CAN TEST
E16: 2 | F16: 1 | G16: 1 | H16: 116.3975336 | I16: Oblique | J16: 0.25 | K16: OK | L16: 5.88762189 | M16: 10 | P16: 0 | Q16: 14 | R16: 282 | S16: 315 | T16: 355 | U16: 117 | V16: CAN TEST
E17: 1 | F17: 2 | G17: 1 | H17: 118.1492579 | I17: Oblique | J17: 0.25 | K17: OK | L17: 1.751724251 | M17: 10 | P17: 0 | Q17: 15 | R17: 355 | S17: 400 | T17: 447 | U17: 211 | V17: CAN TEST
A18: see the Ideal Rooms tab | E18: 2 | F18: 2 | G18: 0 | H18: 120.5083708 | I18: Tangential | J18: 0.5 | K18: OK | L18: 2.359112904 | M18: 10 | P18: 0 | Q18: 16 | R18: 447 | S18: 500 | T18: 562 | U18: 245 | V18: CAN TEST
B19: Height | C19: Width | D19: Length | E19: 3 | F19: 0 | G19: 0 | H19: 125.3844444 | I19: Axial | J19: 1 | K19: OK | L19: 4.876073641 | M19: 10 | Q19: 17 | R19: 562 | S19: 630 | T19: 708
A20: Ratio: | B20: 1 | C20: =B3/B4 -> 1.575757576 | D20: =B2/B4 -> 1.636363636 | E20: 0 | F20: 3 | G20: 0 | H20: 130.2069231 | I20: Axial | J20: 1 | K20: OK | L20: 4.822478632 | M20: 10 | Q20: 18 | R20: 708 | S20: 800 | T20: 891
E21: 3 | F21: 1 | G21: 0 | H21: 132.6839072 | I21: Tangential | J21: 0.5 | K21: OK | L21: 2.476984092 | M21: 10 | Q21: 19 | R21: 891 | S21: 1000 | T21: 1122
A22: INSTRUCTIONS: | E22: 1 | F22: 3 | G22: 0 | H22: 136.7503176 | I22: Tangential | J22: 0.5 | K22: OK | L22: 4.066410427 | M22: 10 | Q22: 20 | R22: 1122 | S22: 1250 | T22: 1413
A23: 1. Enter Dimensions in Yellow Area (inches). | E23: 0 | F23: 0 | G23: 2 | H23: 136.7830303 | I23: Axial | J23: 1 | K23: RED | L23: 0.03271270719 | M23: 10 | Q23: 21 | R23: 1413 | S23: 1600 | T23: 1778
A24: 2. Press Ctrl+Shift+S to Sort. | E24: 2 | F24: 2 | G24: 1 | H24: 138.5628622 | I24: Oblique | J24: 0.25 | K24: OK | L24: 1.779831887 | M24: 10 | Q24: 22 | R24: 1778 | S24: 2000 | T24: 2239
A25: 3. Press Ctrl+Shift+C to Copy Mode Strength Data. | E25: 3 | F25: 0 | G25: 1 | H25: 142.8238714 | I25: Tangential | J25: 0.5 | K25: OK | L25: 4.26100925 | M25: 11 | Q25: 23 | R25: 2239 | S25: 2500 | T25: 2818
E26: 1 | F26: 0 | G26: 2 | H26: 143.0258855 | I26: Tangential | J26: 0.5 | K26: RED | L26: 0.2020140634 | M26: 11 | Q26: 24 | R26: 2818 | S26: 3150 | T26: 3548
A27: Other Notes: | E27: 0 | F27: 1 | G27: 2 | H27: 143.5038595 | I27: Tangential | J27: 0.5 | K27: RED | L27: 0.4779739975 | M27: 11 | Q27: 25 | R27: 3548 | S27: 4000 | T27: 4467
A28: If the "Ideal" bar does exceed the "Actual" bar in any given 1/3-octave band, the problem modes will usually be those occurring in the 1/3 octave bands that are lower than the violating band. I.e., if the "Ideal" bar at 100 Hz exceeds the "Actual" bar, the modes at 80 Hz and below are likely to give very perceptible problems in the room. | E28: 0 | F28: 3 | G28: 1 | H28: 147.0756342 | I28: Tangential | J28: 0.5 | K28: OK | L28: 3.571774653 | M28: 11 | Q28: 26 | R28: 4467 | S28: 5000 | T28: 5623
E29: 3 | F29: 1 | G29: 1 | H29: 149.2729666 | I29: Oblique | J29: 0.25 | K29: OK | L29: 2.197332475 | M29: 11 | Q29: 27 | R29: 5623 | S29: 6300 | T29: 7079
E30: 1 | F30: 1 | G30: 2 | H30: 149.4662645 | I30: Oblique | J30: 0.25 | K30: RED | L30: 0.1932979164 | M30: 11 | Q30: 28 | R30: 7079 | S30: 8000 | T30: 8913
E31: 3 | F31: 2 | G31: 0 | H31: 152.5001645 | I31: Tangential | J31: 0.5 | K31: OK | L31: 3.033899915 | M31: 11 | Q31: 29 | R31: 8913 | S31: 10000 | T31: 11220
E32: 1 | F32: 3 | G32: 1 | H32: 152.8988185 | I32: Oblique | J32: 0.25 | K32: RED | L32: 0.3986540668 | M32: 11 | Q32: 30 | R32: 11220 | S32: 12500 | T32: 14130
E33: 2 | F33: 3 | G33: 0 | H33: 154.729018 | I33: Tangential | J33: 0.5 | K33: OK | L33: 1.830199432 | M33: 11 | Q33: 31 | R33: 14130 | S33: 16000 | T33: 17780
E34: 2 | F34: 0 | G34: 2 | H34: 160.3022881 | I34: Tangential | J34: 0.5 | K34: OK | L34: 5.57327011 | M34: 11 | Q34: 32 | R34: 17780 | S34: 20000 | T34: 22390
A35: RT60 is not applicable to these small rooms. The mean free time is calculated instead from the mean free path. | E35: 0 | F35: 2 | G35: 2 | H35: 162.0019711 | I35: Tangential | J35: 0.5 | K35: OK | L35: 1.699683001 | M35: 11
E36: 2 | F36: 1 | G36: 2 | H36: 166.0740313 | I36: Oblique | J36: 0.25 | K36: OK | L36: 4.072060233 | M36: 11
E37: 3 | F37: 2 | G37: 1 | H37: 167.1337773 | I37: Oblique | J37: 0.25 | K37: OK | L37: 1.059745969 | M37: 11
E38: 4 | F38: 0 | G38: 0 | H38: 167.1792593 | I38: Axial | J38: 1 | K38: RED | L38: 0.04548198658 | M38: 11
E39: 1 | F39: 2 | G39: 2 | H39: 167.3064409 | I39: Oblique | J39: 0.25 | K39: RED | L39: 0.1271816698 | M39: 11
E40: 2 | F40: 3 | G40: 1 | H40: 169.1699392 | I40: Oblique | J40: 0.25 | K40: OK | L40: 1.863498314 | M40: 11
E41: 4 | F41: 1 | G41: 0 | H41: 172.7213509 | I41: Tangential | J41: 0.5 | K41: OK | L41: 3.551411607 | M41: 11
E42: 0 | F42: 4 | G42: 0 | H42: 173.6092308 | I42: Axial | J42: 1 | K42: RED | L42: 0.8878799191 | M42: 11
E43: 1 | F43: 4 | G43: 0 | H43: 178.5692346 | I43: Tangential | J43: 0.5 | K43: OK | L43: 4.960003853 | M43: 12
E44: 4 | F44: 0 | G44: 1 | H44: 180.6275286 | I44: Tangential | J44: 0.5 | K44: OK | L44: 2.058293931 | M44: 12
E45: 3 | F45: 3 | G45: 0 | H45: 180.7625562 | I45: Tangential | J45: 0.5 | K45: RED | L45: 0.135027652 | M45: 12
E46: 2 | F46: 2 | G46: 2 | H46: 182.2960911 | I46: Oblique | J46: 0.25 | K46: OK | L46: 1.533534846 | M46: 12
E47: 3 | F47: 0 | G47: 2 | H47: 185.5555342 | I47: Tangential | J47: 0.5 | K47: OK | L47: 3.25944319 | M47: 12
E48: 4 | F48: 1 | G48: 1 | H48: 185.7688466 | I48: Oblique | J48: 0.25 | K48: RED | L48: 0.2133124049 | M48: 12
E49: 0 | F49: 4 | G49: 1 | H49: 186.5946525 | I49: Tangential | J49: 0.5 | K49: RED | L49: 0.8258058845 | M49: 12
E50: 4 | F50: 2 | G50: 0 | H50: 188.371829 | I50: Tangential | J50: 0.5 | K50: OK | L50: 1.777176517 | M50: 12
E51: 0 | F51: 3 | G51: 2 | H51: 188.847664 | I51: Tangential | J51: 0.5 | K51: RED | L51: 0.475834947 | M51: 12
E52: 3 | F52: 1 | G52: 2 | H52: 190.5639436 | I52: Oblique | J52: 0.25 | K52: OK | L52: 1.716279606 | M52: 12
E53: 1 | F53: 4 | G53: 1 | H53: 191.2181239 | I53: Oblique | J53: 0.25 | K53: RED | L53: 0.6541802749 | M53: 12
E54: 2 | F54: 4 | G54: 0 | H54: 192.6846937 | I54: Tangential | J54: 0.5 | K54: OK | L54: 1.466569834 | M54: 12
E55: 3 | F55: 3 | G55: 1 | H55: 193.2679515 | I55: Oblique | J55: 0.25 | K55: RED | L55: 0.5832577738 | M55: 12
E56: 1 | F56: 3 | G56: 2 | H56: 193.4172866 | I56: Oblique | J56: 0.25 | K56: RED | L56: 0.1493350799 | M56: 12
E57: 4 | F57: 2 | G57: 1 | H57: 200.4029574 | I57: Oblique | J57: 0.25 | K57: OK | L57: 6.985670808 | M57: 12
E58: 2 | F58: 4 | G58: 1 | H58: 204.4621983 | I58: Oblique | J58: 0.25 | K58: OK | L58: 4.059240931 | M58: 12
E59: 3 | F59: 2 | G59: 2 | H59: 204.8557969 | I59: Oblique | J59: 0.25 | K59: RED | L59: 0.3935986369 | M59: 12
E60: 0 | F60: 0 | G60: 3 | H60: 205.1745455 | I60: Axial | J60: 1 | K60: RED | L60: 0.3187485154 | M60: 12
E61: 2 | F61: 3 | G61: 2 | H61: 206.5203776 | I61: Oblique | J61: 0.25 | K61: OK | L61: 1.345832178 | M61: 12
E62: 5 | F62: 0 | G62: 0 | H62: 208.9740741 | I62: Axial | J62: 1 | K62: OK | L62: 2.453696441 | M62: 12
E63: 1 | F63: 0 | G63: 3 | H63: 209.3881579 | I63: Tangential | J63: 0.5 | K63: RED | L63: 0.4140837761 | M63: 12
E64: 0 | F64: 1 | G64: 3 | H64: 209.7149361 | I64: Tangential | J64: 0.5 | K64: RED | L64: 0.3267782309 | M64: 12
E65: 4 | F65: 3 | G65: 0 | H65: 211.9026841 | I65: Tangential | J65: 0.5 | K65: OK | L65: 2.187748054 | M65: 12
E66: 5 | F66: 1 | G66: 0 | H66: 213.4336523 | I66: Tangential | J66: 0.5 | K66: OK | L66: 1.530968198 | M66: 12
E67: 1 | F67: 1 | G67: 3 | H67: =$D$5*SQRT((($E67/$D$2)^2)+(($F67/$D$3)^2)+(($G67/$D$4)^2)) -> 213.8391006 | I67: =+IF(+AND(E67=0,F67=0)+OR(+AND(E67=0,G67=0))+OR(+AND(F67=0,G67=0)),"Axial",(+IF(+OR(E67=0,F67=0,G67=0),"Tangential","Oblique"))) -> Oblique | J67: 0.25 | K67: RED | L67: 0.4054483034 | M67: 12
E68: 3 | F68: 4 | G68: 0 | H68: 214.1528051 | I68: Tangential | J68: =IF(I68="Axial",1,IF(I68="Tangential",0.5,IF(I68="Oblique",0.25,""))) -> 0.5 | K68: RED | L68: 0.3137044281 | M68: =IF(H68<17.8,1,IF(H68<=22.4,2,IF(H68<=28.2,3,IF(H68<=35.5,4,IF(H68<=44.7,5,IF(H68<=56.2,6,IF(H68<=70.8,7,IF(H68<=89.1,8,IF(H68<=112,9,IF(H68<=141,10,IF(H68<=178,11,IF(H68<=224,12,IF(H68<=282,13,IF(H68<=355,14,IF(H68<=447,15,IF(H68<=562,16,IF(H68<=708,17,IF(H68<=891,18,IF(H68<=1122,19,IF(H68<=1413,20,IF(H68<=1778,21,IF(H68<=2239,22,IF(H68<=2818,23,IF(H68<=3548,24,IF(H68<=4467,25,IF(H68<=5623,26,IF(H68<=7079,27,IF(H68<=8913,28,IF(H68<=11220,29,IF(H68<=14130,30,IF(H68<=17780,31,IF(H68<=22390,32,)))))))))))))))))))))))))))))))) -> 12
E69: 4 | F69: 0 | G69: 2 | H69: 216.0057918 | I69: Tangential | J69: 0.5 | K69: =IF((H69-H68)<1,"RED","OK") -> OK | L69: =H69-H68 -> 1.852986769 | M69: 12
E70: 0 | F70: 5 | G70: 0 | H70: 217.0115385 | I70: Axial | J70: 1 | K70: OK | L70: 1.005746629 | M70: 12
E71: 5 | F71: 0 | G71: 1 | H71: 219.8807927 | I71: Tangential | J71: 0.5 | K71: OK | L71: 2.869254196 | M71: 12
E72: 4 | F72: 1 | G72: 2 | H72: 220.3230864 | I72: Oblique | J72: 0.25 | K72: RED | L72: 0.442293782 | M72: 12
E73: 1 | F73: 5 | G73: 0 | H73: 220.99958 | I73: Tangential | J73: 0.5 | K73: RED | L73: 0.6764935843 | M73: 12
E74: 0 | F74: 4 | G74: 2 | H74: 221.0198235 | I74: Tangential | J74: 0.5 | K74: RED | L74: 0.02024349213 | M74: 12
E75: 2 | F75: 0 | G75: 3 | H75: 221.548686 | I75: Tangential | J75: 0.5 | K75: RED | L75: 0.5288625193 | M75: 12 | N75: =0.16*(($D$8/$N$102)^(1/2)) -> 2.009144994
E76: 4 | F76: 3 | G76: 1 | H76: 222.6659985 | I76: Oblique | J76: 0.25 | K76: OK | L76: 1.117312465 | M76: 12
E77: 0 | F77: 2 | G77: 3 | H77: 222.7815867 | I77: Tangential | J77: 0.5 | K77: RED | L77: 0.1155881588 | M77: 12
E78: 5 | F78: 1 | G78: 1 | H78: 224.1234555 | I78: Oblique | J78: 0.25 | K78: OK | L78: 1.341868813 | M78: 13
E79: 3 | F79: 4 | G79: 1 | H79: 224.8084146 | I79: Oblique | J79: 0.25 | K79: RED | L79: 0.6849590981 | M79: 13
E80: 1 | F80: 4 | G80: 2 | H80: 224.936811 | I80: Oblique | J80: 0.25 | K80: RED | L80: 0.1283964068 | M80: 13
E81: 2 | F81: 1 | G81: 3 | H81: 225.7600066 | I81: Oblique | J81: 0.25 | K81: RED | L81: 0.8231956607 | M81: 13
E82: 5 | F82: 2 | G82: 0 | H82: 226.285671 | I82: Tangential | J82: 0.5 | K82: RED | L82: 0.525664334 | M82: 13
E83: 1 | F83: 2 | G83: 3 | H83: 226.6681316 | I83: Oblique | J83: 0.25 | K83: RED | L83: 0.3824606655 | M83: 13
E84: 3 | F84: 3 | G84: 2 | H84: 226.6819338 | I84: Oblique | J84: 0.25 | K84: RED | L84: 0.01380214806 | M84: 13
E85: 0 | F85: 5 | G85: 1 | H85: 227.53331 | I85: Tangential | J85: 0.5 | K85: RED | L85: 0.8513762379 | M85: 13
E86: 1 | F86: 5 | G86: 1 | H86: 231.3400392 | I86: Oblique | J86: 0.25 | K86: OK | L86: 3.80672913 | M86: 13
E87: 2 | F87: 5 | G87: 0 | H87: 232.5537228 | I87: Tangential | J87: 0.5 | K87: OK | L87: 1.213683687 | M87: 13
E88: 4 | F88: 2 | G88: 2 | H88: 232.7950673 | I88: Oblique | J88: 0.25 | K88: RED | L88: 0.2413444555 | M88: 13
E89: 2 | F89: 4 | G89: 2 | H89: 236.2985158 | I89: Oblique | J89: 0.25 | K89: OK | L89: 3.503448503 | M89: 13
E90: 5 | F90: 2 | G90: 1 | H90: 236.3950174 | I90: Oblique | J90: 0.25 | K90: RED | L90: 0.09650155952 | M90: 13
E91: 2 | F91: 2 | G91: 3 | H91: 237.9471822 | I91: Oblique | J91: 0.25 | K91: OK | L91: 1.552164882 | M91: 13
E92: 3 | F92: 0 | G92: 3 | H92: 240.4534321 | I92: Tangential | J92: 0.5 | K92: OK | L92: 2.506249865 | M92: 13
E93: 4 | F93: 4 | G93: 0 | H93: 241.0167416 | I93: Tangential | J93: 0.5 | K93: RED | L93: 0.5633095017 | M93: 13
E94: 2 | F94: 5 | G94: 1 | H94: 242.4018015 | I94: Oblique | J94: 0.25 | K94: OK | L94: 1.385059855 | M94: 13
E95: 0 | F95: 3 | G95: 3 | H95: 243.0029566 | I95: Tangential | J95: 0.5 | K95: RED | L95: 0.6011551453 | M95: 13 | Q95: Transition/Diffusive Region
E96: 3 | F96: 1 | G96: 3 | H96: 244.3391359 | I96: Oblique | J96: 0.25 | K96: OK | L96: 1.336179276 | M96: 13 | N96: |------- | O96: Wave Region | P96: ------|------ | R96: ------|------ | S96: Ray Region | T96: ------|
E97: 5 | F97: 3 | G97: 0 | H97: 246.2194274 | I97: Tangential | J97: 0.5 | K97: OK | L97: 1.880291564 | M97: 13 | N97: F¹ | P97: F² | R97: F³ | T97: Fⁿ
E98: 1 | F98: 3 | G98: 3 | H98: 246.5709704 | I98: Oblique | J98: 0.25 | K98: RED | L98: 0.3515429958 | M98: 13 | N98: =565/D2 -> 41.85185185 | P98: =(SQRT(N102/D7))*11885 -> 159.2686626 | R98: =4*P98 -> 637.0746502 | T98: 20000
E99: 5 | F99: 0 | G99: 2 | H99: 249.7594063 | I99: Tangential | J99: 0.5 | K99: OK | L99: 3.188435815 | M99: 13 | N99: LF cutoff | P99: (Schroeder Frequency) | T99: HF cutoff
E100: 4 | F100: 4 | G100: 1 | H100: 250.5323713 | I100: Oblique | J100: 0.25 | K100: RED | L100: 0.7729650632 | M100: 13 | N100: =((SQRT(2))*(565/D2)) -> 59.1874565 | O100: <--This should be the LF cut-off of the speaker system if ported speakers are used
E101: 3 | F101: 5 | G101: 0 | H101: 250.6297403 | I101: Tangential | J101: 0.5 | K101: RED | L101: 0.09736900191 | M101: 13 | N101: MEAN FREE TIMES | P101: Permissible rise from 200 Hz @ 63 Hz | R101: =((((344/R98)/4)*1000)*2)*0.0393700787401574 -> 10.62929366 | S101: Maximum depth for Schroeder 1D diffusor
E102: 6 | F102: 0 | G102: 0 | H102: 250.7688889 | I102: Axial | J102: 1 | K102: RED | L102: 0.1391485665 | M102: 13 | N102: =0.35*((D8/100)^(1/3)) -> 0.260011983 | O102: Maximum | P102: =(N102*0.25)+N102 -> 0.3250149787 | R102: =(SQRT(2))*P98 -> 225.2399026 | S102: We don't want any problematic resonances below this frequency
E103: 4 | F103: 3 | G103: 2 | H103: 252.2148785 | I103: Oblique | J103: 0.25 | K103: OK | L103: 1.445989583 | M103: 13 | N103: =N102 -> 0.260011983 | O103: Balance spec. | P103: =(SQRT(N103/D7))*11250 -> 150.7591463 | Q103: Schroeder @ spec | R103: =P103/2 -> 75.37957315 | S103: <---- Maximum inner shell MAM resonance
E104: 5 | F104: 1 | G104: 2 | H104: 253.5025075 | I104: Oblique | J104: 0.25 | K104: OK | L104: 1.287629064 | M104: 13 | N104: Critical Distance - Dmin | O104: =(N75*1000)*0.039370078740157 -> 79.10019661 | P104: For control rooms, this is the circumference of the 'sweet-spot' - or best listening position
E105: 3 | F105: 4 | G105: 2 | H105: 254.1082866 | I105: Oblique | J105: 0.25 | K105: RED | L105: 0.6057790188 | M105: 13
E106: 6 | F106: 1 | G106: 0 | H106: 254.4971433 | I106: Tangential | J106: 0.5 | K106: RED | L106: 0.3888567447 | M106: 13
E107: 5 | F107: 3 | G107: 1 | H107: 255.5413974 | I107: Oblique | J107: 0.25 | K107: OK | L107: 1.044254124 | M107: 13 | N107: see the Ratios tab for best room ratios + more information
E108: 3 | F108: 2 | G108: 3 | H108: 255.6421215 | I108: Oblique | J108: 0.25 | K108: RED | L108: 0.1007240341 | M108: 13
E109: 0 | F109: 5 | G109: 2 | H109: 256.5221339 | I109: Tangential | J109: 0.5 | K109: RED | L109: 0.8800124889 | M109: 13
E110: 2 | F110: 3 | G110: 3 | H110: 256.9779428 | I110: Oblique | J110: 0.25 | K110: RED | L110: 0.455808884 | M110: 13
E111: 3 | F111: 5 | G111: 1 | H111: 259.7935066 | I111: Oblique | J111: 0.25 | K111: OK | L111: 2.815563784 | M111: 13
E112: 1 | F112: 5 | G112: 2 | H112: 259.9046205 | I112: Oblique | J112: 0.25 | K112: RED | L112: 0.1111138715 | M112: 13
E113: 6 | F113: 0 | G113: 1 | H113: 259.9277495 | I113: Tangential | J113: 0.5 | K113: RED | L113: 0.02312905131 | M113: 13
E114: 0 | F114: 6 | G114: 0 | H114: 260.4138462 | I114: Axial | J114: 1 | K114: RED | L114: 0.486096617 | M114: 13 | N114: Temperature Centigrade | O114: 20 | P114: =331.23 + (0.606*O114) -> 343.35
E115: 6 | F115: 1 | G115: 1 | H115: 263.5264603 | I115: Oblique | J115: 0.25 | K115: OK | L115: 3.112614173 | M115: 13 | N115: Temperature Fahrinheit | O115: =(9/5)*(O114)+32 -> 68 | P115: =P114*3.28084 -> 1126.476414
E116: 1 | F116: 6 | G116: 0 | H116: 263.7464271 | I116: Tangential | J116: 0.5 | K116: RED | L116: 0.2199667848 | M116: 13
E117: 5 | F117: 2 | G117: 2 | H117: 264.4140735 | I117: Oblique | J117: 0.25 | K117: RED | L117: 0.6676463908 | M117: 13
E118: 4 | F118: 0 | G118: 3 | H118: 264.6611018 | I118: Tangential | J118: 0.5 | K118: RED | L118: 0.2470283411 | M118: 13 | N118: All Modes | Q118: Wavelength | S118: Poly Diameter | T118: Poly Radius | U118: Poly Depth
E119: 6 | F119: 2 | G119: 0 | H119: 265.3678143 | I119: Tangential | J119: 0.5 | K119: RED | L119: 0.7067124948 | M119: 13 | N119: nx | O119: ny | P119: nz | Q119: f | R119: Type | S119: DIFFRACTION/SCATTERING @
E120: 4 | F120: 1 | G120: 3 | H120: 268.1963071 | I120: Oblique | J120: 0.25 | K120: OK | L120: 2.828492762 | M120: 13 | N120: 0 | O120: 1 | P120: 0 | Q120: =$D$5*SQRT(((N120/$D$2)^2)+((O120/$D$3)^2)+((P120/$D$4)^2)) -> 43.40230769 | R120: =+IF(+AND(N120=0,O120=0)+OR(+AND(N120=0,P120=0))+OR(+AND(O120=0,P120=0)),"Axial",(+IF(+OR(N120=0,O120=0,P120=0),"Tangential","Oblique"))) -> Axial | S120: =((1128.48*12)*2)/Q120 -> 624.0110593 | T120: =S120/2 -> 312.0055297 | U120: =T120*0.0317224829 -> 9.897590079
E121: 0 | F121: 4 | G121: 3 | H121: 268.7689698 | I121: Tangential | J121: 0.5 | K121: RED | L121: 0.5726626693 | M121: 13
E122: 0 | F122: 6 | G122: 1 | H122: 269.2448154 | I122: Tangential | J122: 0.5 | K122: RED | L122: 0.4758456189 | M122: 13 | N122: Slat Diffraction Frequency, both width and gap
E123: 2 | F123: 5 | G123: 2 | H123: 269.7977602 | I123: Oblique | J123: 0.25 | K123: RED | L123: 0.5529447693 | M123: 13 | O123: Full | P123: 1/2 wave | Q123: 1/4 wave
E124: 5 | F124: 4 | G124: 0 | H124: 271.6805636 | I124: Tangential | J124: 0.5 | K124: OK | L124: 1.882803453 | M124: 13 | N124: 0.75 | O124: =1126.48/(N124/12) -> 18023.68 | P124: =O124/2 -> 9011.84 | Q124: =P124/2 -> 4505.92
E125: 1 | F125: 4 | G125: 3 | H125: 271.9992016 | I125: Oblique | J125: 0.25 | K125: RED | L125: 0.3186379628 | M125: 13 | N125: 1.5 | O125: =1126.48/(N125/12) -> 9011.84 | P125: =O125/2 -> 4505.92 | Q125: 2252.96
E126: 1 | F126: 6 | G126: 1 | H126: 272.4694059 | I126: Oblique | J126: 0.25 | K126: RED | L126: 0.4702043407 | M126: 13 | N126: 2 | O126: =1126.48/(N126/12) -> 6758.88 | P126: 3379.44 | Q126: 1689.72
E127: 3 | F127: 3 | G127: 3 | H127: 273.4441366 | I127: Oblique | J127: 0.25 | K127: RED | L127: 0.9747306636 | M127: 13 | N127: 4 | O127: 3379.44 | P127: 1689.72 | Q127: 844.86
E128: 2 | F128: 6 | G128: 0 | H128: 273.5006352 | I128: Tangential | J128: 0.5 | K128: RED | L128: 0.0564986148 | M128: 13 | N128: 6 | O128: 2252.96 | P128: 1126.48 | Q128: 563.24
E129: 0 | F129: 0 | G129: 4 | H129: 273.5660606 | I129: Axial | J129: 1 | K129: RED | L129: 0.06542541437 | M129: 13 | N129: 8 | O129: 1689.72 | P129: 844.86 | Q129: 422.43
E130: 4 | F130: 5 | G130: 0 | H130: 273.9396148 | I130: Tangential | J130: 0.5 | K130: RED | L130: 0.3735541851 | M130: 13 | N130: 10 | O130: 1351.776 | P130: 675.888 | Q130: 337.944
E131: 6 | F131: 2 | G131: 1 | H131: =$D$5*SQRT((($E131/$D$2)^2)+(($F131/$D$3)^2)+(($G131/$D$4)^2)) -> 274.0391874 | I131: =+IF(+AND(E131=0,F131=0)+OR(+AND(E131=0,G131=0))+OR(+AND(F131=0,G131=0)),"Axial",(+IF(+OR(E131=0,F131=0,G131=0),"Tangential","Oblique"))) -> Oblique | J131: 0.25 | K131: RED | L131: 0.09957260978 | M131: 13 | N131: 12 | O131: 1126.48 | P131: 563.24 | Q131: 281.62
E132: 1 | F132: 0 | G132: 4 | H132: 276.7403044 | I132: Tangential | J132: =IF(I132="Axial",1,IF(I132="Tangential",0.5,IF(I132="Oblique",0.25,""))) -> 0.5 | K132: OK | L132: 2.701116966 | M132: =IF(H132<17.8,1,IF(H132<=22.4,2,IF(H132<=28.2,3,IF(H132<=35.5,4,IF(H132<=44.7,5,IF(H132<=56.2,6,IF(H132<=70.8,7,IF(H132<=89.1,8,IF(H132<=112,9,IF(H132<=141,10,IF(H132<=178,11,IF(H132<=224,12,IF(H132<=282,13,IF(H132<=355,14,IF(H132<=447,15,IF(H132<=562,16,IF(H132<=708,17,IF(H132<=891,18,IF(H132<=1122,19,IF(H132<=1413,20,IF(H132<=1778,21,IF(H132<=2239,22,IF(H132<=2818,23,IF(H132<=3548,24,IF(H132<=4467,25,IF(H132<=5623,26,IF(H132<=7079,27,IF(H132<=8913,28,IF(H132<=11220,29,IF(H132<=14130,30,IF(H132<=17780,31,IF(H132<=22390,32,)))))))))))))))))))))))))))))))) -> 13 | N132: 14 | O132: 965.5542857 | P132: 482.7771429 | Q132: 241.3885714
E133: 0 | F133: 1 | G133: 4 | H133: 276.9876348 | I133: Tangential | J133: 0.5 | K133: =IF((H133-H132)<1,"RED","OK") -> RED | L133: =H133-H132 -> 0.247330427 | M133: 13 | N133: 16 | O133: 844.86 | P133: 422.43 | Q133: 211.215
E134: 4 | F134: 4 | G134: 2 | H134: 277.1257244 | I134: Oblique | J134: 0.25 | K134: RED | L134: 0.1380895873 | M134: 13 | N134: 18 | O134: 750.9866667 | P134: 375.4933333 | Q134: 187.7466667
E135: 4 | F135: 2 | G135: 3 | H135: 278.5328348 | I135: Oblique | J135: 0.25 | K135: OK | L135: 1.407110454 | M135: 13 | N135: 20 | O135: 675.888 | P135: 337.944 | Q135: 168.972
E136: 1 | F136: 1 | G136: 4 | H136: 280.1231093 | I136: Oblique | J136: 0.25 | K136: OK | L136: 1.590274483 | M136: 13 | N136: 22 | O136: 614.4436364 | P136: 307.2218182 | Q136: 153.6109091
E137: 5 | F137: 4 | G137: 1 | H137: 280.1566133 | I137: Oblique | J137: 0.25 | K137: RED | L137: 0.0335040042 | M137: 13 | N137: 24 | O137: 563.24 | P137: 281.62 | Q137: 140.81
E138: 2 | F138: 4 | G138: 3 | H138: 281.4675564 | I138: Oblique | J138: 0.25 | K138: OK | L138: 1.310943054 | M138: 13 | N138: 26 | O138: 519.9138462 | P138: 259.9569231 | Q138: 129.9784615
E139: 5 | F139: 3 | G139: 2 | H139: 281.6622158 | I139: Oblique | J139: 0.25 | K139: RED | L139: 0.1946594625 | M139: 13 | N139: 28 | O139: 482.7771429 | P139: 241.3885714 | Q139: 120.6942857
E140: 2 | F140: 6 | G140: 1 | H140: 281.9219693 | I140: Oblique | J140: 0.25 | K140: RED | L140: 0.2597534985 | M140: 13 | N140: 30 | O140: 450.592 | P140: 225.296 | Q140: 112.648
E141: 4 | F141: 5 | G141: 1 | H141: 282.3478562 | I141: Oblique | J141: 0.25 | K141: RED | L141: 0.4258868555 | M141: 14 | N141: 32 | O141: 422.43 | P141: =O141/2 -> 211.215 | Q141: 105.6075
E142: 6 | F142: 3 | G142: 0 | H142: 282.5577436 | I142: Tangential | J142: 0.5 | K142: RED | L142: 0.2098873779 | M142: 14 | N142: 36 | O142: 375.4933333 | P142: 187.7466667 | Q142: 93.87333333
E143: 3 | F143: 5 | G143: 2 | H143: 285.5255927 | I143: Oblique | J143: 0.25 | K143: OK | L143: 2.967849175 | M143: 14 | N143: 38 | O143: 355.7305263 | P143: 177.8652632 | Q143: 88.93263158
E144: 6 | F144: 0 | G144: 2 | H144: 285.6477429 | I144: Tangential | J144: 0.5 | K144: RED | L144: 0.1221501357 | M144: 14 | N144: 40 | O144: 337.944 | P144: 168.972 | Q144: 84.486
E145: 2 | F145: 0 | G145: 4 | H145: 286.051771 | I145: Tangential | J145: 0.5 | K145: RED | L145: 0.4040281268 | M145: 14 | N145: 42 | O145: 321.8514286 | P145: 160.9257143 | Q145: 80.46285714
E146: 0 | F146: 2 | G146: 4 | H146: 287.007719 | I146: Tangential | J146: 0.5 | K146: RED | L146: 0.9559479949 | M146: 14 | N146: 46 | O146: 293.8643478 | P146: 146.9321739 | Q146: 73.46608696
E147: 6 | F147: 1 | G147: 2 | H147: 288.9262766 | I147: Oblique | J147: 0.25 | K147: OK | L147: 1.918557625 | M147: 14 | N147: 48 | O147: 281.62 | P147: 140.81 | Q147: 70.405
E148: 3 | F148: 6 | G148: 0 | H148: 289.0270406 | I148: Tangential | J148: 0.5 | K148: RED | L148: 0.1007639356 | M148: 14
E149: 2 | F149: 1 | G149: 4 | H149: 289.3257265 | I149: Oblique | J149: 0.25 | K149: RED | L149: 0.2986859279 | M149: 14
E150: 1 | F150: 2 | G150: 4 | H150: 290.0348898 | I150: Oblique | J150: 0.25 | K150: RED | L150: 0.7091633281 | M150: 14
E151: 6 | F151: 3 | G151: 1 | H151: 290.7168344 | I151: Oblique | J151: 0.25 | K151: RED | L151: 0.6819445676 | M151: 14
E152: 7 | F152: 0 | G152: 0 | H152: 292.5637037 | I152: Axial | J152: 1 | K152: OK | L152: 1.846869316 | M152: 14
E153: 5 | F153: 0 | G153: 3 | H153: 292.8596212 | I153: Tangential | J153: 0.5 | K153: RED | L153: 0.2959175103 | M153: 14
E154: 0 | F154: 6 | G154: 2 | H154: 294.1512683 | I154: Tangential | J154: 0.5 | K154: OK | L154: 1.291647095 | M154: 14
E155: 4 | F155: 3 | G155: 3 | H155: 294.9565081 | I155: Oblique | J155: 0.25 | K155: RED | L155: 0.8052397501 | M155: 14
E156: 7 | F156: 1 | G156: 0 | H156: 295.7655846 | I156: Tangential | J156: 0.5 | K156: RED | L156: 0.8090765483 | M156: 14
E157: 5 | F157: 1 | G157: 3 | H157: 296.0583018 | I157: Oblique | J157: 0.25 | K157: RED | L157: 0.2927171693 | M157: 14
E158: 3 | F158: 4 | G158: 3 | H158: 296.5771704 | I158: Oblique | J158: 0.25 | K158: RED | L158: 0.5188686523 | M158: 14
E159: 3 | F159: 6 | G159: 1 | H159: 297.0084671 | I159: Oblique | J159: 0.25 | K159: RED | L159: 0.4312966595 | M159: 14
E160: 1 | F160: 6 | G160: 2 | H160: 297.1056633 | I160: Oblique | J160: 0.25 | K160: RED | L160: 0.09719625904 | M160: 14
E161: 6 | F161: 2 | G161: 2 | H161: 298.5459333 | I161: Oblique | J161: 0.25 | K161: OK | L161: 1.440269912 | M161: 14
E162: 0 | F162: 5 | G162: 3 | H162: 298.6479565 | I162: Tangential | J162: 0.5 | K162: RED | L162: 0.1020232515 | M162: 14
E163: 2 | F163: 2 | G163: 4 | H163: 298.9325291 | I163: Oblique | J163: 0.25 | K163: RED | L163: 0.2845725812 | M163: 14
E164: 7 | F164: 0 | G164: 1 | H164: 300.4511942 | I164: Tangential | J164: 0.5 | K164: OK | L164: 1.518665064 | M164: 14
E165: 3 | F165: 0 | G165: 4 | H165: 300.9313018 | I165: Tangential | J165: 0.5 | K165: RED | L165: 0.4801076795 | M165: 14
E166: 5 | F166: 5 | G166: 0 | H166: 301.270927 | I166: Tangential | J166: 0.5 | K166: RED | L166: 0.3396251734 | M166: 14
E167: 1 | F167: 5 | G167: 3 | H167: 301.5583003 | I167: Oblique | J167: 0.25 | K167: RED | L167: 0.2873732807 | M167: 14
E168: 0 | F168: 3 | G168: 4 | H168: 302.9723293 | I168: Tangential | J168: 0.5 | K168: OK | L168: 1.414029029 | M168: 14
E169: 7 | F169: 1 | G169: 1 | H169: 303.5698937 | I169: Oblique | J169: 0.25 | K169: RED | L169: 0.597564417 | M169: 14
E170: 0 | F170: 7 | G170: 0 | H170: 303.8161538 | I170: Axial | J170: 1 | K170: RED | L170: 0.2462601107 | M170: 14
E171: 3 | F171: 1 | G171: 4 | H171: 304.0450768 | I171: Oblique | J171: 0.25 | K171: RED | L171: 0.2289229717 | M171: 14
E172: 5 | F172: 4 | G172: 2 | H172: 304.1708829 | I172: Oblique | J172: 0.25 | K172: RED | L172: 0.1258061119 | M172: 14
E173: 6 | F173: 4 | G173: 0 | H173: 305.0003289 | I173: Tangential | J173: 0.5 | K173: RED | L173: 0.8294459928 | M173: 14
E174: 7 | F174: 2 | G174: 0 | H174: 305.1697265 | I174: Tangential | J174: 0.5 | K174: RED | L174: 0.1693975854 | M174: 14
E175: 5 | F175: 2 | G175: 3 | H175: 305.4534318 | I175: Oblique | J175: 0.25 | K175: RED | L175: 0.2837052778 | M175: 14
E176: 2 | F176: 6 | G176: 2 | H176: 305.7976371 | I176: Oblique | J176: 0.25 | K176: RED | L176: 0.3442052705 | M176: 14
E177: 1 | F177: 3 | G177: 4 | H177: 305.8415258 | I177: Oblique | J177: 0.25 | K177: RED | L177: 0.043888702 | M177: 14
E178: 4 | F178: 5 | G178: 2 | H178: 306.1903165 | I178: Oblique | J178: 0.25 | K178: RED | L178: 0.3487907621 | M178: 14
E179: 1 | F179: 7 | G179: 0 | H179: 306.6774558 | I179: Tangential | J179: 0.5 | K179: RED | L179: 0.487139259 | M179: 14
E180: 5 | F180: 5 | G180: 1 | H180: 308.9361921 | I180: Oblique | J180: 0.25 | K180: OK | L180: 2.258736347 | M180: 14
E181: 4 | F181: 6 | G181: 0 | H181: 309.4580359 | I181: Tangential | J181: 0.5 | K181: RED | L181: 0.5218437935 | M181: 14
E182: 2 | F182: 5 | G182: 3 | H182: 310.1255038 | I182: Oblique | J182: 0.25 | K182: RED | L182: 0.6674678843 | M182: 14
E183: 0 | F183: 7 | G183: 1 | H183: 311.418777 | I183: Tangential | J183: 0.5 | K183: OK | L183: 1.293273219 | M183: 14
E184: 6 | F184: 4 | G184: 1 | H184: 312.5741512 | I184: Oblique | J184: 0.25 | K184: OK | L184: 1.15537416 | M184: 14
E185: 7 | F185: 2 | G185: 1 | H185: 312.7394464 | I185: Oblique | J185: 0.25 | K185: RED | L185: 0.1652951966 | M185: 14
E186: 3 | F186: 2 | G186: 4 | H186: 313.2007179 | I186: Oblique | J186: 0.25 | K186: RED | L186: 0.4612714938 | M186: 14
E187: 6 | F187: 3 | G187: 2 | H187: 313.9243154 | I187: Oblique | J187: 0.25 | K187: RED | L187: 0.7235975767 | M187: 14
E188: 1 | F188: 7 | G188: 1 | H188: 314.2108547 | I188: Oblique | J188: 0.25 | K188: RED | L188: 0.2865392768 | M188: 14
E189: 2 | F189: 3 | G189: 4 | H189: 314.2919956 | I189: Oblique | J189: 0.25 | K189: RED | L189: 0.081140899 | M189: 14
E190: 2 | F190: 7 | G190: 0 | H190: 315.1055086 | I190: Tangential | J190: 0.5 | K190: RED | L190: 0.8135129259 | M190: 14
E191: 4 | F191: 4 | G191: 3 | H191: 316.5211902 | I191: Oblique | J191: 0.25 | K191: OK | L191: 1.415681635 | M191: 14
E192: 4 | F192: 6 | G192: 1 | H192: 316.9253466 | I192: Oblique | J192: 0.25 | K192: RED | L192: 0.4041564484 | M192: 14
E193: 3 | F193: 6 | G193: 2 | H193: 319.7596403 | I193: Oblique | J193: 0.25 | K193: OK | L193: 2.834293651 | M193: 14
E194: 7 | F194: 3 | G194: 0 | H194: 320.2301728 | I194: Tangential | J194: 0.5 | K194: RED | L194: 0.4705324674 | M194: 14
E195: 5 | F195: 3 | G195: 3 | H195: =$D$5*SQRT((($E195/$D$2)^2)+(($F195/$D$3)^2)+(($G195/$D$4)^2)) -> 320.5005469 | I195: =+IF(+AND(E195=0,F195=0)+OR(+AND(E195=0,G195=0))+OR(+AND(F195=0,G195=0)),"Axial",(+IF(+OR(E195=0,F195=0,G195=0),"Tangential","Oblique"))) -> Oblique | J195: 0.25 | K195: RED | L195: 0.2703741329 | M195: 14
E196: 4 | F196: 0 | G196: 4 | H196: 320.6045761 | I196: Tangential | J196: =IF(I196="Axial",1,IF(I196="Tangential",0.5,IF(I196="Oblique",0.25,""))) -> 0.5 | K196: RED | L196: 0.1040292533 | M196: =IF(H196<17.8,1,IF(H196<=22.4,2,IF(H196<=28.2,3,IF(H196<=35.5,4,IF(H196<=44.7,5,IF(H196<=56.2,6,IF(H196<=70.8,7,IF(H196<=89.1,8,IF(H196<=112,9,IF(H196<=141,10,IF(H196<=178,11,IF(H196<=224,12,IF(H196<=282,13,IF(H196<=355,14,IF(H196<=447,15,IF(H196<=562,16,IF(H196<=708,17,IF(H196<=891,18,IF(H196<=1122,19,IF(H196<=1413,20,IF(H196<=1778,21,IF(H196<=2239,22,IF(H196<=2818,23,IF(H196<=3548,24,IF(H196<=4467,25,IF(H196<=5623,26,IF(H196<=7079,27,IF(H196<=8913,28,IF(H196<=11220,29,IF(H196<=14130,30,IF(H196<=17780,31,IF(H196<=22390,32,)))))))))))))))))))))))))))))))) -> 14
E197: 2 | F197: 7 | G197: 1 | H197: 322.4420582 | I197: Oblique | J197: 0.25 | K197: =IF((H197-H196)<1,"RED","OK") -> OK | L197: =H197-H196 -> 1.83748201 | M197: 14
E198: 7 | F198: 0 | G198: 2 | H198: 322.9599327 | I198: Tangential | J198: 0.5 | K198: RED | L198: 0.5178745096 | M198: 14
E199: 4 | F199: 1 | G199: 4 | H199: 323.5290629 | I199: Oblique | J199: 0.25 | K199: RED | L199: 0.5691302618 | M199: 14
E200: 3 | F200: 5 | G200: 3 | H200: 323.9010047 | I200: Oblique | J200: 0.25 | K200: RED | L200: 0.3719417642 | M200: 14
... 801 more rows

Sheet Mode Strength
A1: f | B1: Strength | C1: Interval | D1: Alerts | E1: 1% Near Co-Incidence | H1: NOTE:
A2: 41.79481481 | B2: 1 | H2: IDEAL Interval should not be greater than 5.611807 | I2: 5.611807 | J2: 1 | K2: 0
A3: 43.40230769 | B3: =IF(A3=A2,B2+1,1) -> 1 | C3: =((A3-A2)/A3)*100 -> 3.703703704 | D3: =IF(C3>I2,J2,K2) -> 0 | E3: =IF(C3<((A2*1.01)-(A2)),J2,K2) -> 0 | F3: Note | G3: Frequency (Hz) | I3: 5.611807 | J3: 1 | K3: 0
A4: 60.2541854 | B4: =IF(A4=A3,B3+1,1) -> 1 | C4: =((A4-A3)/A4)*100 -> 27.96797865 | D4: 1 | E4: =IF(C4<((A3*1.01)-(A3)),J3,K3) -> 0 | F4: name | I4: 5.611807 | J4: 1 | K4: 0
A5: 68.39151515 | B5: 1 | C5: 11.89815686 | D5: 1 | E5: 0 | F5: A0 Double Pedal A | G5: 27.5 | I5: 5.611807 | J5: 1 | K5: 0
A6: 80.15114404 | B6: 1 | C6: 14.67181663 | D6: 1 | E6: 0 | F6: A♯0/B♭0 | G6: 29.1352 | I6: 5.611807 | J6: 1 | K6: 0
A7: 81.00098554 | B7: 1 | C7: 1.049174272 | D7: 0 | E7: 0 | F7: B0 | G7: 30.8677 | I7: 5.611807 | J7: 1 | K7: 0
A8: 83.58962963 | B8: 1 | C8: 3.096848384 | D8: 0 | E8: 0 | F8: C1 Pedal C | G8: 32.7032 | I8: 5.611807 | J8: 1 | K8: 0
A9: 86.80461538 | B9: 1 | C9: 3.703703704 | D9: 0 | E9: 0 | F9: C♯1/D♭1 | G9: 34.6478 | I9: 5.611807 | J9: 1 | K9: 0
A10: 91.14804553 | B10: 1 | C10: 4.765247698 | D10: 0 | E10: 0 | F10: D1 | G10: 36.7081 | I10: 5.611807 | J10: 1 | K10: 0
A11: 94.18591452 | B11: 1 | C11: 3.225396295 | D11: 0 | E11: 0 | F11: D♯1/E♭1 | G11: 38.8909 | I11: 5.611807 | J11: 1 | K11: 0
A12: 96.34234685 | B12: 1 | C12: 2.238301642 | D12: 0 | E12: 0 | F12: E1 | G12: 41.2034 | I12: 5.611807 | J12: 1 | K12: 0
A13: 108.0028959 | B13: 1 | C13: 10.79651519 | D13: 1 | E13: 0 | F13: F1 | G13: 43.6535 | I13: 5.611807 | J13: 1 | K13: 0
A14: 110.5099118 | B14: 1 | C14: 2.268589126 | D14: 0 | E14: 0 | F14: F♯1/G♭1 | G14: 46.2493 | I14: 5.611807 | J14: 1 | K14: 0
A15: 116.3975336 | B15: 1 | C15: 5.058201583 | D15: 0 | E15: 0 | F15: G1 | G15: 48.9994 | I15: 5.611807 | J15: 1 | K15: 0
A16: 118.1492579 | B16: 1 | C16: 1.482636694 | D16: 0 | E16: 0 | F16: G♯1/A♭1 | G16: 51.9131 | I16: 5.611807 | J16: 1 | K16: 0
A17: 120.5083708 | B17: 1 | C17: 1.957634053 | D17: 0 | E17: 0 | F17: A1 | G17: 55 | I17: 5.611807 | J17: 1 | K17: 0
A18: 125.3844444 | B18: 1 | C18: 3.88889839 | D18: 0 | E18: 0 | F18: A♯1/B♭1 | G18: 58.2705 | I18: 5.611807 | J18: 1 | K18: 0
A19: 130.2069231 | B19: 1 | C19: 3.703703704 | D19: 0 | E19: 0 | F19: B1 | G19: 61.7354 | I19: 5.611807 | J19: 1 | K19: 0
A20: 132.6839072 | B20: 1 | C20: 1.866830835 | D20: 0 | E20: 0 | F20: C2 Deep C | G20: 65.4064 | I20: 5.611807 | J20: 1 | K20: 0
A21: 136.7503176 | B21: 1 | C21: 2.973602181 | D21: 0 | E21: 0 | F21: C♯2/D♭2 | G21: 69.2957 | I21: 5.611807 | J21: 1 | K21: 0
A22: 136.7830303 | B22: 1 | C22: 0.02391576434 | D22: 0 | E22: 1 | F22: D2 | G22: 73.4162 | I22: 5.611807 | J22: 1 | K22: 0
A23: 138.5628622 | B23: 1 | C23: 1.284494171 | D23: 0 | E23: 1 | F23: D♯2/E♭2 | G23: 77.7817 | I23: 5.611807 | J23: 1 | K23: 0
A24: 142.8238714 | B24: 1 | C24: 2.983401309 | D24: 0 | E24: 0 | F24: E2 | G24: 82.4069 | I24: 5.611807 | J24: 1 | K24: 0
A25: 143.0258855 | B25: 1 | C25: 0.1412430083 | D25: 0 | E25: 1 | F25: F2 | G25: 87.3071 | I25: 5.611807 | J25: 1 | K25: 0
A26: 143.5038595 | B26: 1 | C26: 0.3330739669 | D26: 0 | E26: 1 | F26: F♯2/G♭2 | G26: 92.4986 | I26: 5.611807 | J26: 1 | K26: 0
A27: 147.0756342 | B27: 1 | C27: 2.428529153 | D27: 0 | E27: 0 | F27: G2 | G27: 97.9989 | I27: 5.611807 | J27: 1 | K27: 0
A28: 149.2729666 | B28: 1 | C28: 1.472023049 | D28: 0 | E28: 0 | F28: G♯2/A♭2 | G28: 103.826 | I28: 5.611807 | J28: 1 | K28: 0
A29: 149.4662645 | B29: 1 | C29: 0.1293254481 | D29: 0 | E29: 1 | F29: A2 | G29: 110 | I29: 5.611807 | J29: 1 | K29: 0
A30: 152.5001645 | B30: 1 | C30: 1.989440422 | D30: 0 | E30: 0 | F30: A♯2/B♭2 | G30: 116.541 | I30: 5.611807 | J30: 1 | K30: 0
A31: 152.8988185 | B31: 1 | C31: 0.2607306392 | D31: 0 | E31: 1 | F31: B2 | G31: 123.471 | I31: 5.611807 | J31: 1 | K31: 0
A32: 154.729018 | B32: 1 | C32: 1.182841755 | D32: 0 | E32: 1 | F32: C3 Low C | G32: 130.813 | I32: 5.611807 | J32: 1 | K32: 0
A33: 160.3022881 | B33: 1 | C33: 3.47672524 | D33: 0 | E33: 0 | F33: C♯3/D♭3 | G33: 138.591 | I33: 5.611807 | J33: 1 | K33: 0
A34: 162.0019711 | B34: 1 | C34: 1.049174272 | D34: 0 | E34: 1 | F34: D3 | G34: 146.832 | I34: 5.611807 | J34: 1 | K34: 0
A35: 166.0740313 | B35: 1 | C35: 2.45195483 | D35: 0 | E35: 0 | F35: D♯3/E♭3 | G35: 155.563 | I35: 5.611807 | J35: 1 | K35: 0
A36: 167.1337773 | B36: 1 | C36: 0.634070495 | D36: 0 | E36: 1 | F36: E3 | G36: 164.814 | I36: 5.611807 | J36: 1 | K36: 0
A37: 167.1792593 | B37: 1 | C37: 0.02720551986 | D37: 0 | E37: 1 | F37: F3 | G37: 174.614 | I37: 5.611807 | J37: 1 | K37: 0
A38: 167.3064409 | B38: 1 | C38: 0.07601719881 | D38: 0 | E38: 1 | F38: F♯3/G♭3 | G38: 184.997 | I38: 5.611807 | J38: 1 | K38: 0
A39: 169.1699392 | B39: 1 | C39: 1.101554048 | D39: 0 | E39: 1 | F39: G3 | G39: 195.998 | I39: 5.611807 | J39: 1 | K39: 0 | P39: If you found this spreadsheet helpful, please send a donation via PayPal to https://www.paypal.me/JHBrandt/
A40: 172.7213509 | B40: 1 | C40: 2.056150898 | D40: 0 | E40: 0 | F40: G♯3/A♭3 | G40: 207.652 | I40: 5.611807 | J40: 1 | K40: 0
A41: 173.6092308 | B41: 1 | C41: 0.5114243725 | D41: 0 | E41: 1 | F41: A3 | G41: 220 | I41: 5.611807 | J41: 1 | K41: 0
A42: 178.5692346 | B42: 1 | C42: 2.777636284 | D42: 0 | E42: 0 | F42: A♯3/B♭3 | G42: 233.082 | I42: 5.611807 | J42: 1 | K42: 0
A43: 180.6275286 | B43: 1 | C43: 1.13952394 | D43: 0 | E43: 1 | F43: B3 | G43: 246.942 | I43: 5.611807 | J43: 1 | K43: 0
A44: 180.7625562 | B44: 1 | C44: 0.07469890604 | D44: 0 | E44: 1 | F44: C4 Middle C | G44: 261.626 | I44: 5.611807 | J44: 1 | K44: 0
A45: 182.2960911 | B45: 1 | C45: 0.8412329838 | D45: 0 | E45: 1 | F45: C♯4/D♭4 | G45: 277.183 | I45: 5.611807 | J45: 1 | K45: 0
A46: 185.5555342 | B46: 1 | C46: 1.756586352 | D46: 0 | E46: 1 | F46: D4 | G46: 293.665 | I46: 5.611807 | J46: 1 | K46: 0
A47: 185.7688466 | B47: 1 | C47: 0.1148267908 | D47: 0 | E47: 1 | F47: D♯4/E♭4 | G47: 311.127 | I47: 5.611807 | J47: 1 | K47: 0
A48: 186.5946525 | B48: 1 | C48: 0.4425667474 | D48: 0 | E48: 1 | F48: E4 | G48: 329.628 | I48: 5.611807 | J48: 1 | K48: 0
A49: 188.371829 | B49: 1 | C49: 0.9434407074 | D49: 0 | E49: 1 | F49: F4 | G49: 349.228 | I49: 5.611807 | J49: 1 | K49: 0
A50: 188.847664 | B50: 1 | C50: 0.2519676108 | D50: 0 | E50: 1 | F50: F♯4/G♭4 | G50: 369.994 | I50: 5.611807 | J50: 1 | K50: 0
A51: 190.5639436 | B51: 1 | C51: 0.9006318687 | D51: 0 | E51: 1 | F51: G4 | G51: 391.995 | I51: 5.611807 | J51: 1 | K51: 0
A52: 191.2181239 | B52: 1 | C52: 0.3421120664 | D52: 0 | E52: 1 | F52: G♯4/A♭4 | G52: 415.305 | I52: 5.611807 | J52: 1 | K52: 0
A53: 192.6846937 | B53: 1 | C53: 0.7611242003 | D53: 0 | E53: 1 | F53: A4 A440 | G53: 440 | I53: 5.611807 | J53: 1 | K53: 0
A54: 193.2679515 | B54: 1 | C54: 0.3017871144 | D54: 0 | E54: 1 | F54: A♯4/B♭4 | G54: 466.164 | I54: 5.611807 | J54: 1 | K54: 0
A55: 193.4172866 | B55: 1 | C55: 0.07720875552 | D55: 0 | E55: 1 | F55: B4 | G55: 493.883 | I55: 5.611807 | J55: 1 | K55: 0
A56: 200.4029574 | B56: 1 | C56: 3.485812236 | D56: 0 | E56: 0 | F56: C5 Tenor C | G56: 523.251 | I56: 5.611807 | J56: 1 | K56: 0
A57: 204.4621983 | B57: 1 | C57: 1.985325877 | D57: 0 | E57: 1 | F57: C♯5/D♭5 | G57: 554.365 | I57: 5.611807 | J57: 1 | K57: 0
A58: 204.8557969 | B58: 1 | C58: 0.1921344881 | D58: 0 | E58: 1 | F58: D5 | G58: 587.33 | I58: 5.611807 | J58: 1 | K58: 0
A59: 205.1745455 | B59: 1 | C59: 0.1553548052 | D59: 0 | E59: 1 | F59: D♯5/E♭5 | G59: 622.254 | I59: 5.611807 | J59: 1 | K59: 0
A60: 206.5203776 | B60: 1 | C60: 0.6516704036 | D60: 0 | E60: 1 | F60: E5 | G60: 659.255 | I60: 5.611807 | J60: 1 | K60: 0
A61: 208.9740741 | B61: 1 | C61: 1.174163088 | D61: 0 | E61: 1 | F61: F5 | G61: 698.456 | I61: 5.611807 | J61: 1 | K61: 0
A62: 209.3881579 | B62: 1 | C62: 0.1977589279 | D62: 0 | E62: 1 | F62: F♯5/G♭5 | G62: 739.989 | I62: 5.611807 | J62: 1 | K62: 0
A63: 209.7149361 | B63: 1 | C63: 0.1558201991 | D63: 0 | E63: 1 | F63: G5 | G63: 783.991 | I63: 5.611807 | J63: 1 | K63: 0
A64: 211.9026841 | B64: 1 | C64: 1.032430553 | D64: 0 | E64: 1 | F64: G♯5/A♭5 | G64: 830.609 | I64: 5.611807 | J64: 1 | K64: 0
A65: 213.4336523 | B65: 1 | C65: 0.7173040339 | D65: 0 | E65: 1 | F65: A5 | G65: 880 | I65: 5.611807 | J65: 1 | K65: 0
A66: 213.8391006 | B66: 1 | C66: 0.1896043811 | D66: 0 | E66: 1 | F66: A♯5/B♭5 | G66: 932.328 | I66: 5.611807 | J66: 1 | K66: 0
A67: 214.1528051 | B67: 1 | C67: 0.1464862569 | D67: =IF(C67>I66,J66,K66) -> 0 | E67: 1 | F67: B5 | G67: 987.767 | I67: 5.611807 | J67: 1 | K67: 0
A68: 216.0057918 | B68: =IF(A68=A67,B67+1,1) -> 1 | C68: =((A68-A67)/A68)*100 -> 0.8578412425 | D68: 0 | E68: =IF(C68<((A67*1.01)-(A67)),J67,K67) -> 1 | F68: C6 Soprano C | G68: 1046.5 | I68: 5.611807 | J68: 1 | K68: 0
A69: 217.0115385 | B69: 1 | C69: 0.463453066 | D69: 0 | E69: 1 | F69: C♯6/D♭6 | G69: 1108.73 | I69: 5.611807 | J69: 1 | K69: 0
A70: 219.8807927 | B70: 1 | C70: 1.304913522 | D70: 0 | E70: 1 | F70: D6 | G70: 1174.66 | I70: 5.611807 | J70: 1 | K70: 0
A71: 220.3230864 | B71: 1 | C71: 0.200747815 | D71: 0 | E71: 1 | F71: D♯6/E♭6 | G71: 1244.51 | I71: 5.611807 | J71: 1 | K71: 0
A72: 220.99958 | B72: 1 | C72: 0.306106276 | D72: 0 | E72: 1 | F72: E6 | G72: 1318.51 | I72: 5.611807 | J72: 1 | K72: 0
A73: 221.0198235 | B73: 1 | C73: 0.009159129622 | D73: 0 | E73: 1 | F73: F6 | G73: 1396.91 | I73: 5.611807 | J73: 1 | K73: 0
A74: 221.548686 | B74: 1 | C74: 0.2387116479 | D74: 0 | E74: 1 | F74: F♯6/G♭6 | G74: 1479.98 | I74: 5.611807 | J74: 1 | K74: 0
A75: 222.6659985 | B75: 1 | C75: 0.501788541 | D75: 0 | E75: 1 | F75: G6 | G75: 1567.98 | I75: 5.611807 | J75: 1 | K75: 0
A76: 222.7815867 | B76: 1 | C76: 0.05188407197 | D76: 0 | E76: 1 | F76: G♯6/A♭6 | G76: 1661.22 | I76: 5.611807 | J76: 1 | K76: 0
A77: 224.1234555 | B77: 1 | C77: 0.5987185991 | D77: 0 | E77: 1 | F77: A6 | G77: 1760 | I77: 5.611807 | J77: 1 | K77: 0
A78: 224.8084146 | B78: 1 | C78: 0.3046857029 | D78: 0 | E78: 1 | F78: A♯6/B♭6 | G78: 1864.66 | I78: 5.611807 | J78: 1 | K78: 0
A79: 224.936811 | B79: 1 | C79: 0.05708110034 | D79: 0 | E79: 1 | F79: B6 | G79: 1975.53 | I79: 5.611807 | J79: 1 | K79: 0
A80: 225.7600066 | B80: 1 | C80: 0.3646330778 | D80: 0 | E80: 1 | F80: C7 Double high C | G80: 2093 | I80: 5.611807 | J80: 1 | K80: 0
A81: 226.285671 | B81: 1 | C81: 0.2323012022 | D81: 0 | E81: 1 | F81: C♯7/D♭7 | G81: 2217.46 | I81: 5.611807 | J81: 1 | K81: 0
A82: 226.6681316 | B82: 1 | C82: 0.168731556 | D82: 0 | E82: 1 | F82: D7 | G82: 2349.32 | I82: 5.611807 | J82: 1 | K82: 0
A83: 226.6819338 | B83: 1 | C83: 0.006088772859 | D83: 0 | E83: 1 | F83: D♯7/E♭7 | G83: 2489.02 | I83: 5.611807 | J83: 1 | K83: 0
A84: 227.53331 | B84: 1 | C84: 0.3741765273 | D84: 0 | E84: 1 | F84: E7 | G84: 2637.02 | I84: 5.611807 | J84: 1 | K84: 0
A85: 231.3400392 | B85: 1 | C85: 1.645512443 | D85: 0 | E85: 1 | F85: F7 | G85: 2793.83 | I85: 5.611807 | J85: 1 | K85: 0
A86: 232.5537228 | B86: 1 | C86: 0.5218938972 | D86: 0 | E86: 1 | F86: F♯7/G♭7 | G86: 2959.96 | I86: 5.611807 | J86: 1 | K86: 0
A87: 232.7950673 | B87: 1 | C87: 0.1036724954 | D87: 0 | E87: 1 | F87: G7 | G87: 3135.96 | I87: 5.611807 | J87: 1 | K87: 0
A88: 236.2985158 | B88: 1 | C88: 1.482636694 | D88: 0 | E88: 1 | F88: G♯7/A♭7 | G88: 3322.44 | I88: 5.611807 | J88: 1 | K88: 0
A89: 236.3950174 | B89: 1 | C89: 0.04082216309 | D89: 0 | E89: 1 | F89: A7 | G89: 3520 | I89: 5.611807 | J89: 1 | K89: 0
A90: 237.9471822 | B90: 1 | C90: 0.6523148824 | D90: 0 | E90: 1 | F90: A♯7/B♭7 | G90: 3729.31 | I90: 5.611807 | J90: 1 | K90: 0
A91: 240.4534321 | B91: 1 | C91: 1.042301556 | D91: 0 | E91: 1 | F91: B7 | G91: 3951.07 | I91: 5.611807 | J91: 1 | K91: 0
A92: 241.0167416 | B92: 1 | C92: 0.2337221464 | D92: 0 | E92: 1 | F92: C8 Eighth octave | G92: 4186.01 | I92: 5.611807 | J92: 1 | K92: 0
A93: 242.4018015 | B93: 1 | C93: 0.5713900831 | D93: 0 | E93: 1 | I93: 5.611807 | J93: 1 | K93: 0
A94: 243.0029566 | B94: 1 | C94: 0.2473859387 | D94: 0 | E94: 1 | I94: 5.611807 | J94: 1 | K94: 0
A95: 244.3391359 | B95: 1 | C95: 0.546854384 | D95: 0 | E95: 1 | I95: 5.611807 | J95: 1 | K95: 0
A96: 246.2194274 | B96: 1 | C96: 0.7636649891 | D96: 0 | E96: 1 | I96: 5.611807 | J96: 1 | K96: 0
A97: 246.5709704 | B97: 1 | C97: 0.1425727429 | D97: 0 | E97: 1 | I97: 5.611807 | J97: 1 | K97: 0
A98: 249.7594063 | B98: 1 | C98: 1.276602897 | D98: 0 | E98: 1 | I98: 5.611807 | J98: 1 | K98: 0
A99: 250.5323713 | B99: 1 | C99: 0.3085290173 | D99: 0 | E99: 1 | I99: 5.611807 | J99: 1 | K99: 0
A100: 250.6297403 | B100: 1 | C100: 0.03884973977 | D100: 0 | E100: 1 | I100: 5.611807 | J100: 1 | K100: 0
A101: 250.7688889 | B101: 1 | C101: 0.0554887678 | D101: 0 | E101: 1 | I101: 5.611807 | J101: 1 | K101: 0
A102: 252.2148785 | B102: 1 | C102: 0.5733165274 | D102: 0 | E102: 1 | I102: 5.611807 | J102: 1 | K102: 0
A103: 253.5025075 | B103: 1 | C103: 0.5079354349 | D103: 0 | E103: 1 | I103: 5.611807 | J103: 1 | K103: 0
A104: 254.1082866 | B104: 1 | C104: 0.2383940434 | D104: 0 | E104: 1 | I104: 5.611807 | J104: 1 | K104: 0
A105: 254.4971433 | B105: 1 | C105: 0.1527941491 | D105: 0 | E105: 1 | I105: 5.611807 | J105: 1 | K105: 0
A106: 255.5413974 | B106: 1 | C106: 0.4086438183 | D106: 0 | E106: 1 | I106: 5.611807 | J106: 1 | K106: 0
A107: 255.6421215 | B107: 1 | C107: 0.03940040614 | D107: 0 | E107: 1 | I107: 5.611807 | J107: 1 | K107: 0
A108: 256.5221339 | B108: 1 | C108: 0.343055188 | D108: 0 | E108: 1 | I108: 5.611807 | J108: 1 | K108: 0
A109: 256.9779428 | B109: 1 | C109: 0.1773727655 | D109: 0 | E109: 1 | I109: 5.611807 | J109: 1 | K109: 0
A110: 259.7935066 | B110: 1 | C110: 1.083769883 | D110: 0 | E110: 1 | I110: 5.611807 | J110: 1 | K110: 0
A111: 259.9046205 | B111: 1 | C111: 0.04275178768 | D111: 0 | E111: 1 | I111: 5.611807 | J111: 1 | K111: 0
A112: 259.9277495 | B112: 1 | C112: 0.008898261672 | D112: 0 | E112: 1 | I112: 5.611807 | J112: 1 | K112: 0
A113: 260.4138462 | B113: 1 | C113: 0.1866631226 | D113: 0 | E113: 1 | I113: 5.611807 | J113: 1 | K113: 0
A114: 263.5264603 | B114: 1 | C114: 1.181139142 | D114: 0 | E114: 1 | I114: 5.611807 | J114: 1 | K114: 0
A115: 263.7464271 | B115: 1 | C115: 0.08340085861 | D115: 0 | E115: 1 | I115: 5.611807 | J115: 1 | K115: 0
A116: 264.4140735 | B116: 1 | C116: 0.2525003235 | D116: 0 | E116: 1 | I116: 5.611807 | J116: 1 | K116: 0
A117: 264.6611018 | B117: 1 | C117: 0.09333760775 | D117: 0 | E117: 1 | I117: 5.611807 | J117: 1 | K117: 0
A118: 265.3678143 | B118: 1 | C118: 0.2663143217 | D118: 0 | E118: 1 | I118: 5.611807 | J118: 1 | K118: 0
A119: 268.1963071 | B119: 1 | C119: 1.054635238 | D119: 0 | E119: 1 | I119: 5.611807 | J119: 1 | K119: 0
A120: 268.7689698 | B120: 1 | C120: 0.2130687444 | D120: 0 | E120: 1 | I120: 5.611807 | J120: 1 | K120: 0
A121: 269.2448154 | B121: 1 | C121: 0.176733438 | D121: 0 | E121: 1 | I121: 5.611807 | J121: 1 | K121: 0
A122: 269.7977602 | B122: 1 | C122: 0.2049478724 | D122: 0 | E122: 1 | I122: 5.611807 | J122: 1 | K122: 0
A123: 271.6805636 | B123: 1 | C123: 0.6930210345 | D123: 0 | E123: 1 | I123: 5.611807 | J123: 1 | K123: 0
A124: 271.9992016 | B124: 1 | C124: 0.1171466537 | D124: 0 | E124: 1 | I124: 5.611807 | J124: 1 | K124: 0
A125: 272.4694059 | B125: 1 | C125: 0.1725714265 | D125: 0 | E125: 1 | I125: 5.611807 | J125: 1 | K125: 0
A126: 273.4441366 | B126: 1 | C126: 0.3564642767 | D126: 0 | E126: 1 | I126: 5.611807 | J126: 1 | K126: 0
A127: 273.5006352 | B127: 1 | C127: 0.02065758084 | D127: 0 | E127: 1 | I127: 5.611807 | J127: 1 | K127: 0
A128: 273.5660606 | B128: 1 | C128: 0.02391576434 | D128: 0 | E128: 1 | I128: 5.611807 | J128: 1 | K128: 0
A129: 273.9396148 | B129: 1 | C129: 0.1363636966 | D129: 0 | E129: 1 | I129: 5.611807 | J129: 1 | K129: 0
A130: 274.0391874 | B130: 1 | C130: 0.03633517189 | D130: 0 | E130: 1 | I130: 5.611807 | J130: 1 | K130: 0
A131: 276.7403044 | B131: 1 | C131: 0.9760475518 | D131: =IF(C131>I130,J130,K130) -> 0 | E131: 1 | I131: 5.611807 | J131: 1 | K131: 0
A132: 276.9876348 | B132: =IF(A132=A131,B131+1,1) -> 1 | C132: =((A132-A131)/A132)*100 -> 0.08929294882 | D132: 0 | E132: =IF(C132<((A131*1.01)-(A131)),J131,K131) -> 1 | I132: 5.611807 | J132: 1 | K132: 0
A133: 277.1257244 | B133: 1 | C133: 0.04982922016 | D133: 0 | E133: 1 | I133: 5.611807 | J133: 1 | K133: 0
A134: 278.5328348 | B134: 1 | C134: 0.5051865625 | D134: 0 | E134: 1 | I134: 5.611807 | J134: 1 | K134: 0
A135: 280.1231093 | B135: 1 | C135: 0.567705566 | D135: 0 | E135: 1 | I135: 5.611807 | J135: 1 | K135: 0
A136: 280.1566133 | B136: 1 | C136: 0.0119590267 | D136: 0 | E136: 1 | I136: 5.611807 | J136: 1 | K136: 0
A137: 281.4675564 | B137: 1 | C137: 0.4657528104 | D137: 0 | E137: 1 | I137: 5.611807 | J137: 1 | K137: 0
A138: 281.6622158 | B138: 1 | C138: 0.06911096042 | D138: 0 | E138: 1 | I138: 5.611807 | J138: 1 | K138: 0
A139: 281.9219693 | B139: 1 | C139: 0.09213666432 | D139: 0 | E139: 1 | I139: 5.611807 | J139: 1 | K139: 0
A140: 282.3478562 | B140: 1 | C140: 0.1508376445 | D140: 0 | E140: 1 | I140: 5.611807 | J140: 1 | K140: 0
A141: 282.5577436 | B141: 1 | C141: 0.07428123372 | D141: 0 | E141: 1 | I141: 5.611807 | J141: 1 | K141: 0
A142: 285.5255927 | B142: 1 | C142: 1.03943368 | D142: 0 | E142: 1 | I142: 5.611807 | J142: 1 | K142: 0
A143: 285.6477429 | B143: 1 | C143: 0.0427625069 | D143: 0 | E143: 1 | I143: 5.611807 | J143: 1 | K143: 0
A144: 286.051771 | B144: 1 | C144: 0.1412430083 | D144: 0 | E144: 1 | I144: 5.611807 | J144: 1 | K144: 0
A145: 287.007719 | B145: 1 | C145: 0.3330739669 | D145: 0 | E145: 1 | I145: 5.611807 | J145: 1 | K145: 0
A146: 288.9262766 | B146: 1 | C146: 0.6640301628 | D146: 0 | E146: 1 | I146: 5.611807 | J146: 1 | K146: 0
A147: 289.0270406 | B147: 1 | C147: 0.03486315169 | D147: 0 | E147: 1 | I147: 5.611807 | J147: 1 | K147: 0
A148: 289.3257265 | B148: 1 | C148: 0.1032351777 | D148: 0 | E148: 1 | I148: 5.611807 | J148: 1 | K148: 0
A149: 290.0348898 | B149: 1 | C149: 0.2445096618 | D149: 0 | E149: 1 | I149: 5.611807 | J149: 1 | K149: 0
A150: 290.7168344 | B150: 1 | C150: 0.2345734705 | D150: 0 | E150: 1 | I150: 5.611807 | J150: 1 | K150: 0
A151: 292.5637037 | B151: 1 | C151: 0.6312708284 | D151: 0 | E151: 1 | I151: 5.611807 | J151: 1 | K151: 0
A152: 292.8596212 | B152: 1 | C152: 0.1010441484 | D152: 0 | E152: 1 | I152: 5.611807 | J152: 1 | K152: 0
A153: 294.1512683 | B153: 1 | C153: 0.4391098165 | D153: 0 | E153: 1 | I153: 5.611807 | J153: 1 | K153: 0
A154: 294.9565081 | B154: 1 | C154: 0.273002876 | D154: 0 | E154: 1 | I154: 5.611807 | J154: 1 | K154: 0
A155: 295.7655846 | B155: 1 | C155: 0.2735533106 | D155: 0 | E155: 1 | I155: 5.611807 | J155: 1 | K155: 0
A156: 296.0583018 | B156: 1 | C156: 0.09887146132 | D156: 0 | E156: 1 | I156: 5.611807 | J156: 1 | K156: 0
A157: 296.5771704 | B157: 1 | C157: 0.1749523241 | D157: 0 | E157: 1 | I157: 5.611807 | J157: 1 | K157: 0
A158: 297.0084671 | B158: 1 | C158: 0.1452135906 | D158: 0 | E158: 1 | I158: 5.611807 | J158: 1 | K158: 0
A159: 297.1056633 | B159: 1 | C159: 0.03271437439 | D159: 0 | E159: 1 | I159: 5.611807 | J159: 1 | K159: 0
A160: 298.5459333 | B160: 1 | C160: 0.4824282469 | D160: 0 | E160: 1 | I160: 5.611807 | J160: 1 | K160: 0
A161: 298.6479565 | B161: 1 | C161: 0.03416171089 | D161: 0 | E161: 1 | I161: 5.611807 | J161: 1 | K161: 0
A162: 298.9325291 | B162: 1 | C162: 0.09519625787 | D162: 0 | E162: 1 | I162: 5.611807 | J162: 1 | K162: 0
A163: 300.4511942 | B163: 1 | C163: 0.5054614837 | D163: 0 | E163: 1 | I163: 5.611807 | J163: 1 | K163: 0
A164: 300.9313018 | B164: 1 | C164: 0.1595406249 | D164: 0 | E164: 1 | I164: 5.611807 | J164: 1 | K164: 0
A165: 301.270927 | B165: 1 | C165: 0.1127308157 | D165: 0 | E165: 1 | I165: 5.611807 | J165: 1 | K165: 0
A166: 301.5583003 | B166: 1 | C166: 0.09529609381 | D166: 0 | E166: 1 | I166: 5.611807 | J166: 1 | K166: 0
A167: 302.9723293 | B167: 1 | C167: 0.4667188692 | D167: 0 | E167: 1 | I167: 5.611807 | J167: 1 | K167: 0
A168: 303.5698937 | B168: 1 | C168: 0.1968457444 | D168: 0 | E168: 1 | I168: 5.611807 | J168: 1 | K168: 0
A169: 303.8161538 | B169: 1 | C169: 0.08105563432 | D169: 0 | E169: 1 | I169: 5.611807 | J169: 1 | K169: 0
A170: 304.0450768 | B170: 1 | C170: 0.07529244483 | D170: 0 | E170: 1 | I170: 5.611807 | J170: 1 | K170: 0
A171: 304.1708829 | B171: 1 | C171: 0.04136034018 | D171: 0 | E171: 1 | I171: 5.611807 | J171: 1 | K171: 0
A172: 305.0003289 | B172: 1 | C172: 0.2719492125 | D172: 0 | E172: 1 | I172: 5.611807 | J172: 1 | K172: 0
A173: 305.1697265 | B173: 1 | C173: 0.05550930208 | D173: 0 | E173: 1 | I173: 5.611807 | J173: 1 | K173: 0
A174: 305.4534318 | B174: 1 | C174: 0.09288004268 | D174: 0 | E174: 1 | I174: 5.611807 | J174: 1 | K174: 0
A175: 305.7976371 | B175: 1 | C175: 0.1125598202 | D175: 0 | E175: 1 | I175: 5.611807 | J175: 1 | K175: 0
A176: 305.8415258 | B176: 1 | C176: 0.01435014486 | D176: 0 | E176: 1 | I176: 5.611807 | J176: 1 | K176: 0
A177: 306.1903165 | B177: 1 | C177: 0.113913061 | D177: 0 | E177: 1 | I177: 5.611807 | J177: 1 | K177: 0
A178: 306.6774558 | B178: 1 | C178: 0.1588441699 | D178: 0 | E178: 1 | I178: 5.611807 | J178: 1 | K178: 0
A179: 308.9361921 | B179: 1 | C179: 0.7311336141 | D179: 0 | E179: 1 | I179: 5.611807 | J179: 1 | K179: 0
A180: 309.4580359 | B180: 1 | C180: 0.1686315212 | D180: 0 | E180: 1 | I180: 5.611807 | J180: 1 | K180: 0
A181: 310.1255038 | B181: 1 | C181: 0.2152250867 | D181: 0 | E181: 1 | I181: 5.611807 | J181: 1 | K181: 0
A182: 311.418777 | B182: 1 | C182: 0.4152842779 | D182: 0 | E182: 1 | I182: 5.611807 | J182: 1 | K182: 0
A183: 312.5741512 | B183: 1 | C183: 0.3696320234 | D183: 0 | E183: 1 | I183: 5.611807 | J183: 1 | K183: 0
A184: 312.7394464 | B184: 1 | C184: 0.0528539647 | D184: 0 | E184: 1 | I184: 5.611807 | J184: 1 | K184: 0
A185: 313.2007179 | B185: 1 | C185: 0.14727664 | D185: 0 | E185: 1 | I185: 5.611807 | J185: 1 | K185: 0
A186: 313.9243154 | B186: 1 | C186: 0.2305006465 | D186: 0 | E186: 1 | I186: 5.611807 | J186: 1 | K186: 0
A187: 314.2108547 | B187: 1 | C187: 0.09119330936 | D187: 0 | E187: 1 | I187: 5.611807 | J187: 1 | K187: 0
A188: 314.2919956 | B188: 1 | C188: 0.02581704279 | D188: 0 | E188: 1 | I188: 5.611807 | J188: 1 | K188: 0
A189: 315.1055086 | B189: 1 | C189: 0.2581715977 | D189: 0 | E189: 1 | I189: 5.611807 | J189: 1 | K189: 0
A190: 316.5211902 | B190: 1 | C190: 0.4472628308 | D190: 0 | E190: 1 | I190: 5.611807 | J190: 1 | K190: 0
A191: 316.9253466 | B191: 1 | C191: 0.1275241797 | D191: 0 | E191: 1 | I191: 5.611807 | J191: 1 | K191: 0
A192: 319.7596403 | B192: 1 | C192: 0.8863825493 | D192: 0 | E192: 1 | I192: 5.611807 | J192: 1 | K192: 0
A193: 320.2301728 | B193: 1 | C193: 0.1469357067 | D193: 0 | E193: 1 | I193: 5.611807 | J193: 1 | K193: 0
A194: 320.5005469 | B194: 1 | C194: 0.08435995993 | D194: 0 | E194: 1 | I194: 5.611807 | J194: 1 | K194: 0
A195: 320.6045761 | B195: 1 | C195: 0.03244783794 | D195: =IF(C195>I194,J194,K194) -> 0 | E195: 1 | I195: 5.611807 | J195: 1 | K195: 0
A196: 322.4420582 | B196: =IF(A196=A195,B195+1,1) -> 1 | C196: =((A196-A195)/A196)*100 -> 0.5698642481 | D196: 0 | E196: =IF(C196<((A195*1.01)-(A195)),J195,K195) -> 1 | I196: 5.611807 | J196: 1 | K196: 0
A197: 322.9599327 | B197: 1 | C197: 0.1603525569 | D197: 0 | E197: 1 | I197: 5.611807 | J197: 1 | K197: 0
A198: 323.5290629 | B198: 1 | C198: 0.1759131797 | D198: 0 | E198: 1 | I198: 5.611807 | J198: 1 | K198: 0
A199: 323.9010047 | B199: 1 | C199: 0.1148319267 | D199: 0 | E199: 1 | I199: 5.611807 | J199: 1 | K199: 0
A200: 324.0039421 | B200: 1 | C200: 0.03177043333 | D200: 0 | E200: 1 | I200: 5.611807 | J200: 1 | K200: 0
... 800 more rows

Sheet Axial
C1: Axial Modes
A2: Lx = | B2: =+AllModes!D2 -> 13.5 | C2: nx | D2: ny | E2: nz | F2: f | G2: Type | I2: If you found this spreadsheet helpful, please send a donation via PayPal to https://www.paypal.me/JHBrandt/
A3: Ly = | B3: =+AllModes!D3 -> 13 | C3: 1 | D3: 0 | E3: 0 | F3: =$B$5*SQRT((($C3/$B$2)^2)+(($D3/$B$3)^2)+(($E3/$B$4)^2)) -> 41.85185185 | G3: =+IF(+AND(C3=0,D3=0)+OR(+AND(C3=0,E3=0))+OR(+AND(D3=0,E3=0)),"Axial",(+IF(+OR(C3=0,D3=0,E3=0),"Tangential","Oblique"))) -> Axial
A4: Lz = | B4: =+AllModes!D4 -> 8.25 | C4: 0 | D4: 1 | E4: 0 | F4: 43.46153846 | G4: Axial
A5: c/2 = | B5: =1130/2 -> 565 | C5: 0 | D5: 0 | E5: 1 | F5: 68.48484848 | G5: Axial
C6: 2 | D6: 0 | E6: 0 | F6: 83.7037037 | G6: Axial
A7: V = | B7: =B2*B3*B4 -> 1447.875 | C7: 0 | D7: 2 | E7: 0 | F7: 86.92307692 | G7: Axial
C8: 3 | D8: 0 | E8: 0 | F8: 125.5555556 | G8: Axial
C9: 0 | D9: 3 | E9: 0 | F9: 130.3846154 | G9: Axial
C10: 0 | D10: 0 | E10: 2 | F10: 136.969697 | G10: Axial
C11: 4 | D11: 0 | E11: 0 | F11: 167.4074074 | G11: Axial
C12: 0 | D12: 4 | E12: 0 | F12: 173.8461538 | G12: Axial
C13: 0 | D13: 0 | E13: 3 | F13: 205.4545455 | G13: Axial
C14: 5 | D14: 0 | E14: 0 | F14: 209.2592593 | G14: Axial
C15: 0 | D15: 5 | E15: 0 | F15: 217.3076923 | G15: Axial
C16: 6 | D16: 0 | E16: 0 | F16: 251.1111111 | G16: Axial
C17: 0 | D17: 6 | E17: 0 | F17: 260.7692308 | G17: Axial
C18: 0 | D18: 0 | E18: 4 | F18: 273.9393939 | G18: Axial
C19: 7 | D19: 0 | E19: 0 | F19: 292.962963 | G19: Axial
C20: 0 | D20: 7 | E20: 0 | F20: 304.2307692 | G20: Axial
C21: 8 | D21: 0 | E21: 0 | F21: 334.8148148 | G21: Axial
C22: 0 | D22: 0 | E22: 5 | F22: 342.4242424 | G22: Axial
C23: 0 | D23: 8 | E23: 0 | F23: 347.6923077 | G23: Axial
C24: 9 | D24: 0 | E24: 0 | F24: 376.6666667 | G24: Axial
C25: 0 | D25: 9 | E25: 0 | F25: 391.1538462 | G25: Axial
C26: 0 | D26: 0 | E26: 6 | F26: 410.9090909 | G26: Axial
C27: 0 | D27: 0 | E27: 7 | F27: 479.3939394 | G27: Axial
C28: 0 | D28: 0 | E28: 8 | F28: 547.8787879 | G28: Axial
C29: 0 | D29: 0 | E29: 9 | F29: 616.3636364 | G29: Axial

Sheet Tangential
C1: Tangential Modes
A2: Lx = | B2: =+AllModes!D2 -> 13.5 | C2: nx | D2: ny | E2: nz | F2: f | G2: Type | I2: If you found this spreadsheet helpful, please send a donation via PayPal to https://www.paypal.me/JHBrandt/
A3: Ly = | B3: =+AllModes!D3 -> 13 | C3: 1 | D3: 1 | E3: 0 | F3: =$B$5*SQRT((($C3/$B$2)^2)+(($D3/$B$3)^2)+(($E3/$B$4)^2)) -> 60.33641379 | G3: =+IF(+AND(C3=0,D3=0)+OR(+AND(C3=0,E3=0))+OR(+AND(D3=0,E3=0)),"Axial",(+IF(+OR(C3=0,D3=0,E3=0),"Tangential","Oblique"))) -> Tangential
A4: Lz = | B4: =+AllModes!D4 -> 8.25 | C4: 1 | D4: 0 | E4: 1 | F4: 80.26052564 | G4: Tangential
A5: c/2 = | B5: =1130/2 -> 565 | C5: 0 | D5: 1 | E5: 1 | F5: 81.11152691 | G5: Tangential
C6: 2 | D6: 1 | E6: 0 | F6: 94.31444926 | G6: Tangential
A7: V = | B7: =B2*B3*B4 -> 1447.875 | C7: 1 | D7: 2 | E7: 0 | F7: 96.47382446 | G7: Tangential
C8: 2 | D8: 0 | E8: 1 | F8: 108.1502866 | G8: Tangential
C9: 0 | D9: 2 | E9: 1 | F9: 110.6607237 | G9: Tangential
C10: 2 | D10: 2 | E10: 0 | F10: 120.6728276 | G10: Tangential
C11: 3 | D11: 1 | E11: 0 | F11: 132.8649798 | G11: Tangential
C12: 1 | D12: 3 | E12: 0 | F12: 136.9369396 | G12: Tangential
C13: 3 | D13: 0 | E13: 1 | F13: 143.018782 | G13: Tangential
C14: 1 | D14: 0 | E14: 2 | F14: 143.2210717 | G14: Tangential
C15: 0 | D15: 1 | E15: 2 | F15: 143.699698 | G15: Tangential
C16: 0 | D16: 3 | E16: 1 | F16: 147.2763471 | G16: Tangential
C17: 3 | D17: 2 | E17: 0 | F17: 152.7082802 | G17: Tangential
C18: 2 | D18: 3 | E18: 0 | F18: 154.9401754 | G18: Tangential
C19: 2 | D19: 0 | E19: 2 | F19: 160.5210513 | G19: Tangential
C20: 0 | D20: 2 | E20: 2 | F20: 162.2230538 | G20: Tangential
C21: 4 | D21: 1 | E21: 0 | F21: 172.9570622 | G21: Tangential
C22: 1 | D22: 4 | E22: 0 | F22: 178.8129266 | G22: Tangential
C23: 4 | D23: 0 | E23: 1 | F23: 180.8740294 | G23: Tangential
C24: 3 | D24: 3 | E24: 0 | F24: 181.0092414 | G24: Tangential
C25: 3 | D25: 0 | E25: 2 | F25: 185.8087603 | G25: Tangential
C26: 0 | D26: 4 | E26: 1 | F26: 186.8492967 | G26: Tangential
C27: 4 | D27: 2 | E27: 0 | F27: 188.6288985 | G27: Tangential
C28: 0 | D28: 3 | E28: 2 | F28: 189.1053828 | G28: Tangential
C29: 2 | D29: 4 | E29: 0 | F29: 192.9476489 | G29: Tangential
C30: 1 | D30: 0 | E30: 3 | F30: 209.6739081 | G30: Tangential
C31: 0 | D31: 1 | E31: 3 | F31: 210.0011323 | G31: Tangential
C32: 4 | D32: 3 | E32: 0 | F32: 212.191866 | G32: Tangential
C33: 5 | D33: 1 | E33: 0 | F33: 213.7249235 | G33: Tangential
C34: 3 | D34: 4 | E34: 0 | F34: 214.4450576 | G34: Tangential
C35: 4 | D35: 0 | E35: 2 | F35: 216.3005731 | G35: Tangential
C36: 5 | D36: 0 | E36: 1 | F36: 220.1808622 | G36: Tangential
C37: 1 | D37: 5 | E37: 0 | F37: 221.3011763 | G37: Tangential
C38: 0 | D38: 4 | E38: 2 | F38: 221.3214474 | G38: Tangential
C39: 2 | D39: 0 | E39: 3 | F39: 221.8510317 | G39: Tangential
C40: 0 | D40: 2 | E40: 3 | F40: 223.0856148 | G40: Tangential
C41: 5 | D41: 2 | E41: 0 | F41: 226.5944811 | G41: Tangential
C42: 0 | D42: 5 | E42: 1 | F42: 227.8438228 | G42: Tangential
C43: 2 | D43: 5 | E43: 0 | F43: 232.871087 | G43: Tangential
C44: 3 | D44: 0 | E44: 3 | F44: 240.7815769 | G44: Tangential
C45: 4 | D45: 4 | E45: 0 | F45: 241.3456552 | G45: Tangential
C46: 0 | D46: 3 | E46: 3 | F46: 243.3345807 | G46: Tangential
C47: 5 | D47: 3 | E47: 0 | F47: 246.5554411 | G47: Tangential
C48: 5 | D48: 0 | E48: 2 | F48: 250.1002508 | G48: Tangential
C49: 3 | D49: 5 | E49: 0 | F49: 250.9717726 | G49: Tangential
C50: 6 | D50: 1 | E50: 0 | F50: 254.8444534 | G50: Tangential
C51: 0 | D51: 5 | E51: 2 | F51: 256.8722076 | G51: Tangential
C52: 6 | D52: 0 | E52: 1 | F52: 260.2824708 | G52: Tangential
C53: 1 | D53: 6 | E53: 0 | F53: 264.1063597 | G53: Tangential
C54: 4 | D54: 0 | E54: 3 | F54: 265.0222827 | G54: Tangential
C55: 6 | D55: 2 | E55: 0 | F55: 265.7299596 | G55: Tangential
C56: 0 | D56: 4 | E56: 3 | F56: 269.1357566 | G56: Tangential
C57: 0 | D57: 6 | E57: 1 | F57: 269.6122516 | G57: Tangential
C58: 5 | D58: 4 | E58: 0 | F58: 272.0513238 | G58: Tangential
C59: 2 | D59: 6 | E59: 0 | F59: 273.8738792 | G59: Tangential
C60: 4 | D60: 5 | E60: 0 | F60: 274.3134579 | G60: Tangential
C61: 1 | D61: 0 | E61: 4 | F61: 277.1179696 | G61: Tangential
C62: 0 | D62: 1 | E62: 4 | F62: 277.3656375 | G62: Tangential
C63: 6 | D63: 3 | E63: 0 | F63: 282.9433478 | G63: Tangential
C64: 6 | D64: 0 | E64: 2 | F64: 286.037564 | G64: Tangential
C65: 2 | D65: 0 | E65: 4 | F65: 286.4421435 | G65: Tangential
C66: 0 | D66: 2 | E66: 4 | F66: 287.3993961 | G66: Tangential
C67: 3 | D67: 6 | E67: 0 | F67: =$B$5*SQRT((($C67/$B$2)^2)+(($D67/$B$3)^2)+(($E67/$B$4)^2)) -> 289.4214734 | G67: =+IF(+AND(C67=0,D67=0)+OR(+AND(C67=0,E67=0))+OR(+AND(D67=0,E67=0)),"Axial",(+IF(+OR(C67=0,D67=0,E67=0),"Tangential","Oblique"))) -> Tangential
C68: 5 | D68: 0 | E68: 3 | F68: 293.2592843 | G68: Tangential
C69: 0 | D69: 6 | E69: 2 | F69: 294.5526941 | G69: Tangential
C70: 7 | D70: 1 | E70: 0 | F70: 296.1692134 | G70: Tangential
C71: 0 | D71: 5 | E71: 3 | F71: 299.0555189 | G71: Tangential
C72: 7 | D72: 0 | E72: 1 | F72: 300.8612174 | G72: Tangential
C73: 3 | D73: 0 | E73: 4 | F73: 301.3419803 | G73: Tangential
C74: 5 | D74: 5 | E74: 0 | F74: 301.6820689 | G74: Tangential
C75: 0 | D75: 3 | E75: 4 | F75: 303.3857931 | G75: Tangential
C76: 6 | D76: 4 | E76: 0 | F76: 305.4165603 | G76: Tangential
C77: 7 | D77: 2 | E77: 0 | F77: 305.5861891 | G77: Tangential
C78: 1 | D78: 7 | E78: 0 | F78: 307.095976 | G78: Tangential
C79: 4 | D79: 6 | E79: 0 | F79: 309.8803507 | G79: Tangential
C80: 0 | D80: 7 | E80: 1 | F80: 311.8437676 | G80: Tangential
C81: 2 | D81: 7 | E81: 0 | F81: 315.5355304 | G81: Tangential
C82: 7 | D82: 3 | E82: 0 | F82: 320.6671882 | G82: Tangential
C83: 4 | D83: 0 | E83: 4 | F83: 321.0421025 | G83: Tangential
C84: 7 | D84: 0 | E84: 2 | F84: 323.4006734 | G84: Tangential
C85: 0 | D85: 4 | E85: 4 | F85: 324.4461076 | G85: Tangential
C86: 6 | D86: 0 | E86: 3 | F86: 324.4508597 | G86: Tangential
C87: 3 | D87: 7 | E87: 0 | F87: 329.1208873 | G87: Tangential
C88: 0 | D88: 6 | E88: 3 | F88: 331.9821712 | G88: Tangential
C89: 6 | D89: 5 | E89: 0 | F89: 332.0834583 | G89: Tangential
C90: 0 | D90: 7 | E90: 2 | F90: 333.6421119 | G90: Tangential
C91: 5 | D91: 6 | E91: 0 | F91: 334.3501597 | G91: Tangential
C92: 8 | D92: 1 | E92: 0 | F92: 337.6238522 | G92: Tangential
C93: 7 | D93: 4 | E93: 0 | F93: 340.6608033 | G93: Tangential
C94: 8 | D94: 0 | E94: 1 | F94: 341.7471795 | G94: Tangential
C95: 5 | D95: 0 | E95: 4 | F95: 344.7205087 | G95: Tangential
C96: 1 | D96: 0 | E96: 5 | F96: 344.9723747 | G96: Tangential
C97: 0 | D97: 1 | E97: 5 | F97: 345.1713591 | G97: Tangential
C98: 8 | D98: 2 | E98: 0 | F98: 345.9141245 | G98: Tangential
C99: 4 | D99: 7 | E99: 0 | F99: 347.2486156 | G99: Tangential
C100: 0 | D100: 5 | E100: 4 | F100: 349.6647318 | G100: Tangential
C101: 1 | D101: 8 | E101: 0 | F101: 350.2021107 | G101: Tangential
C102: 2 | D102: 0 | E102: 5 | F102: 352.506272 | G102: Tangential
C103: 0 | D103: 2 | E103: 5 | F103: 353.2845639 | G103: Tangential
C104: 0 | D104: 8 | E104: 1 | F104: 354.3728479 | G104: Tangential
C105: 2 | D105: 8 | E105: 0 | F105: 357.6258532 | G105: Tangential
C106: 7 | D106: 0 | E106: 3 | F106: 357.8251918 | G106: Tangential
C107: 8 | D107: 3 | E107: 0 | F107: 359.3064265 | G107: Tangential
C108: 8 | D108: 0 | E108: 2 | F108: 361.7480589 | G108: Tangential
C109: 6 | D109: 6 | E109: 0 | F109: 362.0184827 | G109: Tangential
C110: 3 | D110: 0 | E110: 5 | F110: 364.7170949 | G110: Tangential
C111: 7 | D111: 5 | E111: 0 | F111: 364.7601003 | G111: Tangential
C112: 0 | D112: 3 | E112: 5 | F112: 366.4075732 | G112: Tangential
C113: 0 | D113: 7 | E113: 3 | F113: 367.1075199 | G113: Tangential
C114: 5 | D114: 7 | E114: 0 | F114: 369.2503196 | G114: Tangential
C115: 3 | D115: 8 | E115: 0 | F115: 369.6676052 | G115: Tangential
C116: 6 | D116: 0 | E116: 4 | F116: 371.6175207 | G116: Tangential
C117: 0 | D117: 8 | E117: 2 | F117: 373.6985934 | G117: Tangential
C118: 8 | D118: 4 | E118: 0 | F118: 377.257797 | G118: Tangential
C119: 0 | D119: 6 | E119: 4 | F119: 378.2107657 | G119: Tangential
C120: 9 | D120: 1 | E120: 0 | F120: 379.1657726 | G120: Tangential
C121: 4 | D121: 0 | E121: 5 | F121: 381.1556137 | G121: Tangential
C122: 9 | D122: 0 | E122: 1 | F122: 382.8419416 | G122: Tangential
C123: 0 | D123: 4 | E123: 5 | F123: 384.0271436 | G123: Tangential
C124: 4 | D124: 8 | E124: 0 | F124: 385.8952978 | G124: Tangential
C125: 9 | D125: 2 | E125: 0 | F125: 386.5661639 | G125: Tangential
C126: 7 | D126: 6 | E126: 0 | F126: 392.2089869 | G126: Tangential
C127: 8 | D127: 0 | E127: 3 | F127: 392.8263363 | G127: Tangential
C128: 1 | D128: 9 | E128: 0 | F128: 393.3864625 | G128: Tangential
C129: 6 | D129: 7 | E129: 0 | F129: 394.4783278 | G129: Tangential
C130: 0 | D130: 9 | E130: 1 | F130: 397.103898 | G130: Tangential
C131: 9 | D131: 3 | E131: 0 | F131: =$B$5*SQRT((($C131/$B$2)^2)+(($D131/$B$3)^2)+(($E131/$B$4)^2)) -> 398.5949394 | G131: =+IF(+AND(C131=0,D131=0)+OR(+AND(C131=0,E131=0))+OR(+AND(D131=0,E131=0)),"Axial",(+IF(+OR(C131=0,D131=0,E131=0),"Tangential","Oblique"))) -> Tangential
C132: 8 | D132: 5 | E132: 0 | F132: 399.1535962 | G132: Tangential
C133: 2 | D133: 9 | E133: 0 | F133: 400.0095516 | G133: Tangential
C134: 9 | D134: 0 | E134: 2 | F134: 400.7973 | G134: Tangential
C135: 7 | D135: 0 | E135: 4 | F135: 401.0861369 | G135: Tangential
C136: 5 | D136: 0 | E136: 5 | F136: 401.3026282 | G136: Tangential
C137: 0 | D137: 8 | E137: 3 | F137: 403.8582809 | G137: Tangential
C138: 0 | D138: 5 | E138: 5 | F138: 405.5576345 | G138: Tangential
C139: 5 | D139: 8 | E139: 0 | F139: 405.8070704 | G139: Tangential
C140: 0 | D140: 7 | E140: 4 | F140: 409.3887547 | G140: Tangential
C141: 3 | D141: 9 | E141: 0 | F141: 410.8108189 | G141: Tangential
C142: 1 | D142: 0 | E142: 6 | F142: 413.0349362 | G142: Tangential
C143: 0 | D143: 1 | E143: 6 | F143: 413.2011451 | G143: Tangential
C144: 0 | D144: 9 | E144: 2 | F144: 414.4418285 | G144: Tangential
C145: 9 | D145: 4 | E145: 0 | F145: 414.8496872 | G145: Tangential
C146: 2 | D146: 0 | E146: 6 | F146: 419.3478163 | G146: Tangential
C147: 0 | D147: 2 | E147: 6 | F147: 420.0022646 | G147: Tangential
C148: 7 | D148: 7 | E148: 0 | F148: 422.3548965 | G148: Tangential
C149: 8 | D149: 6 | E149: 0 | F149: 424.3837319 | G149: Tangential
C150: 6 | D150: 0 | E150: 5 | F150: 424.6306064 | G150: Tangential
C151: 4 | D151: 9 | E151: 0 | F151: 425.4721747 | G151: Tangential
C152: 6 | D152: 8 | E152: 0 | F152: 428.8901152 | G152: Tangential
C153: 9 | D153: 0 | E153: 3 | F153: 429.056346 | G153: Tangential
C154: 3 | D154: 0 | E154: 6 | F154: 429.6632152 | G154: Tangential
C155: 0 | D155: 6 | E155: 5 | F155: 430.4125388 | G155: Tangential
C156: 0 | D156: 3 | E156: 6 | F156: 431.0990941 | G156: Tangential
C157: 8 | D157: 0 | E157: 4 | F157: 432.6011463 | G157: Tangential
C158: 9 | D158: 5 | E158: 0 | F158: 434.8567706 | G158: Tangential
C159: 0 | D159: 9 | E159: 3 | F159: 441.8290412 | G159: Tangential
C160: 0 | D160: 8 | E160: 4 | F160: 442.6428949 | G160: Tangential
C161: 5 | D161: 9 | E161: 0 | F161: 443.6110559 | G161: Tangential
C162: 4 | D162: 0 | E162: 6 | F162: 443.7020634 | G162: Tangential
C163: 0 | D163: 4 | E163: 6 | F163: 446.1712297 | G163: Tangential
C164: 7 | D164: 0 | E164: 5 | F164: 450.6458249 | G164: Tangential
C165: 8 | D165: 7 | E165: 0 | F165: 452.3906732 | G165: Tangential
C166: 7 | D166: 8 | E166: 0 | F166: 454.6616748 | G166: Tangential
C167: 0 | D167: 7 | E167: 5 | F167: 458.0510045 | G167: Tangential
C168: 9 | D168: 6 | E168: 0 | F168: 458.1248405 | G168: Tangential
C169: 5 | D169: 0 | E169: 6 | F169: 461.1244068 | G169: Tangential
C170: 6 | D170: 9 | E170: 0 | F170: 464.8205261 | G170: Tangential
C171: 0 | D171: 5 | E171: 6 | F171: 464.8321354 | G171: Tangential
C172: 9 | D172: 0 | E172: 4 | F172: 465.7473235 | G172: Tangential
C173: 0 | D173: 9 | E173: 4 | F173: 477.5396559 | G173: Tangential
C174: 8 | D174: 0 | E174: 5 | F174: 478.9105574 | G174: Tangential
C175: 1 | D175: 0 | E175: 7 | F175: 481.2173382 | G175: Tangential
C176: 0 | D176: 1 | E176: 7 | F176: 481.360005 | G176: Tangential
C177: 6 | D177: 0 | E177: 6 | F177: 481.5631538 | G177: Tangential
C178: 8 | D178: 8 | E178: 0 | F178: 482.6913103 | G178: Tangential
C179: 9 | D179: 7 | E179: 0 | F179: 484.1839926 | G179: Tangential
C180: 2 | D180: 0 | E180: 7 | F180: 486.6465444 | G180: Tangential
C181: 0 | D181: 6 | E181: 6 | F181: 486.6691615 | G181: Tangential
C182: 0 | D182: 2 | E182: 7 | F182: 487.2106017 | G182: Tangential
C183: 0 | D183: 8 | E183: 5 | F183: 488.0003101 | G183: Tangential
C184: 7 | D184: 9 | E184: 0 | F184: 488.7009607 | G184: Tangential
C185: 3 | D185: 0 | E185: 7 | F185: 495.5630602 | G185: Tangential
C186: 0 | D186: 3 | E186: 7 | F186: 496.8085115 | G186: Tangential
C187: 7 | D187: 0 | E187: 6 | F187: 504.6519381 | G187: Tangential
C188: 4 | D188: 0 | E188: 7 | F188: 507.7832108 | G188: Tangential
C189: 9 | D189: 0 | E189: 5 | F189: 509.0502329 | G189: Tangential
C190: 0 | D190: 4 | E190: 7 | F190: 509.9421872 | G190: Tangential
C191: 0 | D191: 7 | E191: 6 | F191: 511.2755049 | G191: Tangential
C192: 9 | D192: 8 | E192: 0 | F192: 512.6087383 | G192: Tangential
C193: 8 | D193: 9 | E193: 0 | F193: 514.8808518 | G193: Tangential
C194: 0 | D194: 9 | E194: 5 | F194: 519.8612249 | G194: Tangential
C195: 5 | D195: 0 | E195: 7 | F195: =$B$5*SQRT((($C195/$B$2)^2)+(($D195/$B$3)^2)+(($E195/$B$4)^2)) -> 523.0755077 | G195: =+IF(+AND(C195=0,D195=0)+OR(+AND(C195=0,E195=0))+OR(+AND(D195=0,E195=0)),"Axial",(+IF(+OR(C195=0,D195=0,E195=0),"Tangential","Oblique"))) -> Tangential
C196: 0 | D196: 5 | E196: 7 | F196: 526.347017 | G196: Tangential
C197: 8 | D197: 0 | E197: 6 | F197: 530.0445653 | G197: Tangential
C198: 0 | D198: 8 | E198: 6 | F198: 538.2715131 | G198: Tangential
C199: 6 | D199: 0 | E199: 7 | F199: 541.1795813 | G199: Tangential
C200: 9 | D200: 9 | E200: 0 | F200: 543.0277241 | G200: Tangential
... 45 more rows

Sheet Oblique
C1: Oblique Modes
A2: Lx = | B2: =+AllModes!D2 -> 13.5 | C2: nx | D2: ny | E2: nz | F2: f | G2: Type | I2: If you found this spreadsheet helpful, please send a donation via PayPal to https://www.paypal.me/JHBrandt/
A3: Ly = | B3: =+AllModes!D3 -> 13 | C3: 1 | D3: 1 | E3: 1 | F3: =$B$5*SQRT((($C3/$B$2)^2)+(($D3/$B$3)^2)+(($E3/$B$4)^2)) -> 91.27243451 | G3: =+IF(+AND(C3=0,D3=0)+OR(+AND(C3=0,E3=0))+OR(+AND(D3=0,E3=0)),"Axial",(+IF(+OR(C3=0,D3=0,E3=0),"Tangential","Oblique"))) -> Oblique
A4: Lz = | B4: =+AllModes!D4 -> 8.25 | C4: 2 | D4: 1 | E4: 1 | F4: 116.5563804 | G4: Oblique
A5: c/2 = | B5: =1130/2 -> 565 | C5: 1 | D5: 2 | E5: 1 | F5: 118.3104952 | G5: Oblique
C6: 2 | D6: 2 | E6: 1 | F6: 138.7519578 | G6: Oblique
A7: V = | B7: =B2*B3*B4 -> 1447.875 | C7: 3 | D7: 1 | E7: 1 | F7: 149.4766782 | G7: Oblique
C8: 1 | D8: 1 | E8: 2 | F8: 149.6702399 | G8: Oblique
C9: 1 | D9: 3 | E9: 1 | F9: 153.1074783 | G9: Oblique
C10: 2 | D10: 1 | E10: 2 | F10: 166.3006712 | G10: Oblique
C11: 3 | D11: 2 | E11: 1 | F11: 167.3618634 | G11: Oblique
C12: 1 | D12: 2 | E12: 2 | F12: 167.5347626 | G12: Oblique
C13: 2 | D13: 3 | E13: 1 | F13: 169.4008041 | G13: Oblique
C14: 2 | D14: 2 | E14: 2 | F14: 182.544869 | G14: Oblique
C15: 4 | D15: 1 | E15: 1 | F15: 186.0223638 | G15: Oblique
C16: 3 | D16: 1 | E16: 2 | F16: 190.8240046 | G16: Oblique
C17: 1 | D17: 4 | E17: 1 | F17: 191.4790777 | G17: Oblique
C18: 3 | D18: 3 | E18: 1 | F18: 193.5317027 | G18: Oblique
C19: 1 | D19: 3 | E19: 2 | F19: 193.6812415 | G19: Oblique
C20: 4 | D20: 2 | E20: 1 | F20: 200.6764456 | G20: Oblique
C21: 2 | D21: 4 | E21: 1 | F21: 204.7412262 | G21: Oblique
C22: 3 | D22: 2 | E22: 2 | F22: 205.1353619 | G22: Oblique
C23: 2 | D23: 3 | E23: 2 | F23: 206.8022143 | G23: Oblique
C24: 1 | D24: 1 | E24: 3 | F24: 214.1309251 | G24: Oblique
C25: 4 | D25: 1 | E25: 2 | F25: 220.6237595 | G25: Oblique
C26: 4 | D26: 3 | E26: 1 | F26: 222.9698689 | G26: Oblique
C27: 5 | D27: 1 | E27: 1 | F27: 224.4293149 | G27: Oblique
C28: 3 | D28: 4 | E28: 1 | F28: 225.1152087 | G28: Oblique
C29: 1 | D29: 4 | E29: 2 | F29: 225.2437804 | G29: Oblique
C30: 2 | D30: 1 | E30: 3 | F30: 226.0680994 | G30: Oblique
C31: 1 | D31: 2 | E31: 3 | F31: 226.9774638 | G31: Oblique
C32: 3 | D32: 3 | E32: 2 | F32: 226.9912847 | G32: Oblique
C33: 1 | D33: 5 | E33: 1 | F33: 231.655747 | G33: Oblique
C34: 4 | D34: 2 | E34: 2 | F34: 233.1127608 | G34: Oblique
C35: 2 | D35: 4 | E35: 2 | F35: 236.6209904 | G35: Oblique
C36: 5 | D36: 2 | E36: 1 | F36: 236.7176237 | G36: Oblique
C37: 2 | D37: 2 | E37: 3 | F37: 238.2719068 | G37: Oblique
C38: 2 | D38: 5 | E38: 1 | F38: 242.7326052 | G38: Oblique
C39: 3 | D39: 1 | E39: 3 | F39: 244.6725835 | G39: Oblique
C40: 1 | D40: 3 | E40: 3 | F40: 246.9074638 | G40: Oblique
C41: 4 | D41: 4 | E41: 1 | F41: 250.8742708 | G41: Oblique
C42: 4 | D42: 3 | E42: 2 | F42: 252.559074 | G42: Oblique
C43: 5 | D43: 1 | E43: 2 | F43: 253.8484603 | G43: Oblique
C44: 3 | D44: 4 | E44: 2 | F44: 254.455066 | G44: Oblique
C45: 5 | D45: 3 | E45: 1 | F45: 255.8901326 | G45: Oblique
C46: 3 | D46: 2 | E46: 3 | F46: 255.9909941 | G46: Oblique
C47: 2 | D47: 3 | E47: 3 | F47: 257.3286385 | G47: Oblique
C48: 3 | D48: 5 | E48: 1 | F48: 260.1480447 | G48: Oblique
C49: 1 | D49: 5 | E49: 2 | F49: 260.2593102 | G49: Oblique
C50: 6 | D50: 1 | E50: 1 | F50: 263.8860927 | G50: Oblique
C51: 5 | D51: 2 | E51: 2 | F51: 264.7749172 | G51: Oblique
C52: 4 | D52: 1 | E52: 3 | F52: 268.5623124 | G52: Oblique
C53: 2 | D53: 5 | E53: 2 | F53: 270.1659509 | G53: Oblique
C54: 1 | D54: 4 | E54: 3 | F54: 272.3703966 | G54: Oblique
C55: 1 | D55: 6 | E55: 1 | F55: 272.8412427 | G55: Oblique
C56: 3 | D56: 3 | E56: 3 | F56: 273.8173035 | G56: Oblique
C57: 6 | D57: 2 | E57: 1 | F57: 274.4131664 | G57: Oblique
C58: 4 | D58: 4 | E58: 2 | F58: 277.5039156 | G58: Oblique
C59: 4 | D59: 2 | E59: 3 | F59: 278.9129463 | G59: Oblique
C60: 1 | D60: 1 | E60: 4 | F60: 280.505391 | G60: Oblique
C61: 5 | D61: 4 | E61: 1 | F61: 280.5389407 | G61: Oblique
C62: 2 | D62: 4 | E62: 3 | F62: 281.8516728 | G62: Oblique
C63: 5 | D63: 3 | E63: 2 | F63: 282.0465979 | G63: Oblique
C64: 2 | D64: 6 | E64: 1 | F64: 282.3067059 | G64: Oblique
C65: 4 | D65: 5 | E65: 1 | F65: 282.733174 | G65: Oblique
C66: 3 | D66: 5 | E66: 2 | F66: 285.9152472 | G66: Oblique
C67: 6 | D67: 1 | E67: 2 | F67: =$B$5*SQRT((($C67/$B$2)^2)+(($D67/$B$3)^2)+(($E67/$B$4)^2)) -> 289.3205719 | G67: =+IF(+AND(C67=0,D67=0)+OR(+AND(C67=0,E67=0))+OR(+AND(D67=0,E67=0)),"Axial",(+IF(+OR(C67=0,D67=0,E67=0),"Tangential","Oblique"))) -> Oblique
C68: 2 | D68: 1 | E68: 4 | F68: 289.7205669 | G68: Oblique
C69: 1 | D69: 2 | E69: 4 | F69: 290.430698 | G69: Oblique
C70: 6 | D70: 3 | E70: 1 | F70: 291.1135732 | G70: Oblique
C71: 4 | D71: 3 | E71: 3 | F71: 295.3590328 | G71: Oblique
C72: 5 | D72: 1 | E72: 3 | F72: 296.4623301 | G72: Oblique
C73: 3 | D73: 4 | E73: 3 | F73: 296.9819068 | G73: Oblique
C74: 3 | D74: 6 | E74: 1 | F74: 297.4137921 | G74: Oblique
C75: 1 | D75: 6 | E75: 2 | F75: 297.511121 | G75: Oblique
C76: 6 | D76: 2 | E76: 2 | F76: 298.9533564 | G76: Oblique
C77: 2 | D77: 2 | E77: 4 | F77: 299.3404798 | G77: Oblique
C78: 1 | D78: 5 | E78: 3 | F78: 301.9698344 | G78: Oblique
C79: 7 | D79: 1 | E79: 1 | F79: 303.9841731 | G79: Oblique
C80: 3 | D80: 1 | E80: 4 | F80: 304.4600046 | G80: Oblique
C81: 5 | D81: 4 | E81: 2 | F81: 304.5859824 | G81: Oblique
C82: 5 | D82: 2 | E82: 3 | F82: 305.8702815 | G82: Oblique
C83: 2 | D83: 6 | E83: 2 | F83: 306.2149566 | G83: Oblique
C84: 1 | D84: 3 | E84: 4 | F84: 306.2589052 | G84: Oblique
C85: 4 | D85: 5 | E85: 2 | F85: 306.6081719 | G85: Oblique
C86: 5 | D86: 5 | E86: 1 | F86: 309.3577948 | G86: Oblique
C87: 2 | D87: 5 | E87: 3 | F87: 310.5487295 | G87: Oblique
C88: 6 | D88: 4 | E88: 1 | F88: 313.0007185 | G88: Oblique
C89: 7 | D89: 2 | E89: 1 | F89: 313.1662393 | G89: Oblique
C90: 3 | D90: 2 | E90: 4 | F90: 313.6281403 | G90: Oblique
C91: 6 | D91: 3 | E91: 2 | F91: 314.3527254 | G91: Oblique
C92: 1 | D92: 7 | E92: 1 | F92: 314.6396557 | G92: Oblique
C93: 2 | D93: 3 | E93: 4 | F93: 314.7209073 | G93: Oblique
C94: 4 | D94: 4 | E94: 3 | F94: 316.953144 | G94: Oblique
C95: 4 | D95: 6 | E95: 1 | F95: 317.357852 | G95: Oblique
C96: 3 | D96: 6 | E96: 2 | F96: 320.1960136 | G96: Oblique
C97: 5 | D97: 3 | E97: 3 | F97: 320.9379313 | G97: Oblique
C98: 2 | D98: 7 | E98: 1 | F98: 322.8820922 | G98: Oblique
C99: 4 | D99: 1 | E99: 4 | F99: 323.9705803 | G99: Oblique
C100: 3 | D100: 5 | E100: 3 | F100: 324.3430297 | G100: Oblique
C101: 7 | D101: 1 | E101: 2 | F101: 326.3079847 | G101: Oblique
C102: 1 | D102: 4 | E102: 4 | F102: 327.1343062 | G102: Oblique
C103: 6 | D103: 1 | E103: 3 | F103: 327.348844 | G103: Oblique
C104: 7 | D104: 3 | E104: 1 | F104: 327.8987955 | G104: Oblique
C105: 3 | D105: 3 | E105: 4 | F105: 328.3399717 | G105: Oblique
C106: 5 | D106: 5 | E106: 2 | F106: 331.3197377 | G106: Oblique
C107: 4 | D107: 2 | E107: 4 | F107: 332.6013423 | G107: Oblique
C108: 1 | D108: 6 | E108: 3 | F108: 334.6098317 | G108: Oblique
C109: 6 | D109: 4 | E109: 2 | F109: 334.7237267 | G109: Oblique
C110: 7 | D110: 2 | E110: 2 | F110: 334.8785106 | G110: Oblique
C111: 2 | D111: 4 | E111: 4 | F111: 335.0695253 | G111: Oblique
C112: 6 | D112: 2 | E112: 3 | F112: 335.8928128 | G112: Oblique
C113: 3 | D113: 7 | E113: 1 | F113: 336.1706902 | G113: Oblique
C114: 1 | D114: 7 | E114: 2 | F114: 336.2568012 | G114: Oblique
C115: 4 | D115: 6 | E115: 2 | F115: 338.8016081 | G115: Oblique
C116: 6 | D116: 5 | E116: 1 | F116: 339.0716705 | G116: Oblique
C117: 5 | D117: 4 | E117: 3 | F117: 340.9156685 | G117: Oblique
C118: 5 | D118: 6 | E118: 1 | F118: 341.2919627 | G118: Oblique
C119: 2 | D119: 6 | E119: 3 | F119: 342.3718329 | G119: Oblique
C120: 4 | D120: 5 | E120: 3 | F120: 342.7235671 | G120: Oblique
C121: 2 | D121: 7 | E121: 2 | F121: 343.9816403 | G121: Oblique
C122: 8 | D122: 1 | E122: 1 | F122: 344.4996952 | G122: Oblique
C123: 4 | D123: 3 | E123: 4 | F123: 346.5085562 | G123: Oblique
C124: 5 | D124: 1 | E124: 4 | F124: 347.4494704 | G124: Oblique
C125: 7 | D125: 4 | E125: 1 | F125: 347.4765565 | G125: Oblique
C126: 1 | D126: 1 | E126: 5 | F126: 347.6993595 | G126: Oblique
C127: 3 | D127: 4 | E127: 4 | F127: 347.8929064 | G127: Oblique
C128: 7 | D128: 3 | E128: 2 | F128: 348.6949146 | G128: Oblique
C129: 6 | D129: 3 | E129: 3 | F129: 349.6691412 | G129: Oblique
C130: 1 | D130: 5 | E130: 4 | F130: 352.1604779 | G130: Oblique
C131: 8 | D131: 2 | E131: 1 | F131: =$B$5*SQRT((($C131/$B$2)^2)+(($D131/$B$3)^2)+(($E131/$B$4)^2)) -> 352.6283539 | G131: =+IF(+AND(C131=0,D131=0)+OR(+AND(C131=0,E131=0))+OR(+AND(D131=0,E131=0)),"Axial",(+IF(+OR(C131=0,D131=0,E131=0),"Tangential","Oblique"))) -> Oblique
C132: 4 | D132: 7 | E132: 1 | F132: 353.9375305 | G132: Oblique
C133: 3 | D133: 6 | E133: 3 | F133: 354.9314856 | G133: Oblique
C134: 2 | D134: 1 | E134: 5 | F134: 355.1754174 | G134: Oblique
C135: 5 | D135: 2 | E135: 4 | F135: 355.5106896 | G135: Oblique
C136: 1 | D136: 2 | E136: 5 | F136: 355.7549165 | G136: Oblique
C137: 3 | D137: 7 | E137: 2 | F137: 356.4845808 | G137: Oblique
C138: 1 | D138: 8 | E138: 1 | F138: 356.8356664 | G138: Oblique
C139: 6 | D139: 5 | E139: 2 | F139: 359.2215488 | G139: Oblique
C140: 2 | D140: 5 | E140: 4 | F140: 359.5437869 | G140: Oblique
C141: 7 | D141: 1 | E141: 3 | F141: 360.4549531 | G141: Oblique
C142: 5 | D142: 6 | E142: 2 | F142: 361.3180416 | G142: Oblique
C143: 2 | D143: 2 | E143: 5 | F143: 363.0651362 | G143: Oblique
C144: 2 | D144: 8 | E144: 1 | F144: 364.1241894 | G144: Oblique
C145: 8 | D145: 1 | E145: 2 | F145: 364.3495072 | G145: Oblique
C146: 5 | D146: 5 | E146: 3 | F146: 364.9981383 | G146: Oblique
C147: 4 | D147: 4 | E147: 4 | F147: 365.089738 | G147: Oblique
C148: 8 | D148: 3 | E148: 1 | F148: 365.774907 | G148: Oblique
C149: 7 | D149: 4 | E149: 2 | F149: 367.1654678 | G149: Oblique
C150: 3 | D150: 1 | E150: 5 | F150: 367.2975152 | G150: Oblique
C151: 6 | D151: 4 | E151: 3 | F151: 368.0908116 | G151: Oblique
C152: 7 | D152: 2 | E152: 3 | F152: 368.2315701 | G152: Oblique
C153: 6 | D153: 6 | E153: 1 | F153: 368.4393523 | G153: Oblique
C154: 5 | D154: 3 | E154: 4 | F154: 368.5544425 | G154: Oblique
C155: 1 | D155: 3 | E155: 5 | F155: 368.7900314 | G155: Oblique
C156: 1 | D156: 7 | E156: 3 | F156: 369.4854648 | G156: Oblique
C157: 7 | D157: 5 | E157: 1 | F157: 371.133541 | G157: Oblique
C158: 3 | D158: 5 | E158: 4 | F158: 371.5233804 | G158: Oblique
C159: 4 | D159: 6 | E159: 3 | F159: 371.8029075 | G159: Oblique
C160: 8 | D160: 2 | E160: 2 | F160: 372.0447277 | G160: Oblique
C161: 4 | D161: 7 | E161: 2 | F161: 373.2858139 | G161: Oblique
C162: 6 | D162: 1 | E162: 4 | F162: 374.1503535 | G162: Oblique
C163: 3 | D163: 2 | E163: 5 | F163: 374.9322347 | G163: Oblique
C164: 5 | D164: 7 | E164: 1 | F164: 375.5475642 | G164: Oblique
C165: 2 | D165: 3 | E165: 5 | F165: 375.8468036 | G165: Oblique
C166: 3 | D166: 8 | E166: 1 | F166: 375.9578604 | G166: Oblique
C167: 1 | D167: 8 | E167: 2 | F167: 376.0348604 | G167: Oblique
C168: 2 | D168: 7 | E168: 3 | F168: 376.5292037 | G168: Oblique
C169: 1 | D169: 6 | E169: 4 | F169: 380.5193304 | G169: Oblique
C170: 7 | D170: 3 | E170: 3 | F170: 380.8398822 | G170: Oblique
C171: 6 | D171: 2 | E171: 4 | F171: 381.6480093 | G171: Oblique
C172: 2 | D172: 8 | E172: 2 | F172: 382.9581553 | G172: Oblique
C173: 8 | D173: 4 | E173: 1 | F173: 383.4235516 | G173: Oblique
C174: 4 | D174: 1 | E174: 5 | F174: 383.6254778 | G174: Oblique
C175: 8 | D175: 3 | E175: 2 | F175: 384.5280302 | G175: Oblique
C176: 9 | D176: 1 | E176: 1 | F176: 385.3009961 | G176: Oblique
C177: 5 | D177: 4 | E177: 4 | F177: 386.0760474 | G177: Oblique
C178: 1 | D178: 4 | E178: 5 | F178: 386.3009507 | G178: Oblique
C179: 6 | D179: 6 | E179: 2 | F179: 387.0634053 | G179: Oblique
C180: 3 | D180: 3 | E180: 5 | F180: 387.3224848 | G180: Oblique
C181: 2 | D181: 6 | E181: 4 | F181: 387.3624831 | G181: Oblique
C182: 4 | D182: 5 | E182: 4 | F182: 387.6733996 | G182: Oblique
C183: 3 | D183: 7 | E183: 3 | F183: 387.9847017 | G183: Oblique
C184: 7 | D184: 5 | E184: 2 | F184: 389.6288345 | G184: Oblique
C185: 6 | D185: 5 | E185: 3 | F185: 390.500952 | G185: Oblique
C186: 4 | D186: 2 | E186: 5 | F186: 390.9414575 | G186: Oblique
C187: 4 | D187: 8 | E187: 1 | F187: 391.925191 | G187: Oblique
C188: 5 | D188: 6 | E188: 3 | F188: 392.4303754 | G188: Oblique
C189: 9 | D189: 2 | E189: 1 | F189: 392.5857531 | G189: Oblique
C190: 2 | D190: 4 | E190: 5 | F190: 393.0434544 | G190: Oblique
C191: 6 | D191: 3 | E191: 4 | F191: 393.8270301 | G191: Oblique
C192: 5 | D192: 7 | E192: 2 | F192: 393.8356211 | G192: Oblique
C193: 3 | D193: 8 | E193: 2 | F193: 394.2268842 | G193: Oblique
C194: 8 | D194: 1 | E194: 3 | F194: 395.2232733 | G194: Oblique
C195: 7 | D195: 4 | E195: 3 | F195: =$B$5*SQRT((($C195/$B$2)^2)+(($D195/$B$3)^2)+(($E195/$B$4)^2)) -> 397.820755 | G195: =+IF(+AND(C195=0,D195=0)+OR(+AND(C195=0,E195=0))+OR(+AND(D195=0,E195=0)),"Axial",(+IF(+OR(C195=0,D195=0,E195=0),"Tangential","Oblique"))) -> Oblique
C196: 7 | D196: 6 | E196: 1 | F196: 398.1432705 | G196: Oblique
C197: 3 | D197: 6 | E197: 4 | F197: 398.5066885 | G197: Oblique
C198: 1 | D198: 9 | E198: 1 | F198: 399.3032473 | G198: Oblique
C199: 6 | D199: 7 | E199: 1 | F199: 400.3789774 | G199: Oblique
C200: 8 | D200: 4 | E200: 2 | F200: 401.3528912 | G200: Oblique
... 531 more rows

Sheet Bonello
A1: f | B1: 16 | C1: 20 | D1: 25 | E1: 31.5 | F1: 40 | G1: 50 | H1: 63 | I1: 80 | J1: 100 | K1: 125 | L1: 160 | M1: 200 | N1: 250 | P1: 16 | Q1: 20 | R1: 25 | S1: 31.5 | T1: 40 | U1: 50 | V1: 63 | W1: 80 | X1: 100 | Y1: 125 | Z1: 160 | AA1: 200 | AB1: 250
A2: ='Mode Strength'!A2 -> 41.79481481 | B2: =IF((AND($A2>=14.1,$A2<17.8)),1,0) -> 0 | C2: =IF((AND($A2>=17.8,$A2<22.4)),1,0) -> 0 | D2: =IF((AND($A2>=22.4,$A2<28.2)),1,0) -> 0 | E2: =IF((AND($A2>=28.2,$A2<35.5)),1,0) -> 0 | F2: =IF((AND($A2>=35.5,$A2<44.7)),1,0) -> 1 | G2: =IF((AND($A2>=44.7,$A2<56.2)),1,0) -> 0 | H2: =IF((AND($A2>=56.2,$A2<70.8)),1,0) -> 0 | I2: =IF((AND($A2>=70.8,$A2<89.1)),1,0) -> 0 | J2: =IF((AND($A2>=89.1,$A2<112)),1,0) -> 0 | K2: =IF((AND($A2>=112,$A2<141)),1,0) -> 0 | L2: =IF((AND($A2>=141,$A2<178)),1,0) -> 0 | M2: =IF((AND($A2>=178,$A2<224)),1,0) -> 0 | N2: =IF((AND($A2>=224,$A2<282)),1,0) -> 0 | O2: Actual | P2: =SUM(B2:B1000) -> 0 | Q2: 0 | R2: 0 | S2: 0 | T2: 2 | U2: 0 | V2: 2 | W2: 4 | X2: 5 | Y2: 9 | Z2: 18 | AA2: 35 | AB2: 63
A3: ='Mode Strength'!A3 -> 43.40230769 | B3: =IF((AND($A3>=14.1,$A3<17.8)),1,0) -> 0 | C3: =IF((AND($A3>=17.8,$A3<22.4)),1,0) -> 0 | D3: =IF((AND($A3>=22.4,$A3<28.2)),1,0) -> 0 | E3: =IF((AND($A3>=28.2,$A3<35.5)),1,0) -> 0 | F3: =IF((AND($A3>=35.5,$A3<44.7)),1,0) -> 1 | G3: =IF((AND($A3>=44.7,$A3<56.2)),1,0) -> 0 | H3: =IF((AND($A3>=56.2,$A3<70.8)),1,0) -> 0 | I3: =IF((AND($A3>=70.8,$A3<89.1)),1,0) -> 0 | J3: =IF((AND($A3>=89.1,$A3<112)),1,0) -> 0 | K3: =IF((AND($A3>=112,$A3<141)),1,0) -> 0 | L3: =IF((AND($A3>=141,$A3<178)),1,0) -> 0 | M3: =IF((AND($A3>=178,$A3<224)),1,0) -> 0 | N3: =IF((AND($A3>=224,$A3<282)),1,0) -> 0 | O3: Ideal | Q3: =P2 -> 0 | R3: =IF(Q2>=Q3,Q2,Q3) -> 0 | S3: =IF(R2>=R3,R2,R3) -> 0 | T3: 0 | U3: 2 | V3: 2 | W3: 2 | X3: 4 | Y3: 5 | Z3: 9 | AA3: 18 | AB3: 35
A4: ='Mode Strength'!A4 -> 60.2541854 | B4: 0 | C4: 0 | D4: 0 | E4: 0 | F4: 0 | G4: 0 | H4: 1 | I4: 0 | J4: 0 | K4: 0 | L4: 0 | M4: 0 | N4: 0
A5: ='Mode Strength'!A5 -> 68.39151515 | B5: 0 | C5: 0 | D5: 0 | E5: 0 | F5: 0 | G5: 0 | H5: 1 | I5: 0 | J5: 0 | K5: 0 | L5: 0 | M5: 0 | N5: 0
A6: ='Mode Strength'!A6 -> 80.15114404 | B6: 0 | C6: 0 | D6: 0 | E6: 0 | F6: 0 | G6: 0 | H6: 0 | I6: 1 | J6: 0 | K6: 0 | L6: 0 | M6: 0 | N6: 0
A7: ='Mode Strength'!A7 -> 81.00098554 | B7: 0 | C7: 0 | D7: 0 | E7: 0 | F7: 0 | G7: 0 | H7: 0 | I7: 1 | J7: 0 | K7: 0 | L7: 0 | M7: 0 | N7: 0
A8: ='Mode Strength'!A8 -> 83.58962963 | B8: 0 | C8: 0 | D8: 0 | E8: 0 | F8: 0 | G8: 0 | H8: 0 | I8: 1 | J8: 0 | K8: 0 | L8: 0 | M8: 0 | N8: 0
A9: ='Mode Strength'!A9 -> 86.80461538 | B9: 0 | C9: 0 | D9: 0 | E9: 0 | F9: 0 | G9: 0 | H9: 0 | I9: 1 | J9: 0 | K9: 0 | L9: 0 | M9: 0 | N9: 0
A10: ='Mode Strength'!A10 -> 91.14804553 | B10: 0 | C10: 0 | D10: 0 | E10: 0 | F10: 0 | G10: 0 | H10: 0 | I10: 0 | J10: 1 | K10: 0 | L10: 0 | M10: 0 | N10: 0
A11: ='Mode Strength'!A11 -> 94.18591452 | B11: 0 | C11: 0 | D11: 0 | E11: 0 | F11: 0 | G11: 0 | H11: 0 | I11: 0 | J11: 1 | K11: 0 | L11: 0 | M11: 0 | N11: 0
A12: ='Mode Strength'!A12 -> 96.34234685 | B12: 0 | C12: 0 | D12: 0 | E12: 0 | F12: 0 | G12: 0 | H12: 0 | I12: 0 | J12: 1 | K12: 0 | L12: 0 | M12: 0 | N12: 0
A13: ='Mode Strength'!A13 -> 108.0028959 | B13: 0 | C13: 0 | D13: 0 | E13: 0 | F13: 0 | G13: 0 | H13: 0 | I13: 0 | J13: 1 | K13: 0 | L13: 0 | M13: 0 | N13: 0
A14: ='Mode Strength'!A14 -> 110.5099118 | B14: 0 | C14: 0 | D14: 0 | E14: 0 | F14: 0 | G14: 0 | H14: 0 | I14: 0 | J14: 1 | K14: 0 | L14: 0 | M14: 0 | N14: 0
A15: ='Mode Strength'!A15 -> 116.3975336 | B15: 0 | C15: 0 | D15: 0 | E15: 0 | F15: 0 | G15: 0 | H15: 0 | I15: 0 | J15: 0 | K15: 1 | L15: 0 | M15: 0 | N15: 0
A16: ='Mode Strength'!A16 -> 118.1492579 | B16: 0 | C16: 0 | D16: 0 | E16: 0 | F16: 0 | G16: 0 | H16: 0 | I16: 0 | J16: 0 | K16: 1 | L16: 0 | M16: 0 | N16: 0
A17: ='Mode Strength'!A17 -> 120.5083708 | B17: 0 | C17: 0 | D17: 0 | E17: 0 | F17: 0 | G17: 0 | H17: 0 | I17: 0 | J17: 0 | K17: 1 | L17: 0 | M17: 0 | N17: 0
A18: ='Mode Strength'!A18 -> 125.3844444 | B18: 0 | C18: 0 | D18: 0 | E18: 0 | F18: 0 | G18: 0 | H18: 0 | I18: 0 | J18: 0 | K18: 1 | L18: 0 | M18: 0 | N18: 0
A19: ='Mode Strength'!A19 -> 130.2069231 | B19: 0 | C19: 0 | D19: 0 | E19: 0 | F19: 0 | G19: 0 | H19: 0 | I19: 0 | J19: 0 | K19: 1 | L19: 0 | M19: 0 | N19: 0
A20: ='Mode Strength'!A20 -> 132.6839072 | B20: 0 | C20: 0 | D20: 0 | E20: 0 | F20: 0 | G20: 0 | H20: 0 | I20: 0 | J20: 0 | K20: 1 | L20: 0 | M20: 0 | N20: 0
A21: ='Mode Strength'!A21 -> 136.7503176 | B21: 0 | C21: 0 | D21: 0 | E21: 0 | F21: 0 | G21: 0 | H21: 0 | I21: 0 | J21: 0 | K21: 1 | L21: 0 | M21: 0 | N21: 0
A22: ='Mode Strength'!A22 -> 136.7830303 | B22: 0 | C22: 0 | D22: 0 | E22: 0 | F22: 0 | G22: 0 | H22: 0 | I22: 0 | J22: 0 | K22: 1 | L22: 0 | M22: 0 | N22: 0
A23: ='Mode Strength'!A23 -> 138.5628622 | B23: 0 | C23: 0 | D23: 0 | E23: 0 | F23: 0 | G23: 0 | H23: 0 | I23: 0 | J23: 0 | K23: 1 | L23: 0 | M23: 0 | N23: 0
A24: ='Mode Strength'!A24 -> 142.8238714 | B24: 0 | C24: 0 | D24: 0 | E24: 0 | F24: 0 | G24: 0 | H24: 0 | I24: 0 | J24: 0 | K24: 0 | L24: 1 | M24: 0 | N24: 0
A25: ='Mode Strength'!A25 -> 143.0258855 | B25: 0 | C25: 0 | D25: 0 | E25: 0 | F25: 0 | G25: 0 | H25: 0 | I25: 0 | J25: 0 | K25: 0 | L25: 1 | M25: 0 | N25: 0
A26: ='Mode Strength'!A26 -> 143.5038595 | B26: 0 | C26: 0 | D26: 0 | E26: 0 | F26: 0 | G26: 0 | H26: 0 | I26: 0 | J26: 0 | K26: 0 | L26: 1 | M26: 0 | N26: 0
A27: ='Mode Strength'!A27 -> 147.0756342 | B27: 0 | C27: 0 | D27: 0 | E27: 0 | F27: 0 | G27: 0 | H27: 0 | I27: 0 | J27: 0 | K27: 0 | L27: 1 | M27: 0 | N27: 0
A28: ='Mode Strength'!A28 -> 149.2729666 | B28: 0 | C28: 0 | D28: 0 | E28: 0 | F28: 0 | G28: 0 | H28: 0 | I28: 0 | J28: 0 | K28: 0 | L28: 1 | M28: 0 | N28: 0
A29: ='Mode Strength'!A29 -> 149.4662645 | B29: 0 | C29: 0 | D29: 0 | E29: 0 | F29: 0 | G29: 0 | H29: 0 | I29: 0 | J29: 0 | K29: 0 | L29: 1 | M29: 0 | N29: 0
A30: ='Mode Strength'!A30 -> 152.5001645 | B30: 0 | C30: 0 | D30: 0 | E30: 0 | F30: 0 | G30: 0 | H30: 0 | I30: 0 | J30: 0 | K30: 0 | L30: 1 | M30: 0 | N30: 0
A31: ='Mode Strength'!A31 -> 152.8988185 | B31: 0 | C31: 0 | D31: 0 | E31: 0 | F31: 0 | G31: 0 | H31: 0 | I31: 0 | J31: 0 | K31: 0 | L31: 1 | M31: 0 | N31: 0
A32: ='Mode Strength'!A32 -> 154.729018 | B32: 0 | C32: 0 | D32: 0 | E32: 0 | F32: 0 | G32: 0 | H32: 0 | I32: 0 | J32: 0 | K32: 0 | L32: 1 | M32: 0 | N32: 0
A33: ='Mode Strength'!A33 -> 160.3022881 | B33: 0 | C33: 0 | D33: 0 | E33: 0 | F33: 0 | G33: 0 | H33: 0 | I33: 0 | J33: 0 | K33: 0 | L33: 1 | M33: 0 | N33: 0
A34: ='Mode Strength'!A34 -> 162.0019711 | B34: 0 | C34: 0 | D34: 0 | E34: 0 | F34: 0 | G34: 0 | H34: 0 | I34: 0 | J34: 0 | K34: 0 | L34: 1 | M34: 0 | N34: 0
A35: ='Mode Strength'!A35 -> 166.0740313 | B35: 0 | C35: 0 | D35: 0 | E35: 0 | F35: 0 | G35: 0 | H35: 0 | I35: 0 | J35: 0 | K35: 0 | L35: 1 | M35: 0 | N35: 0
A36: ='Mode Strength'!A36 -> 167.1337773 | B36: 0 | C36: 0 | D36: 0 | E36: 0 | F36: 0 | G36: 0 | H36: 0 | I36: 0 | J36: 0 | K36: 0 | L36: 1 | M36: 0 | N36: 0
A37: ='Mode Strength'!A37 -> 167.1792593 | B37: 0 | C37: 0 | D37: 0 | E37: 0 | F37: 0 | G37: 0 | H37: 0 | I37: 0 | J37: 0 | K37: 0 | L37: 1 | M37: 0 | N37: 0
A38: ='Mode Strength'!A38 -> 167.3064409 | B38: 0 | C38: 0 | D38: 0 | E38: 0 | F38: 0 | G38: 0 | H38: 0 | I38: 0 | J38: 0 | K38: 0 | L38: 1 | M38: 0 | N38: 0
A39: ='Mode Strength'!A39 -> 169.1699392 | B39: 0 | C39: 0 | D39: 0 | E39: 0 | F39: 0 | G39: 0 | H39: 0 | I39: 0 | J39: 0 | K39: 0 | L39: 1 | M39: 0 | N39: 0
A40: ='Mode Strength'!A40 -> 172.7213509 | B40: 0 | C40: 0 | D40: 0 | E40: 0 | F40: 0 | G40: 0 | H40: 0 | I40: 0 | J40: 0 | K40: 0 | L40: 1 | M40: 0 | N40: 0
A41: ='Mode Strength'!A41 -> 173.6092308 | B41: 0 | C41: 0 | D41: 0 | E41: 0 | F41: 0 | G41: 0 | H41: 0 | I41: 0 | J41: 0 | K41: 0 | L41: 1 | M41: 0 | N41: 0 | P41: If you found this spreadsheet helpful, please send a donation via PayPal to https://www.paypal.me/JHBrandt/
A42: ='Mode Strength'!A42 -> 178.5692346 | B42: 0 | C42: 0 | D42: 0 | E42: 0 | F42: 0 | G42: 0 | H42: 0 | I42: 0 | J42: 0 | K42: 0 | L42: 0 | M42: 1 | N42: 0
A43: ='Mode Strength'!A43 -> 180.6275286 | B43: 0 | C43: 0 | D43: 0 | E43: 0 | F43: 0 | G43: 0 | H43: 0 | I43: 0 | J43: 0 | K43: 0 | L43: 0 | M43: 1 | N43: 0
A44: ='Mode Strength'!A44 -> 180.7625562 | B44: 0 | C44: 0 | D44: 0 | E44: 0 | F44: 0 | G44: 0 | H44: 0 | I44: 0 | J44: 0 | K44: 0 | L44: 0 | M44: 1 | N44: 0
A45: ='Mode Strength'!A45 -> 182.2960911 | B45: 0 | C45: 0 | D45: 0 | E45: 0 | F45: 0 | G45: 0 | H45: 0 | I45: 0 | J45: 0 | K45: 0 | L45: 0 | M45: 1 | N45: 0
A46: ='Mode Strength'!A46 -> 185.5555342 | B46: 0 | C46: 0 | D46: 0 | E46: 0 | F46: 0 | G46: 0 | H46: 0 | I46: 0 | J46: 0 | K46: 0 | L46: 0 | M46: 1 | N46: 0
A47: ='Mode Strength'!A47 -> 185.7688466 | B47: 0 | C47: 0 | D47: 0 | E47: 0 | F47: 0 | G47: 0 | H47: 0 | I47: 0 | J47: 0 | K47: 0 | L47: 0 | M47: 1 | N47: 0
A48: ='Mode Strength'!A48 -> 186.5946525 | B48: 0 | C48: 0 | D48: 0 | E48: 0 | F48: 0 | G48: 0 | H48: 0 | I48: 0 | J48: 0 | K48: 0 | L48: 0 | M48: 1 | N48: 0
A49: ='Mode Strength'!A49 -> 188.371829 | B49: 0 | C49: 0 | D49: 0 | E49: 0 | F49: 0 | G49: 0 | H49: 0 | I49: 0 | J49: 0 | K49: 0 | L49: 0 | M49: 1 | N49: 0
A50: ='Mode Strength'!A50 -> 188.847664 | B50: 0 | C50: 0 | D50: 0 | E50: 0 | F50: 0 | G50: 0 | H50: 0 | I50: 0 | J50: 0 | K50: 0 | L50: 0 | M50: 1 | N50: 0
A51: ='Mode Strength'!A51 -> 190.5639436 | B51: 0 | C51: 0 | D51: 0 | E51: 0 | F51: 0 | G51: 0 | H51: 0 | I51: 0 | J51: 0 | K51: 0 | L51: 0 | M51: 1 | N51: 0
A52: ='Mode Strength'!A52 -> 191.2181239 | B52: 0 | C52: 0 | D52: 0 | E52: 0 | F52: 0 | G52: 0 | H52: 0 | I52: 0 | J52: 0 | K52: 0 | L52: 0 | M52: 1 | N52: 0
A53: ='Mode Strength'!A53 -> 192.6846937 | B53: 0 | C53: 0 | D53: 0 | E53: 0 | F53: 0 | G53: 0 | H53: 0 | I53: 0 | J53: 0 | K53: 0 | L53: 0 | M53: 1 | N53: 0
A54: ='Mode Strength'!A54 -> 193.2679515 | B54: 0 | C54: 0 | D54: 0 | E54: 0 | F54: 0 | G54: 0 | H54: 0 | I54: 0 | J54: 0 | K54: 0 | L54: 0 | M54: 1 | N54: 0
A55: ='Mode Strength'!A55 -> 193.4172866 | B55: 0 | C55: 0 | D55: 0 | E55: 0 | F55: 0 | G55: 0 | H55: 0 | I55: 0 | J55: 0 | K55: 0 | L55: 0 | M55: 1 | N55: 0
A56: ='Mode Strength'!A56 -> 200.4029574 | B56: 0 | C56: 0 | D56: 0 | E56: 0 | F56: 0 | G56: 0 | H56: 0 | I56: 0 | J56: 0 | K56: 0 | L56: 0 | M56: 1 | N56: 0
A57: ='Mode Strength'!A57 -> 204.4621983 | B57: 0 | C57: 0 | D57: 0 | E57: 0 | F57: 0 | G57: 0 | H57: 0 | I57: 0 | J57: 0 | K57: 0 | L57: 0 | M57: 1 | N57: 0
A58: ='Mode Strength'!A58 -> 204.8557969 | B58: 0 | C58: 0 | D58: 0 | E58: 0 | F58: 0 | G58: 0 | H58: 0 | I58: 0 | J58: 0 | K58: 0 | L58: 0 | M58: 1 | N58: 0
A59: ='Mode Strength'!A59 -> 205.1745455 | B59: 0 | C59: 0 | D59: 0 | E59: 0 | F59: 0 | G59: 0 | H59: 0 | I59: 0 | J59: 0 | K59: 0 | L59: 0 | M59: 1 | N59: 0
A60: ='Mode Strength'!A60 -> 206.5203776 | B60: 0 | C60: 0 | D60: 0 | E60: 0 | F60: 0 | G60: 0 | H60: 0 | I60: 0 | J60: 0 | K60: 0 | L60: 0 | M60: 1 | N60: 0
A61: ='Mode Strength'!A61 -> 208.9740741 | B61: 0 | C61: 0 | D61: 0 | E61: 0 | F61: 0 | G61: 0 | H61: 0 | I61: 0 | J61: 0 | K61: 0 | L61: 0 | M61: 1 | N61: 0
A62: ='Mode Strength'!A62 -> 209.3881579 | B62: 0 | C62: 0 | D62: 0 | E62: 0 | F62: 0 | G62: 0 | H62: 0 | I62: 0 | J62: 0 | K62: 0 | L62: 0 | M62: 1 | N62: 0
A63: ='Mode Strength'!A63 -> 209.7149361 | B63: 0 | C63: 0 | D63: 0 | E63: 0 | F63: 0 | G63: 0 | H63: 0 | I63: 0 | J63: 0 | K63: 0 | L63: 0 | M63: 1 | N63: 0
A64: ='Mode Strength'!A64 -> 211.9026841 | B64: 0 | C64: 0 | D64: 0 | E64: 0 | F64: 0 | G64: 0 | H64: 0 | I64: 0 | J64: 0 | K64: 0 | L64: 0 | M64: 1 | N64: 0
A65: ='Mode Strength'!A65 -> 213.4336523 | B65: 0 | C65: 0 | D65: 0 | E65: 0 | F65: 0 | G65: 0 | H65: 0 | I65: 0 | J65: 0 | K65: 0 | L65: 0 | M65: 1 | N65: 0
A66: ='Mode Strength'!A66 -> 213.8391006 | B66: 0 | C66: 0 | D66: 0 | E66: 0 | F66: 0 | G66: 0 | H66: 0 | I66: 0 | J66: 0 | K66: 0 | L66: 0 | M66: 1 | N66: 0
A67: ='Mode Strength'!A67 -> 214.1528051 | B67: =IF((AND($A67>=14.1,$A67<17.8)),1,0) -> 0 | C67: =IF((AND($A67>=17.8,$A67<22.4)),1,0) -> 0 | D67: =IF((AND($A67>=22.4,$A67<28.2)),1,0) -> 0 | E67: =IF((AND($A67>=28.2,$A67<35.5)),1,0) -> 0 | F67: =IF((AND($A67>=35.5,$A67<44.7)),1,0) -> 0 | G67: =IF((AND($A67>=44.7,$A67<56.2)),1,0) -> 0 | H67: =IF((AND($A67>=56.2,$A67<70.8)),1,0) -> 0 | I67: =IF((AND($A67>=70.8,$A67<89.1)),1,0) -> 0 | J67: =IF((AND($A67>=89.1,$A67<112)),1,0) -> 0 | K67: =IF((AND($A67>=112,$A67<141)),1,0) -> 0 | L67: =IF((AND($A67>=141,$A67<178)),1,0) -> 0 | M67: =IF((AND($A67>=178,$A67<224)),1,0) -> 1 | N67: =IF((AND($A67>=224,$A67<282)),1,0) -> 0
A68: ='Mode Strength'!A68 -> 216.0057918 | B68: 0 | C68: 0 | D68: 0 | E68: 0 | F68: 0 | G68: 0 | H68: 0 | I68: 0 | J68: 0 | K68: 0 | L68: 0 | M68: 1 | N68: 0
A69: ='Mode Strength'!A69 -> 217.0115385 | B69: 0 | C69: 0 | D69: 0 | E69: 0 | F69: 0 | G69: 0 | H69: 0 | I69: 0 | J69: 0 | K69: 0 | L69: 0 | M69: 1 | N69: 0
A70: ='Mode Strength'!A70 -> 219.8807927 | B70: 0 | C70: 0 | D70: 0 | E70: 0 | F70: 0 | G70: 0 | H70: 0 | I70: 0 | J70: 0 | K70: 0 | L70: 0 | M70: 1 | N70: 0
A71: ='Mode Strength'!A71 -> 220.3230864 | B71: 0 | C71: 0 | D71: 0 | E71: 0 | F71: 0 | G71: 0 | H71: 0 | I71: 0 | J71: 0 | K71: 0 | L71: 0 | M71: 1 | N71: 0
A72: ='Mode Strength'!A72 -> 220.99958 | B72: 0 | C72: 0 | D72: 0 | E72: 0 | F72: 0 | G72: 0 | H72: 0 | I72: 0 | J72: 0 | K72: 0 | L72: 0 | M72: 1 | N72: 0
A73: ='Mode Strength'!A73 -> 221.0198235 | B73: 0 | C73: 0 | D73: 0 | E73: 0 | F73: 0 | G73: 0 | H73: 0 | I73: 0 | J73: 0 | K73: 0 | L73: 0 | M73: 1 | N73: 0
A74: ='Mode Strength'!A74 -> 221.548686 | B74: 0 | C74: 0 | D74: 0 | E74: 0 | F74: 0 | G74: 0 | H74: 0 | I74: 0 | J74: 0 | K74: 0 | L74: 0 | M74: 1 | N74: 0
A75: ='Mode Strength'!A75 -> 222.6659985 | B75: 0 | C75: 0 | D75: 0 | E75: 0 | F75: 0 | G75: 0 | H75: 0 | I75: 0 | J75: 0 | K75: 0 | L75: 0 | M75: 1 | N75: 0
A76: ='Mode Strength'!A76 -> 222.7815867 | B76: 0 | C76: 0 | D76: 0 | E76: 0 | F76: 0 | G76: 0 | H76: 0 | I76: 0 | J76: 0 | K76: 0 | L76: 0 | M76: 1 | N76: 0
A77: ='Mode Strength'!A77 -> 224.1234555 | B77: 0 | C77: 0 | D77: 0 | E77: 0 | F77: 0 | G77: 0 | H77: 0 | I77: 0 | J77: 0 | K77: 0 | L77: 0 | M77: 0 | N77: 1
A78: ='Mode Strength'!A78 -> 224.8084146 | B78: 0 | C78: 0 | D78: 0 | E78: 0 | F78: 0 | G78: 0 | H78: 0 | I78: 0 | J78: 0 | K78: 0 | L78: 0 | M78: 0 | N78: 1
A79: ='Mode Strength'!A79 -> 224.936811 | B79: 0 | C79: 0 | D79: 0 | E79: 0 | F79: 0 | G79: 0 | H79: 0 | I79: 0 | J79: 0 | K79: 0 | L79: 0 | M79: 0 | N79: 1
A80: ='Mode Strength'!A80 -> 225.7600066 | B80: 0 | C80: 0 | D80: 0 | E80: 0 | F80: 0 | G80: 0 | H80: 0 | I80: 0 | J80: 0 | K80: 0 | L80: 0 | M80: 0 | N80: 1
A81: ='Mode Strength'!A81 -> 226.285671 | B81: 0 | C81: 0 | D81: 0 | E81: 0 | F81: 0 | G81: 0 | H81: 0 | I81: 0 | J81: 0 | K81: 0 | L81: 0 | M81: 0 | N81: 1
A82: ='Mode Strength'!A82 -> 226.6681316 | B82: 0 | C82: 0 | D82: 0 | E82: 0 | F82: 0 | G82: 0 | H82: 0 | I82: 0 | J82: 0 | K82: 0 | L82: 0 | M82: 0 | N82: 1
A83: ='Mode Strength'!A83 -> 226.6819338 | B83: 0 | C83: 0 | D83: 0 | E83: 0 | F83: 0 | G83: 0 | H83: 0 | I83: 0 | J83: 0 | K83: 0 | L83: 0 | M83: 0 | N83: 1
A84: ='Mode Strength'!A84 -> 227.53331 | B84: 0 | C84: 0 | D84: 0 | E84: 0 | F84: 0 | G84: 0 | H84: 0 | I84: 0 | J84: 0 | K84: 0 | L84: 0 | M84: 0 | N84: 1
A85: ='Mode Strength'!A85 -> 231.3400392 | B85: 0 | C85: 0 | D85: 0 | E85: 0 | F85: 0 | G85: 0 | H85: 0 | I85: 0 | J85: 0 | K85: 0 | L85: 0 | M85: 0 | N85: 1
A86: ='Mode Strength'!A86 -> 232.5537228 | B86: 0 | C86: 0 | D86: 0 | E86: 0 | F86: 0 | G86: 0 | H86: 0 | I86: 0 | J86: 0 | K86: 0 | L86: 0 | M86: 0 | N86: 1
A87: ='Mode Strength'!A87 -> 232.7950673 | B87: 0 | C87: 0 | D87: 0 | E87: 0 | F87: 0 | G87: 0 | H87: 0 | I87: 0 | J87: 0 | K87: 0 | L87: 0 | M87: 0 | N87: 1
A88: ='Mode Strength'!A88 -> 236.2985158 | B88: 0 | C88: 0 | D88: 0 | E88: 0 | F88: 0 | G88: 0 | H88: 0 | I88: 0 | J88: 0 | K88: 0 | L88: 0 | M88: 0 | N88: 1
A89: ='Mode Strength'!A89 -> 236.3950174 | B89: 0 | C89: 0 | D89: 0 | E89: 0 | F89: 0 | G89: 0 | H89: 0 | I89: 0 | J89: 0 | K89: 0 | L89: 0 | M89: 0 | N89: 1
A90: ='Mode Strength'!A90 -> 237.9471822 | B90: 0 | C90: 0 | D90: 0 | E90: 0 | F90: 0 | G90: 0 | H90: 0 | I90: 0 | J90: 0 | K90: 0 | L90: 0 | M90: 0 | N90: 1
A91: ='Mode Strength'!A91 -> 240.4534321 | B91: 0 | C91: 0 | D91: 0 | E91: 0 | F91: 0 | G91: 0 | H91: 0 | I91: 0 | J91: 0 | K91: 0 | L91: 0 | M91: 0 | N91: 1
A92: ='Mode Strength'!A92 -> 241.0167416 | B92: 0 | C92: 0 | D92: 0 | E92: 0 | F92: 0 | G92: 0 | H92: 0 | I92: 0 | J92: 0 | K92: 0 | L92: 0 | M92: 0 | N92: 1
A93: ='Mode Strength'!A93 -> 242.4018015 | B93: 0 | C93: 0 | D93: 0 | E93: 0 | F93: 0 | G93: 0 | H93: 0 | I93: 0 | J93: 0 | K93: 0 | L93: 0 | M93: 0 | N93: 1
A94: ='Mode Strength'!A94 -> 243.0029566 | B94: 0 | C94: 0 | D94: 0 | E94: 0 | F94: 0 | G94: 0 | H94: 0 | I94: 0 | J94: 0 | K94: 0 | L94: 0 | M94: 0 | N94: 1
A95: ='Mode Strength'!A95 -> 244.3391359 | B95: 0 | C95: 0 | D95: 0 | E95: 0 | F95: 0 | G95: 0 | H95: 0 | I95: 0 | J95: 0 | K95: 0 | L95: 0 | M95: 0 | N95: 1
A96: ='Mode Strength'!A96 -> 246.2194274 | B96: 0 | C96: 0 | D96: 0 | E96: 0 | F96: 0 | G96: 0 | H96: 0 | I96: 0 | J96: 0 | K96: 0 | L96: 0 | M96: 0 | N96: 1
A97: ='Mode Strength'!A97 -> 246.5709704 | B97: 0 | C97: 0 | D97: 0 | E97: 0 | F97: 0 | G97: 0 | H97: 0 | I97: 0 | J97: 0 | K97: 0 | L97: 0 | M97: 0 | N97: 1
A98: ='Mode Strength'!A98 -> 249.7594063 | B98: 0 | C98: 0 | D98: 0 | E98: 0 | F98: 0 | G98: 0 | H98: 0 | I98: 0 | J98: 0 | K98: 0 | L98: 0 | M98: 0 | N98: 1
A99: ='Mode Strength'!A99 -> 250.5323713 | B99: 0 | C99: 0 | D99: 0 | E99: 0 | F99: 0 | G99: 0 | H99: 0 | I99: 0 | J99: 0 | K99: 0 | L99: 0 | M99: 0 | N99: 1
A100: ='Mode Strength'!A100 -> 250.6297403 | B100: 0 | C100: 0 | D100: 0 | E100: 0 | F100: 0 | G100: 0 | H100: 0 | I100: 0 | J100: 0 | K100: 0 | L100: 0 | M100: 0 | N100: 1
A101: ='Mode Strength'!A101 -> 250.7688889 | B101: 0 | C101: 0 | D101: 0 | E101: 0 | F101: 0 | G101: 0 | H101: 0 | I101: 0 | J101: 0 | K101: 0 | L101: 0 | M101: 0 | N101: 1
A102: ='Mode Strength'!A102 -> 252.2148785 | B102: 0 | C102: 0 | D102: 0 | E102: 0 | F102: 0 | G102: 0 | H102: 0 | I102: 0 | J102: 0 | K102: 0 | L102: 0 | M102: 0 | N102: 1
A103: ='Mode Strength'!A103 -> 253.5025075 | B103: 0 | C103: 0 | D103: 0 | E103: 0 | F103: 0 | G103: 0 | H103: 0 | I103: 0 | J103: 0 | K103: 0 | L103: 0 | M103: 0 | N103: 1
A104: ='Mode Strength'!A104 -> 254.1082866 | B104: 0 | C104: 0 | D104: 0 | E104: 0 | F104: 0 | G104: 0 | H104: 0 | I104: 0 | J104: 0 | K104: 0 | L104: 0 | M104: 0 | N104: 1
A105: ='Mode Strength'!A105 -> 254.4971433 | B105: 0 | C105: 0 | D105: 0 | E105: 0 | F105: 0 | G105: 0 | H105: 0 | I105: 0 | J105: 0 | K105: 0 | L105: 0 | M105: 0 | N105: 1
A106: ='Mode Strength'!A106 -> 255.5413974 | B106: 0 | C106: 0 | D106: 0 | E106: 0 | F106: 0 | G106: 0 | H106: 0 | I106: 0 | J106: 0 | K106: 0 | L106: 0 | M106: 0 | N106: 1
A107: ='Mode Strength'!A107 -> 255.6421215 | B107: 0 | C107: 0 | D107: 0 | E107: 0 | F107: 0 | G107: 0 | H107: 0 | I107: 0 | J107: 0 | K107: 0 | L107: 0 | M107: 0 | N107: 1
A108: ='Mode Strength'!A108 -> 256.5221339 | B108: 0 | C108: 0 | D108: 0 | E108: 0 | F108: 0 | G108: 0 | H108: 0 | I108: 0 | J108: 0 | K108: 0 | L108: 0 | M108: 0 | N108: 1
A109: ='Mode Strength'!A109 -> 256.9779428 | B109: 0 | C109: 0 | D109: 0 | E109: 0 | F109: 0 | G109: 0 | H109: 0 | I109: 0 | J109: 0 | K109: 0 | L109: 0 | M109: 0 | N109: 1
A110: ='Mode Strength'!A110 -> 259.7935066 | B110: 0 | C110: 0 | D110: 0 | E110: 0 | F110: 0 | G110: 0 | H110: 0 | I110: 0 | J110: 0 | K110: 0 | L110: 0 | M110: 0 | N110: 1
A111: ='Mode Strength'!A111 -> 259.9046205 | B111: 0 | C111: 0 | D111: 0 | E111: 0 | F111: 0 | G111: 0 | H111: 0 | I111: 0 | J111: 0 | K111: 0 | L111: 0 | M111: 0 | N111: 1
A112: ='Mode Strength'!A112 -> 259.9277495 | B112: 0 | C112: 0 | D112: 0 | E112: 0 | F112: 0 | G112: 0 | H112: 0 | I112: 0 | J112: 0 | K112: 0 | L112: 0 | M112: 0 | N112: 1
A113: ='Mode Strength'!A113 -> 260.4138462 | B113: 0 | C113: 0 | D113: 0 | E113: 0 | F113: 0 | G113: 0 | H113: 0 | I113: 0 | J113: 0 | K113: 0 | L113: 0 | M113: 0 | N113: 1
A114: ='Mode Strength'!A114 -> 263.5264603 | B114: 0 | C114: 0 | D114: 0 | E114: 0 | F114: 0 | G114: 0 | H114: 0 | I114: 0 | J114: 0 | K114: 0 | L114: 0 | M114: 0 | N114: 1
A115: ='Mode Strength'!A115 -> 263.7464271 | B115: 0 | C115: 0 | D115: 0 | E115: 0 | F115: 0 | G115: 0 | H115: 0 | I115: 0 | J115: 0 | K115: 0 | L115: 0 | M115: 0 | N115: 1
A116: ='Mode Strength'!A116 -> 264.4140735 | B116: 0 | C116: 0 | D116: 0 | E116: 0 | F116: 0 | G116: 0 | H116: 0 | I116: 0 | J116: 0 | K116: 0 | L116: 0 | M116: 0 | N116: 1
A117: ='Mode Strength'!A117 -> 264.6611018 | B117: 0 | C117: 0 | D117: 0 | E117: 0 | F117: 0 | G117: 0 | H117: 0 | I117: 0 | J117: 0 | K117: 0 | L117: 0 | M117: 0 | N117: 1
A118: ='Mode Strength'!A118 -> 265.3678143 | B118: 0 | C118: 0 | D118: 0 | E118: 0 | F118: 0 | G118: 0 | H118: 0 | I118: 0 | J118: 0 | K118: 0 | L118: 0 | M118: 0 | N118: 1
A119: ='Mode Strength'!A119 -> 268.1963071 | B119: 0 | C119: 0 | D119: 0 | E119: 0 | F119: 0 | G119: 0 | H119: 0 | I119: 0 | J119: 0 | K119: 0 | L119: 0 | M119: 0 | N119: 1
A120: ='Mode Strength'!A120 -> 268.7689698 | B120: 0 | C120: 0 | D120: 0 | E120: 0 | F120: 0 | G120: 0 | H120: 0 | I120: 0 | J120: 0 | K120: 0 | L120: 0 | M120: 0 | N120: 1
A121: ='Mode Strength'!A121 -> 269.2448154 | B121: 0 | C121: 0 | D121: 0 | E121: 0 | F121: 0 | G121: 0 | H121: 0 | I121: 0 | J121: 0 | K121: 0 | L121: 0 | M121: 0 | N121: 1
A122: ='Mode Strength'!A122 -> 269.7977602 | B122: 0 | C122: 0 | D122: 0 | E122: 0 | F122: 0 | G122: 0 | H122: 0 | I122: 0 | J122: 0 | K122: 0 | L122: 0 | M122: 0 | N122: 1
A123: ='Mode Strength'!A123 -> 271.6805636 | B123: 0 | C123: 0 | D123: 0 | E123: 0 | F123: 0 | G123: 0 | H123: 0 | I123: 0 | J123: 0 | K123: 0 | L123: 0 | M123: 0 | N123: 1
A124: ='Mode Strength'!A124 -> 271.9992016 | B124: 0 | C124: 0 | D124: 0 | E124: 0 | F124: 0 | G124: 0 | H124: 0 | I124: 0 | J124: 0 | K124: 0 | L124: 0 | M124: 0 | N124: 1
A125: ='Mode Strength'!A125 -> 272.4694059 | B125: 0 | C125: 0 | D125: 0 | E125: 0 | F125: 0 | G125: 0 | H125: 0 | I125: 0 | J125: 0 | K125: 0 | L125: 0 | M125: 0 | N125: 1
A126: ='Mode Strength'!A126 -> 273.4441366 | B126: 0 | C126: 0 | D126: 0 | E126: 0 | F126: 0 | G126: 0 | H126: 0 | I126: 0 | J126: 0 | K126: 0 | L126: 0 | M126: 0 | N126: 1
A127: ='Mode Strength'!A127 -> 273.5006352 | B127: 0 | C127: 0 | D127: 0 | E127: 0 | F127: 0 | G127: 0 | H127: 0 | I127: 0 | J127: 0 | K127: 0 | L127: 0 | M127: 0 | N127: 1
A128: ='Mode Strength'!A128 -> 273.5660606 | B128: 0 | C128: 0 | D128: 0 | E128: 0 | F128: 0 | G128: 0 | H128: 0 | I128: 0 | J128: 0 | K128: 0 | L128: 0 | M128: 0 | N128: 1
A129: ='Mode Strength'!A129 -> 273.9396148 | B129: 0 | C129: 0 | D129: 0 | E129: 0 | F129: 0 | G129: 0 | H129: 0 | I129: 0 | J129: 0 | K129: 0 | L129: 0 | M129: 0 | N129: 1
A130: ='Mode Strength'!A130 -> 274.0391874 | B130: 0 | C130: 0 | D130: 0 | E130: 0 | F130: 0 | G130: 0 | H130: 0 | I130: 0 | J130: 0 | K130: 0 | L130: 0 | M130: 0 | N130: 1
A131: ='Mode Strength'!A131 -> 276.7403044 | B131: =IF((AND($A131>=14.1,$A131<17.8)),1,0) -> 0 | C131: =IF((AND($A131>=17.8,$A131<22.4)),1,0) -> 0 | D131: =IF((AND($A131>=22.4,$A131<28.2)),1,0) -> 0 | E131: =IF((AND($A131>=28.2,$A131<35.5)),1,0) -> 0 | F131: =IF((AND($A131>=35.5,$A131<44.7)),1,0) -> 0 | G131: =IF((AND($A131>=44.7,$A131<56.2)),1,0) -> 0 | H131: =IF((AND($A131>=56.2,$A131<70.8)),1,0) -> 0 | I131: =IF((AND($A131>=70.8,$A131<89.1)),1,0) -> 0 | J131: =IF((AND($A131>=89.1,$A131<112)),1,0) -> 0 | K131: =IF((AND($A131>=112,$A131<141)),1,0) -> 0 | L131: =IF((AND($A131>=141,$A131<178)),1,0) -> 0 | M131: =IF((AND($A131>=178,$A131<224)),1,0) -> 0 | N131: =IF((AND($A131>=224,$A131<282)),1,0) -> 1
A132: ='Mode Strength'!A132 -> 276.9876348 | B132: 0 | C132: 0 | D132: 0 | E132: 0 | F132: 0 | G132: 0 | H132: 0 | I132: 0 | J132: 0 | K132: 0 | L132: 0 | M132: 0 | N132: 1
A133: ='Mode Strength'!A133 -> 277.1257244 | B133: 0 | C133: 0 | D133: 0 | E133: 0 | F133: 0 | G133: 0 | H133: 0 | I133: 0 | J133: 0 | K133: 0 | L133: 0 | M133: 0 | N133: 1
A134: ='Mode Strength'!A134 -> 278.5328348 | B134: 0 | C134: 0 | D134: 0 | E134: 0 | F134: 0 | G134: 0 | H134: 0 | I134: 0 | J134: 0 | K134: 0 | L134: 0 | M134: 0 | N134: 1
A135: ='Mode Strength'!A135 -> 280.1231093 | B135: 0 | C135: 0 | D135: 0 | E135: 0 | F135: 0 | G135: 0 | H135: 0 | I135: 0 | J135: 0 | K135: 0 | L135: 0 | M135: 0 | N135: 1
A136: ='Mode Strength'!A136 -> 280.1566133 | B136: 0 | C136: 0 | D136: 0 | E136: 0 | F136: 0 | G136: 0 | H136: 0 | I136: 0 | J136: 0 | K136: 0 | L136: 0 | M136: 0 | N136: 1
A137: ='Mode Strength'!A137 -> 281.4675564 | B137: 0 | C137: 0 | D137: 0 | E137: 0 | F137: 0 | G137: 0 | H137: 0 | I137: 0 | J137: 0 | K137: 0 | L137: 0 | M137: 0 | N137: 1
A138: ='Mode Strength'!A138 -> 281.6622158 | B138: 0 | C138: 0 | D138: 0 | E138: 0 | F138: 0 | G138: 0 | H138: 0 | I138: 0 | J138: 0 | K138: 0 | L138: 0 | M138: 0 | N138: 1
A139: ='Mode Strength'!A139 -> 281.9219693 | B139: 0 | C139: 0 | D139: 0 | E139: 0 | F139: 0 | G139: 0 | H139: 0 | I139: 0 | J139: 0 | K139: 0 | L139: 0 | M139: 0 | N139: 1
A140: ='Mode Strength'!A140 -> 282.3478562 | B140: 0 | C140: 0 | D140: 0 | E140: 0 | F140: 0 | G140: 0 | H140: 0 | I140: 0 | J140: 0 | K140: 0 | L140: 0 | M140: 0 | N140: 0
A141: ='Mode Strength'!A141 -> 282.5577436 | B141: 0 | C141: 0 | D141: 0 | E141: 0 | F141: 0 | G141: 0 | H141: 0 | I141: 0 | J141: 0 | K141: 0 | L141: 0 | M141: 0 | N141: 0
A142: ='Mode Strength'!A142 -> 285.5255927 | B142: 0 | C142: 0 | D142: 0 | E142: 0 | F142: 0 | G142: 0 | H142: 0 | I142: 0 | J142: 0 | K142: 0 | L142: 0 | M142: 0 | N142: 0
A143: ='Mode Strength'!A143 -> 285.6477429 | B143: 0 | C143: 0 | D143: 0 | E143: 0 | F143: 0 | G143: 0 | H143: 0 | I143: 0 | J143: 0 | K143: 0 | L143: 0 | M143: 0 | N143: 0
A144: ='Mode Strength'!A144 -> 286.051771 | B144: 0 | C144: 0 | D144: 0 | E144: 0 | F144: 0 | G144: 0 | H144: 0 | I144: 0 | J144: 0 | K144: 0 | L144: 0 | M144: 0 | N144: 0
A145: ='Mode Strength'!A145 -> 287.007719 | B145: 0 | C145: 0 | D145: 0 | E145: 0 | F145: 0 | G145: 0 | H145: 0 | I145: 0 | J145: 0 | K145: 0 | L145: 0 | M145: 0 | N145: 0
A146: ='Mode Strength'!A146 -> 288.9262766 | B146: 0 | C146: 0 | D146: 0 | E146: 0 | F146: 0 | G146: 0 | H146: 0 | I146: 0 | J146: 0 | K146: 0 | L146: 0 | M146: 0 | N146: 0
A147: ='Mode Strength'!A147 -> 289.0270406 | B147: 0 | C147: 0 | D147: 0 | E147: 0 | F147: 0 | G147: 0 | H147: 0 | I147: 0 | J147: 0 | K147: 0 | L147: 0 | M147: 0 | N147: 0
A148: ='Mode Strength'!A148 -> 289.3257265 | B148: 0 | C148: 0 | D148: 0 | E148: 0 | F148: 0 | G148: 0 | H148: 0 | I148: 0 | J148: 0 | K148: 0 | L148: 0 | M148: 0 | N148: 0
A149: ='Mode Strength'!A149 -> 290.0348898 | B149: 0 | C149: 0 | D149: 0 | E149: 0 | F149: 0 | G149: 0 | H149: 0 | I149: 0 | J149: 0 | K149: 0 | L149: 0 | M149: 0 | N149: 0
A150: ='Mode Strength'!A150 -> 290.7168344 | B150: 0 | C150: 0 | D150: 0 | E150: 0 | F150: 0 | G150: 0 | H150: 0 | I150: 0 | J150: 0 | K150: 0 | L150: 0 | M150: 0 | N150: 0
A151: ='Mode Strength'!A151 -> 292.5637037 | B151: 0 | C151: 0 | D151: 0 | E151: 0 | F151: 0 | G151: 0 | H151: 0 | I151: 0 | J151: 0 | K151: 0 | L151: 0 | M151: 0 | N151: 0
A152: ='Mode Strength'!A152 -> 292.8596212 | B152: 0 | C152: 0 | D152: 0 | E152: 0 | F152: 0 | G152: 0 | H152: 0 | I152: 0 | J152: 0 | K152: 0 | L152: 0 | M152: 0 | N152: 0
A153: ='Mode Strength'!A153 -> 294.1512683 | B153: 0 | C153: 0 | D153: 0 | E153: 0 | F153: 0 | G153: 0 | H153: 0 | I153: 0 | J153: 0 | K153: 0 | L153: 0 | M153: 0 | N153: 0
A154: ='Mode Strength'!A154 -> 294.9565081 | B154: 0 | C154: 0 | D154: 0 | E154: 0 | F154: 0 | G154: 0 | H154: 0 | I154: 0 | J154: 0 | K154: 0 | L154: 0 | M154: 0 | N154: 0
A155: ='Mode Strength'!A155 -> 295.7655846 | B155: 0 | C155: 0 | D155: 0 | E155: 0 | F155: 0 | G155: 0 | H155: 0 | I155: 0 | J155: 0 | K155: 0 | L155: 0 | M155: 0 | N155: 0
A156: ='Mode Strength'!A156 -> 296.0583018 | B156: 0 | C156: 0 | D156: 0 | E156: 0 | F156: 0 | G156: 0 | H156: 0 | I156: 0 | J156: 0 | K156: 0 | L156: 0 | M156: 0 | N156: 0
A157: ='Mode Strength'!A157 -> 296.5771704 | B157: 0 | C157: 0 | D157: 0 | E157: 0 | F157: 0 | G157: 0 | H157: 0 | I157: 0 | J157: 0 | K157: 0 | L157: 0 | M157: 0 | N157: 0
A158: ='Mode Strength'!A158 -> 297.0084671 | B158: 0 | C158: 0 | D158: 0 | E158: 0 | F158: 0 | G158: 0 | H158: 0 | I158: 0 | J158: 0 | K158: 0 | L158: 0 | M158: 0 | N158: 0
A159: ='Mode Strength'!A159 -> 297.1056633 | B159: 0 | C159: 0 | D159: 0 | E159: 0 | F159: 0 | G159: 0 | H159: 0 | I159: 0 | J159: 0 | K159: 0 | L159: 0 | M159: 0 | N159: 0
A160: ='Mode Strength'!A160 -> 298.5459333 | B160: 0 | C160: 0 | D160: 0 | E160: 0 | F160: 0 | G160: 0 | H160: 0 | I160: 0 | J160: 0 | K160: 0 | L160: 0 | M160: 0 | N160: 0
A161: ='Mode Strength'!A161 -> 298.6479565 | B161: 0 | C161: 0 | D161: 0 | E161: 0 | F161: 0 | G161: 0 | H161: 0 | I161: 0 | J161: 0 | K161: 0 | L161: 0 | M161: 0 | N161: 0
A162: ='Mode Strength'!A162 -> 298.9325291 | B162: 0 | C162: 0 | D162: 0 | E162: 0 | F162: 0 | G162: 0 | H162: 0 | I162: 0 | J162: 0 | K162: 0 | L162: 0 | M162: 0 | N162: 0
A163: ='Mode Strength'!A163 -> 300.4511942 | B163: 0 | C163: 0 | D163: 0 | E163: 0 | F163: 0 | G163: 0 | H163: 0 | I163: 0 | J163: 0 | K163: 0 | L163: 0 | M163: 0 | N163: 0
A164: ='Mode Strength'!A164 -> 300.9313018 | B164: 0 | C164: 0 | D164: 0 | E164: 0 | F164: 0 | G164: 0 | H164: 0 | I164: 0 | J164: 0 | K164: 0 | L164: 0 | M164: 0 | N164: 0
A165: ='Mode Strength'!A165 -> 301.270927 | B165: 0 | C165: 0 | D165: 0 | E165: 0 | F165: 0 | G165: 0 | H165: 0 | I165: 0 | J165: 0 | K165: 0 | L165: 0 | M165: 0 | N165: 0
A166: ='Mode Strength'!A166 -> 301.5583003 | B166: 0 | C166: 0 | D166: 0 | E166: 0 | F166: 0 | G166: 0 | H166: 0 | I166: 0 | J166: 0 | K166: 0 | L166: 0 | M166: 0 | N166: 0
A167: ='Mode Strength'!A167 -> 302.9723293 | B167: 0 | C167: 0 | D167: 0 | E167: 0 | F167: 0 | G167: 0 | H167: 0 | I167: 0 | J167: 0 | K167: 0 | L167: 0 | M167: 0 | N167: 0
A168: ='Mode Strength'!A168 -> 303.5698937 | B168: 0 | C168: 0 | D168: 0 | E168: 0 | F168: 0 | G168: 0 | H168: 0 | I168: 0 | J168: 0 | K168: 0 | L168: 0 | M168: 0 | N168: 0
A169: ='Mode Strength'!A169 -> 303.8161538 | B169: 0 | C169: 0 | D169: 0 | E169: 0 | F169: 0 | G169: 0 | H169: 0 | I169: 0 | J169: 0 | K169: 0 | L169: 0 | M169: 0 | N169: 0
A170: ='Mode Strength'!A170 -> 304.0450768 | B170: 0 | C170: 0 | D170: 0 | E170: 0 | F170: 0 | G170: 0 | H170: 0 | I170: 0 | J170: 0 | K170: 0 | L170: 0 | M170: 0 | N170: 0
A171: ='Mode Strength'!A171 -> 304.1708829 | B171: 0 | C171: 0 | D171: 0 | E171: 0 | F171: 0 | G171: 0 | H171: 0 | I171: 0 | J171: 0 | K171: 0 | L171: 0 | M171: 0 | N171: 0
A172: ='Mode Strength'!A172 -> 305.0003289 | B172: 0 | C172: 0 | D172: 0 | E172: 0 | F172: 0 | G172: 0 | H172: 0 | I172: 0 | J172: 0 | K172: 0 | L172: 0 | M172: 0 | N172: 0
A173: ='Mode Strength'!A173 -> 305.1697265 | B173: 0 | C173: 0 | D173: 0 | E173: 0 | F173: 0 | G173: 0 | H173: 0 | I173: 0 | J173: 0 | K173: 0 | L173: 0 | M173: 0 | N173: 0
A174: ='Mode Strength'!A174 -> 305.4534318 | B174: 0 | C174: 0 | D174: 0 | E174: 0 | F174: 0 | G174: 0 | H174: 0 | I174: 0 | J174: 0 | K174: 0 | L174: 0 | M174: 0 | N174: 0
A175: ='Mode Strength'!A175 -> 305.7976371 | B175: 0 | C175: 0 | D175: 0 | E175: 0 | F175: 0 | G175: 0 | H175: 0 | I175: 0 | J175: 0 | K175: 0 | L175: 0 | M175: 0 | N175: 0
A176: ='Mode Strength'!A176 -> 305.8415258 | B176: 0 | C176: 0 | D176: 0 | E176: 0 | F176: 0 | G176: 0 | H176: 0 | I176: 0 | J176: 0 | K176: 0 | L176: 0 | M176: 0 | N176: 0
A177: ='Mode Strength'!A177 -> 306.1903165 | B177: 0 | C177: 0 | D177: 0 | E177: 0 | F177: 0 | G177: 0 | H177: 0 | I177: 0 | J177: 0 | K177: 0 | L177: 0 | M177: 0 | N177: 0
A178: ='Mode Strength'!A178 -> 306.6774558 | B178: 0 | C178: 0 | D178: 0 | E178: 0 | F178: 0 | G178: 0 | H178: 0 | I178: 0 | J178: 0 | K178: 0 | L178: 0 | M178: 0 | N178: 0
A179: ='Mode Strength'!A179 -> 308.9361921 | B179: 0 | C179: 0 | D179: 0 | E179: 0 | F179: 0 | G179: 0 | H179: 0 | I179: 0 | J179: 0 | K179: 0 | L179: 0 | M179: 0 | N179: 0
A180: ='Mode Strength'!A180 -> 309.4580359 | B180: 0 | C180: 0 | D180: 0 | E180: 0 | F180: 0 | G180: 0 | H180: 0 | I180: 0 | J180: 0 | K180: 0 | L180: 0 | M180: 0 | N180: 0
A181: ='Mode Strength'!A181 -> 310.1255038 | B181: 0 | C181: 0 | D181: 0 | E181: 0 | F181: 0 | G181: 0 | H181: 0 | I181: 0 | J181: 0 | K181: 0 | L181: 0 | M181: 0 | N181: 0
A182: ='Mode Strength'!A182 -> 311.418777 | B182: 0 | C182: 0 | D182: 0 | E182: 0 | F182: 0 | G182: 0 | H182: 0 | I182: 0 | J182: 0 | K182: 0 | L182: 0 | M182: 0 | N182: 0
A183: ='Mode Strength'!A183 -> 312.5741512 | B183: 0 | C183: 0 | D183: 0 | E183: 0 | F183: 0 | G183: 0 | H183: 0 | I183: 0 | J183: 0 | K183: 0 | L183: 0 | M183: 0 | N183: 0
A184: ='Mode Strength'!A184 -> 312.7394464 | B184: 0 | C184: 0 | D184: 0 | E184: 0 | F184: 0 | G184: 0 | H184: 0 | I184: 0 | J184: 0 | K184: 0 | L184: 0 | M184: 0 | N184: 0
A185: ='Mode Strength'!A185 -> 313.2007179 | B185: 0 | C185: 0 | D185: 0 | E185: 0 | F185: 0 | G185: 0 | H185: 0 | I185: 0 | J185: 0 | K185: 0 | L185: 0 | M185: 0 | N185: 0
A186: ='Mode Strength'!A186 -> 313.9243154 | B186: 0 | C186: 0 | D186: 0 | E186: 0 | F186: 0 | G186: 0 | H186: 0 | I186: 0 | J186: 0 | K186: 0 | L186: 0 | M186: 0 | N186: 0
A187: ='Mode Strength'!A187 -> 314.2108547 | B187: 0 | C187: 0 | D187: 0 | E187: 0 | F187: 0 | G187: 0 | H187: 0 | I187: 0 | J187: 0 | K187: 0 | L187: 0 | M187: 0 | N187: 0
A188: ='Mode Strength'!A188 -> 314.2919956 | B188: 0 | C188: 0 | D188: 0 | E188: 0 | F188: 0 | G188: 0 | H188: 0 | I188: 0 | J188: 0 | K188: 0 | L188: 0 | M188: 0 | N188: 0
A189: ='Mode Strength'!A189 -> 315.1055086 | B189: 0 | C189: 0 | D189: 0 | E189: 0 | F189: 0 | G189: 0 | H189: 0 | I189: 0 | J189: 0 | K189: 0 | L189: 0 | M189: 0 | N189: 0
A190: ='Mode Strength'!A190 -> 316.5211902 | B190: 0 | C190: 0 | D190: 0 | E190: 0 | F190: 0 | G190: 0 | H190: 0 | I190: 0 | J190: 0 | K190: 0 | L190: 0 | M190: 0 | N190: 0
A191: ='Mode Strength'!A191 -> 316.9253466 | B191: 0 | C191: 0 | D191: 0 | E191: 0 | F191: 0 | G191: 0 | H191: 0 | I191: 0 | J191: 0 | K191: 0 | L191: 0 | M191: 0 | N191: 0
A192: ='Mode Strength'!A192 -> 319.7596403 | B192: 0 | C192: 0 | D192: 0 | E192: 0 | F192: 0 | G192: 0 | H192: 0 | I192: 0 | J192: 0 | K192: 0 | L192: 0 | M192: 0 | N192: 0
A193: ='Mode Strength'!A193 -> 320.2301728 | B193: 0 | C193: 0 | D193: 0 | E193: 0 | F193: 0 | G193: 0 | H193: 0 | I193: 0 | J193: 0 | K193: 0 | L193: 0 | M193: 0 | N193: 0
A194: ='Mode Strength'!A194 -> 320.5005469 | B194: 0 | C194: 0 | D194: 0 | E194: 0 | F194: 0 | G194: 0 | H194: 0 | I194: 0 | J194: 0 | K194: 0 | L194: 0 | M194: 0 | N194: 0
A195: ='Mode Strength'!A195 -> 320.6045761 | B195: =IF((AND($A195>=14.1,$A195<17.8)),1,0) -> 0 | C195: =IF((AND($A195>=17.8,$A195<22.4)),1,0) -> 0 | D195: =IF((AND($A195>=22.4,$A195<28.2)),1,0) -> 0 | E195: =IF((AND($A195>=28.2,$A195<35.5)),1,0) -> 0 | F195: =IF((AND($A195>=35.5,$A195<44.7)),1,0) -> 0 | G195: =IF((AND($A195>=44.7,$A195<56.2)),1,0) -> 0 | H195: =IF((AND($A195>=56.2,$A195<70.8)),1,0) -> 0 | I195: =IF((AND($A195>=70.8,$A195<89.1)),1,0) -> 0 | J195: =IF((AND($A195>=89.1,$A195<112)),1,0) -> 0 | K195: =IF((AND($A195>=112,$A195<141)),1,0) -> 0 | L195: =IF((AND($A195>=141,$A195<178)),1,0) -> 0 | M195: =IF((AND($A195>=178,$A195<224)),1,0) -> 0 | N195: =IF((AND($A195>=224,$A195<282)),1,0) -> 0
A196: ='Mode Strength'!A196 -> 322.4420582 | B196: 0 | C196: 0 | D196: 0 | E196: 0 | F196: 0 | G196: 0 | H196: 0 | I196: 0 | J196: 0 | K196: 0 | L196: 0 | M196: 0 | N196: 0
A197: ='Mode Strength'!A197 -> 322.9599327 | B197: 0 | C197: 0 | D197: 0 | E197: 0 | F197: 0 | G197: 0 | H197: 0 | I197: 0 | J197: 0 | K197: 0 | L197: 0 | M197: 0 | N197: 0
A198: ='Mode Strength'!A198 -> 323.5290629 | B198: 0 | C198: 0 | D198: 0 | E198: 0 | F198: 0 | G198: 0 | H198: 0 | I198: 0 | J198: 0 | K198: 0 | L198: 0 | M198: 0 | N198: 0
A199: ='Mode Strength'!A199 -> 323.9010047 | B199: 0 | C199: 0 | D199: 0 | E199: 0 | F199: 0 | G199: 0 | H199: 0 | I199: 0 | J199: 0 | K199: 0 | L199: 0 | M199: 0 | N199: 0
A200: ='Mode Strength'!A200 -> 324.0039421 | B200: 0 | C200: 0 | D200: 0 | E200: 0 | F200: 0 | G200: 0 | H200: 0 | I200: 0 | J200: 0 | K200: 0 | L200: 0 | M200: 0 | N200: 0
... 800 more rows

Sheet Ideal Rooms - IMPERIAL
A1: Ideal Room Dimensions for Low Frequency Mode Response
A2: In the yellow boxes - Enter the room height in Inches & the spreadsheet will automatically calculate ideal widths and depths | Y2: 2
Y3: 3
B4: Dimensions | C4: Height | D4: Width | E4: Length | H4: PHI - Golden Ratio | Y4: 5
B5: A | C5: 1 | D5: 1.14 | E5: 1.39 | F5: L. W. Sepmeyer, 1965 | H5: =((SQRT(5)+1)/2) -> 1.618033989 | Y5: 7
B6: B | C6: 1 | D6: 1.28 | E6: 1.54 | F6: L. W. Sepmeyer, 1965 | Y6: 11
B7: C | C7: 1 | D7: 1.6 | E7: 2.33 | F7: L. W. Sepmeyer, 1965 | Y7: 13
B8: D | C8: 1 | D8: 1.4 | E8: 1.9 | F8: M. M. Louden, 1971 | Y8: 17
B9: E | C9: 1 | D9: 1.3 | E9: 1.9 | F9: M. M. Louden, 1971 | Y9: 19
B10: F | C10: 1 | D10: 1.5 | E10: 2.1 | F10: M. M. Louden, 1971 | Y10: 23
B11: G | C11: 1 | D11: 1.5 | E11: 2.5 | F11: Richard H. Bolt, 1946 | Y11: 29
B12: H | C12: 1 | D12: 1.26 | E12: 1.59 | F12: Richard H. Bolt, 1946 | Y12: 31
B13: I | C13: 1 | D13: 1.96 | E13: 2.59 | F13: IEC 60268-13, 1998 | Y13: 37
B14: J | C14: 1 | D14: 1.62 | E14: 2.62 | F14: The Golden Ratio, 1968 | Y14: 41
B15: K | C15: 1 | D15: 1.49 | E15: 2.31 | F15: Dolby Lab Recomendations | M15: Sonic Behavior Characteristics | Y15: 43
B16: L | C16: 1 | D16: 1.07 | E16: 1.87 | F16: Worst ratio (RPG Inc.) | L16: Wave Region | M16: Transitional region from F² to F³ | O16: Ray Region | Y16: 47
Y17: 53
B18: IT IS HIGHLY RECOMMENDED TO ALWAYS USE PRIME NUMBERS | Y18: 59
Y19: 61
C20: If you found this spreadsheet helpful, please send a donation via PayPal to https://www.paypal.me/JHBrandt/ | Y20: 67
K21: Imperial- Ft/In. | L21: 1500 | N21: Useable YES | O21: Useable NO | Y21: 71
N22: 1 | O22: 0 | T22: Floor area calculations based on L & W and then H & L | Y22: 73
Y23: 79
A24: **Note: you can change the numbers in the yellow blocks and all the other ratios will change too! | Q24: USING PRIMES | T24: Prime | U24: Prime exchange height for width | Y24: 83
A25: HEIGHT ft | B25: HEIGHT " | C25: PRIME height | D25: WIDTH " | E25: PRIME width | F25: DEPTH " | G25: PRIME depth | H25: VOLUME | I25: PRIME volume | J25: TABLE | K25: USEABLE 1=Yes 0=NO | L25: F¹ | M25: F² | N25: F³ | O25: minimum RT60 | P25: F¹ | Q25: F² | R25: F³ | S25: minimum RT60 | T25: Square Feet | U25: Square Feet | Y25: 89
A26: =B26/12 -> 8 | B26: 96 | C26: =INDEX($Y$2:$Y$276,MATCH(MIN(ABS($Y$2:$Y$276-B26)),ABS($Y$2:$Y$276-B26),0)) -> 97 | D26: =B26*$D$5 -> 109.44 | E26: =INDEX($Y$2:$Y$276,MATCH(MIN(ABS($Y$2:$Y$276-D26)),ABS($Y$2:$Y$276-D26),0)) -> 109 | F26: =B26*$E$5 -> 133.44 | G26: =INDEX($Y$2:$Y$276,MATCH(MIN(ABS($Y$2:$Y$276-F26)),ABS($Y$2:$Y$276-F26),0)) -> 131 | H26: =(B26/12)*(D26/12)*(F26/12) -> 811.3152 | I26: =(C26/12)*(E26/12)*(G26/12) -> 801.541088 | J26: A | K26: =IF(H26>$L$21,$N$22,$O$22) -> 0 | L26: =565/(F26/12) -> 50.80935252 | M26: =(SQRT(O26/H26)*11250) -> 154.5492152 | N26: =4*M26 -> 618.1968606 | O26: =0.25*(((0.028316846592*H26)/100)^(1/3)) -> 0.153115154 | P26: =565/(G26/12) -> 51.75572519 | Q26: =(SQRT(S26/I26)*11250) -> 155.1748776 | R26: =4*Q26 -> 620.6995105 | S26: =0.25*(((0.028316846592*I26)/100)^(1/3)) -> 0.1524977963 | T26: =(E26/12)*(G26/12) -> 99.15972222 | U26: =(C26/12)*(G26/12) -> 88.24305556 | Y26: 97
A27: 8.5 | B27: 102 | C27: =INDEX($Y$2:$Y$276,MATCH(MIN(ABS($Y$2:$Y$276-B27)),ABS($Y$2:$Y$276-B27),0)) -> 101 | D27: 116.28 | E27: =INDEX($Y$2:$Y$276,MATCH(MIN(ABS($Y$2:$Y$276-D27)),ABS($Y$2:$Y$276-D27),0)) -> 113 | F27: 141.78 | G27: =INDEX($Y$2:$Y$276,MATCH(MIN(ABS($Y$2:$Y$276-F27)),ABS($Y$2:$Y$276-F27),0)) -> 139 | H27: 973.142475 | I27: =(C27/12)*(E27/12)*(G27/12) -> 918.0596065 | J27: A | K27: 0 | L27: 47.82056708 | M27: 145.4580848 | N27: =4*M27 -> 581.8323394 | O27: 0.1626848511 | P27: =565/(G27/12) -> 48.77697842 | Q27: =(SQRT(S27/I27)*11250) -> 148.3108925 | R27: =4*Q27 -> 593.2435699 | S27: =0.25*(((0.028316846592*I27)/100)^(1/3)) -> 0.1595555558 | T27: =(E27/12)*(G27/12) -> 109.0763889 | U27: =(C27/12)*(G27/12) -> 97.49305556 | Y27: 101
A28: 9 | B28: 108 | C28: =INDEX($Y$2:$Y$276,MATCH(MIN(ABS($Y$2:$Y$276-B28)),ABS($Y$2:$Y$276-B28),0)) -> 107 | D28: 123.12 | E28: =INDEX($Y$2:$Y$276,MATCH(MIN(ABS($Y$2:$Y$276-D28)),ABS($Y$2:$Y$276-D28),0)) -> 127 | F28: 150.12 | G28: =INDEX($Y$2:$Y$276,MATCH(MIN(ABS($Y$2:$Y$276-F28)),ABS($Y$2:$Y$276-F28),0)) -> 151 | H28: 1155.1734 | I28: 1187.464699 | J28: A | K28: 0 | L28: 45.1638689 | M28: 137.3770801 | N28: 549.5083205 | O28: 0.1722545483 | P28: 44.90066225 | Q28: 136.1203652 | R28: 544.4814607 | S28: 0.1738448677 | T28: 133.1736111 | U28: 112.2013889 | Y28: 103
A29: 9.5 | B29: 114 | C29: =INDEX($Y$2:$Y$276,MATCH(MIN(ABS($Y$2:$Y$276-B29)),ABS($Y$2:$Y$276-B29),0)) -> 113 | D29: 129.96 | E29: =INDEX($Y$2:$Y$276,MATCH(MIN(ABS($Y$2:$Y$276-D29)),ABS($Y$2:$Y$276-D29),0)) -> 131 | F29: 158.46 | G29: =INDEX($Y$2:$Y$276,MATCH(MIN(ABS($Y$2:$Y$276-F29)),ABS($Y$2:$Y$276-F29),0)) -> 157 | H29: 1358.596425 | I29: 1344.948495 | J29: A | K29: 0 | L29: 42.78682317 | M29: 130.1467075 | N29: 520.58683 | O29: 0.1818242454 | P29: 43.18471338 | Q29: 130.5854501 | R29: 522.3418004 | S29: 0.18121335 | T29: 142.8263889 | U29: 123.2013889 | Y29: 107
A30: 10 | B30: 120 | C30: =INDEX($Y$2:$Y$276,MATCH(MIN(ABS($Y$2:$Y$276-B30)),ABS($Y$2:$Y$276-B30),0)) -> 113 | D30: 136.8 | E30: =INDEX($Y$2:$Y$276,MATCH(MIN(ABS($Y$2:$Y$276-D30)),ABS($Y$2:$Y$276-D30),0)) -> 137 | F30: 166.8 | G30: =INDEX($Y$2:$Y$276,MATCH(MIN(ABS($Y$2:$Y$276-F30)),ABS($Y$2:$Y$276-F30),0)) -> 167 | H30: 1584.6 | I30: 1496.13831 | J30: A | K30: 1 | L30: 40.64748201 | M30: 123.6393721 | N30: 494.5574885 | O30: 0.1913939425 | P30: 40.5988024 | Q30: 126.0296587 | R30: 504.1186349 | S30: 0.1877639527 | T30: 158.8819444 | U30: 131.0486111 | Y30: 109
A31: 10.5 | B31: 126 | C31: =INDEX($Y$2:$Y$276,MATCH(MIN(ABS($Y$2:$Y$276-B31)),ABS($Y$2:$Y$276-B31),0)) -> 127 | D31: 143.64 | E31: =INDEX($Y$2:$Y$276,MATCH(MIN(ABS($Y$2:$Y$276-D31)),ABS($Y$2:$Y$276-D31),0)) -> 139 | F31: 175.14 | G31: =INDEX($Y$2:$Y$276,MATCH(MIN(ABS($Y$2:$Y$276-F31)),ABS($Y$2:$Y$276-F31),0)) -> 173 | H31: 1834.372575 | I31: 1767.343171 | J31: A | K31: 1 | L31: 38.71188763 | M31: 117.751783 | N31: 471.0071319 | O31: 0.2009636396 | P31: 39.19075145 | Q31: 119.2219935 | R31: 476.887974 | S31: 0.1984854152 | T31: 166.9930556 | U31: 152.5763889 | Y31: 113
A32: 11 | B32: 132 | C32: =INDEX($Y$2:$Y$276,MATCH(MIN(ABS($Y$2:$Y$276-B32)),ABS($Y$2:$Y$276-B32),0)) -> 131 | D32: 150.48 | E32: =INDEX($Y$2:$Y$276,MATCH(MIN(ABS($Y$2:$Y$276-D32)),ABS($Y$2:$Y$276-D32),0)) -> 151 | F32: 183.48 | G32: =INDEX($Y$2:$Y$276,MATCH(MIN(ABS($Y$2:$Y$276-F32)),ABS($Y$2:$Y$276-F32),0)) -> 181 | H32: 2109.1026 | I32: 2071.968171 | J32: A | K32: 1 | L32: 36.95225638 | M32: 112.3994292 | N32: 449.5977168 | O32: 0.2105333368 | P32: 37.45856354 | Q32: 113.0669425 | R32: 452.2677699 | S32: 0.2092904112 | T32: 189.7986111 | U32: 164.6597222 | Y32: 127
A33: 11.5 | B33: 138 | C33: =INDEX($Y$2:$Y$276,MATCH(MIN(ABS($Y$2:$Y$276-B33)),ABS($Y$2:$Y$276-B33),0)) -> 137 | D33: 157.32 | E33: =INDEX($Y$2:$Y$276,MATCH(MIN(ABS($Y$2:$Y$276-D33)),ABS($Y$2:$Y$276-D33),0)) -> 157 | F33: 191.82 | G33: =INDEX($Y$2:$Y$276,MATCH(MIN(ABS($Y$2:$Y$276-F33)),ABS($Y$2:$Y$276-F33),0)) -> 191 | H33: 2409.978525 | I33: 2377.441551 | J33: A | K33: 1 | L33: 35.34563653 | M33: 107.5124975 | N33: 430.04999 | O33: 0.2201030339 | P33: 35.4973822 | Q33: 108.0007385 | R33: 432.0029541 | S33: 0.2191080099 | T33: 208.2430556 | U33: 181.7152778 | Y33: 131
A34: 12 | B34: 144 | C34: =INDEX($Y$2:$Y$276,MATCH(MIN(ABS($Y$2:$Y$276-B34)),ABS($Y$2:$Y$276-B34),0)) -> 139 | D34: 164.16 | E34: =INDEX($Y$2:$Y$276,MATCH(MIN(ABS($Y$2:$Y$276-D34)),ABS($Y$2:$Y$276-D34),0)) -> 163 | F34: 200.16 | G34: =INDEX($Y$2:$Y$276,MATCH(MIN(ABS($Y$2:$Y$276-F34)),ABS($Y$2:$Y$276-F34),0)) -> 199 | H34: 2738.1888 | I34: 2609.226273 | J34: A | K34: 1 | L34: 33.87290168 | M34: 103.0328101 | N34: 412.1312404 | O34: 0.229672731 | P34: 34.07035176 | Q34: 104.7030727 | R34: 418.8122909 | S34: 0.2260089056 | T34: 225.2569444 | U34: 192.0902778 | Y34: 137
A35: 12.5 | B35: 150 | C35: =INDEX($Y$2:$Y$276,MATCH(MIN(ABS($Y$2:$Y$276-B35)),ABS($Y$2:$Y$276-B35),0)) -> 149 | D35: 171 | E35: =INDEX($Y$2:$Y$276,MATCH(MIN(ABS($Y$2:$Y$276-D35)),ABS($Y$2:$Y$276-D35),0)) -> 173 | F35: 208.5 | G35: =INDEX($Y$2:$Y$276,MATCH(MIN(ABS($Y$2:$Y$276-F35)),ABS($Y$2:$Y$276-F35),0)) -> 211 | H35: 3094.921875 | I35: 3147.538773 | J35: A | K35: 1 | L35: 32.51798561 | M35: 98.9114977 | N35: 395.6459908 | O35: 0.2392424281 | P35: 32.13270142 | Q35: 98.3572351 | R35: 393.4289404 | S35: 0.2405906068 | T35: 253.4930556 | U35: 218.3263889 | Y35: 139
A36: 13 | B36: 156 | C36: =INDEX($Y$2:$Y$276,MATCH(MIN(ABS($Y$2:$Y$276-B36)),ABS($Y$2:$Y$276-B36),0)) -> 157 | D36: 177.84 | E36: =INDEX($Y$2:$Y$276,MATCH(MIN(ABS($Y$2:$Y$276-D36)),ABS($Y$2:$Y$276-D36),0)) -> 179 | F36: 216.84 | G36: =INDEX($Y$2:$Y$276,MATCH(MIN(ABS($Y$2:$Y$276-F36)),ABS($Y$2:$Y$276-F36),0)) -> 211 | H36: 3481.3662 | I36: 3431.558449 | J36: A | K36: 1 | L36: 31.26729386 | M36: 95.10720932 | N36: 380.4288373 | O36: 0.2488121253 | P36: 32.13270142 | Q36: 95.565149 | R36: 382.260596 | S36: 0.2476198397 | T36: 262.2847222 | U36: 230.0486111 | Y36: 149
A37: 13.5 | B37: 162 | C37: =INDEX($Y$2:$Y$276,MATCH(MIN(ABS($Y$2:$Y$276-B37)),ABS($Y$2:$Y$276-B37),0)) -> 163 | D37: 184.68 | E37: =INDEX($Y$2:$Y$276,MATCH(MIN(ABS($Y$2:$Y$276-D37)),ABS($Y$2:$Y$276-D37),0)) -> 181 | F37: 225.18 | G37: =INDEX($Y$2:$Y$276,MATCH(MIN(ABS($Y$2:$Y$276-F37)),ABS($Y$2:$Y$276-F37),0)) -> 227 | H37: 3898.710225 | I37: 3875.683449 | J37: A | K37: 1 | L37: 30.10924594 | M37: 91.58472009 | N37: 366.3388804 | O37: 0.2583818224 | P37: 29.86784141 | Q37: 91.76574089 | R37: 367.0629636 | S37: 0.257872128 | T37: 285.3263889 | U37: 256.9513889 | Y37: 151
A38: 14 | B38: 168 | C38: =INDEX($Y$2:$Y$276,MATCH(MIN(ABS($Y$2:$Y$276-B38)),ABS($Y$2:$Y$276-B38),0)) -> 167 | D38: 191.52 | E38: =INDEX($Y$2:$Y$276,MATCH(MIN(ABS($Y$2:$Y$276-D38)),ABS($Y$2:$Y$276-D38),0)) -> 191 | F38: 233.52 | G38: =INDEX($Y$2:$Y$276,MATCH(MIN(ABS($Y$2:$Y$276-F38)),ABS($Y$2:$Y$276-F38),0)) -> 233 | H38: 4348.1424 | I38: 4300.926505 | J38: A | K38: 1 | L38: 29.03391572 | M38: 88.31383723 | N38: 353.2553489 | O38: 0.2679515195 | P38: 29.09871245 | Q38: 88.63583378 | R38: 354.5433351 | S38: 0.2669781044 | T38: 309.0486111 | U38: 270.2152778 | Y38: 157
A39: 14.5 | B39: 174 | C39: =INDEX($Y$2:$Y$276,MATCH(MIN(ABS($Y$2:$Y$276-B39)),ABS($Y$2:$Y$276-B39),0)) -> 173 | D39: 198.36 | E39: =INDEX($Y$2:$Y$276,MATCH(MIN(ABS($Y$2:$Y$276-D39)),ABS($Y$2:$Y$276-D39),0)) -> 199 | F39: 241.86 | G39: =INDEX($Y$2:$Y$276,MATCH(MIN(ABS($Y$2:$Y$276-F39)),ABS($Y$2:$Y$276-F39),0)) -> 241 | H39: 4830.851175 | I39: 4801.45081 | J39: A | K39: 1 | L39: 28.03274622 | M39: 85.2685325 | N39: 341.07413 | O39: 0.2775212166 | P39: 28.13278008 | Q39: 85.44221795 | R39: 341.7688718 | S39: 0.2769570763 | T39: 333.0486111 | U39: 289.5347222 | Y39: 163
A40: HEIGHT ft | B40: HEIGHT " | C40: PRIME height | D40: WIDTH " | E40: PRIME width | F40: DEPTH " | G40: PRIME depth | H40: VOLUME | I40: PRIME volume | J40: TABLE | K40: USEABLE 1=Yes 0=NO | L40: F¹ | M40: F² | N40: F³ | O40: minimum RT60 | P40: F¹ | Q40: F² | R40: F³ | S40: minimum RT60 | T40: Square Feet | U40: Square Feet | Y40: 167
A41: =B41/12 -> 8 | B41: =B26 -> 96 | C41: =INDEX($Y$2:$Y$276,MATCH(MIN(ABS($Y$2:$Y$276-B41)),ABS($Y$2:$Y$276-B41),0)) -> 97 | D41: =B41*$D$6 -> 122.88 | E41: =INDEX($Y$2:$Y$276,MATCH(MIN(ABS($Y$2:$Y$276-D41)),ABS($Y$2:$Y$276-D41),0)) -> 127 | F41: =B41*$E$6 -> 147.84 | G41: =INDEX($Y$2:$Y$276,MATCH(MIN(ABS($Y$2:$Y$276-F41)),ABS($Y$2:$Y$276-F41),0)) -> 149 | H41: =(B41/12)*(D41/12)*(F41/12) -> 1009.2544 | I41: =(C41/12)*(E41/12)*(G41/12) -> 1062.228588 | J41: B | K41: =IF(H41>$L$21,$N$22,$O$22) -> 0 | L41: =565/(F41/12) -> 45.86038961 | M41: =(SQRT(O41/H41)*11250) -> 143.7021032 | N41: 574.8084126 | O41: =0.25*(((0.028316846592*H41)/100)^(1/3)) -> 0.1646727944 | P41: =565/(G41/12) -> 45.5033557 | Q41: =(SQRT(S41/I41)*11250) -> 141.2724075 | R41: =4*Q41 -> 565.08963 | S41: =0.25*(((0.028316846592*I41)/100)^(1/3)) -> 0.1675049452 | T41: 131.4097222 | U41: 100.3680556 | Y41: 173
A42: 8.5 | B42: 102 | C42: =INDEX($Y$2:$Y$276,MATCH(MIN(ABS($Y$2:$Y$276-B42)),ABS($Y$2:$Y$276-B42),0)) -> 101 | D42: 130.56 | E42: =INDEX($Y$2:$Y$276,MATCH(MIN(ABS($Y$2:$Y$276-D42)),ABS($Y$2:$Y$276-D42),0)) -> 131 | F42: 157.08 | G42: =INDEX($Y$2:$Y$276,MATCH(MIN(ABS($Y$2:$Y$276-F42)),ABS($Y$2:$Y$276-F42),0)) -> 157 | H42: 1210.5632 | I42: =(C42/12)*(E42/12)*(G42/12) -> 1202.122106 | J42: B | K42: 0 | L42: 43.16271963 | M42: 135.2490383 | N42: 540.996153 | O42: 0.174964844 | P42: =565/(G42/12) -> 43.18471338 | Q42: =(SQRT(S42/I42)*11250) -> 135.5648653 | R42: =4*Q42 -> 542.2594612 | S42: =0.25*(((0.028316846592*I42)/100)^(1/3)) -> 0.1745572264 | T42: 142.8263889 | U42: 110.1180556 | Y42: 179
A43: 9 | B43: 108 | C43: =INDEX($Y$2:$Y$276,MATCH(MIN(ABS($Y$2:$Y$276-B43)),ABS($Y$2:$Y$276-B43),0)) -> 107 | D43: 138.24 | E43: =INDEX($Y$2:$Y$276,MATCH(MIN(ABS($Y$2:$Y$276-D43)),ABS($Y$2:$Y$276-D43),0)) -> 139 | F43: 166.32 | G43: =INDEX($Y$2:$Y$276,MATCH(MIN(ABS($Y$2:$Y$276-F43)),ABS($Y$2:$Y$276-F43),0)) -> 167 | H43: 1437.0048 | I43: 1437.379051 | J43: B | K43: 0 | L43: 40.76479076 | M43: 127.7352028 | N43: 510.9408112 | O43: 0.1852568936 | P43: 40.5988024 | Q43: 127.7241157 | R43: 510.8964627 | S43: 0.1852729749 | T43: 161.2013889 | U43: 124.0902778 | Y43: 181
A44: 9.5 | B44: 114 | C44: =INDEX($Y$2:$Y$276,MATCH(MIN(ABS($Y$2:$Y$276-B44)),ABS($Y$2:$Y$276-B44),0)) -> 113 | D44: 145.92 | E44: =INDEX($Y$2:$Y$276,MATCH(MIN(ABS($Y$2:$Y$276-D44)),ABS($Y$2:$Y$276-D44),0)) -> 149 | F44: 175.56 | G44: =INDEX($Y$2:$Y$276,MATCH(MIN(ABS($Y$2:$Y$276-F44)),ABS($Y$2:$Y$276-F44),0)) -> 173 | H44: 1690.0576 | I44: 1685.648727 | J44: B | K44: 1 | L44: 38.61927546 | M44: 121.0122974 | N44: 484.0491896 | O44: 0.1955489433 | P44: 39.19075145 | Q44: 121.1177095 | R44: 484.470838 | S44: 0.1953787516 | T44: 179.0069444 | U44: 135.7569444 | Y44: 191
A45: 10 | B45: 120 | C45: =INDEX($Y$2:$Y$276,MATCH(MIN(ABS($Y$2:$Y$276-B45)),ABS($Y$2:$Y$276-B45),0)) -> 113 | D45: 153.6 | E45: =INDEX($Y$2:$Y$276,MATCH(MIN(ABS($Y$2:$Y$276-D45)),ABS($Y$2:$Y$276-D45),0)) -> 151 | F45: 184.8 | G45: =INDEX($Y$2:$Y$276,MATCH(MIN(ABS($Y$2:$Y$276-F45)),ABS($Y$2:$Y$276-F45),0)) -> 181 | H45: 1971.2 | I45: 1787.270255 | J45: B | K45: 1 | L45: 36.68831169 | M45: 114.9616825 | N45: 459.8467301 | O45: 0.2058409929 | P45: 37.45856354 | Q45: 118.7772499 | R45: 475.1089996 | S45: 0.1992286141 | T45: 189.7986111 | U45: 142.0347222 | Y45: 193
A46: 10.5 | B46: 126 | C46: =INDEX($Y$2:$Y$276,MATCH(MIN(ABS($Y$2:$Y$276-B46)),ABS($Y$2:$Y$276-B46),0)) -> 127 | D46: 161.28 | E46: =INDEX($Y$2:$Y$276,MATCH(MIN(ABS($Y$2:$Y$276-D46)),ABS($Y$2:$Y$276-D46),0)) -> 163 | F46: 194.04 | G46: =INDEX($Y$2:$Y$276,MATCH(MIN(ABS($Y$2:$Y$276-F46)),ABS($Y$2:$Y$276-F46),0)) -> 193 | H46: 2281.9104 | I46: 2312.090856 | J46: B | K46: 1 | L46: 34.94124923 | M46: 109.4873167 | N46: 437.9492667 | O46: 0.2161330426 | P46: 35.12953368 | Q46: 109.0088378 | R46: 436.0353511 | S46: 0.2170817281 | T46: 218.4652778 | U46: 170.2152778 | Y46: 197
A47: 11 | B47: 132 | C47: =INDEX($Y$2:$Y$276,MATCH(MIN(ABS($Y$2:$Y$276-B47)),ABS($Y$2:$Y$276-B47),0)) -> 131 | D47: 168.96 | E47: =INDEX($Y$2:$Y$276,MATCH(MIN(ABS($Y$2:$Y$276-D47)),ABS($Y$2:$Y$276-D47),0)) -> 167 | F47: 203.28 | G47: =INDEX($Y$2:$Y$276,MATCH(MIN(ABS($Y$2:$Y$276-F47)),ABS($Y$2:$Y$276-F47),0)) -> 199 | H47: 2623.6672 | I47: 2519.399884 | J47: B | K47: 1 | L47: 33.35301063 | M47: 104.5106205 | N47: 418.0424819 | O47: 0.2264250922 | P47: 34.07035176 | Q47: 105.9329272 | R47: 423.7317088 | S47: 0.2233849994 | T47: 230.7847222 | U47: 181.0347222 | Y47: 199
A48: 11.5 | B48: 138 | C48: =INDEX($Y$2:$Y$276,MATCH(MIN(ABS($Y$2:$Y$276-B48)),ABS($Y$2:$Y$276-B48),0)) -> 137 | D48: 176.64 | E48: =INDEX($Y$2:$Y$276,MATCH(MIN(ABS($Y$2:$Y$276-D48)),ABS($Y$2:$Y$276-D48),0)) -> 179 | F48: 212.52 | G48: =INDEX($Y$2:$Y$276,MATCH(MIN(ABS($Y$2:$Y$276-F48)),ABS($Y$2:$Y$276-F48),0)) -> 211 | H48: 2997.9488 | I48: 2994.417245 | J48: B | K48: 1 | L48: 31.90287973 | M48: 99.96668045 | N48: 399.8667218 | O48: 0.2367171419 | P48: 32.13270142 | Q48: 100.0059646 | R48: 400.0238583 | S48: 0.2366241552 | T48: 262.2847222 | U48: 200.7430556 | Y48: 211
A49: 12 | B49: 144 | C49: =INDEX($Y$2:$Y$276,MATCH(MIN(ABS($Y$2:$Y$276-B49)),ABS($Y$2:$Y$276-B49),0)) -> 139 | D49: 184.32 | E49: =INDEX($Y$2:$Y$276,MATCH(MIN(ABS($Y$2:$Y$276-D49)),ABS($Y$2:$Y$276-D49),0)) -> 181 | F49: 221.76 | G49: =INDEX($Y$2:$Y$276,MATCH(MIN(ABS($Y$2:$Y$276-F49)),ABS($Y$2:$Y$276-F49),0)) -> 223 | H49: 3406.2336 | I49: 3246.792245 | J49: B | K49: 1 | L49: 30.57359307 | M49: 95.8014021 | N49: 383.2056084 | O49: 0.2470091915 | P49: 30.40358744 | Q49: 97.34459474 | R49: 389.378379 | S49: 0.2430933833 | T49: 280.2986111 | U49: 215.2569444 | Y49: 223
A50: 12.5 | B50: 150 | C50: =INDEX($Y$2:$Y$276,MATCH(MIN(ABS($Y$2:$Y$276-B50)),ABS($Y$2:$Y$276-B50),0)) -> 149 | D50: 192 | E50: =INDEX($Y$2:$Y$276,MATCH(MIN(ABS($Y$2:$Y$276-D50)),ABS($Y$2:$Y$276-D50),0)) -> 191 | F50: 231 | G50: =INDEX($Y$2:$Y$276,MATCH(MIN(ABS($Y$2:$Y$276-F50)),ABS($Y$2:$Y$276-F50),0)) -> 229 | H50: 3850 | I50: 3771.476273 | J50: B | K50: 1 | L50: 29.35064935 | M50: 91.96934602 | N50: 367.8773841 | O50: 0.2573012412 | P50: 29.6069869 | Q50: 92.60324699 | R50: 370.412988 | S50: 0.255539926 | T50: 303.7430556 | U50: 236.9513889 | Y50: 227
A51: 13 | B51: 156 | C51: =INDEX($Y$2:$Y$276,MATCH(MIN(ABS($Y$2:$Y$276-B51)),ABS($Y$2:$Y$276-B51),0)) -> 157 | D51: 199.68 | E51: =INDEX($Y$2:$Y$276,MATCH(MIN(ABS($Y$2:$Y$276-D51)),ABS($Y$2:$Y$276-D51),0)) -> 199 | F51: 240.24 | G51: =INDEX($Y$2:$Y$276,MATCH(MIN(ABS($Y$2:$Y$276-F51)),ABS($Y$2:$Y$276-F51),0)) -> 241 | H51: 4330.7264 | I51: 4357.385995 | J51: B | K51: 1 | L51: 28.22177822 | M51: 88.43206348 | N51: 353.7282539 | O51: 0.2675932908 | P51: 28.13278008 | Q51: 88.25134446 | R51: 353.0053779 | S51: 0.268141262 | T51: 333.0486111 | U51: 262.7569444 | Y51: 229
A52: 13.5 | B52: 162 | C52: =INDEX($Y$2:$Y$276,MATCH(MIN(ABS($Y$2:$Y$276-B52)),ABS($Y$2:$Y$276-B52),0)) -> 163 | D52: 207.36 | E52: =INDEX($Y$2:$Y$276,MATCH(MIN(ABS($Y$2:$Y$276-D52)),ABS($Y$2:$Y$276-D52),0)) -> 211 | F52: 249.48 | G52: =INDEX($Y$2:$Y$276,MATCH(MIN(ABS($Y$2:$Y$276-F52)),ABS($Y$2:$Y$276-F52),0)) -> 251 | H52: 4849.8912 | I52: 4995.742477 | J52: B | K52: 1 | L52: 27.17652718 | M52: 85.15680187 | N52: 340.6272075 | O52: 0.2778853405 | P52: 27.01195219 | Q52: 84.31988271 | R52: 337.2795308 | S52: 0.2806434985 | T52: 367.7847222 | U52: 284.1180556 | Y52: 233
A53: 14 | B53: 168 | C53: =INDEX($Y$2:$Y$276,MATCH(MIN(ABS($Y$2:$Y$276-B53)),ABS($Y$2:$Y$276-B53),0)) -> 167 | D53: 215.04 | E53: =INDEX($Y$2:$Y$276,MATCH(MIN(ABS($Y$2:$Y$276-D53)),ABS($Y$2:$Y$276-D53),0)) -> 211 | F53: 258.72 | G53: =INDEX($Y$2:$Y$276,MATCH(MIN(ABS($Y$2:$Y$276-F53)),ABS($Y$2:$Y$276-F53),0)) -> 257 | H53: 5408.9728 | I53: 5240.688079 | J53: B | K53: 1 | L53: 26.20593692 | M53: 82.11548752 | N53: 328.4619501 | O53: 0.2881773901 | P53: 26.38132296 | Q53: 82.98518584 | R53: 331.9407434 | S53: 0.2851572439 | T53: 376.5763889 | U53: 298.0486111 | Y53: 239
A54: 14.5 | B54: 174 | C54: =INDEX($Y$2:$Y$276,MATCH(MIN(ABS($Y$2:$Y$276-B54)),ABS($Y$2:$Y$276-B54),0)) -> 173 | D54: 222.72 | E54: =INDEX($Y$2:$Y$276,MATCH(MIN(ABS($Y$2:$Y$276-D54)),ABS($Y$2:$Y$276-D54),0)) -> 223 | F54: 267.96 | G54: =INDEX($Y$2:$Y$276,MATCH(MIN(ABS($Y$2:$Y$276-F54)),ABS($Y$2:$Y$276-F54),0)) -> 269 | H54: 6009.4496 | I54: 6005.64294 | J54: B | K54: 1 | L54: 25.30228392 | M54: 79.28391898 | N54: 317.1356759 | O54: 0.2984694398 | P54: 25.20446097 | Q54: 79.30066674 | R54: 317.202667 | S54: 0.2984064051 | T54: 416.5763889 | U54: 323.1736111 | Y54: 241
A55: HEIGHT ft | B55: HEIGHT " | C55: PRIME height | D55: WIDTH " | E55: PRIME width | F55: DEPTH " | G55: PRIME depth | H55: VOLUME | I55: PRIME volume | J55: TABLE | K55: USEABLE 1=Yes 0=NO | L55: F¹ | M55: F² | N55: F³ | O55: minimum RT60 | P55: F¹ | Q55: F² | R55: F³ | S55: minimum RT60 | T55: Square Feet | U55: Square Feet | Y55: 251
A56: =B56/12 -> 8 | B56: =B41 -> 96 | C56: =INDEX($Y$2:$Y$276,MATCH(MIN(ABS($Y$2:$Y$276-B56)),ABS($Y$2:$Y$276-B56),0)) -> 97 | D56: =B56*$D$7 -> 153.6 | E56: =INDEX($Y$2:$Y$276,MATCH(MIN(ABS($Y$2:$Y$276-D56)),ABS($Y$2:$Y$276-D56),0)) -> 151 | F56: =B56*$E$7 -> 223.68 | G56: =INDEX($Y$2:$Y$276,MATCH(MIN(ABS($Y$2:$Y$276-F56)),ABS($Y$2:$Y$276-F56),0)) -> 223 | H56: =(B56/12)*(D56/12)*(F56/12) -> 1908.736 | I56: =(C56/12)*(E56/12)*(G56/12) -> 1890.208912 | J56: C | K56: =IF(H56>$L$21,$N$22,$O$22) -> 1 | L56: =565/(F56/12) -> 30.3111588 | M56: =(SQRT(O56/H56)*11250) -> 116.2022989 | N56: 464.8091954 | O56: =0.25*(((0.028316846592*H56)/100)^(1/3)) -> 0.2036433626 | P56: =565/(G56/12) -> 30.40358744 | Q56: =(SQRT(S56/I56)*11250) -> 116.5807216 | R56: =4*Q56 -> 466.3228866 | S56: =0.25*(((0.028316846592*I56)/100)^(1/3)) -> 0.2029823332 | T56: 233.8402778 | U56: =(C56/12)*(G56/12) -> 150.2152778 | Y56: 257
A57: 8.5 | B57: 102 | C57: =INDEX($Y$2:$Y$276,MATCH(MIN(ABS($Y$2:$Y$276-B57)),ABS($Y$2:$Y$276-B57),0)) -> 101 | D57: 163.2 | E57: =INDEX($Y$2:$Y$276,MATCH(MIN(ABS($Y$2:$Y$276-D57)),ABS($Y$2:$Y$276-D57),0)) -> 163 | F57: 237.66 | G57: =INDEX($Y$2:$Y$276,MATCH(MIN(ABS($Y$2:$Y$276-F57)),ABS($Y$2:$Y$276-F57),0)) -> 239 | H57: 2289.458 | I57: =(C57/12)*(E57/12)*(G57/12) -> 2277.000579 | J57: C | K57: 1 | L57: 28.52814946 | M57: 109.3668695 | N57: 437.4674781 | O57: 0.2163710728 | P57: =565/(G57/12) -> 28.36820084 | Q57: =(SQRT(S57/I57)*11250) -> 109.5659548 | R57: =4*Q57 -> 438.2638193 | S57: =0.25*(((0.028316846592*I57)/100)^(1/3)) -> 0.2159779187 | T57: 270.5347222 | U57: 167.6319444 | Y57: 263
A58: 9 | B58: 108 | C58: =INDEX($Y$2:$Y$276,MATCH(MIN(ABS($Y$2:$Y$276-B58)),ABS($Y$2:$Y$276-B58),0)) -> 107 | D58: 172.8 | E58: =INDEX($Y$2:$Y$276,MATCH(MIN(ABS($Y$2:$Y$276-D58)),ABS($Y$2:$Y$276-D58),0)) -> 173 | F58: 251.64 | G58: =INDEX($Y$2:$Y$276,MATCH(MIN(ABS($Y$2:$Y$276-F58)),ABS($Y$2:$Y$276-F58),0)) -> 251 | H58: 2717.712 | I58: 2688.808449 | J58: C | K58: 1 | L58: 26.94325227 | M58: 103.2909323 | N58: 413.1637293 | O58: 0.2290987829 | P58: 27.01195219 | Q58: 103.6597252 | R58: 414.638901 | S58: 0.2282837122 | T58: 301.5486111 | U58: 186.5069444 | Y58: 269
A59: 9.5 | B59: 114 | C59: =INDEX($Y$2:$Y$276,MATCH(MIN(ABS($Y$2:$Y$276-B59)),ABS($Y$2:$Y$276-B59),0)) -> 113 | D59: 182.4 | E59: =INDEX($Y$2:$Y$276,MATCH(MIN(ABS($Y$2:$Y$276-D59)),ABS($Y$2:$Y$276-D59),0)) -> 181 | F59: 265.62 | G59: =INDEX($Y$2:$Y$276,MATCH(MIN(ABS($Y$2:$Y$276-F59)),ABS($Y$2:$Y$276-F59),0)) -> 263 | H59: 3196.294 | I59: 3112.927662 | J59: C | K59: 1 | L59: 25.52518636 | M59: 97.85456746 | N59: 391.4182698 | O59: 0.2418264931 | P59: 25.77946768 | Q59: 98.72042095 | R59: 394.8816838 | S59: 0.23970549 | T59: 330.5763889 | U59: 206.3819444 | Y59: 271
A60: 10 | B60: 120 | C60: =INDEX($Y$2:$Y$276,MATCH(MIN(ABS($Y$2:$Y$276-B60)),ABS($Y$2:$Y$276-B60),0)) -> 113 | D60: 192 | E60: =INDEX($Y$2:$Y$276,MATCH(MIN(ABS($Y$2:$Y$276-D60)),ABS($Y$2:$Y$276-D60),0)) -> 191 | F60: 279.6 | G60: =INDEX($Y$2:$Y$276,MATCH(MIN(ABS($Y$2:$Y$276-F60)),ABS($Y$2:$Y$276-F60),0)) -> 281 | H60: 3728 | I60: 3509.735532 | J60: C | K60: 1 | L60: 24.24892704 | M60: 92.96183909 | N60: 371.8473564 | O60: 0.2545542032 | P60: 24.12811388 | Q60: 94.85026399 | R60: 379.4010559 | S60: 0.2494861468 | T60: 372.7152778 | U60: 220.5069444 | Y60: 277
A61: 10.5 | B61: 126 | C61: =INDEX($Y$2:$Y$276,MATCH(MIN(ABS($Y$2:$Y$276-B61)),ABS($Y$2:$Y$276-B61),0)) -> 127 | D61: 201.6 | E61: =INDEX($Y$2:$Y$276,MATCH(MIN(ABS($Y$2:$Y$276-D61)),ABS($Y$2:$Y$276-D61),0)) -> 199 | F61: 293.58 | G61: =INDEX($Y$2:$Y$276,MATCH(MIN(ABS($Y$2:$Y$276-F61)),ABS($Y$2:$Y$276-F61),0)) -> 293 | H61: 4315.626 | I61: 4285.29456 | J61: C | K61: 1 | L61: 23.09421623 | M61: 88.53508485 | N61: 354.1403394 | O61: 0.2672819134 | P61: 23.13993174 | Q61: 88.74347858 | R61: 354.9739143 | S61: 0.266654263 | T61: 404.9097222 | U61: 258.4097222 | Y61: 281
A62: 11 | B62: 132 | C62: =INDEX($Y$2:$Y$276,MATCH(MIN(ABS($Y$2:$Y$276-B62)),ABS($Y$2:$Y$276-B62),0)) -> 131 | D62: 211.2 | E62: =INDEX($Y$2:$Y$276,MATCH(MIN(ABS($Y$2:$Y$276-D62)),ABS($Y$2:$Y$276-D62),0)) -> 211 | F62: 307.56 | G62: =INDEX($Y$2:$Y$276,MATCH(MIN(ABS($Y$2:$Y$276-F62)),ABS($Y$2:$Y$276-F62),0)) -> 307 | H62: 4961.968 | I62: 4910.756366 | J62: C | K62: 1 | L62: 22.04447913 | M62: 84.51076281 | N62: 338.0430512 | O62: 0.2800096236 | P62: 22.08469055 | Q62: 84.8035199 | R62: 339.2140796 | S62: 0.2790429797 | T62: 449.8402778 | U62: 279.2847222 | Y62: 283
A63: 11.5 | B63: 138 | C63: =INDEX($Y$2:$Y$276,MATCH(MIN(ABS($Y$2:$Y$276-B63)),ABS($Y$2:$Y$276-B63),0)) -> 137 | D63: 220.8 | E63: =INDEX($Y$2:$Y$276,MATCH(MIN(ABS($Y$2:$Y$276-D63)),ABS($Y$2:$Y$276-D63),0)) -> 223 | F63: 321.54 | G63: =INDEX($Y$2:$Y$276,MATCH(MIN(ABS($Y$2:$Y$276-F63)),ABS($Y$2:$Y$276-F63),0)) -> 317 | H63: 5669.822 | I63: 5604.552662 | J63: C | K63: 1 | L63: 21.08602351 | M63: 80.83638182 | N63: 323.3455273 | O63: 0.2927373337 | P63: 21.38801262 | Q63: 81.14897215 | R63: 324.5958886 | S63: 0.2916096933 | T63: 490.9097222 | U63: 301.5902778 | Y63: 293
A64: 12 | B64: 144 | C64: =INDEX($Y$2:$Y$276,MATCH(MIN(ABS($Y$2:$Y$276-B64)),ABS($Y$2:$Y$276-B64),0)) -> 139 | D64: 230.4 | E64: =INDEX($Y$2:$Y$276,MATCH(MIN(ABS($Y$2:$Y$276-D64)),ABS($Y$2:$Y$276-D64),0)) -> 229 | F64: 335.52 | G64: =INDEX($Y$2:$Y$276,MATCH(MIN(ABS($Y$2:$Y$276-F64)),ABS($Y$2:$Y$276-F64),0)) -> 337 | H64: 6441.984 | I64: 6207.781829 | J64: C | K64: 1 | L64: 20.2074392 | M64: 77.46819924 | N64: 309.872797 | O64: 0.3054650439 | P64: 20.11869436 | Q64: 78.43041741 | R64: 313.7216696 | S64: 0.3017174671 | T64: 535.9236111 | U64: 325.2986111 | Y64: 307
A65: 12.5 | B65: 150 | C65: =INDEX($Y$2:$Y$276,MATCH(MIN(ABS($Y$2:$Y$276-B65)),ABS($Y$2:$Y$276-B65),0)) -> 149 | D65: 240 | E65: =INDEX($Y$2:$Y$276,MATCH(MIN(ABS($Y$2:$Y$276-D65)),ABS($Y$2:$Y$276-D65),0)) -> 239 | F65: 349.5 | G65: =INDEX($Y$2:$Y$276,MATCH(MIN(ABS($Y$2:$Y$276-F65)),ABS($Y$2:$Y$276-F65),0)) -> 349 | H65: 7281.25 | I65: 7192.26794 | J65: C | K65: 1 | L65: 19.39914163 | M65: 74.36947127 | N65: 297.4778851 | O65: 0.318192754 | P65: 19.4269341 | Q65: 74.67491244 | R65: 298.6996498 | S65: 0.3168912571 | T65: 579.2430556 | U65: 361.1180556 | Y65: 311
A66: 13 | B66: 156 | C66: =INDEX($Y$2:$Y$276,MATCH(MIN(ABS($Y$2:$Y$276-B66)),ABS($Y$2:$Y$276-B66),0)) -> 157 | D66: 249.6 | E66: =INDEX($Y$2:$Y$276,MATCH(MIN(ABS($Y$2:$Y$276-D66)),ABS($Y$2:$Y$276-D66),0)) -> 251 | F66: 363.48 | G66: =INDEX($Y$2:$Y$276,MATCH(MIN(ABS($Y$2:$Y$276-F66)),ABS($Y$2:$Y$276-F66),0)) -> 367 | H66: 8190.416 | I66: 8369.426505 | J66: C | K66: 1 | L66: 18.6530208 | M66: 71.50910699 | N66: 286.036428 | O66: 0.3309204642 | P66: 18.47411444 | Q66: 70.99560124 | R66: 283.982405 | S66: 0.3333139866 | T66: 639.7013889 | U66: 400.1319444 | Y66: 313
A67: 13.5 | B67: 162 | C67: =INDEX($Y$2:$Y$276,MATCH(MIN(ABS($Y$2:$Y$276-B67)),ABS($Y$2:$Y$276-B67),0)) -> 163 | D67: 259.2 | E67: =INDEX($Y$2:$Y$276,MATCH(MIN(ABS($Y$2:$Y$276-D67)),ABS($Y$2:$Y$276-D67),0)) -> 257 | F67: 377.46 | G67: =INDEX($Y$2:$Y$276,MATCH(MIN(ABS($Y$2:$Y$276-F67)),ABS($Y$2:$Y$276-F67),0)) -> 379 | H67: 9172.278 | I67: 9187.898727 | J67: C | K67: 1 | L67: 17.96216818 | M67: 68.86062155 | N67: 275.4424862 | O67: 0.3436481744 | P67: 17.88918206 | Q67: 68.82157515 | R67: 275.2863006 | S67: 0.3438431456 | T67: 676.4097222 | U67: 429.0069444 | Y67: 317
A68: 14 | B68: 168 | C68: =INDEX($Y$2:$Y$276,MATCH(MIN(ABS($Y$2:$Y$276-B68)),ABS($Y$2:$Y$276-B68),0)) -> 167 | D68: 268.8 | E68: =INDEX($Y$2:$Y$276,MATCH(MIN(ABS($Y$2:$Y$276-D68)),ABS($Y$2:$Y$276-D68),0)) -> 269 | F68: 391.44 | G68: =INDEX($Y$2:$Y$276,MATCH(MIN(ABS($Y$2:$Y$276-F68)),ABS($Y$2:$Y$276-F68),0)) -> 389 | H68: 10229.632 | I68: 10112.87442 | J68: C | K68: 1 | L68: 17.32066217 | M68: 66.40131363 | N68: 265.6052545 | O68: 0.3563758845 | P68: 17.42930591 | Q68: 66.65588055 | R68: 266.6235222 | S68: 0.3550148417 | T68: 726.6736111 | U68: 451.1319444 | Y68: 331
A69: 14.5 | B69: 174 | C69: =INDEX($Y$2:$Y$276,MATCH(MIN(ABS($Y$2:$Y$276-B69)),ABS($Y$2:$Y$276-B69),0)) -> 173 | D69: 278.4 | E69: =INDEX($Y$2:$Y$276,MATCH(MIN(ABS($Y$2:$Y$276-D69)),ABS($Y$2:$Y$276-D69),0)) -> 277 | F69: 405.42 | G69: =INDEX($Y$2:$Y$276,MATCH(MIN(ABS($Y$2:$Y$276-F69)),ABS($Y$2:$Y$276-F69),0)) -> 409 | H69: 11365.274 | I69: 11342.41262 | J69: C | K69: 1 | L69: 16.72339796 | M69: 64.11161316 | N69: 256.4464527 | O69: 0.3691035947 | P69: 16.57701711 | Q69: 64.15465799 | R69: 256.618632 | S69: 0.3688559431 | T69: 786.7569444 | U69: 491.3680556 | Y69: 337
A70: HEIGHT ft | B70: HEIGHT " | C70: PRIME height | D70: WIDTH " | E70: PRIME width | F70: DEPTH " | G70: PRIME depth | H70: VOLUME | I70: PRIME volume | J70: TABLE | K70: USEABLE 1=Yes 0=NO | L70: F¹ | M70: F² | N70: F³ | O70: minimum RT60 | P70: F¹ | Q70: F² | R70: F³ | S70: minimum RT60 | T70: Square Feet | U70: Square Feet | Y70: 347
A71: =B71/12 -> 8 | B71: =B56 -> 96 | C71: =INDEX($Y$2:$Y$276,MATCH(MIN(ABS($Y$2:$Y$276-B71)),ABS($Y$2:$Y$276-B71),0)) -> 97 | D71: =B71*$D$8 -> 134.4 | E71: =INDEX($Y$2:$Y$276,MATCH(MIN(ABS($Y$2:$Y$276-D71)),ABS($Y$2:$Y$276-D71),0)) -> 137 | F71: =B71*$E$8 -> 182.4 | G71: =INDEX($Y$2:$Y$276,MATCH(MIN(ABS($Y$2:$Y$276-F71)),ABS($Y$2:$Y$276-F71),0)) -> 181 | H71: =(B71/12)*(D71/12)*(F71/12) -> 1361.92 | I71: =(C71/12)*(E71/12)*(G71/12) -> 1391.961227 | J71: D | K71: =IF(H71>$L$21,$N$22,$O$22) -> 0 | L71: =565/(F71/12) -> 37.17105263 | M71: =(SQRT(O71/H71)*11250) -> 130.040753 | N71: 520.163012 | O71: =0.25*(((0.028316846592*H71)/100)^(1/3)) -> 0.181972392 | P71: =565/(G71/12) -> 37.45856354 | Q71: =(SQRT(S71/I71)*11250) -> 129.0984304 | R71: =4*Q71 -> 516.3937216 | S71: =0.25*(((0.028316846592*I71)/100)^(1/3)) -> 0.1833006552 | T71: 172.2013889 | U71: =(C71/12)*(G71/12) -> 121.9236111 | Y71: 349
A72: 8.5 | B72: 102 | C72: =INDEX($Y$2:$Y$276,MATCH(MIN(ABS($Y$2:$Y$276-B72)),ABS($Y$2:$Y$276-B72),0)) -> 101 | D72: 142.8 | E72: =INDEX($Y$2:$Y$276,MATCH(MIN(ABS($Y$2:$Y$276-D72)),ABS($Y$2:$Y$276-D72),0)) -> 139 | F72: 193.8 | G72: =INDEX($Y$2:$Y$276,MATCH(MIN(ABS($Y$2:$Y$276-F72)),ABS($Y$2:$Y$276-F72),0)) -> 193 | H72: 1633.5725 | I72: =(C72/12)*(E72/12)*(G72/12) -> 1568.01331 | J72: D | K72: 1 | L72: 34.98452012 | M72: 122.3912969 | N72: 489.5651877 | O72: 0.1933456665 | P72: =565/(G72/12) -> 35.12953368 | Q72: =(SQRT(S72/I72)*11250) -> 124.0738027 | R72: =4*Q72 -> 496.295211 | S72: =0.25*(((0.028316846592*I72)/100)^(1/3)) -> 0.1907237979 | T72: 186.2986111 | U72: 135.3680556 | Y72: 353
A73: 9 | B73: 108 | C73: =INDEX($Y$2:$Y$276,MATCH(MIN(ABS($Y$2:$Y$276-B73)),ABS($Y$2:$Y$276-B73),0)) -> 107 | D73: 151.2 | E73: =INDEX($Y$2:$Y$276,MATCH(MIN(ABS($Y$2:$Y$276-D73)),ABS($Y$2:$Y$276-D73),0)) -> 151 | F73: 205.2 | G73: =INDEX($Y$2:$Y$276,MATCH(MIN(ABS($Y$2:$Y$276-F73)),ABS($Y$2:$Y$276-F73),0)) -> 211 | H73: 1939.14 | I73: 1972.874421 | J73: D | K73: 1 | L73: 33.04093567 | M73: 115.5917804 | N73: 462.3671217 | O73: 0.204718941 | P73: 32.13270142 | Q73: 114.9291498 | R73: 459.7165993 | S73: 0.2058992598 | T73: 221.2569444 | U73: 156.7847222 | Y73: 359
A74: 9.5 | B74: 114 | C74: =INDEX($Y$2:$Y$276,MATCH(MIN(ABS($Y$2:$Y$276-B74)),ABS($Y$2:$Y$276-B74),0)) -> 113 | D74: 159.6 | E74: =INDEX($Y$2:$Y$276,MATCH(MIN(ABS($Y$2:$Y$276-D74)),ABS($Y$2:$Y$276-D74),0)) -> 157 | F74: 216.6 | G74: =INDEX($Y$2:$Y$276,MATCH(MIN(ABS($Y$2:$Y$276-F74)),ABS($Y$2:$Y$276-F74),0)) -> 211 | H74: 2280.6175 | I74: 2166.291088 | J74: D | K74: 1 | L74: 31.30193906 | M74: 109.5080025 | N74: 438.0320101 | O74: 0.2160922155 | P74: 32.13270142 | Q74: 111.4015082 | R74: 445.6060327 | S74: 0.2124192685 | T74: 230.0486111 | U74: 165.5763889 | Y74: 367
A75: 10 | B75: 120 | C75: =INDEX($Y$2:$Y$276,MATCH(MIN(ABS($Y$2:$Y$276-B75)),ABS($Y$2:$Y$276-B75),0)) -> 113 | D75: 168 | E75: =INDEX($Y$2:$Y$276,MATCH(MIN(ABS($Y$2:$Y$276-D75)),ABS($Y$2:$Y$276-D75),0)) -> 167 | F75: 228 | G75: =INDEX($Y$2:$Y$276,MATCH(MIN(ABS($Y$2:$Y$276-F75)),ABS($Y$2:$Y$276-F75),0)) -> 227 | H75: 2660 | I75: 2479.002894 | J75: D | K75: 1 | L75: 29.73684211 | M75: 104.0326024 | N75: 416.1304096 | O75: 0.22746549 | P75: 29.86784141 | Q75: 106.5052453 | R75: 426.0209811 | S75: 0.2221846146 | T75: 263.2569444 | U75: 178.1319444 | Y75: 373
A76: 10.5 | B76: 126 | C76: =INDEX($Y$2:$Y$276,MATCH(MIN(ABS($Y$2:$Y$276-B76)),ABS($Y$2:$Y$276-B76),0)) -> 127 | D76: 176.4 | E76: =INDEX($Y$2:$Y$276,MATCH(MIN(ABS($Y$2:$Y$276-D76)),ABS($Y$2:$Y$276-D76),0)) -> 179 | F76: 239.4 | G76: =INDEX($Y$2:$Y$276,MATCH(MIN(ABS($Y$2:$Y$276-F76)),ABS($Y$2:$Y$276-F76),0)) -> 239 | H76: 3079.2825 | I76: 3144.20544 | J76: D | K76: 1 | L76: 28.32080201 | M76: 99.07866895 | N76: 396.3146758 | O76: 0.2388387645 | P76: 28.36820084 | Q76: 98.39198068 | R76: 393.5679227 | S76: 0.2405056461 | T76: 297.0902778 | U76: 210.7847222 | Y76: 379
A77: 11 | B77: 132 | C77: =INDEX($Y$2:$Y$276,MATCH(MIN(ABS($Y$2:$Y$276-B77)),ABS($Y$2:$Y$276-B77),0)) -> 131 | D77: 184.8 | E77: =INDEX($Y$2:$Y$276,MATCH(MIN(ABS($Y$2:$Y$276-D77)),ABS($Y$2:$Y$276-D77),0)) -> 181 | F77: 250.8 | G77: =INDEX($Y$2:$Y$276,MATCH(MIN(ABS($Y$2:$Y$276-F77)),ABS($Y$2:$Y$276-F77),0)) -> 251 | H77: 3540.46 | I77: 3444.132523 | J77: D | K77: 1 | L77: 27.03349282 | M77: 94.57509308 | N77: 378.3003723 | O77: 0.250212039 | P77: 27.01195219 | Q77: 95.44870859 | R77: 381.7948344 | S77: 0.2479219177 | T77: 315.4930556 | U77: 228.3402778 | Y77: 383
A78: 11.5 | B78: 138 | C78: =INDEX($Y$2:$Y$276,MATCH(MIN(ABS($Y$2:$Y$276-B78)),ABS($Y$2:$Y$276-B78),0)) -> 137 | D78: 193.2 | E78: =INDEX($Y$2:$Y$276,MATCH(MIN(ABS($Y$2:$Y$276-D78)),ABS($Y$2:$Y$276-D78),0)) -> 193 | F78: 262.2 | G78: =INDEX($Y$2:$Y$276,MATCH(MIN(ABS($Y$2:$Y$276-F78)),ABS($Y$2:$Y$276-F78),0)) -> 263 | H78: 4045.5275 | I78: 4024.295718 | J78: D | K78: 1 | L78: 25.85812357 | M78: 90.46313252 | N78: 361.8525301 | O78: 0.2615853135 | P78: 25.77946768 | Q78: 90.62194503 | R78: 362.4877801 | S78: 0.2611268923 | T78: 352.4930556 | U78: 250.2152778 | Y78: 389
A79: 12 | B79: 144 | C79: =INDEX($Y$2:$Y$276,MATCH(MIN(ABS($Y$2:$Y$276-B79)),ABS($Y$2:$Y$276-B79),0)) -> 139 | D79: 201.6 | E79: =INDEX($Y$2:$Y$276,MATCH(MIN(ABS($Y$2:$Y$276-D79)),ABS($Y$2:$Y$276-D79),0)) -> 199 | F79: 273.6 | G79: =INDEX($Y$2:$Y$276,MATCH(MIN(ABS($Y$2:$Y$276-F79)),ABS($Y$2:$Y$276-F79),0)) -> 271 | H79: 4596.48 | I79: 4338.038773 | J79: D | K79: 1 | L79: 24.78070175 | M79: 86.69383533 | N79: 346.7753413 | O79: 0.272958588 | P79: 25.01845018 | Q79: 88.38234732 | R79: 353.5293893 | S79: 0.2677438154 | T79: 374.5069444 | U79: 261.5902778 | Y79: 397
A80: 12.5 | B80: 150 | C80: =INDEX($Y$2:$Y$276,MATCH(MIN(ABS($Y$2:$Y$276-B80)),ABS($Y$2:$Y$276-B80),0)) -> 149 | D80: 210 | E80: =INDEX($Y$2:$Y$276,MATCH(MIN(ABS($Y$2:$Y$276-D80)),ABS($Y$2:$Y$276-D80),0)) -> 211 | F80: 285 | G80: =INDEX($Y$2:$Y$276,MATCH(MIN(ABS($Y$2:$Y$276-F80)),ABS($Y$2:$Y$276-F80),0)) -> 283 | H80: 5195.3125 | I80: 5148.864005 | J80: D | K80: 1 | L80: 23.78947368 | M80: 83.22608191 | N80: 332.9043277 | O80: 0.2843318625 | P80: 23.95759717 | Q80: 83.47559713 | R80: 333.9023885 | S80: 0.2834819719 | T80: 414.6736111 | U80: 292.8263889 | Y80: 401
A81: 13 | B81: 156 | C81: =INDEX($Y$2:$Y$276,MATCH(MIN(ABS($Y$2:$Y$276-B81)),ABS($Y$2:$Y$276-B81),0)) -> 157 | D81: 218.4 | E81: =INDEX($Y$2:$Y$276,MATCH(MIN(ABS($Y$2:$Y$276-D81)),ABS($Y$2:$Y$276-D81),0)) -> 223 | F81: 296.4 | G81: =INDEX($Y$2:$Y$276,MATCH(MIN(ABS($Y$2:$Y$276-F81)),ABS($Y$2:$Y$276-F81),0)) -> 293 | H81: 5844.02 | I81: 5936.471644 | J81: D | K81: 1 | L81: 22.87449393 | M81: 80.02507876 | N81: 320.1003151 | O81: 0.295705137 | P81: 23.13993174 | Q81: 79.60747984 | R81: 318.4299194 | S81: 0.2972563247 | T81: 453.7430556 | U81: 319.4513889 | Y81: 409
A82: 13.5 | B82: 162 | C82: =INDEX($Y$2:$Y$276,MATCH(MIN(ABS($Y$2:$Y$276-B82)),ABS($Y$2:$Y$276-B82),0)) -> 163 | D82: 226.8 | E82: =INDEX($Y$2:$Y$276,MATCH(MIN(ABS($Y$2:$Y$276-D82)),ABS($Y$2:$Y$276-D82),0)) -> 227 | F82: 307.8 | G82: =INDEX($Y$2:$Y$276,MATCH(MIN(ABS($Y$2:$Y$276-F82)),ABS($Y$2:$Y$276-F82),0)) -> 307 | H82: 6544.5975 | I82: 6573.673032 | J82: D | K82: 1 | L82: 22.02729045 | M82: 77.06118696 | N82: 308.2447478 | O82: 0.3070784115 | P82: 22.08469055 | Q82: 76.94740447 | R82: 307.7896179 | S82: 0.3075324898 | T82: 483.9513889 | U82: 347.5069444 | Y82: 419
A83: 14 | B83: 168 | C83: =INDEX($Y$2:$Y$276,MATCH(MIN(ABS($Y$2:$Y$276-B83)),ABS($Y$2:$Y$276-B83),0)) -> 167 | D83: 235.2 | E83: =INDEX($Y$2:$Y$276,MATCH(MIN(ABS($Y$2:$Y$276-D83)),ABS($Y$2:$Y$276-D83),0)) -> 233 | F83: 319.2 | G83: =INDEX($Y$2:$Y$276,MATCH(MIN(ABS($Y$2:$Y$276-F83)),ABS($Y$2:$Y$276-F83),0)) -> 317 | H83: 7299.04 | I83: 7138.186921 | J83: D | K83: 1 | L83: 21.2406015 | M83: 74.30900171 | N83: 297.2360068 | O83: 0.318451686 | P83: 21.38801262 | Q83: 74.86302459 | R83: 299.4520984 | S83: 0.3160949883 | T83: 512.9236111 | U83: 367.6319444 | Y83: 421
A84: 14.5 | B84: 174 | C84: =INDEX($Y$2:$Y$276,MATCH(MIN(ABS($Y$2:$Y$276-B84)),ABS($Y$2:$Y$276-B84),0)) -> 173 | D84: 243.6 | E84: =INDEX($Y$2:$Y$276,MATCH(MIN(ABS($Y$2:$Y$276-D84)),ABS($Y$2:$Y$276-D84),0)) -> 241 | F84: 330.6 | G84: =INDEX($Y$2:$Y$276,MATCH(MIN(ABS($Y$2:$Y$276-F84)),ABS($Y$2:$Y$276-F84),0)) -> 331 | H84: 8109.3425 | I84: 7986.332755 | J84: D | K84: 1 | L84: 20.50816697 | M84: 71.74662234 | N84: 286.9864894 | O84: 0.3298249605 | P84: 20.48338369 | Q84: 72.11310701 | R84: 288.4524281 | S84: 0.3281487632 | T84: 553.9652778 | U84: 397.6597222 | Y84: 431
A85: HEIGHT ft | B85: HEIGHT " | C85: PRIME height | D85: WIDTH " | E85: PRIME width | F85: DEPTH " | G85: PRIME depth | H85: VOLUME | I85: PRIME volume | J85: TABLE | K85: USEABLE 1=Yes 0=NO | L85: F¹ | M85: F² | N85: F³ | O85: minimum RT60 | P85: F¹ | Q85: F² | R85: F³ | S85: minimum RT60 | T85: Square Feet | U85: Square Feet | Y85: 433
A86: =B86/12 -> 8 | B86: =B71 -> 96 | C86: =INDEX($Y$2:$Y$276,MATCH(MIN(ABS($Y$2:$Y$276-B86)),ABS($Y$2:$Y$276-B86),0)) -> 97 | D86: =B86*$D$9 -> 124.8 | E86: =INDEX($Y$2:$Y$276,MATCH(MIN(ABS($Y$2:$Y$276-D86)),ABS($Y$2:$Y$276-D86),0)) -> 127 | F86: =B86*$E$9 -> 182.4 | G86: =INDEX($Y$2:$Y$276,MATCH(MIN(ABS($Y$2:$Y$276-F86)),ABS($Y$2:$Y$276-F86),0)) -> 181 | H86: =(B86/12)*(D86/12)*(F86/12) -> 1264.64 | I86: =(C86/12)*(E86/12)*(G86/12) -> 1290.358218 | J86: E | K86: =IF(H86>$L$21,$N$22,$O$22) -> 0 | L86: =565/(F86/12) -> 37.17105263 | M86: =(SQRT(O86/H86)*11250) -> 133.2931107 | N86: 533.1724428 | O86: =0.25*(((0.028316846592*H86)/100)^(1/3)) -> 0.1775322577 | P86: =565/(G86/12) -> 37.45856354 | Q86: =(SQRT(S86/I86)*11250) -> 132.4016033 | R86: =4*Q86 -> 529.6064132 | S86: =0.25*(((0.028316846592*I86)/100)^(1/3)) -> 0.178727646 | T86: =(E86/12)*(G86/12) -> 159.6319444 | U86: =(C86/12)*(G86/12) -> 121.9236111 | Y86: 439
A87: 8.5 | B87: 102 | C87: =INDEX($Y$2:$Y$276,MATCH(MIN(ABS($Y$2:$Y$276-B87)),ABS($Y$2:$Y$276-B87),0)) -> 101 | D87: 132.6 | E87: =INDEX($Y$2:$Y$276,MATCH(MIN(ABS($Y$2:$Y$276-D87)),ABS($Y$2:$Y$276-D87),0)) -> 131 | F87: 193.8 | G87: =INDEX($Y$2:$Y$276,MATCH(MIN(ABS($Y$2:$Y$276-F87)),ABS($Y$2:$Y$276-F87),0)) -> 193 | H87: 1516.88875 | I87: =(C87/12)*(E87/12)*(G87/12) -> 1477.76794 | J87: E | K87: 1 | L87: 34.98452012 | M87: 125.4523395 | N87: 501.809358 | O87: =0.25*(((0.028316846592*H87)/100)^(1/3)) -> 0.1886280238 | P87: =565/(G87/12) -> 35.12953368 | Q87: =(SQRT(S87/I87)*11250) -> 126.5497412 | R87: =4*Q87 -> 506.1989648 | S87: =0.25*(((0.028316846592*I87)/100)^(1/3)) -> 0.1869922977 | T87: 175.5763889 | U87: 135.3680556 | Y87: 443
A88: 9 | B88: 108 | C88: =INDEX($Y$2:$Y$276,MATCH(MIN(ABS($Y$2:$Y$276-B88)),ABS($Y$2:$Y$276-B88),0)) -> 107 | D88: 140.4 | E88: =INDEX($Y$2:$Y$276,MATCH(MIN(ABS($Y$2:$Y$276-D88)),ABS($Y$2:$Y$276-D88),0)) -> 139 | F88: 205.2 | G88: =INDEX($Y$2:$Y$276,MATCH(MIN(ABS($Y$2:$Y$276-F88)),ABS($Y$2:$Y$276-F88),0)) -> 211 | H88: 1800.63 | I88: 1816.089699 | J88: E | K88: 1 | L88: 33.04093567 | M88: 118.4827651 | N88: 473.9310603 | O88: =0.25*(((0.028316846592*H88)/100)^(1/3)) -> 0.1997237899 | P88: 32.13270142 | Q88: 118.1456066 | R88: 472.5824264 | S88: 0.2002937525 | T88: 203.6736111 | U88: 156.7847222 | Y88: 449
A89: 9.5 | B89: 114 | C89: =INDEX($Y$2:$Y$276,MATCH(MIN(ABS($Y$2:$Y$276-B89)),ABS($Y$2:$Y$276-B89),0)) -> 113 | D89: 148.2 | E89: =INDEX($Y$2:$Y$276,MATCH(MIN(ABS($Y$2:$Y$276-D89)),ABS($Y$2:$Y$276-D89),0)) -> 149 | F89: 216.6 | G89: =INDEX($Y$2:$Y$276,MATCH(MIN(ABS($Y$2:$Y$276-F89)),ABS($Y$2:$Y$276-F89),0)) -> 211 | H89: 2117.71625 | I89: 2055.906829 | J89: E | K89: 1 | L89: 31.30193906 | M89: 112.2468301 | N89: 448.9873203 | O89: =0.25*(((0.028316846592*H89)/100)^(1/3)) -> 0.210819556 | P89: 32.13270142 | Q89: 113.3606163 | R89: 453.4424653 | S89: 0.20874822 | T89: 218.3263889 | U89: 165.5763889 | Y89: 457
A90: 10 | B90: 120 | C90: =INDEX($Y$2:$Y$276,MATCH(MIN(ABS($Y$2:$Y$276-B90)),ABS($Y$2:$Y$276-B90),0)) -> 113 | D90: 156 | E90: =INDEX($Y$2:$Y$276,MATCH(MIN(ABS($Y$2:$Y$276-D90)),ABS($Y$2:$Y$276-D90),0)) -> 157 | F90: 228 | G90: =INDEX($Y$2:$Y$276,MATCH(MIN(ABS($Y$2:$Y$276-F90)),ABS($Y$2:$Y$276-F90),0)) -> 227 | H90: 2470 | I90: 2330.559606 | J90: E | K90: 1 | L90: 29.73684211 | M90: 106.6344886 | N90: 426.5379543 | O90: =0.25*(((0.028316846592*H90)/100)^(1/3)) -> 0.2219153221 | P90: 29.86784141 | Q90: 108.7201234 | R90: 434.8804934 | S90: 0.2176582049 | T90: 247.4930556 | U90: 178.1319444 | Y90: 461
A91: 10.5 | B91: 126 | C91: =INDEX($Y$2:$Y$276,MATCH(MIN(ABS($Y$2:$Y$276-B91)),ABS($Y$2:$Y$276-B91),0)) -> 127 | D91: 163.8 | E91: =INDEX($Y$2:$Y$276,MATCH(MIN(ABS($Y$2:$Y$276-D91)),ABS($Y$2:$Y$276-D91),0)) -> 163 | F91: 239.4 | G91: =INDEX($Y$2:$Y$276,MATCH(MIN(ABS($Y$2:$Y$276-F91)),ABS($Y$2:$Y$276-F91),0)) -> 239 | H91: 2859.33375 | I91: 2863.159144 | J91: E | K91: 1 | L91: 28.32080201 | M91: 101.5566558 | N91: =4*M91 -> 406.2266231 | O91: =0.25*(((0.028316846592*H91)/100)^(1/3)) -> 0.2330110882 | P91: 28.36820084 | Q91: 101.5114065 | R91: 406.0456262 | S91: 0.2331149541 | T91: 270.5347222 | U91: 210.7847222 | Y91: 463
A92: 11 | B92: 132 | C92: =INDEX($Y$2:$Y$276,MATCH(MIN(ABS($Y$2:$Y$276-B92)),ABS($Y$2:$Y$276-B92),0)) -> 131 | D92: 171.6 | E92: =INDEX($Y$2:$Y$276,MATCH(MIN(ABS($Y$2:$Y$276-D92)),ABS($Y$2:$Y$276-D92),0)) -> 173 | F92: 250.8 | G92: =INDEX($Y$2:$Y$276,MATCH(MIN(ABS($Y$2:$Y$276-F92)),ABS($Y$2:$Y$276-F92),0)) -> 251 | H92: 3287.57 | I92: 3291.905671 | J92: E | K92: 1 | L92: 27.03349282 | M92: 96.94044415 | N92: 387.7617766 | O92: 0.2441068543 | P92: 27.01195219 | Q92: 96.89786633 | R92: 387.5914653 | S92: 0.2442141172 | T92: 301.5486111 | U92: 228.3402778 | Y92: 467
A93: 11.5 | B93: 138 | C93: =INDEX($Y$2:$Y$276,MATCH(MIN(ABS($Y$2:$Y$276-B93)),ABS($Y$2:$Y$276-B93),0)) -> 137 | D93: 179.4 | E93: =INDEX($Y$2:$Y$276,MATCH(MIN(ABS($Y$2:$Y$276-D93)),ABS($Y$2:$Y$276-D93),0)) -> 179 | F93: 262.2 | G93: =INDEX($Y$2:$Y$276,MATCH(MIN(ABS($Y$2:$Y$276-F93)),ABS($Y$2:$Y$276-F93),0)) -> 263 | H93: 3756.56125 | I93: 3732.377894 | J93: E | K93: 1 | L93: 25.85812357 | M93: 92.72564223 | N93: 370.9025689 | O93: 0.2552026204 | P93: 25.77946768 | Q93: 92.92547833 | R93: 371.7019133 | S93: 0.2546538076 | T93: 326.9236111 | U93: 250.2152778 | Y93: 479
A94: 12 | B94: 144 | C94: =INDEX($Y$2:$Y$276,MATCH(MIN(ABS($Y$2:$Y$276-B94)),ABS($Y$2:$Y$276-B94),0)) -> 139 | D94: 187.2 | E94: =INDEX($Y$2:$Y$276,MATCH(MIN(ABS($Y$2:$Y$276-D94)),ABS($Y$2:$Y$276-D94),0)) -> 191 | F94: 273.6 | G94: =INDEX($Y$2:$Y$276,MATCH(MIN(ABS($Y$2:$Y$276-F94)),ABS($Y$2:$Y$276-F94),0)) -> 271 | H94: 4268.16 | I94: 4163.645255 | J94: E | K94: 1 | L94: 24.78070175 | M94: 88.86207381 | N94: 355.4482952 | O94: 0.2662983865 | P94: 25.01845018 | Q94: 89.59946876 | R94: 358.397875 | S94: 0.2641067766 | T94: 359.4513889 | U94: 261.5902778 | Y94: 487
A95: 12.5 | B95: 150 | C95: =INDEX($Y$2:$Y$276,MATCH(MIN(ABS($Y$2:$Y$276-B95)),ABS($Y$2:$Y$276-B95),0)) -> 149 | D95: 195 | E95: =INDEX($Y$2:$Y$276,MATCH(MIN(ABS($Y$2:$Y$276-D95)),ABS($Y$2:$Y$276-D95),0)) -> 193 | F95: 285 | G95: =INDEX($Y$2:$Y$276,MATCH(MIN(ABS($Y$2:$Y$276-F95)),ABS($Y$2:$Y$276-F95),0)) -> 283 | H95: 4824.21875 | I95: 4709.624421 | J95: E | K95: 1 | L95: 23.78947368 | M95: 85.30759086 | N95: 341.2303634 | O95: 0.2773941527 | P95: 23.95759717 | Q95: 85.99395366 | R95: 343.9758146 | S95: 0.2751801246 | T95: 379.2986111 | U95: 292.8263889 | Y95: 491
A96: 13 | B96: 156 | C96: =INDEX($Y$2:$Y$276,MATCH(MIN(ABS($Y$2:$Y$276-B96)),ABS($Y$2:$Y$276-B96),0)) -> 157 | D96: 202.8 | E96: =INDEX($Y$2:$Y$276,MATCH(MIN(ABS($Y$2:$Y$276-D96)),ABS($Y$2:$Y$276-D96),0)) -> 199 | F96: 296.4 | G96: =INDEX($Y$2:$Y$276,MATCH(MIN(ABS($Y$2:$Y$276-F96)),ABS($Y$2:$Y$276-F96),0)) -> 293 | H96: 5426.59 | I96: 5297.568866 | J96: E | K96: 1 | L96: 22.87449393 | M96: 82.02652967 | N96: 328.1061187 | O96: 0.2884899188 | P96: 23.13993174 | Q96: 82.68710834 | R96: 330.7484334 | S96: 0.2861852029 | T96: 404.9097222 | U96: 319.4513889 | Y96: 499
A97: 13.5 | B97: 162 | C97: =INDEX($Y$2:$Y$276,MATCH(MIN(ABS($Y$2:$Y$276-B97)),ABS($Y$2:$Y$276-B97),0)) -> 163 | D97: 210.6 | E97: =INDEX($Y$2:$Y$276,MATCH(MIN(ABS($Y$2:$Y$276-D97)),ABS($Y$2:$Y$276-D97),0)) -> 211 | F97: 307.8 | G97: =INDEX($Y$2:$Y$276,MATCH(MIN(ABS($Y$2:$Y$276-F97)),ABS($Y$2:$Y$276-F97),0)) -> 307 | H97: 6077.12625 | I97: 6110.33044 | J97: E | K97: 1 | L97: 22.02729045 | M97: 78.98851005 | N97: 315.9540402 | O97: 0.2995856849 | P97: 22.08469055 | Q97: 78.84517276 | R97: 315.380691 | S97: 0.3001303194 | T97: 449.8402778 | U97: 347.5069444 | Y97: 503
A98: 14 | B98: 168 | C98: =INDEX($Y$2:$Y$276,MATCH(MIN(ABS($Y$2:$Y$276-B98)),ABS($Y$2:$Y$276-B98),0)) -> 167 | D98: 218.4 | E98: =INDEX($Y$2:$Y$276,MATCH(MIN(ABS($Y$2:$Y$276-D98)),ABS($Y$2:$Y$276-D98),0)) -> 223 | F98: 319.2 | G98: =INDEX($Y$2:$Y$276,MATCH(MIN(ABS($Y$2:$Y$276-F98)),ABS($Y$2:$Y$276-F98),0)) -> 317 | H98: 6777.68 | I98: 6831.826968 | J98: E | K98: 1 | L98: 21.2406015 | M98: 76.16749184 | N98: 304.6699673 | O98: 0.310681451 | P98: 21.38801262 | Q98: 75.96573113 | R98: 303.8629245 | S98: 0.3115066034 | T98: 490.9097222 | U98: 367.6319444 | Y98: 509
A99: 14.5 | B99: 174 | C99: =INDEX($Y$2:$Y$276,MATCH(MIN(ABS($Y$2:$Y$276-B99)),ABS($Y$2:$Y$276-B99),0)) -> 173 | D99: 226.2 | E99: =INDEX($Y$2:$Y$276,MATCH(MIN(ABS($Y$2:$Y$276-D99)),ABS($Y$2:$Y$276-D99),0)) -> 227 | F99: 330.6 | G99: =INDEX($Y$2:$Y$276,MATCH(MIN(ABS($Y$2:$Y$276-F99)),ABS($Y$2:$Y$276-F99),0)) -> 331 | H99: 7530.10375 | I99: 7522.396412 | J99: E | K99: 1 | L99: 20.50816697 | M99: 73.5410266 | N99: 294.1641064 | O99: 0.3217772171 | P99: 20.48338369 | Q99: 73.56613438 | R99: 294.2645375 | S99: 0.321667396 | T99: 521.7847222 | U99: 397.6597222 | Y99: 521
A100: HEIGHT ft | B100: HEIGHT " | C100: PRIME height | D100: WIDTH " | E100: PRIME width | F100: DEPTH " | G100: PRIME depth | H100: VOLUME | I100: PRIME volume | J100: TABLE | K100: USEABLE 1=Yes 0=NO | L100: F¹ | M100: F² | N100: F³ | O100: minimum RT60 | P100: F¹ | Q100: F² | R100: F³ | S100: minimum RT60 | T100: Square Feet | U100: Square Feet | Y100: 523
A101: =B101/12 -> 8 | B101: =B86 -> 96 | C101: =INDEX($Y$2:$Y$276,MATCH(MIN(ABS($Y$2:$Y$276-B101)),ABS($Y$2:$Y$276-B101),0)) -> 97 | D101: =B101*$D$10 -> 144 | E101: =INDEX($Y$2:$Y$276,MATCH(MIN(ABS($Y$2:$Y$276-D101)),ABS($Y$2:$Y$276-D101),0)) -> 139 | F101: =B101*$E$10 -> 201.6 | G101: =INDEX($Y$2:$Y$276,MATCH(MIN(ABS($Y$2:$Y$276-F101)),ABS($Y$2:$Y$276-F101),0)) -> 199 | H101: =(B101/12)*(D101/12)*(F101/12) -> 1612.8 | I101: =(C101/12)*(E101/12)*(G101/12) -> 1552.729745 | J101: F | K101: =IF(H101>$L$21,$N$22,$O$22) -> 1 | L101: =565/(F101/12) -> 33.63095238 | M101: =(SQRT(O101/H101)*11250) -> 122.9145144 | N101: 491.6580578 | O101: 0.1925226405 | P101: =565/(G101/12) -> 34.07035176 | Q101: =(SQRT(S101/I101)*11250) -> 124.4795617 | R101: =4*Q101 -> 497.9182469 | S101: =0.25*(((0.028316846592*I101)/100)^(1/3)) -> 0.1901021064 | T101: =(E101/12)*(G101/12) -> 192.0902778 | U101: =(C101/12)*(G101/12) -> 134.0486111 | Y101: 541
A102: 8.5 | B102: 102 | C102: =INDEX($Y$2:$Y$276,MATCH(MIN(ABS($Y$2:$Y$276-B102)),ABS($Y$2:$Y$276-B102),0)) -> 101 | D102: 153 | E102: =INDEX($Y$2:$Y$276,MATCH(MIN(ABS($Y$2:$Y$276-D102)),ABS($Y$2:$Y$276-D102),0)) -> 151 | F102: 214.2 | G102: =INDEX($Y$2:$Y$276,MATCH(MIN(ABS($Y$2:$Y$276-F102)),ABS($Y$2:$Y$276-F102),0)) -> 211 | H102: 1934.49375 | I102: =(C102/12)*(E102/12)*(G102/12) -> 1862.245949 | J102: F | K102: 1 | L102: 31.65266106 | M102: 115.6842489 | N102: 462.7369955 | O102: 0.2045553056 | P102: =565/(G102/12) -> 32.13270142 | Q102: =(SQRT(S102/I102)*11250) -> 117.1613396 | R102: =4*Q102 -> 468.6453584 | S102: =0.25*(((0.028316846592*I102)/100)^(1/3)) -> 0.201976411 | T102: 221.2569444 | U102: 147.9930556 | Y102: 547
A103: 9 | B103: 108 | C103: =INDEX($Y$2:$Y$276,MATCH(MIN(ABS($Y$2:$Y$276-B103)),ABS($Y$2:$Y$276-B103),0)) -> 107 | D103: 162 | E103: =INDEX($Y$2:$Y$276,MATCH(MIN(ABS($Y$2:$Y$276-D103)),ABS($Y$2:$Y$276-D103),0)) -> 163 | F103: 226.8 | G103: =INDEX($Y$2:$Y$276,MATCH(MIN(ABS($Y$2:$Y$276-F103)),ABS($Y$2:$Y$276-F103),0)) -> 227 | H103: 2296.35 | I103: 2291.149884 | J103: F | K103: 1 | L103: 29.89417989 | M103: 109.2573462 | N103: 437.0293847 | O103: 0.2165879706 | P103: 29.86784141 | Q103: 109.3399425 | R103: 437.3597699 | S103: 0.2164243582 | T103: 256.9513889 | U103: 168.6736111 | Y103: 557
A104: 9.5 | B104: 114 | C104: =INDEX($Y$2:$Y$276,MATCH(MIN(ABS($Y$2:$Y$276-B104)),ABS($Y$2:$Y$276-B104),0)) -> 113 | D104: 171 | E104: =INDEX($Y$2:$Y$276,MATCH(MIN(ABS($Y$2:$Y$276-D104)),ABS($Y$2:$Y$276-D104),0)) -> 173 | F104: 239.4 | G104: =INDEX($Y$2:$Y$276,MATCH(MIN(ABS($Y$2:$Y$276-F104)),ABS($Y$2:$Y$276-F104),0)) -> 239 | H104: 2700.73125 | I104: 2703.82581 | J104: F | K104: 1 | L104: 28.32080201 | M104: 103.5069595 | N104: 414.0278381 | O104: 0.2286206356 | P104: 28.36820084 | Q104: 103.4674561 | R104: 413.8698246 | S104: 0.2287079219 | T104: 287.1319444 | U104: 187.5486111 | Y104: 563
A105: 10 | B105: 120 | C105: =INDEX($Y$2:$Y$276,MATCH(MIN(ABS($Y$2:$Y$276-B105)),ABS($Y$2:$Y$276-B105),0)) -> 113 | D105: 180 | E105: =INDEX($Y$2:$Y$276,MATCH(MIN(ABS($Y$2:$Y$276-D105)),ABS($Y$2:$Y$276-D105),0)) -> 179 | F105: 252 | G105: =INDEX($Y$2:$Y$276,MATCH(MIN(ABS($Y$2:$Y$276-F105)),ABS($Y$2:$Y$276-F105),0)) -> 251 | H105: 3150 | I105: 2938.065394 | J105: F | K105: 1 | L105: 26.9047619 | M105: 98.33161155 | N105: 393.3264462 | O105: 0.2406533007 | P105: 27.01195219 | Q105: 100.6412886 | R105: 402.5651545 | S105: 0.2351304043 | T105: 312.0069444 | U105: 196.9652778 | Y105: 569
A106: 10.5 | B106: 126 | C106: =INDEX($Y$2:$Y$276,MATCH(MIN(ABS($Y$2:$Y$276-B106)),ABS($Y$2:$Y$276-B106),0)) -> 127 | D106: 189 | E106: =INDEX($Y$2:$Y$276,MATCH(MIN(ABS($Y$2:$Y$276-D106)),ABS($Y$2:$Y$276-D106),0)) -> 191 | F106: 264.6 | G106: =INDEX($Y$2:$Y$276,MATCH(MIN(ABS($Y$2:$Y$276-F106)),ABS($Y$2:$Y$276-F106),0)) -> 263 | H106: 3646.51875 | I106: 3691.89294 | J106: F | K106: 1 | L106: 25.62358277 | M106: 93.64915386 | N106: 374.5966154 | O106: 0.2526859657 | P106: 25.77946768 | Q106: 93.26391495 | R106: 373.0556598 | S106: 0.2537297184 | T106: 348.8402778 | U106: 231.9513889 | Y106: 571
A107: 11 | B107: 132 | C107: =INDEX($Y$2:$Y$276,MATCH(MIN(ABS($Y$2:$Y$276-B107)),ABS($Y$2:$Y$276-B107),0)) -> 131 | D107: 198 | E107: =INDEX($Y$2:$Y$276,MATCH(MIN(ABS($Y$2:$Y$276-D107)),ABS($Y$2:$Y$276-D107),0)) -> 197 | F107: 277.2 | G107: =INDEX($Y$2:$Y$276,MATCH(MIN(ABS($Y$2:$Y$276-F107)),ABS($Y$2:$Y$276-F107),0)) -> 277 | H107: 4192.65 | I107: 4136.885995 | J107: F | K107: 1 | L107: 24.45887446 | M107: 89.39237414 | N107: 357.5694966 | O107: 0.2647186307 | P107: 24.4765343 | Q107: 89.79224373 | R107: 359.1689749 | S107: 0.2635397658 | T107: 378.9513889 | U107: 251.9930556 | Y107: 577
A108: 11.5 | B108: 138 | C108: =INDEX($Y$2:$Y$276,MATCH(MIN(ABS($Y$2:$Y$276-B108)),ABS($Y$2:$Y$276-B108),0)) -> 137 | D108: 207 | E108: =INDEX($Y$2:$Y$276,MATCH(MIN(ABS($Y$2:$Y$276-D108)),ABS($Y$2:$Y$276-D108),0)) -> 211 | F108: 289.8 | G108: =INDEX($Y$2:$Y$276,MATCH(MIN(ABS($Y$2:$Y$276-F108)),ABS($Y$2:$Y$276-F108),0)) -> 293 | H108: 4790.75625 | I108: 4901.476273 | J108: F | K108: 1 | L108: 23.39544513 | M108: 85.50574918 | N108: 342.0229967 | O108: 0.2767512958 | P108: 23.13993174 | Q108: 84.8570064 | R108: 339.4280256 | S108: 0.2788670952 | T108: 429.3263889 | U108: 278.7569444 | Y108: 587
A109: 12 | B109: 144 | C109: =INDEX($Y$2:$Y$276,MATCH(MIN(ABS($Y$2:$Y$276-B109)),ABS($Y$2:$Y$276-B109),0)) -> 139 | D109: 216 | E109: =INDEX($Y$2:$Y$276,MATCH(MIN(ABS($Y$2:$Y$276-D109)),ABS($Y$2:$Y$276-D109),0)) -> 211 | F109: 302.4 | G109: =INDEX($Y$2:$Y$276,MATCH(MIN(ABS($Y$2:$Y$276-F109)),ABS($Y$2:$Y$276-F109),0)) -> 307 | H109: 5443.2 | I109: 5210.649884 | J109: F | K109: 1 | L109: 22.42063492 | M109: 81.94300963 | N109: 327.7720385 | O109: 0.2887839608 | P109: 22.08469055 | Q109: 83.14434388 | R109: 332.5773755 | S109: 0.2846113852 | T109: 449.8402778 | U109: 296.3402778 | Y109: 593
A110: 12.5 | B110: 150 | C110: =INDEX($Y$2:$Y$276,MATCH(MIN(ABS($Y$2:$Y$276-B110)),ABS($Y$2:$Y$276-B110),0)) -> 149 | D110: 225 | E110: =INDEX($Y$2:$Y$276,MATCH(MIN(ABS($Y$2:$Y$276-D110)),ABS($Y$2:$Y$276-D110),0)) -> 223 | F110: 315 | G110: =INDEX($Y$2:$Y$276,MATCH(MIN(ABS($Y$2:$Y$276-F110)),ABS($Y$2:$Y$276-F110),0)) -> 313 | H110: 6152.34375 | I110: 6018.548032 | J110: F | K110: 1 | L110: 21.52380952 | M110: 78.66528924 | N110: 314.661157 | O110: 0.3008166258 | P110: 21.66134185 | Q110: 79.24394682 | R110: 316.9757873 | S110: 0.2986199935 | T110: 484.7152778 | U110: 323.8680556 | Y110: 599
A111: 13 | B111: 156 | C111: =INDEX($Y$2:$Y$276,MATCH(MIN(ABS($Y$2:$Y$276-B111)),ABS($Y$2:$Y$276-B111),0)) -> 157 | D111: 234 | E111: =INDEX($Y$2:$Y$276,MATCH(MIN(ABS($Y$2:$Y$276-D111)),ABS($Y$2:$Y$276-D111),0)) -> 233 | F111: 327.6 | G111: =INDEX($Y$2:$Y$276,MATCH(MIN(ABS($Y$2:$Y$276-F111)),ABS($Y$2:$Y$276-F111),0)) -> 331 | H111: 6920.55 | I111: 7007.124421 | J111: F | K111: 1 | L111: 20.6959707 | M111: 75.63970119 | N111: 302.5588048 | O111: 0.3128492909 | P111: 20.48338369 | Q111: 75.32689484 | R111: 301.3075793 | S111: 0.314148445 | T111: 535.5763889 | U111: 360.8819444 | Y111: 601
A112: 13.5 | B112: 162 | C112: =INDEX($Y$2:$Y$276,MATCH(MIN(ABS($Y$2:$Y$276-B112)),ABS($Y$2:$Y$276-B112),0)) -> 163 | D112: 243 | E112: =INDEX($Y$2:$Y$276,MATCH(MIN(ABS($Y$2:$Y$276-D112)),ABS($Y$2:$Y$276-D112),0)) -> 241 | F112: 340.2 | G112: =INDEX($Y$2:$Y$276,MATCH(MIN(ABS($Y$2:$Y$276-F112)),ABS($Y$2:$Y$276-F112),0)) -> 337 | H112: 7750.18125 | I112: 7661.094329 | J112: F | K112: 1 | L112: 19.92945326 | M112: 72.83823078 | N112: 291.3529231 | O112: 0.3248819559 | P112: 20.11869436 | Q112: 73.11947619 | R112: 292.4779048 | S112: 0.3236323359 | T112: 564.0069444 | U112: 381.4652778 | Y112: 607
A113: 14 | B113: 168 | C113: =INDEX($Y$2:$Y$276,MATCH(MIN(ABS($Y$2:$Y$276-B113)),ABS($Y$2:$Y$276-B113),0)) -> 167 | D113: 252 | E113: =INDEX($Y$2:$Y$276,MATCH(MIN(ABS($Y$2:$Y$276-D113)),ABS($Y$2:$Y$276-D113),0)) -> 251 | F113: 352.8 | G113: =INDEX($Y$2:$Y$276,MATCH(MIN(ABS($Y$2:$Y$276-F113)),ABS($Y$2:$Y$276-F113),0)) -> 353 | H113: 8643.6 | I113: 8562.905671 | J113: F | K113: 1 | L113: 19.21768707 | M113: 70.23686539 | N113: 280.9474616 | O113: 0.3369146209 | P113: 19.20679887 | Q113: 70.45680653 | R113: 281.8272261 | S113: 0.3358628931 | T113: 615.2986111 | U113: 409.3819444 | Y113: 613
A114: 14.5 | B114: 174 | C114: =INDEX($Y$2:$Y$276,MATCH(MIN(ABS($Y$2:$Y$276-B114)),ABS($Y$2:$Y$276-B114),0)) -> 173 | D114: 261 | E114: =INDEX($Y$2:$Y$276,MATCH(MIN(ABS($Y$2:$Y$276-D114)),ABS($Y$2:$Y$276-D114),0)) -> 263 | F114: 365.4 | G114: =INDEX($Y$2:$Y$276,MATCH(MIN(ABS($Y$2:$Y$276-F114)),ABS($Y$2:$Y$276-F114),0)) -> 367 | H114: 9603.16875 | I114: 9663.271412 | J114: F | K114: 1 | L114: 18.55500821 | M114: 67.81490452 | N114: 271.2596181 | O114: 0.348947286 | P114: 18.47411444 | Q114: 67.67401587 | R114: 270.6960635 | S114: 0.3496737496 | T114: 670.2847222 | U114: 440.9097222 | Y114: 617
A115: HEIGHT ft | B115: HEIGHT " | C115: PRIME height | D115: WIDTH " | E115: PRIME width | F115: DEPTH " | G115: PRIME depth | H115: VOLUME | I115: PRIME volume | J115: TABLE | K115: USEABLE 1=Yes 0=NO | L115: F¹ | M115: F² | N115: F³ | O115: minimum RT60 | P115: F¹ | Q115: F² | R115: F³ | S115: minimum RT60 | T115: Square Feet | U115: Square Feet | Y115: 619
A116: =B116/12 -> 8 | B116: =B101 -> 96 | C116: =INDEX($Y$2:$Y$276,MATCH(MIN(ABS($Y$2:$Y$276-B116)),ABS($Y$2:$Y$276-B116),0)) -> 97 | D116: =B116*$D$11 -> 144 | E116: =INDEX($Y$2:$Y$276,MATCH(MIN(ABS($Y$2:$Y$276-D116)),ABS($Y$2:$Y$276-D116),0)) -> 139 | F116: =B116*$E$11 -> 240 | G116: =INDEX($Y$2:$Y$276,MATCH(MIN(ABS($Y$2:$Y$276-F116)),ABS($Y$2:$Y$276-F116),0)) -> 239 | H116: =(B116/12)*(D116/12)*(F116/12) -> 1920 | I116: =(C116/12)*(E116/12)*(G116/12) -> 1864.836227 | J116: G | K116: =IF(H116>$L$21,$N$22,$O$22) -> 1 | L116: =565/(F116/12) -> 28.25 | M116: =(SQRT(O116/H116)*11250) -> 115.974613 | N116: 463.8984519 | O116: 0.2040431632 | P116: =565/(G116/12) -> 28.36820084 | Q116: =(SQRT(S116/I116)*11250) -> 117.1070683 | R116: =4*Q116 -> 468.4282734 | S116: =0.25*(((0.028316846592*I116)/100)^(1/3)) -> 0.2020700135 | T116: =(E116/12)*(G116/12) -> 230.7013889 | U116: =(C116/12)*(G116/12) -> 160.9930556 | Y116: 631
A117: 8.5 | B117: 102 | C117: =INDEX($Y$2:$Y$276,MATCH(MIN(ABS($Y$2:$Y$276-B117)),ABS($Y$2:$Y$276-B117),0)) -> 101 | D117: 153 | E117: =INDEX($Y$2:$Y$276,MATCH(MIN(ABS($Y$2:$Y$276-D117)),ABS($Y$2:$Y$276-D117),0)) -> 151 | F117: 255 | G117: =INDEX($Y$2:$Y$276,MATCH(MIN(ABS($Y$2:$Y$276-F117)),ABS($Y$2:$Y$276-F117),0)) -> 257 | H117: 2302.96875 | I117: =(C117/12)*(E117/12)*(G117/12) -> 2268.233218 | J117: G | K117: 1 | L117: 26.58823529 | M117: 109.1525769 | N117: 436.6103077 | O117: 0.2167958609 | P117: =565/(G117/12) -> 26.38132296 | Q117: =(SQRT(S117/I117)*11250) -> 109.7069411 | R117: =4*Q117 -> 438.8277644 | S117: =0.25*(((0.028316846592*I117)/100)^(1/3)) -> 0.2157003617 | T117: 269.4930556 | U117: 180.2569444 | Y117: 641
A118: 9 | B118: 108 | C118: =INDEX($Y$2:$Y$276,MATCH(MIN(ABS($Y$2:$Y$276-B118)),ABS($Y$2:$Y$276-B118),0)) -> 107 | D118: 162 | E118: =INDEX($Y$2:$Y$276,MATCH(MIN(ABS($Y$2:$Y$276-D118)),ABS($Y$2:$Y$276-D118),0)) -> 163 | F118: 270 | G118: =INDEX($Y$2:$Y$276,MATCH(MIN(ABS($Y$2:$Y$276-F118)),ABS($Y$2:$Y$276-F118),0)) -> 269 | H118: 2733.75 | I118: 2715.063079 | J118: G | K118: 1 | L118: 25.11111111 | M118: 103.0885449 | N118: 412.3541795 | O118: 0.2295485586 | P118: 25.20446097 | Q118: 103.324513 | R118: 413.2980518 | S118: 0.2290243254 | T118: 304.4930556 | U118: 199.8819444 | Y118: 643
A119: 9.5 | B119: 114 | C119: =INDEX($Y$2:$Y$276,MATCH(MIN(ABS($Y$2:$Y$276-B119)),ABS($Y$2:$Y$276-B119),0)) -> 113 | D119: 171 | E119: =INDEX($Y$2:$Y$276,MATCH(MIN(ABS($Y$2:$Y$276-D119)),ABS($Y$2:$Y$276-D119),0)) -> 173 | F119: 285 | G119: =INDEX($Y$2:$Y$276,MATCH(MIN(ABS($Y$2:$Y$276-F119)),ABS($Y$2:$Y$276-F119),0)) -> 283 | H119: 3215.15625 | I119: 3201.601273 | J119: G | K119: 1 | L119: 23.78947368 | M119: 97.66283198 | N119: 390.6513279 | O119: 0.2423012563 | P119: 23.95759717 | Q119: 97.8004666 | R119: 391.2018664 | S119: 0.2419602657 | T119: 339.9930556 | U119: 222.0763889 | Y119: 647
A120: 10 | B120: 120 | C120: =INDEX($Y$2:$Y$276,MATCH(MIN(ABS($Y$2:$Y$276-B120)),ABS($Y$2:$Y$276-B120),0)) -> 113 | D120: 180 | E120: =INDEX($Y$2:$Y$276,MATCH(MIN(ABS($Y$2:$Y$276-D120)),ABS($Y$2:$Y$276-D120),0)) -> 179 | F120: 300 | G120: =INDEX($Y$2:$Y$276,MATCH(MIN(ABS($Y$2:$Y$276-F120)),ABS($Y$2:$Y$276-F120),0)) -> 293 | H120: 3750 | I120: 3429.693866 | J120: G | K120: 1 | L120: 22.6 | M120: 92.77969038 | N120: 371.1187615 | O120: 0.255053954 | P120: 23.13993174 | Q120: 95.58246414 | R120: 382.3298566 | S120: 0.2475749824 | T120: 364.2152778 | U120: 229.9236111 | Y120: 653
A121: 10.5 | B121: 126 | C121: =INDEX($Y$2:$Y$276,MATCH(MIN(ABS($Y$2:$Y$276-B121)),ABS($Y$2:$Y$276-B121),0)) -> 127 | D121: 189 | E121: =INDEX($Y$2:$Y$276,MATCH(MIN(ABS($Y$2:$Y$276-D121)),ABS($Y$2:$Y$276-D121),0)) -> 191 | F121: 315 | G121: =INDEX($Y$2:$Y$276,MATCH(MIN(ABS($Y$2:$Y$276-F121)),ABS($Y$2:$Y$276-F121),0)) -> 313 | H121: 4341.09375 | I121: 4393.773727 | J121: G | K121: 1 | L121: 21.52380952 | M121: 88.36160988 | N121: 353.4464395 | O121: 0.2678066517 | P121: 21.66134185 | Q121: 88.00704634 | R121: 352.0281853 | S121: 0.2688855934 | T121: 415.1597222 | U121: 276.0486111 | Y121: 659
A122: 11 | B122: 132 | C122: =INDEX($Y$2:$Y$276,MATCH(MIN(ABS($Y$2:$Y$276-B122)),ABS($Y$2:$Y$276-B122),0)) -> 131 | D122: 198 | E122: =INDEX($Y$2:$Y$276,MATCH(MIN(ABS($Y$2:$Y$276-D122)),ABS($Y$2:$Y$276-D122),0)) -> 197 | F122: 330 | G122: =INDEX($Y$2:$Y$276,MATCH(MIN(ABS($Y$2:$Y$276-F122)),ABS($Y$2:$Y$276-F122),0)) -> 331 | H122: 4991.25 | I122: 4943.354745 | J122: G | K122: 1 | L122: 20.54545455 | M122: 84.34517307 | N122: 337.3806923 | O122: 0.2805593494 | P122: 20.48338369 | Q122: 84.61669965 | R122: 338.4667986 | S122: 0.2796590623 | T122: 452.8263889 | U122: 301.1180556 | Y122: 661
A123: 11.5 | B123: 138 | C123: =INDEX($Y$2:$Y$276,MATCH(MIN(ABS($Y$2:$Y$276-B123)),ABS($Y$2:$Y$276-B123),0)) -> 137 | D123: 207 | E123: =INDEX($Y$2:$Y$276,MATCH(MIN(ABS($Y$2:$Y$276-D123)),ABS($Y$2:$Y$276-D123),0)) -> 211 | F123: 345 | G123: =INDEX($Y$2:$Y$276,MATCH(MIN(ABS($Y$2:$Y$276-F123)),ABS($Y$2:$Y$276-F123),0)) -> 347 | H123: 5703.28125 | I123: 5804.820023 | J123: G | K123: 1 | L123: 19.65217391 | M123: 80.67799163 | N123: 322.7119665 | O123: 0.2933120471 | P123: 19.5389049 | Q123: 80.20481137 | R123: 320.8192455 | S123: 0.2950424853 | T123: 508.4513889 | U123: 330.1319444 | Y123: 673
A124: 12 | B124: 144 | C124: =INDEX($Y$2:$Y$276,MATCH(MIN(ABS($Y$2:$Y$276-B124)),ABS($Y$2:$Y$276-B124),0)) -> 139 | D124: 216 | E124: =INDEX($Y$2:$Y$276,MATCH(MIN(ABS($Y$2:$Y$276-D124)),ABS($Y$2:$Y$276-D124),0)) -> 211 | F124: 360 | G124: =INDEX($Y$2:$Y$276,MATCH(MIN(ABS($Y$2:$Y$276-F124)),ABS($Y$2:$Y$276-F124),0)) -> 359 | H124: 6480 | I124: 6093.235532 | J124: G | K124: 1 | L124: 18.83333333 | M124: 77.31640865 | N124: 309.2656346 | O124: 0.3060647448 | P124: 18.88579387 | Q124: 78.91883873 | R124: 315.6753549 | S124: 0.2998501658 | T124: 526.0347222 | U124: 346.5347222 | Y124: 677
A125: 12.5 | B125: 150 | C125: =INDEX($Y$2:$Y$276,MATCH(MIN(ABS($Y$2:$Y$276-B125)),ABS($Y$2:$Y$276-B125),0)) -> 149 | D125: 225 | E125: =INDEX($Y$2:$Y$276,MATCH(MIN(ABS($Y$2:$Y$276-D125)),ABS($Y$2:$Y$276-D125),0)) -> 223 | F125: 375 | G125: =INDEX($Y$2:$Y$276,MATCH(MIN(ABS($Y$2:$Y$276-F125)),ABS($Y$2:$Y$276-F125),0)) -> 373 | H125: 7324.21875 | I125: 7172.26331 | J125: G | K125: 1 | L125: 18.08 | M125: 74.2237523 | N125: 296.8950092 | O125: 0.3188174425 | P125: 18.1769437 | Q125: 74.74427489 | R125: 298.9770996 | S125: 0.3165971831 | T125: 577.6319444 | U125: 385.9513889 | Y125: 683
A126: 13 | B126: 156 | C126: =INDEX($Y$2:$Y$276,MATCH(MIN(ABS($Y$2:$Y$276-B126)),ABS($Y$2:$Y$276-B126),0)) -> 157 | D126: 234 | E126: =INDEX($Y$2:$Y$276,MATCH(MIN(ABS($Y$2:$Y$276-D126)),ABS($Y$2:$Y$276-D126),0)) -> 233 | F126: 390 | G126: =INDEX($Y$2:$Y$276,MATCH(MIN(ABS($Y$2:$Y$276-F126)),ABS($Y$2:$Y$276-F126),0)) -> 389 | H126: 8238.75 | I126: 8234.958912 | J126: G | K126: 1 | L126: 17.38461538 | M126: 71.3689926 | N126: 285.4759704 | O126: 0.3315701402 | P126: 17.42930591 | Q126: 71.37994285 | R126: 285.5197714 | S126: 0.3315192747 | T126: 629.4236111 | U126: 424.1180556 | Y126: 691
A127: 13.5 | B127: 162 | C127: =INDEX($Y$2:$Y$276,MATCH(MIN(ABS($Y$2:$Y$276-B127)),ABS($Y$2:$Y$276-B127),0)) -> 163 | D127: 243 | E127: =INDEX($Y$2:$Y$276,MATCH(MIN(ABS($Y$2:$Y$276-D127)),ABS($Y$2:$Y$276-D127),0)) -> 241 | F127: 405 | G127: =INDEX($Y$2:$Y$276,MATCH(MIN(ABS($Y$2:$Y$276-F127)),ABS($Y$2:$Y$276-F127),0)) -> 401 | H127: 9226.40625 | I127: 9116.020255 | J127: G | K127: 1 | L127: 16.74074074 | M127: 68.72569658 | N127: 274.9027863 | O127: 0.3443228379 | P127: 16.90773067 | Q127: 69.00198446 | R127: 276.0079378 | S127: 0.3429441496 | T127: 671.1180556 | U127: 453.9097222 | Y127: 701
A128: 14 | B128: 168 | C128: =INDEX($Y$2:$Y$276,MATCH(MIN(ABS($Y$2:$Y$276-B128)),ABS($Y$2:$Y$276-B128),0)) -> 167 | D128: 252 | E128: =INDEX($Y$2:$Y$276,MATCH(MIN(ABS($Y$2:$Y$276-D128)),ABS($Y$2:$Y$276-D128),0)) -> 251 | F128: 420 | G128: =INDEX($Y$2:$Y$276,MATCH(MIN(ABS($Y$2:$Y$276-F128)),ABS($Y$2:$Y$276-F128),0)) -> 419 | H128: 10290 | I128: 10163.9022 | J128: G | K128: 1 | L128: 16.14285714 | M128: 66.27120741 | N128: 265.0848297 | O128: 0.3570755356 | P128: 16.18138425 | Q128: 66.54414494 | R128: 266.1765798 | S128: 0.3556109542 | T128: 730.3402778 | U128: 485.9236111 | Y128: 709
A129: 14.5 | B129: 174 | C129: =INDEX($Y$2:$Y$276,MATCH(MIN(ABS($Y$2:$Y$276-B129)),ABS($Y$2:$Y$276-B129),0)) -> 173 | D129: 261 | E129: =INDEX($Y$2:$Y$276,MATCH(MIN(ABS($Y$2:$Y$276-D129)),ABS($Y$2:$Y$276-D129),0)) -> 263 | F129: 435 | G129: =INDEX($Y$2:$Y$276,MATCH(MIN(ABS($Y$2:$Y$276-F129)),ABS($Y$2:$Y$276-F129),0)) -> 433 | H129: 11432.34375 | I129: 11401.08044 | J129: G | K129: 1 | L129: 15.5862069 | M129: 63.98599336 | N129: 255.9439735 | O129: 0.3698282333 | P129: 15.65819861 | Q129: 64.04442608 | R129: 256.1777043 | S129: 0.3694908102 | T129: 790.8263889 | U129: 520.2013889 | Y129: 719
A130: HEIGHT ft | B130: HEIGHT " | C130: PRIME height | D130: WIDTH " | E130: PRIME width | F130: DEPTH " | G130: PRIME depth | H130: VOLUME | I130: PRIME volume | J130: TABLE | K130: USEABLE 1=Yes 0=NO | L130: F¹ | M130: F² | N130: F³ | O130: minimum RT60 | P130: F¹ | Q130: F² | R130: F³ | S130: minimum RT60 | T130: Square Feet | U130: Square Feet | Y130: 727
A131: =B131/12 -> 8 | B131: 96 | C131: =INDEX($Y$2:$Y$276,MATCH(MIN(ABS($Y$2:$Y$276-B131)),ABS($Y$2:$Y$276-B131),0)) -> 97 | D131: =B131*$D$12 -> 120.96 | E131: =INDEX($Y$2:$Y$276,MATCH(MIN(ABS($Y$2:$Y$276-D131)),ABS($Y$2:$Y$276-D131),0)) -> 127 | F131: =B131*$E$12 -> 152.64 | G131: =INDEX($Y$2:$Y$276,MATCH(MIN(ABS($Y$2:$Y$276-F131)),ABS($Y$2:$Y$276-F131),0)) -> 151 | H131: =(B131/12)*(D131/12)*(F131/12) -> 1025.7408 | I131: =(C131/12)*(E131/12)*(G131/12) -> 1076.48669 | J131: H | K131: =IF(H131>$L$21,$N$22,$O$22) -> 0 | L131: =565/(F131/12) -> 44.41823899 | M131: =(SQRT(O131/H131)*11250) -> 142.9280487 | N131: =4*M131 -> 571.7121948 | O131: =0.25*(((0.028316846592*H131)/100)^(1/3)) -> 0.1655646117 | P131: =565/(G131/12) -> 44.90066225 | Q131: =(SQRT(S131/I131)*11250) -> 140.6459141 | R131: =4*Q131 -> 562.5836564 | S131: =0.25*(((0.028316846592*I131)/100)^(1/3)) -> 0.1682510795 | T131: =(E131/12)*(G131/12) -> 133.1736111 | U131: =(C131/12)*(G131/12) -> 101.7152778 | Y131: 733
A132: 8.5 | B132: 102 | C132: =INDEX($Y$2:$Y$276,MATCH(MIN(ABS($Y$2:$Y$276-B132)),ABS($Y$2:$Y$276-B132),0)) -> 101 | D132: 128.52 | E132: =INDEX($Y$2:$Y$276,MATCH(MIN(ABS($Y$2:$Y$276-D132)),ABS($Y$2:$Y$276-D132),0)) -> 127 | F132: 162.18 | G132: =INDEX($Y$2:$Y$276,MATCH(MIN(ABS($Y$2:$Y$276-F132)),ABS($Y$2:$Y$276-F132),0)) -> 163 | H132: 1230.338025 | I132: =(C132/12)*(E132/12)*(G132/12) -> 1209.954282 | J132: H | K132: 0 | L132: 41.80540141 | M132: 134.5205164 | N132: 538.0820657 | O132: 0.1759123999 | P132: =565/(G132/12) -> 41.59509202 | Q132: =(SQRT(S132/I132)*11250) -> 135.2717228 | R132: =4*Q132 -> 541.0868911 | S132: =0.25*(((0.028316846592*I132)/100)^(1/3)) -> 0.1749355031 | T132: 143.7569444 | U132: 114.3263889 | Y132: 739
A133: 9 | B133: 108 | C133: =INDEX($Y$2:$Y$276,MATCH(MIN(ABS($Y$2:$Y$276-B133)),ABS($Y$2:$Y$276-B133),0)) -> 107 | D133: 136.08 | E133: =INDEX($Y$2:$Y$276,MATCH(MIN(ABS($Y$2:$Y$276-D133)),ABS($Y$2:$Y$276-D133),0)) -> 137 | F133: 171.72 | G133: =INDEX($Y$2:$Y$276,MATCH(MIN(ABS($Y$2:$Y$276-F133)),ABS($Y$2:$Y$276-F133),0)) -> 173 | H133: 1460.4786 | I133: 1467.596644 | J133: H | K133: 0 | L133: 39.48287911 | M133: 127.0471544 | N133: 508.1886176 | O133: 0.1862601881 | P133: 39.19075145 | Q133: 126.8414228 | R133: 507.3656911 | S133: 0.1865622946 | T133: 164.5902778 | U133: 128.5486111 | Y133: 743
A134: 9.5 | B134: 114 | C134: =INDEX($Y$2:$Y$276,MATCH(MIN(ABS($Y$2:$Y$276-B134)),ABS($Y$2:$Y$276-B134),0)) -> 113 | D134: 143.64 | E134: =INDEX($Y$2:$Y$276,MATCH(MIN(ABS($Y$2:$Y$276-D134)),ABS($Y$2:$Y$276-D134),0)) -> 139 | F134: 181.26 | G134: =INDEX($Y$2:$Y$276,MATCH(MIN(ABS($Y$2:$Y$276-F134)),ABS($Y$2:$Y$276-F134),0)) -> 181 | H134: 1717.665075 | I134: 1645.235532 | J134: H | K134: 1 | L134: 37.40483284 | M134: 120.3604621 | N134: 481.4418483 | O134: 0.1966079764 | P134: 37.45856354 | Q134: 122.1014012 | R134: 488.405605 | S134: 0.1938047118 | T134: 174.7152778 | U134: 142.0347222 | Y134: 751
A135: 10 | B135: 120 | C135: =INDEX($Y$2:$Y$276,MATCH(MIN(ABS($Y$2:$Y$276-B135)),ABS($Y$2:$Y$276-B135),0)) -> 113 | D135: 151.2 | E135: =INDEX($Y$2:$Y$276,MATCH(MIN(ABS($Y$2:$Y$276-D135)),ABS($Y$2:$Y$276-D135),0)) -> 151 | F135: 190.8 | G135: =INDEX($Y$2:$Y$276,MATCH(MIN(ABS($Y$2:$Y$276-F135)),ABS($Y$2:$Y$276-F135),0)) -> 191 | H135: 2003.4 | I135: 1886.014468 | J135: H | K135: 1 | L135: 35.53459119 | M135: 114.342439 | N135: 457.3697559 | O135: 0.2069557646 | P135: 35.4973822 | Q135: 116.6670818 | R135: 466.668327 | S135: 0.2028320802 | T135: 200.2847222 | U135: 149.8819444 | Y135: 757
A136: 10.5 | B136: 126 | C136: =INDEX($Y$2:$Y$276,MATCH(MIN(ABS($Y$2:$Y$276-B136)),ABS($Y$2:$Y$276-B136),0)) -> 127 | D136: 158.76 | E136: =INDEX($Y$2:$Y$276,MATCH(MIN(ABS($Y$2:$Y$276-D136)),ABS($Y$2:$Y$276-D136),0)) -> 157 | F136: 200.34 | G136: =INDEX($Y$2:$Y$276,MATCH(MIN(ABS($Y$2:$Y$276-F136)),ABS($Y$2:$Y$276-F136),0)) -> 199 | H136: 2319.185925 | I136: 2296.215856 | J136: H | K136: 1 | L136: 33.8424678 | M136: 108.8975609 | N136: 435.5902437 | O136: 0.2173035528 | P136: 34.07035176 | Q136: 109.2594737 | R136: 437.0378948 | S136: 0.2165837531 | T136: 216.9652778 | U136: 175.5069444 | Y136: 761
A137: 11 | B137: 132 | C137: =INDEX($Y$2:$Y$276,MATCH(MIN(ABS($Y$2:$Y$276-B137)),ABS($Y$2:$Y$276-B137),0)) -> 131 | D137: 166.32 | E137: =INDEX($Y$2:$Y$276,MATCH(MIN(ABS($Y$2:$Y$276-D137)),ABS($Y$2:$Y$276-D137),0)) -> 167 | F137: 209.88 | G137: =INDEX($Y$2:$Y$276,MATCH(MIN(ABS($Y$2:$Y$276-F137)),ABS($Y$2:$Y$276-F137),0)) -> 211 | H137: 2666.5254 | I137: 2671.323495 | J137: H | K137: 1 | L137: 32.30417381 | M137: 103.9476718 | N137: 415.7906871 | O137: 0.227651341 | P137: 32.13270142 | Q137: 103.8853993 | R137: 415.5415973 | S137: 0.2277878031 | T137: 244.7013889 | U137: 191.9513889 | Y137: 769
A138: 11.5 | B138: 138 | C138: =INDEX($Y$2:$Y$276,MATCH(MIN(ABS($Y$2:$Y$276-B138)),ABS($Y$2:$Y$276-B138),0)) -> 137 | D138: 173.88 | E138: =INDEX($Y$2:$Y$276,MATCH(MIN(ABS($Y$2:$Y$276-D138)),ABS($Y$2:$Y$276-D138),0)) -> 173 | F138: 219.42 | G138: =INDEX($Y$2:$Y$276,MATCH(MIN(ABS($Y$2:$Y$276-F138)),ABS($Y$2:$Y$276-F138),0)) -> 223 | H138: 3046.920975 | I138: 3058.635995 | J138: H | K138: 1 | L138: 30.89964452 | M138: 99.4282078 | N138: 397.7128312 | O138: 0.2379991293 | P138: 30.40358744 | Q138: 99.30110389 | R138: 397.2044156 | S138: 0.2383037645 | T138: 267.9097222 | U138: 212.1597222 | Y138: 773
A139: 12 | B139: 144 | C139: =INDEX($Y$2:$Y$276,MATCH(MIN(ABS($Y$2:$Y$276-B139)),ABS($Y$2:$Y$276-B139),0)) -> 139 | D139: 181.44 | E139: =INDEX($Y$2:$Y$276,MATCH(MIN(ABS($Y$2:$Y$276-D139)),ABS($Y$2:$Y$276-D139),0)) -> 181 | F139: 228.96 | G139: =INDEX($Y$2:$Y$276,MATCH(MIN(ABS($Y$2:$Y$276-F139)),ABS($Y$2:$Y$276-F139),0)) -> 229 | H139: 3461.8752 | I139: 3334.149884 | J139: H | K139: 1 | L139: 29.61215933 | M139: 95.28536581 | N139: 381.1414632 | O139: 0.2483469175 | P139: 29.6069869 | Q139: 96.48688853 | R139: 385.9475541 | S139: 0.2452543267 | T139: 287.8402778 | U139: 221.0486111 | Y139: 787
A140: 12.5 | B140: 150 | C140: =INDEX($Y$2:$Y$276,MATCH(MIN(ABS($Y$2:$Y$276-B140)),ABS($Y$2:$Y$276-B140),0)) -> 149 | D140: 189 | E140: =INDEX($Y$2:$Y$276,MATCH(MIN(ABS($Y$2:$Y$276-D140)),ABS($Y$2:$Y$276-D140),0)) -> 191 | F140: 238.5 | G140: =INDEX($Y$2:$Y$276,MATCH(MIN(ABS($Y$2:$Y$276-F140)),ABS($Y$2:$Y$276-F140),0)) -> 239 | H140: 3912.890625 | I140: 3936.16956 | J140: H | K140: 1 | L140: 28.42767296 | M140: 91.47395117 | N140: 365.8958047 | O140: 0.2586947057 | P140: 28.36820084 | Q140: 91.29326554 | R140: 365.1730622 | S140: 0.2592067086 | T140: 317.0069444 | U140: 247.2986111 | Y140: 797
A141: 13 | B141: 156 | C141: =INDEX($Y$2:$Y$276,MATCH(MIN(ABS($Y$2:$Y$276-B141)),ABS($Y$2:$Y$276-B141),0)) -> 157 | D141: 196.56 | E141: =INDEX($Y$2:$Y$276,MATCH(MIN(ABS($Y$2:$Y$276-D141)),ABS($Y$2:$Y$276-D141),0)) -> 197 | F141: 248.04 | G141: =INDEX($Y$2:$Y$276,MATCH(MIN(ABS($Y$2:$Y$276-F141)),ABS($Y$2:$Y$276-F141),0)) -> 251 | H141: 4401.4698 | I141: 4492.58044 | J141: H | K141: 1 | L141: 27.33430092 | M141: 87.95572228 | N141: 351.8228891 | O141: 0.269042494 | P141: 27.01195219 | Q141: 87.35706899 | R141: 349.428276 | S141: 0.2708862277 | T141: 343.3819444 | U141: 273.6597222 | Y141: 809
A142: 13.5 | B142: 162 | C142: =INDEX($Y$2:$Y$276,MATCH(MIN(ABS($Y$2:$Y$276-B142)),ABS($Y$2:$Y$276-B142),0)) -> 163 | D142: 204.12 | E142: =INDEX($Y$2:$Y$276,MATCH(MIN(ABS($Y$2:$Y$276-D142)),ABS($Y$2:$Y$276-D142),0)) -> 199 | F142: 257.58 | G142: =INDEX($Y$2:$Y$276,MATCH(MIN(ABS($Y$2:$Y$276-F142)),ABS($Y$2:$Y$276-F142),0)) -> 257 | H142: 4929.115275 | I142: 4824.252894 | J142: H | K142: 1 | L142: 26.3219194 | M142: 84.69810294 | N142: 338.7924118 | O142: 0.2793902822 | P142: 26.38132296 | Q142: 85.3073896 | R142: 341.2295584 | S142: 0.2773948071 | T142: 355.1597222 | U142: 290.9097222 | Y142: 811
A143: 14 | B143: 168 | C143: =INDEX($Y$2:$Y$276,MATCH(MIN(ABS($Y$2:$Y$276-B143)),ABS($Y$2:$Y$276-B143),0)) -> 167 | D143: 211.68 | E143: =INDEX($Y$2:$Y$276,MATCH(MIN(ABS($Y$2:$Y$276-D143)),ABS($Y$2:$Y$276-D143),0)) -> 211 | F143: 267.12 | G143: =INDEX($Y$2:$Y$276,MATCH(MIN(ABS($Y$2:$Y$276-F143)),ABS($Y$2:$Y$276-F143),0)) -> 269 | H143: 5497.3296 | I143: 5485.389468 | J143: H | K143: 1 | L143: 25.38185085 | M143: 81.67317069 | N143: 326.6926828 | O143: 0.2897380704 | P143: 25.20446097 | Q143: 81.7323875 | R143: 326.92955 | S143: 0.2895281492 | T143: 394.1597222 | U143: 311.9652778 | Y143: 821
A144: 14.5 | B144: 174 | C144: =INDEX($Y$2:$Y$276,MATCH(MIN(ABS($Y$2:$Y$276-B144)),ABS($Y$2:$Y$276-B144),0)) -> 173 | D144: 219.24 | E144: =INDEX($Y$2:$Y$276,MATCH(MIN(ABS($Y$2:$Y$276-D144)),ABS($Y$2:$Y$276-D144),0)) -> 223 | F144: 276.66 | G144: =INDEX($Y$2:$Y$276,MATCH(MIN(ABS($Y$2:$Y$276-F144)),ABS($Y$2:$Y$276-F144),0)) -> 277 | H144: 6107.615325 | I144: 6184.249421 | J144: H | K144: 1 | L144: 24.50661462 | M144: 78.85685446 | N144: 315.4274178 | O144: 0.3000858586 | P144: 24.4765343 | Q144: 78.52977306 | R144: 314.1190922 | S144: 0.3013357349 | T144: 428.9652778 | U144: 332.7847222 | Y144: 823
A145: HEIGHT ft | B145: HEIGHT " | C145: PRIME height | D145: WIDTH " | E145: PRIME width | F145: DEPTH " | G145: PRIME depth | H145: VOLUME | I145: PRIME volume | J145: TABLE | K145: USEABLE 1=Yes 0=NO | L145: F¹ | M145: F² | N145: F³ | O145: minimum RT60 | P145: F¹ | Q145: F² | R145: F³ | S145: minimum RT60 | T145: Square Feet | U145: Square Feet | Y145: 827
A146: =B146/12 -> 8 | B146: 96 | C146: =INDEX($Y$2:$Y$276,MATCH(MIN(ABS($Y$2:$Y$276-B146)),ABS($Y$2:$Y$276-B146),0)) -> 97 | D146: =B146*$D$13 -> 188.16 | E146: =INDEX($Y$2:$Y$276,MATCH(MIN(ABS($Y$2:$Y$276-D146)),ABS($Y$2:$Y$276-D146),0)) -> 191 | F146: =B146*$E$13 -> 248.64 | G146: =INDEX($Y$2:$Y$276,MATCH(MIN(ABS($Y$2:$Y$276-F146)),ABS($Y$2:$Y$276-F146),0)) -> 251 | H146: =(B146/12)*(D146/12)*(F146/12) -> 2599.1168 | I146: =(C146/12)*(E146/12)*(G146/12) -> 2691.132523 | J146: I | K146: =IF(H146>$L$21,$N$22,$O$22) -> 1 | L146: =565/(F146/12) -> 27.26833977 | M146: =(SQRT(O146/H146)*11250) -> 104.8386474 | N146: =4*M146 -> 419.3545897 | O146: =0.25*(((0.028316846592*H146)/100)^(1/3)) -> 0.2257166366 | P146: =565/(G146/12) -> 27.01195219 | Q146: =(SQRT(S146/I146)*11250) -> 103.6298763 | R146: =4*Q146 -> 414.5195053 | S146: =0.25*(((0.028316846592*I146)/100)^(1/3)) -> 0.2283494656 | T146: =(E146/12)*(G146/12) -> 332.9236111 | U146: =(C146/12)*(G146/12) -> 169.0763889 | Y146: 829
A147: 8.5 | B147: 102 | C147: =INDEX($Y$2:$Y$276,MATCH(MIN(ABS($Y$2:$Y$276-B147)),ABS($Y$2:$Y$276-B147),0)) -> 101 | D147: 199.92 | E147: =INDEX($Y$2:$Y$276,MATCH(MIN(ABS($Y$2:$Y$276-D147)),ABS($Y$2:$Y$276-D147),0)) -> 199 | F147: 264.18 | G147: =INDEX($Y$2:$Y$276,MATCH(MIN(ABS($Y$2:$Y$276-F147)),ABS($Y$2:$Y$276-F147),0)) -> 263 | H147: 3117.54415 | I147: =(C147/12)*(E147/12)*(G147/12) -> 3059.04919 | J147: I | K147: 1 | L147: 25.66431978 | M147: 98.67166818 | N147: 394.6866727 | O147: 0.2398239263 | P147: =565/(G147/12) -> 25.77946768 | Q147: =(SQRT(S147/I147)*11250) -> 99.29663273 | R147: =4*Q147 -> 397.1865309 | S147: =0.25*(((0.028316846592*I147)/100)^(1/3)) -> 0.238314495 | T147: 363.4513889 | U147: 184.4652778 | Y147: 839
A148: 9 | B148: 108 | C148: =INDEX($Y$2:$Y$276,MATCH(MIN(ABS($Y$2:$Y$276-B148)),ABS($Y$2:$Y$276-B148),0)) -> 107 | D148: 211.68 | E148: =INDEX($Y$2:$Y$276,MATCH(MIN(ABS($Y$2:$Y$276-D148)),ABS($Y$2:$Y$276-D148),0)) -> 211 | F148: 279.72 | G148: =INDEX($Y$2:$Y$276,MATCH(MIN(ABS($Y$2:$Y$276-F148)),ABS($Y$2:$Y$276-F148),0)) -> 281 | H148: 3700.6956 | I148: 3671.375579 | J148: I | K148: 1 | L148: 24.23852424 | M148: 93.18990883 | N148: 372.7596353 | O148: 0.2539312161 | P148: 24.12811388 | Q148: 93.43732642 | R148: 373.7493057 | S148: 0.2532588184 | T148: 411.7430556 | U148: 208.7986111 | Y148: 853
A149: 9.5 | B149: 114 | C149: =INDEX($Y$2:$Y$276,MATCH(MIN(ABS($Y$2:$Y$276-B149)),ABS($Y$2:$Y$276-B149),0)) -> 113 | D149: 223.44 | E149: =INDEX($Y$2:$Y$276,MATCH(MIN(ABS($Y$2:$Y$276-D149)),ABS($Y$2:$Y$276-D149),0)) -> 223 | F149: 295.26 | G149: =INDEX($Y$2:$Y$276,MATCH(MIN(ABS($Y$2:$Y$276-F149)),ABS($Y$2:$Y$276-F149),0)) -> 293 | H149: 4352.37845 | I149: 4272.747106 | J149: I | K149: 1 | L149: 22.96281244 | M149: 88.28517679 | N149: 353.1407072 | O149: 0.2680385059 | P149: 23.13993174 | Q149: 88.83026244 | R149: 355.3210498 | S149: 0.2663937517 | T149: 453.7430556 | U149: 229.9236111 | Y149: 857
A150: 10 | B150: 120 | C150: =INDEX($Y$2:$Y$276,MATCH(MIN(ABS($Y$2:$Y$276-B150)),ABS($Y$2:$Y$276-B150),0)) -> 113 | D150: 235.2 | E150: =INDEX($Y$2:$Y$276,MATCH(MIN(ABS($Y$2:$Y$276-D150)),ABS($Y$2:$Y$276-D150),0)) -> 233 | F150: 310.8 | G150: =INDEX($Y$2:$Y$276,MATCH(MIN(ABS($Y$2:$Y$276-F150)),ABS($Y$2:$Y$276-F150),0)) -> 311 | H150: 5076.4 | I150: 4738.610532 | J150: I | K150: 1 | L150: 21.81467181 | M150: 83.87091795 | N150: 335.4836718 | O150: 0.2821457957 | P150: 21.80064309 | Q150: 85.81825306 | R150: 343.2730122 | S150: 0.2757435165 | T150: 503.2152778 | U150: 244.0486111 | Y150: 859
A151: 10.5 | B151: 126 | C151: =INDEX($Y$2:$Y$276,MATCH(MIN(ABS($Y$2:$Y$276-B151)),ABS($Y$2:$Y$276-B151),0)) -> 127 | D151: 246.96 | E151: =INDEX($Y$2:$Y$276,MATCH(MIN(ABS($Y$2:$Y$276-D151)),ABS($Y$2:$Y$276-D151),0)) -> 251 | F151: 326.34 | G151: =INDEX($Y$2:$Y$276,MATCH(MIN(ABS($Y$2:$Y$276-F151)),ABS($Y$2:$Y$276-F151),0)) -> 331 | H151: 5876.56755 | I151: 6106.068866 | J151: I | K151: 1 | L151: 20.77587792 | M151: 79.87706471 | N151: 319.5082589 | O151: 0.2962530855 | P151: 20.48338369 | Q151: 78.86351115 | R151: 315.4540446 | S151: 0.3000605291 | T151: 576.9513889 | U151: 291.9236111 | Y151: 863
A152: 11 | B152: 132 | C152: =INDEX($Y$2:$Y$276,MATCH(MIN(ABS($Y$2:$Y$276-B152)),ABS($Y$2:$Y$276-B152),0)) -> 131 | D152: 258.72 | E152: =INDEX($Y$2:$Y$276,MATCH(MIN(ABS($Y$2:$Y$276-D152)),ABS($Y$2:$Y$276-D152),0)) -> 257 | F152: 341.88 | G152: =INDEX($Y$2:$Y$276,MATCH(MIN(ABS($Y$2:$Y$276-F152)),ABS($Y$2:$Y$276-F152),0)) -> 337 | H152: 6756.6884 | I152: 6565.844329 | J152: I | K152: 1 | L152: 19.83151983 | M152: 76.24628904 | N152: 304.9851562 | O152: 0.3103603753 | P152: 20.11869436 | Q152: 76.97797476 | R152: 307.911899 | S152: 0.3074103593 | T152: 601.4513889 | U152: 306.5763889 | Y152: 877
A153: 11.5 | B153: 138 | C153: =INDEX($Y$2:$Y$276,MATCH(MIN(ABS($Y$2:$Y$276-B153)),ABS($Y$2:$Y$276-B153),0)) -> 137 | D153: 270.48 | E153: =INDEX($Y$2:$Y$276,MATCH(MIN(ABS($Y$2:$Y$276-D153)),ABS($Y$2:$Y$276-D153),0)) -> 271 | F153: 357.42 | G153: =INDEX($Y$2:$Y$276,MATCH(MIN(ABS($Y$2:$Y$276-F153)),ABS($Y$2:$Y$276-F153),0)) -> 359 | H153: 7720.56985 | I153: 7713.306134 | J153: I | K153: 1 | L153: 18.96927984 | M153: 72.931233 | N153: 291.724932 | O153: 0.324467665 | P153: 18.88579387 | Q153: 72.95411923 | R153: 291.8164769 | S153: 0.3243658772 | T153: 675.6180556 | U153: 341.5486111 | Y153: 881
A154: 12 | B154: 144 | C154: =INDEX($Y$2:$Y$276,MATCH(MIN(ABS($Y$2:$Y$276-B154)),ABS($Y$2:$Y$276-B154),0)) -> 139 | D154: 282.24 | E154: =INDEX($Y$2:$Y$276,MATCH(MIN(ABS($Y$2:$Y$276-D154)),ABS($Y$2:$Y$276-D154),0)) -> 283 | F154: 372.96 | G154: =INDEX($Y$2:$Y$276,MATCH(MIN(ABS($Y$2:$Y$276-F154)),ABS($Y$2:$Y$276-F154),0)) -> 373 | H154: 8772.0192 | I154: 8491.146412 | J154: I | K154: 1 | L154: 18.17889318 | M154: 69.89243162 | N154: 279.5697265 | O154: 0.3385749548 | P154: 18.1769437 | Q154: 70.65472846 | R154: 282.6189138 | S154: 0.3349220554 | T154: 733.0486111 | U154: 360.0486111 | Y154: 883
A155: 12.5 | B155: 150 | C155: =INDEX($Y$2:$Y$276,MATCH(MIN(ABS($Y$2:$Y$276-B155)),ABS($Y$2:$Y$276-B155),0)) -> 149 | D155: 294 | E155: =INDEX($Y$2:$Y$276,MATCH(MIN(ABS($Y$2:$Y$276-D155)),ABS($Y$2:$Y$276-D155),0)) -> 293 | F155: 388.5 | G155: =INDEX($Y$2:$Y$276,MATCH(MIN(ABS($Y$2:$Y$276-F155)),ABS($Y$2:$Y$276-F155),0)) -> 389 | H155: 9914.84375 | I155: 9827.877894 | J155: I | K155: 1 | L155: 17.45173745 | M155: 67.09673436 | N155: 268.3869374 | O155: 0.3526822446 | P155: 17.42930591 | Q155: 67.29406409 | R155: 269.1762564 | S155: 0.3516480569 | T155: 791.5069444 | U155: 402.5069444 | Y155: 887
A156: 13 | B156: 156 | C156: =INDEX($Y$2:$Y$276,MATCH(MIN(ABS($Y$2:$Y$276-B156)),ABS($Y$2:$Y$276-B156),0)) -> 157 | D156: 305.76 | E156: =INDEX($Y$2:$Y$276,MATCH(MIN(ABS($Y$2:$Y$276-D156)),ABS($Y$2:$Y$276-D156),0)) -> 307 | F156: 404.04 | G156: =INDEX($Y$2:$Y$276,MATCH(MIN(ABS($Y$2:$Y$276-F156)),ABS($Y$2:$Y$276-F156),0)) -> 401 | H156: 11152.8508 | I156: 11185.06887 | J156: I | K156: 1 | L156: 16.78051678 | M156: 64.51609073 | N156: 258.0643629 | O156: 0.3667895344 | P156: 16.90773067 | Q156: 64.45408597 | R156: 257.8163439 | S156: 0.3671423855 | T156: 854.9097222 | U156: 437.2013889 | Y156: 907
A157: 13.5 | B157: 162 | C157: =INDEX($Y$2:$Y$276,MATCH(MIN(ABS($Y$2:$Y$276-B157)),ABS($Y$2:$Y$276-B157),0)) -> 163 | D157: 317.52 | E157: =INDEX($Y$2:$Y$276,MATCH(MIN(ABS($Y$2:$Y$276-D157)),ABS($Y$2:$Y$276-D157),0)) -> 317 | F157: 419.58 | G157: =INDEX($Y$2:$Y$276,MATCH(MIN(ABS($Y$2:$Y$276-F157)),ABS($Y$2:$Y$276-F157),0)) -> 419 | H157: 12489.84765 | I157: 12529.02141 | J157: I | K157: 1 | L157: 16.15901616 | M157: 62.12660589 | N157: 248.5064236 | O157: 0.3808968242 | P157: 16.18138425 | Q157: 62.06178907 | R157: 248.2471563 | S157: 0.3812946296 | T157: 922.3819444 | U157: 474.2847222 | Y157: 911
A158: 14 | B158: 168 | C158: =INDEX($Y$2:$Y$276,MATCH(MIN(ABS($Y$2:$Y$276-B158)),ABS($Y$2:$Y$276-B158),0)) -> 167 | D158: 329.28 | E158: =INDEX($Y$2:$Y$276,MATCH(MIN(ABS($Y$2:$Y$276-D158)),ABS($Y$2:$Y$276-D158),0)) -> 331 | F158: 435.12 | G158: =INDEX($Y$2:$Y$276,MATCH(MIN(ABS($Y$2:$Y$276-F158)),ABS($Y$2:$Y$276-F158),0)) -> 433 | H158: 13929.6416 | I158: 13851.239 | J158: I | K158: 1 | L158: 15.58190844 | M158: 59.90779854 | N158: 239.6311941 | O158: 0.395004114 | P158: 15.65819861 | Q158: 60.02061859 | R158: 240.0824744 | S158: 0.3942616294 | T158: 995.2986111 | U158: 502.1597222 | Y158: 919
A159: 14.5 | B159: 174 | C159: =INDEX($Y$2:$Y$276,MATCH(MIN(ABS($Y$2:$Y$276-B159)),ABS($Y$2:$Y$276-B159),0)) -> 173 | D159: 341.04 | E159: =INDEX($Y$2:$Y$276,MATCH(MIN(ABS($Y$2:$Y$276-D159)),ABS($Y$2:$Y$276-D159),0)) -> 337 | F159: 450.66 | G159: =INDEX($Y$2:$Y$276,MATCH(MIN(ABS($Y$2:$Y$276-F159)),ABS($Y$2:$Y$276-F159),0)) -> 449 | H159: 15476.03995 | I159: 15148.81308 | J159: I | K159: 1 | L159: 15.04460125 | M159: 57.84201238 | N159: 231.3680495 | O159: 0.4091114038 | P159: 15.10022272 | Q159: 58.25552751 | R159: 233.02211 | S159: 0.4062074089 | T159: 1050.784722 | U159: 539.4236111 | Y159: 929
A160: HEIGHT ft | B160: HEIGHT " | C160: PRIME height | D160: WIDTH " | E160: PRIME width | F160: DEPTH " | G160: PRIME depth | H160: VOLUME | I160: PRIME volume | J160: TABLE | K160: USEABLE 1=Yes 0=NO | L160: F¹ | M160: F² | N160: F³ | O160: minimum RT60 | P160: F¹ | Q160: F² | R160: F³ | S160: minimum RT60 | T160: Square Feet | U160: Square Feet | Y160: 937
A161: =B161/12 -> 8 | B161: 96 | C161: =INDEX($Y$2:$Y$276,MATCH(MIN(ABS($Y$2:$Y$276-B161)),ABS($Y$2:$Y$276-B161),0)) -> 97 | D161: =B161*$D$14 -> 155.52 | E161: =INDEX($Y$2:$Y$276,MATCH(MIN(ABS($Y$2:$Y$276-D161)),ABS($Y$2:$Y$276-D161),0)) -> 157 | F161: =B161*$E$14 -> 251.52 | G161: =INDEX($Y$2:$Y$276,MATCH(MIN(ABS($Y$2:$Y$276-F161)),ABS($Y$2:$Y$276-F161),0)) -> 251 | H161: =(B161/12)*(D161/12)*(F161/12) -> 2173.1328 | I161: =(C161/12)*(E161/12)*(G161/12) -> 2212.082755 | J161: J | K161: =IF(H161>$L$21,$N$22,$O$22) -> 1 | L161: =565/(F161/12) -> 26.95610687 | M161: =(SQRT(O161/H161)*11250) -> 111.2844762 | N161: =4*M161 -> 445.1379047 | O161: =0.25*(((0.028316846592*H161)/100)^(1/3)) -> 0.2126426587 | P161: =565/(G161/12) -> 27.01195219 | Q161: =(SQRT(S161/I161)*11250) -> 110.6274456 | R161: =4*Q161 -> 442.5097826 | S161: =0.25*(((0.028316846592*I161)/100)^(1/3)) -> 0.2139055706 | T161: =(E161/12)*(G161/12) -> 273.6597222 | U161: =(C161/12)*(G161/12) -> 169.0763889 | Y161: 941
A162: 8.5 | B162: 102 | C162: =INDEX($Y$2:$Y$276,MATCH(MIN(ABS($Y$2:$Y$276-B162)),ABS($Y$2:$Y$276-B162),0)) -> 101 | D162: 165.24 | E162: =INDEX($Y$2:$Y$276,MATCH(MIN(ABS($Y$2:$Y$276-D162)),ABS($Y$2:$Y$276-D162),0)) -> 167 | F162: 267.24 | G162: =INDEX($Y$2:$Y$276,MATCH(MIN(ABS($Y$2:$Y$276-F162)),ABS($Y$2:$Y$276-F162),0)) -> 269 | H162: 2606.59215 | I162: =(C162/12)*(E162/12)*(G162/12) -> 2625.707755 | J162: J | K162: 1 | L162: 25.37045352 | M162: 104.7383305 | N162: 418.953322 | O162: 0.2259328248 | P162: =565/(G162/12) -> 25.20446097 | Q162: =(SQRT(S162/I162)*11250) -> 104.4835402 | R162: =4*Q162 -> 417.9341607 | S162: =0.25*(((0.028316846592*I162)/100)^(1/3)) -> 0.2264837777 | T162: 311.9652778 | U162: 188.6736111 | Y162: 947
A163: 9 | B163: 108 | C163: =INDEX($Y$2:$Y$276,MATCH(MIN(ABS($Y$2:$Y$276-B163)),ABS($Y$2:$Y$276-B163),0)) -> 107 | D163: 174.96 | E163: =INDEX($Y$2:$Y$276,MATCH(MIN(ABS($Y$2:$Y$276-D163)),ABS($Y$2:$Y$276-D163),0)) -> 173 | F163: 282.96 | G163: =INDEX($Y$2:$Y$276,MATCH(MIN(ABS($Y$2:$Y$276-F163)),ABS($Y$2:$Y$276-F163),0)) -> 283 | H163: 3094.1676 | I163: 3031.604745 | J163: J | K163: 1 | L163: 23.96098388 | M163: 98.91953437 | N163: 395.6781375 | O163: 0.239222991 | P163: 23.95759717 | Q163: 99.59536985 | R163: 398.3814794 | S163: 0.2375996687 | T163: 339.9930556 | U163: 210.2847222 | Y163: 953
A164: 9.5 | B164: 114 | C164: =INDEX($Y$2:$Y$276,MATCH(MIN(ABS($Y$2:$Y$276-B164)),ABS($Y$2:$Y$276-B164),0)) -> 113 | D164: 184.68 | E164: =INDEX($Y$2:$Y$276,MATCH(MIN(ABS($Y$2:$Y$276-D164)),ABS($Y$2:$Y$276-D164),0)) -> 181 | F164: 298.68 | G164: =INDEX($Y$2:$Y$276,MATCH(MIN(ABS($Y$2:$Y$276-F164)),ABS($Y$2:$Y$276-F164),0)) -> 293 | H164: 3639.04245 | I164: 3468.014468 | J164: J | K164: 1 | L164: 22.69987947 | M164: 93.71324309 | N164: 374.8529723 | O164: 0.2525131572 | P164: 23.13993174 | Q164: 95.22910615 | R164: 380.9164246 | S164: 0.2484936364 | T164: 368.2847222 | U164: 229.9236111 | Y164: 967
A165: 10 | B165: 120 | C165: =INDEX($Y$2:$Y$276,MATCH(MIN(ABS($Y$2:$Y$276-B165)),ABS($Y$2:$Y$276-B165),0)) -> 113 | D165: 194.4 | E165: =INDEX($Y$2:$Y$276,MATCH(MIN(ABS($Y$2:$Y$276-D165)),ABS($Y$2:$Y$276-D165),0)) -> 193 | F165: 314.4 | G165: =INDEX($Y$2:$Y$276,MATCH(MIN(ABS($Y$2:$Y$276-F165)),ABS($Y$2:$Y$276-F165),0)) -> 313 | H165: 4244.4 | I165: 3950.35706 | J165: J | K165: 1 | L165: 21.5648855 | M165: 89.02758093 | N165: 356.1103237 | O165: 0.2658033233 | P165: 21.66134185 | Q165: 91.18384278 | R165: 364.7353711 | S165: 0.2595177628 | T165: 419.5069444 | U165: 245.6180556 | Y165: 971
A166: 10.5 | B166: 126 | C166: =INDEX($Y$2:$Y$276,MATCH(MIN(ABS($Y$2:$Y$276-B166)),ABS($Y$2:$Y$276-B166),0)) -> 127 | D166: 204.12 | E166: =INDEX($Y$2:$Y$276,MATCH(MIN(ABS($Y$2:$Y$276-D166)),ABS($Y$2:$Y$276-D166),0)) -> 199 | F166: 330.12 | G166: =INDEX($Y$2:$Y$276,MATCH(MIN(ABS($Y$2:$Y$276-F166)),ABS($Y$2:$Y$276-F166),0)) -> 331 | H166: 4913.42355 | I166: 4841.066551 | J166: J | K166: 1 | L166: 20.53798619 | M166: 84.78817232 | N166: 339.1526893 | O166: 0.2790934895 | P166: 20.48338369 | Q166: 85.2085138 | R166: 340.8340552 | S166: 0.2777166955 | T166: 457.4236111 | U166: 291.9236111 | Y166: 977
A167: 11 | B167: 132 | C167: =INDEX($Y$2:$Y$276,MATCH(MIN(ABS($Y$2:$Y$276-B167)),ABS($Y$2:$Y$276-B167),0)) -> 131 | D167: 213.84 | E167: =INDEX($Y$2:$Y$276,MATCH(MIN(ABS($Y$2:$Y$276-D167)),ABS($Y$2:$Y$276-D167),0)) -> 211 | F167: 345.84 | G167: =INDEX($Y$2:$Y$276,MATCH(MIN(ABS($Y$2:$Y$276-F167)),ABS($Y$2:$Y$276-F167),0)) -> 347 | H167: 5649.2964 | I167: 5550.594329 | J167: J | K167: 1 | L167: 19.60444136 | M167: 80.93416448 | N167: 323.7366579 | O167: 0.2923836557 | P167: 19.5389049 | Q167: 81.41107927 | R167: 325.6443171 | S167: 0.290670841 | T167: 508.4513889 | U167: 315.6736111 | Y167: 983
A168: 11.5 | B168: 138 | C168: =INDEX($Y$2:$Y$276,MATCH(MIN(ABS($Y$2:$Y$276-B168)),ABS($Y$2:$Y$276-B168),0)) -> 137 | D168: 223.56 | E168: =INDEX($Y$2:$Y$276,MATCH(MIN(ABS($Y$2:$Y$276-D168)),ABS($Y$2:$Y$276-D168),0)) -> 223 | F168: 361.56 | G168: =INDEX($Y$2:$Y$276,MATCH(MIN(ABS($Y$2:$Y$276-F168)),ABS($Y$2:$Y$276-F168),0)) -> 359 | H168: 6455.20185 | I168: 6347.11169 | J168: J | K168: 1 | L168: 18.75207434 | M168: 77.41528777 | N168: 309.6611511 | O168: 0.3056738218 | P168: 18.88579387 | Q168: 77.85227258 | R168: 311.4090903 | S168: 0.3039580746 | T168: 555.9513889 | U168: 341.5486111 | Y168: 991
A169: 12 | B169: 144 | C169: =INDEX($Y$2:$Y$276,MATCH(MIN(ABS($Y$2:$Y$276-B169)),ABS($Y$2:$Y$276-B169),0)) -> 139 | D169: 233.28 | E169: =INDEX($Y$2:$Y$276,MATCH(MIN(ABS($Y$2:$Y$276-D169)),ABS($Y$2:$Y$276-D169),0)) -> 233 | F169: 377.28 | G169: =INDEX($Y$2:$Y$276,MATCH(MIN(ABS($Y$2:$Y$276-F169)),ABS($Y$2:$Y$276-F169),0)) -> 379 | H169: 7334.3232 | I169: 7103.398727 | J169: J | K169: 1 | L169: 17.97073791 | M169: 74.18965078 | N169: 296.7586031 | O169: 0.318963988 | P169: 17.88918206 | Q169: 74.98503705 | R169: 299.9401482 | S169: 0.315580652 | T169: 613.2430556 | U169: 365.8402778 | Y169: 997
A170: 12.5 | B170: 150 | C170: =INDEX($Y$2:$Y$276,MATCH(MIN(ABS($Y$2:$Y$276-B170)),ABS($Y$2:$Y$276-B170),0)) -> 149 | D170: 243 | E170: =INDEX($Y$2:$Y$276,MATCH(MIN(ABS($Y$2:$Y$276-D170)),ABS($Y$2:$Y$276-D170),0)) -> 241 | F170: 393 | G170: =INDEX($Y$2:$Y$276,MATCH(MIN(ABS($Y$2:$Y$276-F170)),ABS($Y$2:$Y$276-F170),0)) -> 389 | H170: 8289.84375 | I170: 8083.681134 | J170: J | K170: 1 | L170: 17.2519084 | M170: 71.22206474 | N170: 284.888259 | O170: 0.3322541542 | P170: 17.42930591 | Q170: 71.8224612 | R170: 287.2898448 | S170: 0.3294766913 | T170: 651.0347222 | U170: 402.5069444 | Y170: 1009
A171: 13 | B171: 156 | C171: =INDEX($Y$2:$Y$276,MATCH(MIN(ABS($Y$2:$Y$276-B171)),ABS($Y$2:$Y$276-B171),0)) -> 157 | D171: 252.72 | E171: =INDEX($Y$2:$Y$276,MATCH(MIN(ABS($Y$2:$Y$276-D171)),ABS($Y$2:$Y$276-D171),0)) -> 251 | F171: 408.72 | G171: =INDEX($Y$2:$Y$276,MATCH(MIN(ABS($Y$2:$Y$276-F171)),ABS($Y$2:$Y$276-F171),0)) -> 409 | H171: 9324.9468 | I171: 9327.235532 | J171: J | K171: 1 | L171: 16.58837346 | M171: 68.48275456 | N171: 273.9310182 | O171: 0.3455443203 | P171: 16.57701711 | Q171: 68.47715263 | R171: 273.9086105 | S171: 0.3455725884 | T171: 712.9097222 | U171: 445.9236111 | Y171: 1013
A172: 13.5 | B172: 162 | C172: =INDEX($Y$2:$Y$276,MATCH(MIN(ABS($Y$2:$Y$276-B172)),ABS($Y$2:$Y$276-B172),0)) -> 163 | D172: 262.44 | E172: =INDEX($Y$2:$Y$276,MATCH(MIN(ABS($Y$2:$Y$276-D172)),ABS($Y$2:$Y$276-D172),0)) -> 263 | F172: 424.44 | G172: =INDEX($Y$2:$Y$276,MATCH(MIN(ABS($Y$2:$Y$276-F172)),ABS($Y$2:$Y$276-F172),0)) -> 421 | H172: 10442.81565 | I172: 10444.35706 | J172: J | K172: 1 | L172: 15.97398926 | M172: 65.94635625 | N172: 263.785425 | O172: 0.3588344865 | P172: 16.10451306 | Q172: 65.9431119 | R172: 263.7724476 | S172: 0.3588521409 | T172: 768.9097222 | U172: 476.5486111 | Y172: 1019
A173: 14 | B173: 168 | C173: =INDEX($Y$2:$Y$276,MATCH(MIN(ABS($Y$2:$Y$276-B173)),ABS($Y$2:$Y$276-B173),0)) -> 167 | D173: 272.16 | E173: =INDEX($Y$2:$Y$276,MATCH(MIN(ABS($Y$2:$Y$276-D173)),ABS($Y$2:$Y$276-D173),0)) -> 271 | F173: 440.16 | G173: =INDEX($Y$2:$Y$276,MATCH(MIN(ABS($Y$2:$Y$276-F173)),ABS($Y$2:$Y$276-F173),0)) -> 439 | H173: 11646.6336 | I173: 11497.58275 | J173: J | K173: 1 | L173: 15.40348964 | M173: 63.59112924 | N173: 254.3645169 | O173: 0.3721246527 | P173: 15.44419134 | Q173: 63.86474171 | R173: 255.4589668 | S173: 0.3705303779 | T173: 826.1736111 | U173: 509.1180556 | Y173: 1021
A174: 14.5 | B174: 174 | C174: =INDEX($Y$2:$Y$276,MATCH(MIN(ABS($Y$2:$Y$276-B174)),ABS($Y$2:$Y$276-B174),0)) -> 173 | D174: 281.88 | E174: =INDEX($Y$2:$Y$276,MATCH(MIN(ABS($Y$2:$Y$276-D174)),ABS($Y$2:$Y$276-D174),0)) -> 281 | F174: 455.88 | G174: =INDEX($Y$2:$Y$276,MATCH(MIN(ABS($Y$2:$Y$276-F174)),ABS($Y$2:$Y$276-F174),0)) -> 457 | H174: 12939.58395 | I174: 12856.56308 | J174: J | K174: 1 | L174: 14.87233482 | M174: 61.39833168 | N174: 245.5933267 | O174: 0.3854148188 | P174: 14.83588621 | Q174: 61.53020752 | R174: 246.1208301 | S174: 0.3845887709 | T174: 891.7847222 | U174: 549.0347222 | Y174: 1031
A175: HEIGHT ft | B175: HEIGHT " | C175: PRIME height | D175: WIDTH " | E175: PRIME width | F175: DEPTH " | G175: PRIME depth | H175: VOLUME | I175: PRIME volume | J175: TABLE | K175: USEABLE 1=Yes 0=NO | L175: F¹ | M175: F² | N175: F³ | O175: minimum RT60 | P175: F¹ | Q175: F² | R175: F³ | S175: minimum RT60 | T175: Square Feet | U175: Square Feet | Y175: 1033
A176: =B176/12 -> 8 | B176: 96 | C176: =INDEX($Y$2:$Y$276,MATCH(MIN(ABS($Y$2:$Y$276-B176)),ABS($Y$2:$Y$276-B176),0)) -> 97 | D176: =B176*$D$15 -> 143.04 | E176: =INDEX($Y$2:$Y$276,MATCH(MIN(ABS($Y$2:$Y$276-D176)),ABS($Y$2:$Y$276-D176),0)) -> 139 | F176: =B176*$E$15 -> 221.76 | G176: =INDEX($Y$2:$Y$276,MATCH(MIN(ABS($Y$2:$Y$276-F176)),ABS($Y$2:$Y$276-F176),0)) -> 223 | H176: =(B176/12)*(D176/12)*(F176/12) -> 1762.2528 | I176: =(C176/12)*(E176/12)*(G176/12) -> 1739.993634 | J176: K | K176: =IF(H176>$L$21,$N$22,$O$22) -> 1 | L176: =565/(F176/12) -> 30.57359307 | M176: =(SQRT(O176/H176)*11250) -> 119.3366764 | N176: =4*M176 -> 477.3467057 | O176: =0.25*(((0.028316846592*H176)/100)^(1/3)) -> 0.1982946701 | P176: =565/(G176/12) -> 30.40358744 | Q176: =(SQRT(S176/I176)*11250) -> 119.8434 | R176: =4*Q176 -> 479.3736 | S176: =0.25*(((0.028316846592*I176)/100)^(1/3)) -> 0.1974562377 | T176: =(E176/12)*(G176/12) -> 215.2569444 | U176: =(C176/12)*(G176/12) -> 150.2152778 | Y176: 1039
A177: 8.5 | B177: 102 | C177: =INDEX($Y$2:$Y$276,MATCH(MIN(ABS($Y$2:$Y$276-B177)),ABS($Y$2:$Y$276-B177),0)) -> 101 | D177: 151.98 | E177: =INDEX($Y$2:$Y$276,MATCH(MIN(ABS($Y$2:$Y$276-D177)),ABS($Y$2:$Y$276-D177),0)) -> 151 | F177: 235.62 | G177: =INDEX($Y$2:$Y$276,MATCH(MIN(ABS($Y$2:$Y$276-F177)),ABS($Y$2:$Y$276-F177),0)) -> 233 | H177: 2113.756838 | I177: =(C177/12)*(E177/12)*(G177/12) -> 2056.413773 | J177: K | K177: 1 | L177: 28.77514642 | M177: 112.3168719 | N177: 449.2674877 | O177: 0.210688087 | P177: =565/(G177/12) -> 29.09871245 | Q177: =(SQRT(S177/I177)*11250) -> 113.3513004 | R177: =4*Q177 -> 453.4052015 | S177: =0.25*(((0.028316846592*I177)/100)^(1/3)) -> 0.2087653763 | T177: 244.3263889 | U177: 163.4236111 | Y177: 1049
A178: 9 | B178: 108 | C178: =INDEX($Y$2:$Y$276,MATCH(MIN(ABS($Y$2:$Y$276-B178)),ABS($Y$2:$Y$276-B178),0)) -> 107 | D178: 160.92 | E178: =INDEX($Y$2:$Y$276,MATCH(MIN(ABS($Y$2:$Y$276-D178)),ABS($Y$2:$Y$276-D178),0)) -> 163 | F178: 249.48 | G178: =INDEX($Y$2:$Y$276,MATCH(MIN(ABS($Y$2:$Y$276-F178)),ABS($Y$2:$Y$276-F178),0)) -> 251 | H178: 2509.1451 | I178: 2533.385995 | J178: K | K178: 1 | L178: 27.17652718 | M178: 106.0770457 | N178: 424.3081828 | O178: 0.2230815039 | P178: 27.01195219 | Q178: 105.7376254 | R178: 422.9505016 | S178: 0.2237976008 | T178: 284.1180556 | U178: 186.5069444 | Y178: 1051
A179: 9.5 | B179: 114 | C179: =INDEX($Y$2:$Y$276,MATCH(MIN(ABS($Y$2:$Y$276-B179)),ABS($Y$2:$Y$276-B179),0)) -> 113 | D179: 169.86 | E179: =INDEX($Y$2:$Y$276,MATCH(MIN(ABS($Y$2:$Y$276-D179)),ABS($Y$2:$Y$276-D179),0)) -> 167 | F179: 263.34 | G179: =INDEX($Y$2:$Y$276,MATCH(MIN(ABS($Y$2:$Y$276-F179)),ABS($Y$2:$Y$276-F179),0)) -> 263 | H179: 2950.999013 | I179: 2872.148727 | J179: K | K179: 1 | L179: 25.74618364 | M179: 100.4940433 | N179: 401.9761732 | O179: 0.2354749207 | P179: 25.77946768 | Q179: 101.4053885 | R179: 405.6215539 | S179: 0.2333586729 | T179: 305.0069444 | U179: 206.3819444 | Y179: 1061
A180: 10 | B180: =B165 -> 120 | C180: =INDEX($Y$2:$Y$276,MATCH(MIN(ABS($Y$2:$Y$276-B180)),ABS($Y$2:$Y$276-B180),0)) -> 113 | D180: 178.8 | E180: =INDEX($Y$2:$Y$276,MATCH(MIN(ABS($Y$2:$Y$276-D180)),ABS($Y$2:$Y$276-D180),0)) -> 179 | F180: 277.2 | G180: =INDEX($Y$2:$Y$276,MATCH(MIN(ABS($Y$2:$Y$276-F180)),ABS($Y$2:$Y$276-F180),0)) -> 277 | H180: 3441.9 | I180: 3242.406829 | J180: K | K180: 1 | L180: 24.45887446 | M180: 95.46934113 | N180: 381.8773645 | O180: 0.2478683376 | P180: 24.4765343 | Q180: 97.38846178 | R180: 389.5538471 | S180: 0.2429838859 | T180: 344.3263889 | U180: 217.3680556 | Y180: 1063
A181: 10.5 | B181: 126 | C181: =INDEX($Y$2:$Y$276,MATCH(MIN(ABS($Y$2:$Y$276-B181)),ABS($Y$2:$Y$276-B181),0)) -> 127 | D181: 187.74 | E181: =INDEX($Y$2:$Y$276,MATCH(MIN(ABS($Y$2:$Y$276-D181)),ABS($Y$2:$Y$276-D181),0)) -> 191 | F181: 291.06 | G181: =INDEX($Y$2:$Y$276,MATCH(MIN(ABS($Y$2:$Y$276-F181)),ABS($Y$2:$Y$276-F181),0)) -> 293 | H181: 3984.429488 | I181: 4113.021412 | J181: K | K181: 1 | L181: 23.29416615 | M181: 90.92318203 | N181: 363.6927281 | O181: 0.2602617545 | P181: 23.13993174 | Q181: 89.9655732 | R181: 359.8622928 | S181: 0.2630320248 | T181: 388.6319444 | U181: 258.4097222 | Y181: 1069
A182: 11 | B182: 132 | C182: =INDEX($Y$2:$Y$276,MATCH(MIN(ABS($Y$2:$Y$276-B182)),ABS($Y$2:$Y$276-B182),0)) -> 131 | D182: 196.68 | E182: =INDEX($Y$2:$Y$276,MATCH(MIN(ABS($Y$2:$Y$276-D182)),ABS($Y$2:$Y$276-D182),0)) -> 197 | F182: 304.92 | G182: =INDEX($Y$2:$Y$276,MATCH(MIN(ABS($Y$2:$Y$276-F182)),ABS($Y$2:$Y$276-F182),0)) -> 307 | H182: 4581.1689 | I182: 4584.92419 | J182: K | K182: 1 | L182: 22.23534042 | M182: 86.79031012 | N182: 347.1612405 | O182: 0.2726551714 | P182: 22.08469055 | Q182: 86.7666084 | R182: 347.0664336 | S182: 0.2727296516 | T182: 419.9930556 | U182: 279.2847222 | Y182: 1087
A183: 11.5 | B183: 138 | C183: =INDEX($Y$2:$Y$276,MATCH(MIN(ABS($Y$2:$Y$276-B183)),ABS($Y$2:$Y$276-B183),0)) -> 137 | D183: 205.62 | E183: =INDEX($Y$2:$Y$276,MATCH(MIN(ABS($Y$2:$Y$276-D183)),ABS($Y$2:$Y$276-D183),0)) -> 211 | F183: 318.78 | G183: =INDEX($Y$2:$Y$276,MATCH(MIN(ABS($Y$2:$Y$276-F183)),ABS($Y$2:$Y$276-F183),0)) -> 317 | H183: 5234.699663 | I183: 5302.962384 | J183: K | K183: 1 | L183: 21.26858649 | M183: 83.01681837 | N183: 332.0672735 | O183: 0.2850485883 | P183: 21.38801262 | Q183: 82.65906579 | R183: 330.6362632 | S183: 0.2862822929 | T183: 464.4930556 | U183: 301.5902778 | Y183: 1091
A184: 12 | B184: 144 | C184: =INDEX($Y$2:$Y$276,MATCH(MIN(ABS($Y$2:$Y$276-B184)),ABS($Y$2:$Y$276-B184),0)) -> 139 | D184: 214.56 | E184: =INDEX($Y$2:$Y$276,MATCH(MIN(ABS($Y$2:$Y$276-D184)),ABS($Y$2:$Y$276-D184),0)) -> 211 | F184: 332.64 | G184: =INDEX($Y$2:$Y$276,MATCH(MIN(ABS($Y$2:$Y$276-F184)),ABS($Y$2:$Y$276-F184),0)) -> 331 | H184: 5947.6032 | I184: 5617.997106 | J184: K | K184: 1 | L184: 20.38239538 | M184: 79.55778428 | N184: 318.2311371 | O184: 0.2974420052 | P184: 20.48338369 | Q184: 81.08418784 | R184: 324.3367514 | S184: 0.2918426824 | T184: 485.0069444 | U184: 319.5069444 | Y184: 1093
A185: 12.5 | B185: 150 | C185: =INDEX($Y$2:$Y$276,MATCH(MIN(ABS($Y$2:$Y$276-B185)),ABS($Y$2:$Y$276-B185),0)) -> 149 | D185: 223.5 | E185: =INDEX($Y$2:$Y$276,MATCH(MIN(ABS($Y$2:$Y$276-D185)),ABS($Y$2:$Y$276-D185),0)) -> 223 | F185: 346.5 | G185: =INDEX($Y$2:$Y$276,MATCH(MIN(ABS($Y$2:$Y$276-F185)),ABS($Y$2:$Y$276-F185),0)) -> 347 | H185: 6722.460938 | I185: 6672.320023 | J185: K | K185: 1 | L185: 19.56709957 | M185: 76.3754729 | N185: 305.5018916 | O185: 0.309835422 | P185: 19.5389049 | Q185: 76.56631023 | R185: 306.2652409 | S185: 0.3090631742 | T185: 537.3680556 | U185: 359.0486111 | Y185: 1097
A186: 13 | B186: 156 | C186: =INDEX($Y$2:$Y$276,MATCH(MIN(ABS($Y$2:$Y$276-B186)),ABS($Y$2:$Y$276-B186),0)) -> 157 | D186: 232.44 | E186: =INDEX($Y$2:$Y$276,MATCH(MIN(ABS($Y$2:$Y$276-D186)),ABS($Y$2:$Y$276-D186),0)) -> 233 | F186: 360.36 | G186: =INDEX($Y$2:$Y$276,MATCH(MIN(ABS($Y$2:$Y$276-F186)),ABS($Y$2:$Y$276-F186),0)) -> 359 | H186: 7561.8543 | I186: 7599.872106 | J186: K | K186: 1 | L186: 18.81451881 | M186: 73.43795472 | N186: 293.7518189 | O186: 0.3222288389 | P186: 18.88579387 | Q186: 73.31529395 | R186: 293.2611758 | S186: 0.3227679466 | T186: 580.8819444 | U186: 391.4097222 | Y186: 1103
A187: 13.5 | B187: 162 | C187: =INDEX($Y$2:$Y$276,MATCH(MIN(ABS($Y$2:$Y$276-B187)),ABS($Y$2:$Y$276-B187),0)) -> 163 | D187: 241.38 | E187: =INDEX($Y$2:$Y$276,MATCH(MIN(ABS($Y$2:$Y$276-D187)),ABS($Y$2:$Y$276-D187),0)) -> 241 | F187: 374.22 | G187: =INDEX($Y$2:$Y$276,MATCH(MIN(ABS($Y$2:$Y$276-F187)),ABS($Y$2:$Y$276-F187),0)) -> 373 | H187: 8468.364712 | I187: 8479.490162 | J187: K | K187: 1 | L187: 18.11768478 | M187: 70.71803047 | N187: 282.8721219 | O187: 0.3346222558 | P187: 18.1769437 | Q187: 70.68708858 | R187: 282.7483543 | S187: 0.3347687301 | T187: 624.2569444 | U187: 422.2152778 | Y187: 1109
A188: 14 | B188: 168 | C188: =INDEX($Y$2:$Y$276,MATCH(MIN(ABS($Y$2:$Y$276-B188)),ABS($Y$2:$Y$276-B188),0)) -> 167 | D188: 250.32 | E188: =INDEX($Y$2:$Y$276,MATCH(MIN(ABS($Y$2:$Y$276-D188)),ABS($Y$2:$Y$276-D188),0)) -> 251 | F188: 388.08 | G188: =INDEX($Y$2:$Y$276,MATCH(MIN(ABS($Y$2:$Y$276-F188)),ABS($Y$2:$Y$276-F188),0)) -> 389 | H188: 9444.5736 | I188: 9436.176505 | J188: K | K188: 1 | L188: 17.47062461 | M188: 68.19238652 | N188: 272.7695461 | O188: 0.3470156727 | P188: 17.42930591 | Q188: 68.21260828 | R188: 272.8504331 | S188: 0.3469127992 | T188: 678.0486111 | U188: 451.1319444 | Y188: 1117
A189: 14.5 | B189: 174 | C189: =INDEX($Y$2:$Y$276,MATCH(MIN(ABS($Y$2:$Y$276-B189)),ABS($Y$2:$Y$276-B189),0)) -> 173 | D189: 259.26 | E189: =INDEX($Y$2:$Y$276,MATCH(MIN(ABS($Y$2:$Y$276-D189)),ABS($Y$2:$Y$276-D189),0)) -> 257 | F189: 401.94 | G189: =INDEX($Y$2:$Y$276,MATCH(MIN(ABS($Y$2:$Y$276-F189)),ABS($Y$2:$Y$276-F189),0)) -> 401 | H189: 10493.06239 | I189: 10317.62789 | J189: K | K189: 1 | L189: 16.86818928 | M189: 65.84092492 | N189: 263.3636997 | O189: 0.3594090896 | P189: 16.90773067 | Q189: 66.21200225 | R189: 264.848009 | S189: 0.3573948238 | T189: 715.6736111 | U189: 481.7569444 | Y189: 1123
A190: HEIGHT ft | B190: HEIGHT " | C190: PRIME height | D190: WIDTH " | E190: PRIME width | F190: DEPTH " | G190: PRIME depth | H190: VOLUME | I190: PRIME volume | J190: TABLE | K190: USEABLE 1=Yes 0=NO | L190: F¹ | M190: F² | N190: F³ | O190: minimum RT60 | P190: F¹ | Q190: F² | R190: F³ | S190: minimum RT60 | T190: Square Feet | U190: Square Feet | Y190: 1129
A191: =B191/12 -> 8 | B191: =B176 -> 96 | C191: =INDEX($Y$2:$Y$276,MATCH(MIN(ABS($Y$2:$Y$276-B191)),ABS($Y$2:$Y$276-B191),0)) -> 97 | D191: =B191*$D$16 -> 102.72 | E191: =INDEX($Y$2:$Y$276,MATCH(MIN(ABS($Y$2:$Y$276-D191)),ABS($Y$2:$Y$276-D191),0)) -> 103 | F191: =B191*$E$16 -> 179.52 | G191: =INDEX($Y$2:$Y$276,MATCH(MIN(ABS($Y$2:$Y$276-F191)),ABS($Y$2:$Y$276-F191),0)) -> 179 | H191: =(B191/12)*(D191/12)*(F191/12) -> 1024.4608 | I191: =(C191/12)*(E191/12)*(G191/12) -> 1034.947338 | J191: L | K191: =IF(H191>$L$21,$N$22,$O$22) -> 0 | L191: =565/(F191/12) -> 37.76737968 | M191: =(SQRT(O191/H191)*11250) -> 142.9875505 | N191: =4*M191 -> 571.950202 | O191: =0.25*(((0.028316846592*H191)/100)^(1/3)) -> 0.1654957148 | P191: =565/(G191/12) -> 37.87709497 | Q191: =(SQRT(S191/I191)*11250) -> 142.5029727 | R191: =4*Q191 -> 570.0118909 | S191: =0.25*(((0.028316846592*I191)/100)^(1/3)) -> 0.1660584788 | T191: =(E191/12)*(G191/12) -> 128.0347222 | U191: =(C191/12)*(G191/12) -> 120.5763889 | Y191: 1151
A192: 8.5 | B192: 102 | C192: =INDEX($Y$2:$Y$276,MATCH(MIN(ABS($Y$2:$Y$276-B192)),ABS($Y$2:$Y$276-B192),0)) -> 101 | D192: 109.14 | E192: =INDEX($Y$2:$Y$276,MATCH(MIN(ABS($Y$2:$Y$276-D192)),ABS($Y$2:$Y$276-D192),0)) -> 109 | F192: 190.74 | G192: =INDEX($Y$2:$Y$276,MATCH(MIN(ABS($Y$2:$Y$276-F192)),ABS($Y$2:$Y$276-F192),0)) -> 191 | H192: 1228.802713 | I192: =(C192/12)*(E192/12)*(G192/12) -> 1216.851273 | J192: L | K192: 0 | L192: 35.54576911 | M192: 134.5765181 | N192: 538.3060725 | O192: 0.175839197 | P192: =565/(G192/12) -> 35.4973822 | Q192: =(SQRT(S192/I192)*11250) -> 135.0156696 | R192: =4*Q192 -> 540.0626783 | S192: =0.25*(((0.028316846592*I192)/100)^(1/3)) -> 0.1752672631 | T192: 144.5763889 | U192: 133.9652778 | Y192: 1153
A193: 9 | B193: 108 | C193: =INDEX($Y$2:$Y$276,MATCH(MIN(ABS($Y$2:$Y$276-B193)),ABS($Y$2:$Y$276-B193),0)) -> 107 | D193: 115.56 | E193: =INDEX($Y$2:$Y$276,MATCH(MIN(ABS($Y$2:$Y$276-D193)),ABS($Y$2:$Y$276-D193),0)) -> 113 | F193: 201.96 | G193: =INDEX($Y$2:$Y$276,MATCH(MIN(ABS($Y$2:$Y$276-F193)),ABS($Y$2:$Y$276-F193),0)) -> 199 | H193: 1458.6561 | I193: 1392.42419 | J193: L | K193: 0 | L193: 33.57100416 | M193: 127.1000449 | N193: 508.4001796 | O193: 0.1861826792 | P193: 34.07035176 | Q193: 129.084121 | R193: 516.3364838 | S193: 0.1833209748 | T193: 156.1597222 | U193: 147.8680556 | Y193: 1163
A194: 9.5 | B194: 114 | C194: =INDEX($Y$2:$Y$276,MATCH(MIN(ABS($Y$2:$Y$276-B194)),ABS($Y$2:$Y$276-B194),0)) -> 113 | D194: 121.98 | E194: =INDEX($Y$2:$Y$276,MATCH(MIN(ABS($Y$2:$Y$276-D194)),ABS($Y$2:$Y$276-D194),0)) -> 127 | F194: 213.18 | G194: =INDEX($Y$2:$Y$276,MATCH(MIN(ABS($Y$2:$Y$276-F194)),ABS($Y$2:$Y$276-F194),0)) -> 211 | H194: 1715.521638 | I194: 1752.350116 | J194: L | K194: 1 | L194: 31.8041092 | M194: 120.4105688 | N194: 481.6422754 | O194: 0.1965261613 | P194: 32.13270142 | Q194: 119.5610483 | R194: 478.2441932 | S194: 0.1979225443 | T194: 186.0902778 | U194: 165.5763889 | Y194: 1171
A195: 10 | B195: 120 | C195: =INDEX($Y$2:$Y$276,MATCH(MIN(ABS($Y$2:$Y$276-B195)),ABS($Y$2:$Y$276-B195),0)) -> 113 | D195: 128.4 | E195: =INDEX($Y$2:$Y$276,MATCH(MIN(ABS($Y$2:$Y$276-D195)),ABS($Y$2:$Y$276-D195),0)) -> 127 | F195: 224.4 | G195: =INDEX($Y$2:$Y$276,MATCH(MIN(ABS($Y$2:$Y$276-F195)),ABS($Y$2:$Y$276-F195),0)) -> 223 | H195: 2000.9 | I195: 1852.009838 | J195: L | K195: 1 | L195: 30.21390374 | M195: 114.3900404 | N195: 457.5601616 | O195: 0.2068696435 | P195: 30.40358744 | Q195: 117.3767945 | R195: 469.507178 | S195: 0.2016056664 | T195: 196.6736111 | U195: 174.9930556 | Y195: 1181
A196: 10.5 | B196: 126 | C196: =INDEX($Y$2:$Y$276,MATCH(MIN(ABS($Y$2:$Y$276-B196)),ABS($Y$2:$Y$276-B196),0)) -> 127 | D196: 134.82 | E196: =INDEX($Y$2:$Y$276,MATCH(MIN(ABS($Y$2:$Y$276-D196)),ABS($Y$2:$Y$276-D196),0)) -> 137 | F196: 235.62 | G196: =INDEX($Y$2:$Y$276,MATCH(MIN(ABS($Y$2:$Y$276-F196)),ABS($Y$2:$Y$276-F196),0)) -> 233 | H196: 2316.291863 | I196: 2346.045718 | J196: L | K196: 1 | L196: 28.77514642 | M196: 108.9428956 | N196: 435.7715825 | O196: 0.2172131257 | P196: 29.09871245 | Q196: 108.4803767 | R196: 433.9215066 | S196: 0.2181392396 | T196: 221.6736111 | U196: 205.4930556 | Y196: 1187
A197: 11 | B197: 132 | C197: =INDEX($Y$2:$Y$276,MATCH(MIN(ABS($Y$2:$Y$276-B197)),ABS($Y$2:$Y$276-B197),0)) -> 131 | D197: 141.24 | E197: =INDEX($Y$2:$Y$276,MATCH(MIN(ABS($Y$2:$Y$276-D197)),ABS($Y$2:$Y$276-D197),0)) -> 139 | F197: 246.84 | G197: =INDEX($Y$2:$Y$276,MATCH(MIN(ABS($Y$2:$Y$276-F197)),ABS($Y$2:$Y$276-F197),0)) -> 251 | H197: 2663.1979 | I197: 2644.941551 | J197: L | K197: 1 | L197: 27.46718522 | M197: 103.9909458 | N197: 415.9637833 | O197: 0.2275566079 | P197: 27.01195219 | Q197: 104.2296585 | R197: 416.9186342 | S197: 0.2270354447 | T197: 242.2847222 | U197: 228.3402778 | Y197: 1193
A198: 11.5 | B198: 138 | C198: =INDEX($Y$2:$Y$276,MATCH(MIN(ABS($Y$2:$Y$276-B198)),ABS($Y$2:$Y$276-B198),0)) -> 137 | D198: 147.66 | E198: =INDEX($Y$2:$Y$276,MATCH(MIN(ABS($Y$2:$Y$276-D198)),ABS($Y$2:$Y$276-D198),0)) -> 149 | F198: 258.06 | G198: =INDEX($Y$2:$Y$276,MATCH(MIN(ABS($Y$2:$Y$276-F198)),ABS($Y$2:$Y$276-F198),0)) -> 257 | H198: 3043.118787 | I198: 3035.961227 | J198: L | K198: 1 | L198: 26.27295978 | M198: 99.46960035 | N198: 397.8784014 | O198: 0.2379000901 | P198: 26.38132296 | Q198: 99.54770861 | R198: 398.1908344 | S198: 0.2377134262 | T198: 265.9236111 | U198: 244.5069444 | Y198: 1201
A199: 12 | B199: 144 | C199: =INDEX($Y$2:$Y$276,MATCH(MIN(ABS($Y$2:$Y$276-B199)),ABS($Y$2:$Y$276-B199),0)) -> 139 | D199: 154.08 | E199: =INDEX($Y$2:$Y$276,MATCH(MIN(ABS($Y$2:$Y$276-D199)),ABS($Y$2:$Y$276-D199),0)) -> 157 | F199: 269.28 | G199: =INDEX($Y$2:$Y$276,MATCH(MIN(ABS($Y$2:$Y$276-F199)),ABS($Y$2:$Y$276-F199),0)) -> 269 | H199: 3457.5552 | I199: 3397.214699 | J199: L | K199: 1 | L199: 25.17825312 | M199: 95.32503367 | N199: 381.3001347 | O199: 0.2482435722 | P199: 25.20446097 | Q199: 95.88610481 | R199: 383.5444192 | S199: 0.2467909915 | T199: 293.2847222 | U199: 259.6597222 | Y199: 1213
A200: 12.5 | B200: 150 | C200: =INDEX($Y$2:$Y$276,MATCH(MIN(ABS($Y$2:$Y$276-B200)),ABS($Y$2:$Y$276-B200),0)) -> 149 | D200: 160.5 | E200: =INDEX($Y$2:$Y$276,MATCH(MIN(ABS($Y$2:$Y$276-D200)),ABS($Y$2:$Y$276-D200),0)) -> 163 | F200: 280.5 | G200: =INDEX($Y$2:$Y$276,MATCH(MIN(ABS($Y$2:$Y$276-F200)),ABS($Y$2:$Y$276-F200),0)) -> 281 | H200: 3908.007812 | I200: 3949.448495 | J200: L | K200: 1 | L200: 24.17112299 | M200: 91.51203232 | N200: 366.0481293 | O200: 0.2585870544 | P200: 24.12811388 | Q200: 91.19083448 | R200: 364.7633379 | S200: 0.2594978653 | T200: 318.0763889 | U200: 290.7569444 | Y200: 1217
... 209 more rows

Sheet RATIOS
A1: BOLT 1 | E1: BOLT 2 | I1: SEPMEYER 1 | M1: SEPMEYER 2 | Q1: SEPMEYER 3 | U1: LOUDEN 1 | Y1: LOUDEN 2 | AC1: LOUDEN 3 | AG1: ANSI 12.51 / ISO 3741 (1) | AK1: ANSI 12.51 / ISO 3741 (2) | AO1: ANSI 12.51 / ISO 3741 (3) | AS1: ANSI 12.51 / ISO 3741 (4)
A2: HEIGHT | B2: WIDTH | C2: DEPTH | E2: HEIGHT | F2: WIDTH | G2: DEPTH | I2: HEIGHT | J2: WIDTH | K2: DEPTH | M2: HEIGHT | N2: WIDTH | O2: DEPTH | Q2: HEIGHT | R2: WIDTH | S2: DEPTH | U2: HEIGHT | V2: WIDTH | W2: DEPTH | Y2: HEIGHT | Z2: WIDTH | AA2: DEPTH | AC2: HEIGHT | AD2: WIDTH | AE2: DEPTH | AG2: HEIGHT | AH2: WIDTH | AI2: DEPTH | AK2: HEIGHT | AL2: WIDTH | AM2: DEPTH | AO2: HEIGHT | AP2: WIDTH | AQ2: DEPTH | AS2: HEIGHT | AT2: WIDTH | AU2: DEPTH
A3: 1 | B3: 1.5 | C3: 2.5 | E3: 1 | F3: 1.26 | G3: 1.59 | I3: 1 | J3: 1.14 | K3: 1.39 | M3: 1 | N3: 1.28 | O3: 1.54 | Q3: 1 | R3: 1.6 | S3: 2.33 | U3: 1 | V3: 1.4 | W3: 1.9 | Y3: 1 | Z3: 1.3 | AA3: 1.9 | AC3: 1 | AD3: 1.5 | AE3: 2.1 | AG3: 1 | AH3: 1.428571 | AI3: 1.694915 | AK3: 1 | AL3: 1.265822 | AM3: 1.587301 | AO3: 1 | AP3: 1.204819 | AQ3: 1.538461 | AS3: 1 | AT3: 1.204819 | AU3: 2.127659
A6: HEIGHT | B6: 101.44 | E6: HEIGHT | F6: =B6 -> 101.44 | I6: HEIGHT | J6: =F6 -> 101.44 | M6: HEIGHT | N6: =J6 -> 101.44 | Q6: HEIGHT | R6: =N6 -> 101.44 | U6: HEIGHT | V6: =R6 -> 101.44 | Y6: HEIGHT | Z6: =V6 -> 101.44 | AC6: HEIGHT | AD6: =$B$6 -> 101.44 | AG6: HEIGHT | AH6: =$B$6 -> 101.44 | AK6: HEIGHT | AL6: =$B$6 -> 101.44 | AO6: HEIGHT | AP6: =$B$6 -> 101.44 | AS6: HEIGHT | AT6: =$B$6 -> 101.44
A7: WIDTH | B7: =B6*$B$3 -> 152.16 | E7: WIDTH | F7: =F6*$F$3 -> 127.8144 | I7: WIDTH | J7: =J6*$J$3 -> 115.6416 | M7: WIDTH | N7: =N6*$N$3 -> 129.8432 | Q7: WIDTH | R7: =R6*$R$3 -> 162.304 | U7: WIDTH | V7: =V6*$V$3 -> 142.016 | Y7: WIDTH | Z7: =Z6*$Z$3 -> 131.872 | AC7: WIDTH | AD7: =AD6*AD3 -> 152.16 | AG7: WIDTH | AH7: =AH6*AH3 -> 144.9142422 | AK7: WIDTH | AL7: =AL6*AL3 -> 128.4049837 | AO7: WIDTH | AP7: =AP6*AP3 -> 122.2168394 | AS7: WIDTH | AT7: =AT6*AT3 -> 122.2168394
A8: DEPTH | B8: =B6*$C$3 -> 253.6 | E8: DEPTH | F8: =F6*$G$3 -> 161.2896 | I8: DEPTH | J8: =J6*$K$3 -> 141.0016 | M8: DEPTH | N8: =N6*$O$3 -> 156.2176 | Q8: DEPTH | R8: =R6*$S$3 -> 236.3552 | U8: DEPTH | V8: =V6*$W$3 -> 192.736 | Y8: DEPTH | Z8: =Z6*$AA$3 -> 192.736 | AC8: DEPTH | AD8: =AD6*AE3 -> 213.024 | AG8: DEPTH | AH8: =AH6*AI3 -> 171.9321776 | AK8: DEPTH | AL8: =AL6*AM3 -> 161.0158134 | AO8: DEPTH | AP8: =AP6*AQ3 -> 156.0614838 | AS8: DEPTH | AT8: =AT6*AU3 -> 215.829729
A9: Area | B9: =(B7/12)*(B8/12) -> 267.9706667 | E9: Area | F9: =(F7)/12*(F8)/12 -> 143.160649 | I9: Area | J9: =(J7)/12*(J8)/12 -> 113.2336849 | M9: Area | N9: =(N7)/12*(N8)/12 -> 140.8596742 | Q9: Area | R9: =(R7)/12*(R8)/12 -> 266.3985721 | U9: Area | V9: =(V7)/12*(V8)/12 -> 190.0805262 | Y9: Area | Z9: =(Z7)/12*(Z8)/12 -> 176.5033458 | AC9: Area | AD9: =(AD7)/12*(AD8)/12 -> 225.09536 | AG9: Area | AH9: =(AH7)/12*(AH8)/12 -> 173.0237586 | AK9: Area | AL9: =(AL7)/12*(AL8)/12 -> 143.5780062 | AO9: Area | AP9: =(AP7)/12*(AP8)/12 -> 132.453759 | AS9: Area | AT9: =(AT7)/12*(AT8)/12 -> 183.1807452
A10: Volume | B10: =(B6/12)*(B7/12)*(B8/12) -> 2265.245369 | E10: Volume | F10: =(F6/12)*(F7/12)*(F8/12) -> 1210.184686 | I10: Volume | J10: =(J6/12)*(J7/12)*(J8/12) -> 957.2020831 | M10: Volume | N10: =(N6/12)*(N7/12)*(N8/12) -> 1190.733779 | Q10: Volume | R10: =(R6/12)*(R7/12)*(R8/12) -> 2251.955929 | U10: Volume | V10: =(V6/12)*(V7/12)*(V8/12) -> 1606.814048 | Y10: Volume | Z10: =(Z6/12)*(Z7/12)*(Z8/12) -> 1492.041616 | AC10: Volume | AD10: =(AD6/12)*(AD7/12)*(AD8/12) -> 1902.80611 | AG10: Volume | AH10: =(AH6/12)*(AH7/12)*(AH8/12) -> 1462.627506 | AK10: Volume | AL10: =(AL6/12)*(AL7/12)*(AL8/12) -> 1213.712746 | AO10: Volume | AP10: =(AP6/12)*(AP7/12)*(AP8/12) -> 1119.675776 | AS10: Volume | AT10: =(AT6/12)*(AT7/12)*(AT8/12) -> 1548.4879
A12: HEIGHT | B12: =B13/$B$3 -> 164 | E12: HEIGHT | F12: =F13/$F$3 -> 195.2380952 | I12: HEIGHT | J12: =J13/$J$3 -> 215.7894737 | M12: HEIGHT | N12: =N13/$N$3 -> 192.1875 | Q12: HEIGHT | R12: =R13/$R$3 -> 153.75 | U12: HEIGHT | V12: =V13/$V$3 -> 175.7142857 | Y12: HEIGHT | Z12: =Z13/$Z$3 -> 189.2307692 | AC12: HEIGHT | AD12: =AD13/AD3 -> 164 | AG12: HEIGHT | AH12: =AH13/AH3 -> 172.2000517 | AK12: HEIGHT | AL12: =AL13/AL3 -> 194.3401205 | AO12: HEIGHT | AP12: =AP13/AP3 -> 204.180047 | AS12: HEIGHT | AT12: =AT13/AT3 -> 204.180047
A13: WIDTH | B13: 246 | E13: WIDTH | F13: =$B$13 -> 246 | I13: WIDTH | J13: =$B$13 -> 246 | M13: WIDTH | N13: =$B$13 -> 246 | Q13: WIDTH | R13: =$B$13 -> 246 | U13: WIDTH | V13: =$B$13 -> 246 | Y13: WIDTH | Z13: =$B$13 -> 246 | AC13: WIDTH | AD13: =$B$13 -> 246 | AG13: WIDTH | AH13: =$B$13 -> 246 | AK13: WIDTH | AL13: =$B$13 -> 246 | AO13: WIDTH | AP13: =$B$13 -> 246 | AS13: WIDTH | AT13: =$B$13 -> 246
A14: DEPTH | B14: =B12*$C$3 -> 410 | E14: DEPTH | F14: =F12*$G$3 -> 310.4285714 | I14: DEPTH | J14: =J12*$K$3 -> 299.9473684 | M14: DEPTH | N14: =N12*$O$3 -> 295.96875 | Q14: DEPTH | R14: =R12*$S$3 -> 358.2375 | U14: DEPTH | V14: =V12*$W$3 -> 333.8571429 | Y14: DEPTH | Z14: =Z12*$AA$3 -> 359.5384615 | AC14: DEPTH | AD14: =AD12*AE3 -> 344.4 | AG14: DEPTH | AH14: =AH12*AI3 -> 291.8644506 | AK14: DEPTH | AL14: =AL12*AM3 -> 308.4762676 | AO14: DEPTH | AP14: =AP12*AQ3 -> 314.1230392 | AS14: DEPTH | AT14: =AT12*AU3 -> 434.4255145
A15: Area | B15: =(B13)/12*(B14)/12 -> 700.4166667 | E15: Area | F15: =(F13)/12*(F14)/12 -> 530.3154762 | I15: Area | J15: =(J13)/12*(J14)/12 -> 512.4100877 | M15: Area | N15: =(N13)/12*(N14)/12 -> 505.6132812 | Q15: Area | R15: =(R13)/12*(R14)/12 -> 611.9890625 | U15: Area | V15: =(V13)/12*(V14)/12 -> 570.3392857 | Y15: Area | Z15: =(Z13)/12*(Z14)/12 -> 614.2115385 | AC15: Area | AD15: =(AD13)/12*(AD14)/12 -> 588.35 | AG15: Area | AH15: =(AH13)/12*(AH14)/12 -> 498.6017697 | AK15: Area | AL15: =(AL13)/12*(AL14)/12 -> 526.9802905 | AO15: Area | AP15: =(AP13)/12*(AP14)/12 -> 536.6268587 | AS15: Area | AT15: =(AT13)/12*(AT14)/12 -> 742.1435873
A16: Volume | B16: =(B12/12)*(B13/12)*(B14/12) -> 9572.361111 | E16: Volume | F16: =(F12/12)*(F13/12)*(F14/12) -> 8628.148621 | I16: Volume | J16: =(J12/12)*(J13/12)*(J14/12) -> 9214.391928 | M16: Volume | N16: =(N12/12)*(N13/12)*(N14/12) -> 8097.712708 | Q16: Volume | R16: =(R12/12)*(R13/12)*(R14/12) -> 7841.109863 | U16: Volume | V16: =(V12/12)*(V13/12)*(V14/12) -> 8351.396684 | Y16: Volume | Z16: =(Z12/12)*(Z13/12)*(Z14/12) -> 9685.643491 | AC16: Volume | AD16: =(AD12/12)*(AD13/12)*(AD14/12) -> 8040.783333 | AG16: Volume | AH16: =(AH12/12)*(AH13/12)*(AH14/12) -> 7154.937542 | AK16: Volume | AL16: =(AL12/12)*(AL13/12)*(AL14/12) -> 8534.451096 | AO16: Volume | AP16: =(AP12/12)*(AP13/12)*(AP14/12) -> 9130.708101 | AS16: Volume | AT16: =(AT12/12)*(AT13/12)*(AT14/12) -> 12627.57604
A18: HEIGHT | B18: =B20/$C$3 -> 115.2 | E18: HEIGHT | F18: =F20/$G$3 -> 181.1320755 | I18: HEIGHT | J18: =J20/$K$3 -> 207.1942446 | M18: HEIGHT | N18: =N20/$O$3 -> 187.012987 | Q18: HEIGHT | R18: =R20/$S$3 -> 123.6051502 | U18: HEIGHT | V18: =V20/$W$3 -> 151.5789474 | Y18: HEIGHT | Z18: =Z20/$AA$3 -> 151.5789474 | AC18: HEIGHT | AD18: =AD20/AE3 -> 137.1428571 | AG18: HEIGHT | AH18: =AH20/AI3 -> 169.9200255 | AK18: HEIGHT | AL18: =AL20/AM3 -> 181.4400671 | AO18: HEIGHT | AP18: =AP20/AQ3 -> 187.2000655 | AS18: HEIGHT | AT18: =AT20/AU3 -> 135.3600365
A19: WIDTH | B19: =B18*$B$3 -> 172.8 | E19: WIDTH | F19: =F18*$F$3 -> 228.2264151 | I19: WIDTH | J19: =J18*$J$3 -> 236.2014388 | M19: WIDTH | N19: =N18*$N$3 -> 239.3766234 | Q19: WIDTH | R19: =R18*$R$3 -> 197.7682403 | U19: WIDTH | V19: =V18*$V$3 -> 212.2105263 | Y19: WIDTH | Z19: =Z18*$Z$3 -> 197.0526316 | AC19: WIDTH | AD19: =AD18*AD3 -> 205.7142857 | AG19: WIDTH | AH19: =AH18*AH3 -> 242.7428207 | AK19: WIDTH | AL19: =AL18*AL3 -> 229.6708287 | AO19: WIDTH | AP19: =AP18*AP3 -> 225.5421957 | AS19: WIDTH | AT19: =AT18*AT3 -> 163.0843439
A20: DEPTH | B20: 288 | E20: DEPTH | F20: =$B$20 -> 288 | I20: DEPTH | J20: =$B$20 -> 288 | M20: DEPTH | N20: =$B$20 -> 288 | Q20: DEPTH | R20: =$B$20 -> 288 | U20: DEPTH | V20: =$B$20 -> 288 | Y20: DEPTH | Z20: =$B$20 -> 288 | AC20: DEPTH | AD20: =$B$20 -> 288 | AG20: DEPTH | AH20: =$B$20 -> 288 | AK20: DEPTH | AL20: =$B$20 -> 288 | AO20: DEPTH | AP20: =$B$20 -> 288 | AS20: DEPTH | AT20: =$B$20 -> 288
A21: Area | B21: =(B19)/12*(B20)/12 -> 345.6 | E21: Area | F21: =(F19)/12*(F20)/12 -> 456.4528302 | I21: Area | J21: =(J19)/12*(J20)/12 -> 472.4028777 | M21: Area | N21: =(N19)/12*(N20)/12 -> 478.7532468 | Q21: Area | R21: =(R19)/12*(R20)/12 -> 395.5364807 | U21: Area | V21: =(V19)/12*(V20)/12 -> 424.4210526 | Y21: Area | Z21: =(Z19)/12*(Z20)/12 -> 394.1052632 | AC21: Area | AD21: =(AD19)/12*(AD20)/12 -> 411.4285714 | AG21: Area | AH21: =(AH19)/12*(AH20)/12 -> 485.4856415 | AK21: Area | AL21: =(AL19)/12*(AL20)/12 -> 459.3416573 | AO21: Area | AP21: =(AP19)/12*(AP20)/12 -> 451.0843915 | AS21: Area | AT21: =(AT19)/12*(AT20)/12 -> 326.1686877
A22: Volume | B22: =(B18/12)*(B19/12)*(B20/12) -> 3317.76 | E22: Volume | F22: =(F18/12)*(F19/12)*(F20/12) -> 6889.854041 | I22: Volume | J22: =(J18/12)*(J19/12)*(J20/12) -> 8156.596449 | M22: Volume | N22: =(N18/12)*(N19/12)*(N20/12) -> 7461.08956 | Q22: Volume | R22: =(R18/12)*(R19/12)*(R20/12) -> 4074.195509 | U22: Volume | V22: =(V18/12)*(V19/12)*(V20/12) -> 5361.108033 | Y22: Volume | Z22: =(Z18/12)*(Z19/12)*(Z20/12) -> 4978.171745 | AC22: Volume | AD22: =(AD18/12)*(AD19/12)*(AD20/12) -> 4702.040816 | AG22: Volume | AH22: =(AH18/12)*(AH19/12)*(AH20/12) -> 6874.477714 | AK22: Volume | AL22: =(AL18/12)*(AL19/12)*(AL20/12) -> 6945.248428 | AO22: Volume | AP22: =(AP18/12)*(AP19/12)*(AP20/12) -> 7036.91897 | AS22: Volume | AT22: =(AT18/12)*(AT19/12)*(AT20/12) -> 3679.183791
A25: HEIGHT | B25: 114 | E25: HEIGHT | F25: 114 | I25: HEIGHT | J25: =F25 -> 114 | M25: HEIGHT | N25: =J25 -> 114 | Q25: HEIGHT | R25: =N25 -> 114 | U25: HEIGHT | V25: =R25 -> 114 | Y25: HEIGHT | Z25: =V25 -> 114 | AC25: HEIGHT | AD25: =$B$25 -> 114 | AG25: HEIGHT | AH25: =$B$25 -> 114 | AK25: HEIGHT | AL25: =$B$25 -> 114 | AO25: HEIGHT | AP25: =$B$25 -> 114 | AS25: HEIGHT | AT25: =$B$25 -> 114
A26: WIDTH | B26: =B25*$B$3 -> 171 | E26: WIDTH | F26: =F25*$B$3 -> 171 | I26: WIDTH | J26: =J25*$J$3 -> 129.96 | M26: WIDTH | N26: =N25*$N$3 -> 145.92 | Q26: WIDTH | R26: =R25*$R$3 -> 182.4 | U26: WIDTH | V26: =V25*$V$3 -> 159.6 | Y26: WIDTH | Z26: =Z25*$Z$3 -> 148.2 | AC26: WIDTH | AD26: =AD25*AD3 -> 171 | AG26: WIDTH | AH26: =AH25*AH3 -> 162.857094 | AK26: WIDTH | AL26: =AL25*AL3 -> 144.303708 | AO26: WIDTH | AP26: =AP25*AP3 -> 137.349366 | AS26: WIDTH | AT26: =AT25*AT3 -> 137.349366
A27: DEPTH | B27: =B25*$C$3 -> 285 | E27: DEPTH | F27: =F25*$C$3 -> 285 | I27: DEPTH | J27: =J25*$K$3 -> 158.46 | M27: DEPTH | N27: =N25*$O$3 -> 175.56 | Q27: DEPTH | R27: =R25*$S$3 -> 265.62 | U27: DEPTH | V27: =V25*$W$3 -> 216.6 | Y27: DEPTH | Z27: =Z25*$AA$3 -> 216.6 | AC27: DEPTH | AD27: =AD25*AE3 -> 239.4 | AG27: DEPTH | AH27: =AH25*AI3 -> 193.22031 | AK27: DEPTH | AL27: =AL25*AM3 -> 180.952314 | AO27: DEPTH | AP27: =AP25*AQ3 -> 175.384554 | AS27: DEPTH | AT27: =AT25*AU3 -> 242.553126
A28: Area | B28: =(B26)/12*(B27)/12 -> 338.4375 | E28: Area | F28: =(F26)/12*(F27)/12 -> 338.4375 | I28: Area | J28: =(J26)/12*(J27)/12 -> 143.01015 | M28: Area | N28: =(N26)/12*(N27)/12 -> 177.9008 | Q28: Area | R28: =(R26)/12*(R27)/12 -> 336.452 | U28: Area | V28: =(V26)/12*(V27)/12 -> 240.065 | Y28: Area | Z28: =(Z26)/12*(Z27)/12 -> 222.9175 | AC28: Area | AD28: =(AD26)/12*(AD27)/12 -> 284.2875 | AG28: Area | AH28: =(AH26)/12*(AH27)/12 -> 218.5229041 | AK28: Area | AL28: =(AL26)/12*(AL27)/12 -> 181.3339575 | AO28: Area | AP28: =(AP26)/12*(AP27)/12 -> 167.2844257 | AS28: Area | AT28: =(AT26)/12*(AT27)/12 -> 231.35082
A29: Volume | B29: =(B25/12)*(B26/12)*(B27/12) -> 3215.15625 | E29: Volume | F29: =(F25/12)*(F26/12)*(F27/12) -> 3215.15625 | I29: Volume | J29: =(J25/12)*(J26/12)*(J27/12) -> 1358.596425 | M29: Volume | N29: =(N25/12)*(N26/12)*(N27/12) -> 1690.0576 | Q29: Volume | R29: =(R25/12)*(R26/12)*(R27/12) -> 3196.294 | U29: Volume | V29: =(V25/12)*(V26/12)*(V27/12) -> 2280.6175 | Y29: Volume | Z29: =(Z25/12)*(Z26/12)*(Z27/12) -> 2117.71625 | AC29: Volume | AD29: =(AD25/12)*(AD26/12)*(AD27/12) -> 2700.73125 | AG29: Volume | AH29: =(AH25/12)*(AH26/12)*(AH27/12) -> 2075.967589 | AK29: Volume | AL29: =(AL25/12)*(AL26/12)*(AL27/12) -> 1722.672596 | AO29: Volume | AP29: =(AP25/12)*(AP26/12)*(AP27/12) -> 1589.202044 | AS29: Volume | AT29: =(AT25/12)*(AT26/12)*(AT27/12) -> 2197.83279
A31: HEIGHT | B31: 167 | E31: HEIGHT | F31: =B31 -> 167 | I31: HEIGHT | J31: =$B$6 -> 101.44 | M31: HEIGHT | N31: =$B$6 -> 101.44 | Q31: HEIGHT | R31: =$B$6 -> 101.44 | U31: HEIGHT | V31: =$B$6 -> 101.44 | Y31: HEIGHT | Z31: =$B$6 -> 101.44 | AC31: HEIGHT | AD31: =$B$31 -> 167 | AG31: HEIGHT | AH31: =$B$31 -> 167 | AK31: HEIGHT | AL31: =$B$31 -> 167 | AO31: HEIGHT | AP31: =$B$31 -> 167 | AS31: HEIGHT | AT31: =$B$31 -> 167
A32: WIDTH | B32: =B31*$B$3 -> 250.5 | E32: WIDTH | F32: =F31*$F$3 -> 210.42 | I32: WIDTH | J32: =J31*$J$3 -> 115.6416 | M32: WIDTH | N32: =N31*$N$3 -> 129.8432 | Q32: WIDTH | R32: =R31*$R$3 -> 162.304 | U32: WIDTH | V32: =V31*$V$3 -> 142.016 | Y32: WIDTH | Z32: =Z31*$Z$3 -> 131.872 | AC32: WIDTH | AD32: =AD31*AD3 -> 250.5 | AG32: WIDTH | AH32: =AH31*AH3 -> 238.571357 | AK32: WIDTH | AL32: =AL31*AL3 -> 211.392274 | AO32: WIDTH | AP32: =AP31*AP3 -> 201.204773 | AS32: WIDTH | AT32: =AT31*AT3 -> 201.204773
A33: DEPTH | B33: =B31*$C$3 -> 417.5 | E33: DEPTH | F33: =F31*$G$3 -> 265.53 | I33: DEPTH | J33: =J31*$K$3 -> 141.0016 | M33: DEPTH | N33: =N31*$O$3 -> 156.2176 | Q33: DEPTH | R33: =R31*$S$3 -> 236.3552 | U33: DEPTH | V33: =V31*$W$3 -> 192.736 | Y33: DEPTH | Z33: =Z31*$AA$3 -> 192.736 | AC33: DEPTH | AD33: =AD31*AE3 -> 350.7 | AG33: DEPTH | AH33: =AH31*AI3 -> 283.050805 | AK33: DEPTH | AL33: =AL31*AM3 -> 265.079267 | AO33: DEPTH | AP33: =AP31*AQ3 -> 256.922987 | AS33: DEPTH | AT33: =AT31*AU3 -> 355.319053
A34: Area | B34: =(B32)/12*(B33)/12 -> 726.2760417 | E34: Area | F34: =(F32)/12*(F33)/12 -> 388.0057125 | I34: Area | J34: =(J32)/12*(J33)/12 -> 113.2336849 | M34: Area | N34: =(N32)/12*(N33)/12 -> 140.8596742 | Q34: Area | R34: =(R32)/12*(R33)/12 -> 266.3985721 | U34: Area | V34: =(V32)/12*(V33)/12 -> 190.0805262 | Y34: Area | Z34: =(Z32)/12*(Z33)/12 -> 176.5033458 | AC34: Area | AD34: =(AD32)/12*(AD33)/12 -> 610.071875 | AG34: Area | AH34: =(AH32)/12*(AH33)/12 -> 468.9431573 | AK34: Area | AL34: =(AL32)/12*(AL33)/12 -> 389.1368683 | AO34: Area | AP34: =(AP32)/12*(AP33)/12 -> 358.9870228 | AS34: Area | AT34: =(AT32)/12*(AT33)/12 -> 496.4714542
A35: Volume | B35: =(B31/12)*(B32/12)*(B33/12) -> 10107.34158 | E35: Volume | F35: =(F31/12)*(F32/12)*(F33/12) -> 5399.746166 | I35: Volume | J35: =(J31/12)*(J32/12)*(J33/12) -> 957.2020831 | M35: Volume | N35: =(N31/12)*(N32/12)*(N33/12) -> 1190.733779 | Q35: Volume | R35: =(R31/12)*(R32/12)*(R33/12) -> 2251.955929 | U35: Volume | V35: =(V31/12)*(V32/12)*(V33/12) -> 1606.814048 | Y35: Volume | Z35: =(Z31/12)*(Z32/12)*(Z33/12) -> 1492.041616 | AC35: Volume | AD35: =(AD31/12)*(AD32/12)*(AD33/12) -> 8490.166927 | AG35: Volume | AH35: =(AH31/12)*(AH32/12)*(AH33/12) -> 6526.125606 | AK35: Volume | AL35: =(AL31/12)*(AL32/12)*(AL33/12) -> 5415.488084 | AO35: Volume | AP35: =(AP31/12)*(AP32/12)*(AP33/12) -> 4995.902733 | AS35: Volume | AT35: =(AT31/12)*(AT32/12)*(AT33/12) -> 6909.227737
A37: HEIGHT | B37: 107 | E37: HEIGHT | F37: =$B$6 -> 101.44 | I37: HEIGHT | J37: =$B$6 -> 101.44 | M37: HEIGHT | N37: =$B$6 -> 101.44 | Q37: HEIGHT | R37: =$B$6 -> 101.44 | U37: HEIGHT | V37: =$B$6 -> 101.44 | Y37: HEIGHT | Z37: =$B$6 -> 101.44 | AC37: HEIGHT | AD37: =$B$37 -> 107 | AG37: HEIGHT | AH37: =$B$37 -> 107 | AK37: HEIGHT | AL37: =$B$37 -> 107 | AO37: HEIGHT | AP37: =$B$37 -> 107 | AS37: HEIGHT | AT37: =$B$37 -> 107
A38: WIDTH | B38: =B37*$B$3 -> 160.5 | E38: WIDTH | F38: =F37*$F$3 -> 127.8144 | I38: WIDTH | J38: =J37*$J$3 -> 115.6416 | M38: WIDTH | N38: =N37*$N$3 -> 129.8432 | Q38: WIDTH | R38: =R37*$R$3 -> 162.304 | U38: WIDTH | V38: =V37*$V$3 -> 142.016 | Y38: WIDTH | Z38: =Z37*$Z$3 -> 131.872 | AC38: WIDTH | AD38: =AD37*AD3 -> 160.5 | AG38: WIDTH | AH38: =AH37*AH3 -> 152.857097 | AK38: WIDTH | AL38: =AL37*AL3 -> 135.442954 | AO38: WIDTH | AP38: =AP37*AP3 -> 128.915633 | AS38: WIDTH | AT38: =AT37*AT3 -> 128.915633
A39: DEPTH | B39: =B37*$C$3 -> 267.5 | E39: DEPTH | F39: =F37*$G$3 -> 161.2896 | I39: DEPTH | J39: =J37*$K$3 -> 141.0016 | M39: DEPTH | N39: =N37*$O$3 -> 156.2176 | Q39: DEPTH | R39: =R37*$S$3 -> 236.3552 | U39: DEPTH | V39: =V37*$W$3 -> 192.736 | Y39: DEPTH | Z39: =Z37*$AA$3 -> 192.736 | AC39: DEPTH | AD39: =AD37*AE3 -> 224.7 | AG39: DEPTH | AH39: =AH37*AI3 -> 181.355905 | AK39: DEPTH | AL39: =AL37*AM3 -> 169.841207 | AO39: DEPTH | AP39: =AP37*AQ3 -> 164.615327 | AS39: DEPTH | AT39: =AT37*AU3 -> 227.659513
A40: Area | B40: =(B38/12)*(B39/12) -> 298.1510417 | E40: Area | F40: =(F38)/12*(F39)/12 -> 143.160649 | I40: Area | J40: =(J38)/12*(J39)/12 -> 113.2336849 | M40: Area | N40: =(N38)/12*(N39)/12 -> 140.8596742 | Q40: Area | R40: =(R38)/12*(R39)/12 -> 266.3985721 | U40: Area | V40: =(V38)/12*(V39)/12 -> 190.0805262 | Y40: Area | Z40: =(Z38)/12*(Z39)/12 -> 176.5033458 | AC40: Area | AD40: =(AD38)/12*(AD39)/12 -> 250.446875 | AG40: Area | AH40: =(AH38)/12*(AH39)/12 -> 192.5106747 | AK40: Area | AL40: =(AL38)/12*(AL39)/12 -> 159.7485749 | AO40: Area | AP40: =(AP38)/12*(AP39)/12 -> 147.371452 | AS40: Area | AT40: =(AT38)/12*(AT39)/12 -> 203.8115988
A41: Volume | B41: =(B37/12)*(B38/12)*(B39/12) -> 2658.513455 | E41: Volume | F41: =(F37/12)*(F38/12)*(F39/12) -> 1210.184686 | I41: Volume | J41: =(J37/12)*(J38/12)*(J39/12) -> 957.2020831 | M41: Volume | N41: =(N37/12)*(N38/12)*(N39/12) -> 1190.733779 | Q41: Volume | R41: =(R37/12)*(R38/12)*(R39/12) -> 2251.955929 | U41: Volume | V41: =(V37/12)*(V38/12)*(V39/12) -> 1606.814048 | Y41: Volume | Z41: =(Z37/12)*(Z38/12)*(Z39/12) -> 1492.041616 | AC41: Volume | AD41: =(AD37/12)*(AD38/12)*(AD39/12) -> 2233.151302 | AG41: Volume | AH41: =(AH37/12)*(AH38/12)*(AH39/12) -> 1716.553516 | AK41: Volume | AL41: =(AL37/12)*(AL38/12)*(AL39/12) -> 1424.424793 | AO41: Volume | AP41: =(AP37/12)*(AP38/12)*(AP39/12) -> 1314.062113 | AS41: Volume | AT41: =(AT37/12)*(AT38/12)*(AT39/12) -> 1817.320089
